Workbook

Sheet Contents
B2: Section | C2: Worksheet | D2: Description
B3: Results | C3: =HYPERLINK("#'"&U3&"'!a1",U3) -> Portfolio Results | D3: Total budget, savings, and TRC ratio by program and portfolio. | U3: ='Portfolio Results'!$A$1 -> Portfolio Results
D4: Measure savings, participation, detailed budget, and full cost-effectiveness results by program. | U4: =#REF! -> 
D5: End use total savings, incremental cost and savings by sector. | U5: =#REF! -> 
B6: Inputs | C6: Measure Inputs | D6: Measure-level savings, lifetimes, incremental costs, and incentives. | U6: ='Measure Inputs'!$B$2 -> Measure Inputs
C7: Program Inputs | D7: Detailed budget allocation by line item. | U7: ='Program Inputs'!$A$1 -> Program Inputs
C8: Portfolio Inputs | D8: Avoided costs, discount rates, line losses, retail rates. | U8: ='Portfolio Inputs'!$A$1 -> Portfolio Inputs
B9: Analysis | C9: 2016 | D9: Benefit-cost analysis for program year 1. | U9: ='2016'!$E$2 -> 2016
D10: Benefit-cost analysis for program year 2. | U10: =#REF! -> 
D11: Benefit-cost analysis for program year 3. | U11: =#REF! -> 
D12: Benefit-cost analysis for all program years. | U12: =#REF! -> 
B13: Status Report Tables | C13: Status Report Tables | D13: Tables for status report | U13: ='Status Report Tables'!H1 -> Status Report Tables

Sheet Status Report Tables
A1: Key | B1: Sector | C1: Program | D1: End Use | E1: Measure | F1: Version | H1: =IFERROR(VALUE(MID(CELL("filename",$A$1),FIND("]",CELL("filename",$A$1))+1,255)),MID(CELL("filename",$A$1),FIND("]",CELL("filename",$A$1))+1,255)) -> Status Report Tables | J1: =HYPERLINK("#'Contents'!a1","Return to Contents") -> Return to Contents
A2: =B2&"_"&C2&"_"&D2&"_"&E2&"_"&F2 -> ____
H4: Executive Summary
I6: Budget by Sector
J8: Sector | K8: Goal | L8: Actual | M8: % Goal Achieved
B9: Residential | J9: Residential | K9: =SUMIFS('Program Inputs'!$AS$5:$AS$15,'Program Inputs'!$B$5:$B$15,$B9) -> 246642.4275 | L9: =SUMIFS('Program Inputs'!$AI$5:$AI$15,'Program Inputs'!$B$5:$B$15,$B9) -> 157186.52 | M9: =IFERROR(L9/K9,0) -> 0.6373052747
B10: Commercial | J10: Non-Residential | K10: =SUMIFS('Program Inputs'!$AS$5:$AS$15,'Program Inputs'!$B$5:$B$15,$B10) -> 518660.835 | L10: =SUMIFS('Program Inputs'!$AI$5:$AI$15,'Program Inputs'!$B$5:$B$15,B10) -> 494857.72 | M10: 0.9541065887
J11: Cross Marketing & Training | K11: ='Program Inputs'!AS14 -> 39645.7 | L11: ='Program Inputs'!AI14 -> 107681.59 | M11: 2.716097584
J12: General Administration | K12: ='Program Inputs'!AS15 -> 0 | L12: ='Program Inputs'!AI15 -> 66144.05 | M12: 0
J13: Total | K13: =SUM(K9:K12) -> 804948.9625 | L13: =SUM(L9:L12) -> 825869.88 | M13: 1.025990365
I15: Budget by Program
J17: Sector | K17: Goal | L17: Actual | M17: % Goal Achieved
J18: Residential Programs
J19: Residential Lighting | K19: =SUMIFS('Program Inputs'!$AS$5:$AS$15,'Program Inputs'!$C$5:$C$15,$J19) -> 31635.45 | L19: =SUMIFS('Program Inputs'!$AI$5:$AI$15,'Program Inputs'!$C$5:$C$15,$J19) -> 29786.28 | M19: =IFERROR(L19/K19,0) -> 0.9415475361
J20: Residential Appliance Recycling | K20: =SUMIFS('Program Inputs'!$AS$5:$AS$15,'Program Inputs'!$C$5:$C$15,$J20) -> 23999.0625 | L20: =SUMIFS('Program Inputs'!$AI$5:$AI$15,'Program Inputs'!$C$5:$C$15,J20) -> 12748.21 | M20: 0.5311961665
J21: Residential HVAC | K21: =SUMIFS('Program Inputs'!$AS$5:$AS$15,'Program Inputs'!$C$5:$C$15,$J21) -> 57660.54 | L21: =SUMIFS('Program Inputs'!$AI$5:$AI$15,'Program Inputs'!$C$5:$C$15,J21) -> 21291.75 | M21: 0.3692603295
J22: Whole House Efficiency | K22: =SUMIFS('Program Inputs'!$AS$5:$AS$15,'Program Inputs'!$C$5:$C$15,$J22) -> 32287.5 | L22: =SUMIFS('Program Inputs'!$AI$5:$AI$15,'Program Inputs'!$C$5:$C$15,J22) -> 9043.62 | M22: 0.2800966318
J23: Residential Audit | K23: =SUMIFS('Program Inputs'!$AS$5:$AS$15,'Program Inputs'!$C$5:$C$15,$J23) -> 25263 | L23: =SUMIFS('Program Inputs'!$AI$5:$AI$15,'Program Inputs'!$C$5:$C$15,J23) -> 6424.84 | M23: 0.2543181728
J24: School-Based Energy Education | K24: =SUMIFS('Program Inputs'!$AS$5:$AS$15,'Program Inputs'!$C$5:$C$15,$J24) -> 66150 | L24: =SUMIFS('Program Inputs'!$AI$5:$AI$15,'Program Inputs'!$C$5:$C$15,J24) -> 69731.04 | M24: 1.054135147
J25: Weatherization | K25: =SUMIFS('Program Inputs'!$AS$5:$AS$15,'Program Inputs'!$C$5:$C$15,$J25) -> 9646.875 | L25: =SUMIFS('Program Inputs'!$AI$5:$AI$15,'Program Inputs'!$C$5:$C$15,J25) -> 8160.78 | M25: 0.8459506317
J26: C&I Programs
J27: Commercial Prescriptive Rebate | K27: =SUMIFS('Program Inputs'!$AS$5:$AS$15,'Program Inputs'!$C$5:$C$15,$J27) -> 242914.56 | L27: =SUMIFS('Program Inputs'!$AI$5:$AI$15,'Program Inputs'!$C$5:$C$15,J27) -> 295246.82 | M27: 1.215434843
J28: Commercial Custom Rebate | K28: =SUMIFS('Program Inputs'!$AS$5:$AS$15,'Program Inputs'!$C$5:$C$15,$J28) -> 275746.275 | L28: =SUMIFS('Program Inputs'!$AI$5:$AI$15,'Program Inputs'!$C$5:$C$15,J28) -> 199610.9 | M28: 0.723893369
J29: Cross Marketing and Training | K29: =SUMIFS('Program Inputs'!$AS$5:$AS$15,'Program Inputs'!$C$5:$C$15,$J29) -> 39645.7 | L29: =SUMIFS('Program Inputs'!$AI$5:$AI$15,'Program Inputs'!$C$5:$C$15,J29) -> 107681.59 | M29: 2.716097584
J30: General Administration | K30: =SUMIFS('Program Inputs'!$AS$5:$AS$15,'Program Inputs'!$C$5:$C$15,$J30) -> 0 | L30: =SUMIFS('Program Inputs'!$AI$5:$AI$15,'Program Inputs'!$C$5:$C$15,J30) -> 66144.05 | M30: 0
J31: Total | K31: =SUM(K19:K30) -> 804948.9625 | L31: =SUM(L19:L30) -> 825869.88 | M31: 1.025990365
I33: Energy Impacts by Sector
J35: Sector | K35: Goal | L35: Actual | M35: % Goal Achieved
B36: Residential | J36: Residential | K36: =SUMIFS('Program Inputs'!$AT$5:$AT$15,'Program Inputs'!$B$5:$B$15,B36) -> 1115044.095 | L36: ='Portfolio Results'!H13 -> 1084418.587 | M36: =IFERROR(L36/K36,0) -> 0.9725342622
B37: Commercial | J37: Non-Residential | K37: =SUMIFS('Program Inputs'!$AT$5:$AT$15,'Program Inputs'!$B$5:$B$15,B37) -> 4683169.729 | L37: ='Portfolio Results'!H16 -> 4480341.244 | M37: 0.9566899137
J38: Total | K38: =SUM(K36:K37) -> 5798213.825 | L38: ='Portfolio Results'!H17 -> 5564759.831 | M38: 0.9597369119
I40: Energy Impacts by Program
J42: Sector | K42: Goal | L42: Actual | M42: % Goal Achieved
J43: Residential Lighting | K43: ='Program Inputs'!AT5 -> 152003.5 | L43: ='Portfolio Results'!H6 -> 103729.971 | M43: =IFERROR(L43/K43,0) -> 0.6824183062
J44: Residential Appliance Recycling | K44: ='Program Inputs'!AT6 -> 81399.9 | L44: ='Portfolio Results'!H7 -> 95939 | M44: 1.178613242
J45: Residential HVAC | K45: ='Program Inputs'!AT7 -> 193823.8128 | L45: ='Portfolio Results'!H8 -> 169564.6157 | M45: 0.8748389236
J46: Whole House Efficiency | K46: ='Program Inputs'!AT8 -> 90540.20014 | L46: ='Portfolio Results'!H9 -> 15725 | M46: 0.1736797575
J47: Residential Audit | K47: ='Program Inputs'!AT9 -> 79399.54408 | L47: ='Portfolio Results'!H10 -> 127490 | M47: 1.605676726
J48: School-Based Energy Education | K48: ='Program Inputs'!AT10 -> 476397.2645 | L48: ='Portfolio Results'!H11 -> 539920 | M48: 1.133339841
J49: Weatherization | K49: ='Program Inputs'!AT11 -> 41479.87403 | L49: ='Portfolio Results'!H12 -> 32050 | M49: 0.7726638702
J50: Commercial Prescriptive Rebate | K50: ='Program Inputs'!AT12 -> 2740189.519 | L50: ='Portfolio Results'!H14 -> 2940068.504 | M50: 1.072943489
J51: Commercial Custom Rebate | K51: ='Program Inputs'!AT13 -> 1942980.21 | L51: ='Portfolio Results'!H15 -> 1540272.74 | M51: 0.792737225
J52: Total | K52: =SUM(K43:K51) -> 5798213.825 | L52: =SUM(L43:L51) -> 5564759.831 | M52: 0.9597369119
I54: Demand Impacts by Sector
J56: Sector | K56: Goal | L56: Actual | M56: % Goal Achieved
B57: Residential | J57: Residential | K57: =SUMIFS('Program Inputs'!$AU$5:$AU$15,'Program Inputs'!$B$5:$B$15,B57) -> 181.1118056 | L57: ='Portfolio Results'!I13 -> 132.23458 | M57: =IFERROR(L57/K57,0) -> 0.7301267832
B58: Commercial | J58: Non-Residential | K58: =SUMIFS('Program Inputs'!$AU$5:$AU$15,'Program Inputs'!$B$5:$B$15,B58) -> 1065.537438 | L58: ='Portfolio Results'!I16 -> 1073.377589 | M58: 1.007357931
J59: Total | K59: =SUM(K57:K58) -> 1246.649244 | L59: =SUM(L57:L58) -> 1205.612169 | M59: 0.9670821003
I61: Demand Impacts by Program
J63: Sector | K63: Goal | L63: Actual | M63: % Goal Achieved
J64: Residential Lighting | K64: ='Program Inputs'!AU5 -> 17.88934437 | L64: ='Portfolio Results'!I6 -> 12.2098 | M64: =IFERROR(L64/K64,0) -> 0.6825180257
J65: Residential Appliance Recycling | K65: ='Program Inputs'!AU6 -> 9.373223012 | L65: ='Portfolio Results'!I7 -> 10.941 | M65: 1.167261249
J66: Residential HVAC | K66: ='Program Inputs'!AU7 -> 68.91925213 | L66: ='Portfolio Results'!I8 -> 32.31078 | M66: 0.4688208157
J67: Whole House Efficiency | K67: ='Program Inputs'!AU8 -> 23.03041474 | L67: ='Portfolio Results'!I9 -> 3.978 | M67: 0.1727281096
J68: Residential Audit | K68: ='Program Inputs'!AU9 -> 8.001817158 | L68: ='Portfolio Results'!I10 -> 13.42 | M68: 1.677119051
J69: School-Based Energy Education | K69: ='Program Inputs'!AU10 -> 48.01090295 | L69: ='Portfolio Results'!I11 -> 54.4 | M69: 1.133075961
J70: Weatherization | K70: ='Program Inputs'!AU11 -> 5.886851215 | L70: ='Portfolio Results'!I12 -> 4.975 | M70: 0.8451037436
J71: Commercial Prescriptive Rebate | K71: ='Program Inputs'!AU12 -> 583.5529383 | L71: ='Portfolio Results'!I14 -> 700.228589 | M71: 1.199940131
J72: Commercial Custom Rebate | K72: ='Program Inputs'!AU13 -> 481.9845 | L72: ='Portfolio Results'!I15 -> 373.149 | M72: 0.774192946
J73: Total | K73: =SUM(K64:K72) -> 1246.649244 | L73: =SUM(L64:L72) -> 1205.612169 | M73: 0.9670821003
I75: Cost-effectiveness Results
J77: Sector | K77: TRC | L77: UCT | M77: SCT | N77: PCT | O77: RIM
J78: Residential | K78: =INDEX('2016'!$AG8:$AK8,MATCH(K$77,'2016'!$AG$5:$AK$5,0)) -> 1.517682829 | L78: =INDEX('2016'!$AG8:$AK8,MATCH(L$77,'2016'!$AG$5:$AK$5,0)) -> 1.962051682 | M78: =INDEX('2016'!$AG8:$AK8,MATCH(M$77,'2016'!$AG$5:$AK$5,0)) -> 1.880306986 | N78: =INDEX('2016'!$AG8:$AK8,MATCH(N$77,'2016'!$AG$5:$AK$5,0)) -> 11.08587936 | O78: =INDEX('2016'!$AG8:$AK8,MATCH(O$77,'2016'!$AG$5:$AK$5,0)) -> 0.2907967639
J79: Non-Residential | K79: =INDEX('2016'!$AG9:$AK9,MATCH(K$77,'2016'!$AG$5:$AK$5,0)) -> 1.339364343 | L79: =INDEX('2016'!$AG9:$AK9,MATCH(L$77,'2016'!$AG$5:$AK$5,0)) -> 3.183076306 | M79: =INDEX('2016'!$AG9:$AK9,MATCH(M$77,'2016'!$AG$5:$AK$5,0)) -> 1.645698664 | N79: =INDEX('2016'!$AG9:$AK9,MATCH(N$77,'2016'!$AG$5:$AK$5,0)) -> 3.481750757 | O79: =INDEX('2016'!$AG9:$AK9,MATCH(O$77,'2016'!$AG$5:$AK$5,0)) -> 0.3983715123
J80: Total | K80: =INDEX('2016'!$AG6:$AK6,MATCH(K$77,'2016'!$AG$5:$AK$5,0)) -> 1.212791266 | L80: =INDEX('2016'!$AG6:$AK6,MATCH(L$77,'2016'!$AG$5:$AK$5,0)) -> 2.280720008 | M80: =INDEX('2016'!$AG6:$AK6,MATCH(M$77,'2016'!$AG$5:$AK$5,0)) -> 1.492205047 | N80: =INDEX('2016'!$AG6:$AK6,MATCH(N$77,'2016'!$AG$5:$AK$5,0)) -> 4.018458691 | O80: =INDEX('2016'!$AG6:$AK6,MATCH(O$77,'2016'!$AG$5:$AK$5,0)) -> 0.3630356596
H82: Residential Lighting
I84: Summary
K86: Goal | L86: Actual | M86: % Goal Achieved
J87: Participation
A88: =B88&"_"&C88&"_"&D88&"_"&E88&"_"&F88 -> Residential_Residential Lighting_Lighting_LED_Actual | B88: Residential | C88: Residential Lighting | D88: Lighting | E88: LED | F88: Actual | J88: =E88 -> LED | K88: =INDEX(OFFSET('Measure Inputs'!$M$7,,,TotalMeasures),MATCH($A88,OFFSET('Measure Inputs'!$B$7,,,TotalMeasures),0)) -> 3000 | L88: =INDEX(OFFSET('2016'!$I$23,,,TotalMeasures),MATCH($A88,OFFSET('2016'!$B$23,,,TotalMeasures),0)) -> 3029 | M88: =IFERROR(L88/K88,0) -> 1.009666667
A89: Residential_Residential Lighting_Lighting_ENERGY STAR LED Fixture_Actual | B89: Residential | C89: Residential Lighting | D89: Lighting | E89: ENERGY STAR LED Fixture | F89: Actual | J89: =E89 -> ENERGY STAR LED Fixture | K89: =INDEX(OFFSET('Measure Inputs'!$M$7,,,TotalMeasures),MATCH($A89,OFFSET('Measure Inputs'!$B$7,,,TotalMeasures),0)) -> 500 | L89: =INDEX(OFFSET('2016'!$I$23,,,TotalMeasures),MATCH($A89,OFFSET('2016'!$B$23,,,TotalMeasures),0)) -> 168 | M89: 0.336
A90: Residential_Residential Lighting_Electronics_Advanced Power Strip_Actual | B90: Residential | C90: Residential Lighting | D90: Electronics | E90: Advanced Power Strip | F90: Actual | J90: =E90 -> Advanced Power Strip | K90: =INDEX(OFFSET('Measure Inputs'!$M$7,,,TotalMeasures),MATCH($A90,OFFSET('Measure Inputs'!$B$7,,,TotalMeasures),0)) -> 10 | L90: =INDEX(OFFSET('2016'!$I$23,,,TotalMeasures),MATCH($A90,OFFSET('2016'!$B$23,,,TotalMeasures),0)) -> 0 | M90: 0
A91: =B91&"_"&C91&"_"&D91&"_"&E91&"_"&F91 -> Residential_Residential Lighting_Appliance_Refrigerator_Actual | B91: Residential | C91: Residential Lighting | D91: Appliance | E91: Refrigerator | F91: Actual | J91: =E91 -> Refrigerator | K91: =INDEX(OFFSET('Measure Inputs'!$M$7,,,TotalMeasures),MATCH($A91,OFFSET('Measure Inputs'!$B$7,,,TotalMeasures),0)) -> 0 | L91: =INDEX(OFFSET('2016'!$I$23,,,TotalMeasures),MATCH($A91,OFFSET('2016'!$B$23,,,TotalMeasures),0)) -> 31 | M91: =IFERROR(L91/K91,0) -> 0
A92: Residential_Residential Lighting_All_All_Actual | B92: Residential | C92: Residential Lighting | D92: All | E92: All | F92: Actual | J92: Expenditures | K92: =INDEX('Program Inputs'!$AS$5:$AS$15,MATCH(B92&"_"&C92&"_"&F92,'Program Inputs'!$A$5:$A$15,0)) -> 31635.45 | L92: =INDEX(OFFSET('2016'!$AE$11,,,TotalPrograms),MATCH($A92,OFFSET('2016'!$B$11,,,TotalPrograms),0)) -> 29786.28 | M92: 0.9415475361
A93: =B93&"_"&C93&"_"&D93&"_"&E93&"_"&F93 -> Residential_Residential Lighting_All_All_Actual | B93: Residential | C93: Residential Lighting | D93: All | E93: All | F93: Actual | J93: Energy Impacts (kWh) | K93: =INDEX('Program Inputs'!$AT$5:$AT$15,MATCH(B93&"_"&C93&"_"&F93,'Program Inputs'!$A$5:$A$15,0)) -> 152003.5 | L93: =INDEX(OFFSET('2016'!$J$11,,,TotalPrograms),MATCH($A93,OFFSET('2016'!$B$11,,,TotalPrograms),0)) -> 103729.971 | M93: 0.6824183062
A94: =B94&"_"&C94&"_"&D94&"_"&E94&"_"&F94 -> Residential_Residential Lighting_All_All_Actual | B94: Residential | C94: Residential Lighting | D94: All | E94: All | F94: Actual | J94: Demand Impacts (kW) | K94: =INDEX('Program Inputs'!$AU$5:$AU$15,MATCH(B94&"_"&C94&"_"&F94,'Program Inputs'!$A$5:$A$15,0)) -> 17.88934437 | L94: =INDEX(OFFSET('2016'!$M$11,,,TotalPrograms),MATCH($A94,OFFSET('2016'!$B$11,,,TotalPrograms),0)) -> 12.2098 | M94: 0.6825180257
I96: Cost-Effectiveness
J98: Test | K98: Ratio
A99: =B99&"_"&C99&"_"&D99&"_"&E99&"_"&F99 -> Residential_Residential Lighting_All_All_Actual | B99: Residential | C99: Residential Lighting | D99: All | E99: All | F99: Actual | J99: TRC | K99: =INDEX(OFFSET('2016'!$AG$11:$AK$11,MATCH($A99,OFFSET('2016'!$B$11,,,TotalPrograms),0)-1,0),MATCH($J99,'2016'!$AG$5:$AK$5,0)) -> 0.771660632
A100: Residential_Residential Lighting_All_All_Actual | B100: =B99 -> Residential | C100: =C99 -> Residential Lighting | D100: All | E100: All | F100: Actual | J100: UCT | K100: =INDEX(OFFSET('2016'!$AG$11:$AK$11,MATCH($A100,OFFSET('2016'!$B$11,,,TotalPrograms),0)-1,0),MATCH($J100,'2016'!$AG$5:$AK$5,0)) -> 1.169047873
A101: Residential_Residential Lighting_All_All_Actual | B101: =B100 -> Residential | C101: =C100 -> Residential Lighting | D101: =D100 -> All | E101: =E100 -> All | F101: =F100 -> Actual | J101: SCT | K101: =INDEX(OFFSET('2016'!$AG$11:$AK$11,MATCH($A101,OFFSET('2016'!$B$11,,,TotalPrograms),0)-1,0),MATCH($J101,'2016'!$AG$5:$AK$5,0)) -> 0.9567565192
A102: Residential_Residential Lighting_All_All_Actual | B102: Residential | C102: Residential Lighting | D102: All | E102: All | F102: Actual | J102: PCT | K102: =INDEX(OFFSET('2016'!$AG$11:$AK$11,MATCH($A102,OFFSET('2016'!$B$11,,,TotalPrograms),0)-1,0),MATCH($J102,'2016'!$AG$5:$AK$5,0)) -> 3.925947248
A103: Residential_Residential Lighting_All_All_Actual | B103: Residential | C103: Residential Lighting | D103: All | E103: All | F103: Actual | J103: RIM | K103: =INDEX(OFFSET('2016'!$AG$11:$AK$11,MATCH($A103,OFFSET('2016'!$B$11,,,TotalPrograms),0)-1,0),MATCH($J103,'2016'!$AG$5:$AK$5,0)) -> 0.2631097351
H105: Residential Appliance Recycling Program
I107: Summary
K109: Goal | L109: Actual | M109: % Goal Achieved
J110: Participation
A111: =B111&"_"&C111&"_"&D111&"_"&E111&"_"&F111 -> Residential_Residential Appliance Recycling_Appliance_Refrigerator Recycle_Actual | B111: Residential | C111: Residential Appliance Recycling | D111: Appliance | E111: Refrigerator Recycle | F111: Actual | J111: =E111 -> Refrigerator Recycle | K111: =INDEX(OFFSET('Measure Inputs'!$M$7,,,TotalMeasures),MATCH($A111,OFFSET('Measure Inputs'!$B$7,,,TotalMeasures),0)) -> 40 | L111: =INDEX(OFFSET('2016'!$I$23,,,TotalMeasures),MATCH($A111,OFFSET('2016'!$B$23,,,TotalMeasures),0)) -> 71 | M111: =IFERROR(L111/K111,0) -> 1.775
A112: Residential_Residential Appliance Recycling_Appliance_Freezer Recycle_Actual | B112: Residential | C112: Residential Appliance Recycling | D112: Appliance | E112: Freezer Recycle | F112: Actual | J112: =E112 -> Freezer Recycle | K112: =INDEX(OFFSET('Measure Inputs'!$M$7,,,TotalMeasures),MATCH($A112,OFFSET('Measure Inputs'!$B$7,,,TotalMeasures),0)) -> 25 | L112: =INDEX(OFFSET('2016'!$I$23,,,TotalMeasures),MATCH($A112,OFFSET('2016'!$B$23,,,TotalMeasures),0)) -> 4 | M112: =IFERROR(L112/K112,0) -> 0.16
A113: Residential_Residential Appliance Recycling_All_All_Actual | B113: Residential | C113: Residential Appliance Recycling | D113: All | E113: All | F113: Actual | J113: Expenditures | K113: =INDEX('Program Inputs'!$AS$5:$AS$15,MATCH(B113&"_"&C113&"_"&F113,'Program Inputs'!$A$5:$A$15,0)) -> 23999.0625 | L113: =INDEX(OFFSET('2016'!$AE$11,,,TotalPrograms),MATCH($A113,OFFSET('2016'!$B$11,,,TotalPrograms),0)) -> 12748.21 | M113: =IFERROR(L113/K113,0) -> 0.5311961665
A114: Residential_Residential Appliance Recycling_All_All_Actual | B114: Residential | C114: Residential Appliance Recycling | D114: All | E114: All | F114: Actual | J114: Energy Impacts (kWh) | K114: =INDEX('Program Inputs'!$AT$5:$AT$15,MATCH(B114&"_"&C114&"_"&F114,'Program Inputs'!$A$5:$A$15,0)) -> 81399.9 | L114: =INDEX(OFFSET('2016'!$J$11,,,TotalPrograms),MATCH($A114,OFFSET('2016'!$B$11,,,TotalPrograms),0)) -> 95939 | M114: 1.178613242
A115: Residential_Residential Appliance Recycling_All_All_Actual | B115: Residential | C115: Residential Appliance Recycling | D115: All | E115: All | F115: Actual | J115: Demand Impacts (kW) | K115: =INDEX('Program Inputs'!$AU$5:$AU$15,MATCH(B115&"_"&C115&"_"&F115,'Program Inputs'!$A$5:$A$15,0)) -> 9.373223012 | L115: =INDEX(OFFSET('2016'!$M$11,,,TotalPrograms),MATCH($A115,OFFSET('2016'!$B$11,,,TotalPrograms),0)) -> 10.941 | M115: 1.167261249
I117: Cost-Effectiveness
J119: Test | K119: Ratio
A120: =B120&"_"&C120&"_"&D120&"_"&E120&"_"&F120 -> Residential_Residential Appliance Recycling_All_All_Actual | B120: =B115 -> Residential | C120: Residential Appliance Recycling | D120: All | E120: All | F120: =F115 -> Actual | J120: TRC | K120: =INDEX(OFFSET('2016'!$AG$11:$AK$11,MATCH($A120,OFFSET('2016'!$B$11,,,TotalPrograms),0)-1,0),MATCH($J120,'2016'!$AG$5:$AK$5,0)) -> 1.707035062
A121: Residential_Residential Appliance Recycling_All_All_Actual | B121: =B120 -> Residential | C121: =C120 -> Residential Appliance Recycling | D121: =D120 -> All | E121: =E120 -> All | F121: =F120 -> Actual | J121: UCT | K121: =INDEX(OFFSET('2016'!$AG$11:$AK$11,MATCH($A121,OFFSET('2016'!$B$11,,,TotalPrograms),0)-1,0),MATCH($J121,'2016'!$AG$5:$AK$5,0)) -> 2.138875145
A122: Residential_Residential Appliance Recycling_All_All_Actual | B122: =B121 -> Residential | C122: Residential Appliance Recycling | D122: All | E122: All | F122: Actual | J122: SCT | K122: =INDEX(OFFSET('2016'!$AG$11:$AK$11,MATCH($A122,OFFSET('2016'!$B$11,,,TotalPrograms),0)-1,0),MATCH($J122,'2016'!$AG$5:$AK$5,0)) -> 2.121976403
A123: Residential_Residential Appliance Recycling_All_All_Actual | B123: Residential | C123: Residential Appliance Recycling | D123: All | E123: All | F123: Actual | J123: PCT | K123: =INDEX(OFFSET('2016'!$AG$11:$AK$11,MATCH($A123,OFFSET('2016'!$B$11,,,TotalPrograms),0)-1,0),MATCH($J123,'2016'!$AG$5:$AK$5,0)) -> 12.06662384
A124: Residential_Residential Appliance Recycling_All_All_Actual | B124: Residential | C124: Residential Appliance Recycling | D124: All | E124: All | F124: Actual | J124: RIM | K124: =INDEX(OFFSET('2016'!$AG$11:$AK$11,MATCH($A124,OFFSET('2016'!$B$11,,,TotalPrograms),0)-1,0),MATCH($J124,'2016'!$AG$5:$AK$5,0)) -> 0.2926790195
H126: Residential HVAC
I128: Participation
K130: Goal | L130: Actual | M130: % Goal Achieved
J131: Participation
A132: =B132&"_"&C132&"_"&D132&"_"&E132&"_"&F132 -> Residential_Residential HVAC_HVAC_Air Source Heat Pump_Actual | B132: Residential | C132: Residential HVAC | D132: HVAC | E132: Air Source Heat Pump | F132: Actual | J132: =E132 -> Air Source Heat Pump | K132: =INDEX(OFFSET('Measure Inputs'!$M$7,,,TotalMeasures),MATCH($A132,OFFSET('Measure Inputs'!$B$7,,,TotalMeasures),0)) -> 50 | L132: =INDEX(OFFSET('2016'!$I$23,,,TotalMeasures),MATCH($A132,OFFSET('2016'!$B$23,,,TotalMeasures),0)) -> 13 | M132: =IFERROR(L132/K132,0) -> 0.26
A133: Residential_Residential HVAC_HVAC_Air Source Heat Pump, Early Retirement_Actual | B133: Residential | C133: Residential HVAC | D133: HVAC | E133: Air Source Heat Pump, Early Retirement | F133: Actual | J133: Air Source Heat Pump, Early Retirement | K133: =INDEX(OFFSET('Measure Inputs'!$M$7,,,TotalMeasures),MATCH($A133,OFFSET('Measure Inputs'!$B$7,,,TotalMeasures),0)) -> 5 | L133: =INDEX(OFFSET('2016'!$I$23,,,TotalMeasures),MATCH($A133,OFFSET('2016'!$B$23,,,TotalMeasures),0)) -> 3 | M133: 0.6
A134: Residential_Residential HVAC_HVAC_Air Source Heat Pump, Replace Furnace_Actual | B134: Residential | C134: Residential HVAC | D134: HVAC | E134: Air Source Heat Pump, Replace Furnace | F134: Actual | J134: Air Source Heat Pump, Replace Furnace | K134: =INDEX(OFFSET('Measure Inputs'!$M$7,,,TotalMeasures),MATCH($A134,OFFSET('Measure Inputs'!$B$7,,,TotalMeasures),0)) -> 3 | L134: =INDEX(OFFSET('2016'!$I$23,,,TotalMeasures),MATCH($A134,OFFSET('2016'!$B$23,,,TotalMeasures),0)) -> 4 | M134: 1.333333333
A135: Residential_Residential HVAC_HVAC_Ductless Minisplit HP_Actual | B135: Residential | C135: Residential HVAC | D135: HVAC | E135: Ductless Minisplit HP | F135: Actual | J135: Ductless Minisplit HP | K135: =INDEX(OFFSET('Measure Inputs'!$M$7,,,TotalMeasures),MATCH($A135,OFFSET('Measure Inputs'!$B$7,,,TotalMeasures),0)) -> 5 | L135: =INDEX(OFFSET('2016'!$I$23,,,TotalMeasures),MATCH($A135,OFFSET('2016'!$B$23,,,TotalMeasures),0)) -> 8 | M135: 1.6
A136: Residential_Residential HVAC_DHW_Heat Pump Water Heater_Actual | B136: Residential | C136: Residential HVAC | D136: DHW | E136: Heat Pump Water Heater | F136: Actual | J136: =E136 -> Heat Pump Water Heater | K136: =INDEX(OFFSET('Measure Inputs'!$M$7,,,TotalMeasures),MATCH($A136,OFFSET('Measure Inputs'!$B$7,,,TotalMeasures),0)) -> 12 | L136: =INDEX(OFFSET('2016'!$I$23,,,TotalMeasures),MATCH($A136,OFFSET('2016'!$B$23,,,TotalMeasures),0)) -> 4 | M136: =IFERROR(L136/K136,0) -> 0.3333333333
A137: Residential_Residential HVAC_DHW_Electric Water Heater EF ≥ 0.95_Actual | B137: Residential | C137: Residential HVAC | D137: DHW | E137: Electric Water Heater EF ≥ 0.95 | F137: Actual | J137: Electric Water Heater EF ≥ 0.95 | K137: =INDEX(OFFSET('Measure Inputs'!$M$7,,,TotalMeasures),MATCH($A137,OFFSET('Measure Inputs'!$B$7,,,TotalMeasures),0)) -> 10 | L137: =INDEX(OFFSET('2016'!$I$23,,,TotalMeasures),MATCH($A137,OFFSET('2016'!$B$23,,,TotalMeasures),0)) -> 52 | M137: 5.2
A138: Residential_Residential HVAC_DHW_Electric Water Heater EF 0.95_Actual | B138: Residential | C138: Residential HVAC | D138: DHW | E138: Electric Water Heater EF 0.95 | F138: Actual | J138: Electric Water Heater EF 0.95 | K138: =INDEX(OFFSET('Measure Inputs'!$M$7,,,TotalMeasures),MATCH($A138,OFFSET('Measure Inputs'!$B$7,,,TotalMeasures),0)) -> 10 | L138: =INDEX(OFFSET('2016'!$I$23,,,TotalMeasures),MATCH($A138,OFFSET('2016'!$B$23,,,TotalMeasures),0)) -> 11 | M138: 1.1
A139: =B139&"_"&C139&"_"&D139&"_"&E139&"_"&F139 -> Residential_Residential HVAC_HVAC_Geothermal Heat Pump_Actual | B139: Residential | C139: Residential HVAC | D139: HVAC | E139: Geothermal Heat Pump | F139: Actual | J139: =E139 -> Geothermal Heat Pump | K139: =INDEX(OFFSET('Measure Inputs'!$M$7,,,TotalMeasures),MATCH($A139,OFFSET('Measure Inputs'!$B$7,,,TotalMeasures),0)) -> 12 | L139: =INDEX(OFFSET('2016'!$I$23,,,TotalMeasures),MATCH($A139,OFFSET('2016'!$B$23,,,TotalMeasures),0)) -> 3 | M139: =IFERROR(L139/K139,0) -> 0.25
A140: Residential_Residential HVAC_HVAC_Geothermal Heat Pump, Early Retirement_Actual | B140: Residential | C140: Residential HVAC | D140: HVAC | E140: Geothermal Heat Pump, Early Retirement | F140: Actual | J140: Geothermal Heat Pump, Early Retirement | K140: =INDEX(OFFSET('Measure Inputs'!$M$7,,,TotalMeasures),MATCH($A140,OFFSET('Measure Inputs'!$B$7,,,TotalMeasures),0)) -> 5 | L140: =INDEX(OFFSET('2016'!$I$23,,,TotalMeasures),MATCH($A140,OFFSET('2016'!$B$23,,,TotalMeasures),0)) -> 1 | M140: 0.2
A141: Residential_Residential HVAC_All_All_Actual | B141: =B138 -> Residential | C141: =C138 -> Residential HVAC | D141: All | E141: All | F141: Actual | J141: Expenditures | K141: =INDEX('Program Inputs'!$AS$5:$AS$15,MATCH(B141&"_"&C141&"_"&F141,'Program Inputs'!$A$5:$A$15,0)) -> 57660.54 | L141: =INDEX(OFFSET('2016'!$AE$11,,,TotalPrograms),MATCH($A141,OFFSET('2016'!$B$11,,,TotalPrograms),0)) -> 21291.75 | M141: =IFERROR(L141/K141,0) -> 0.3692603295
A142: Residential_Residential HVAC_All_All_Actual | B142: =B141 -> Residential | C142: =C141 -> Residential HVAC | D142: =D141 -> All | E142: =E141 -> All | F142: Actual | J142: Energy Impacts (kWh) | K142: =INDEX('Program Inputs'!$AT$5:$AT$15,MATCH(B142&"_"&C142&"_"&F142,'Program Inputs'!$A$5:$A$15,0)) -> 193823.8128 | L142: =INDEX(OFFSET('2016'!$J$11,,,TotalPrograms),MATCH($A142,OFFSET('2016'!$B$11,,,TotalPrograms),0)) -> 169564.6157 | M142: 0.8748389236
A143: Residential_Residential HVAC_All_All_Actual | B143: =B142 -> Residential | C143: Residential HVAC | D143: All | E143: All | F143: Actual | J143: Demand Impacts (kW) | K143: =INDEX('Program Inputs'!$AU$5:$AU$15,MATCH(B143&"_"&C143&"_"&F143,'Program Inputs'!$A$5:$A$15,0)) -> 68.91925213 | L143: =INDEX(OFFSET('2016'!$M$11,,,TotalPrograms),MATCH($A143,OFFSET('2016'!$B$11,,,TotalPrograms),0)) -> 32.31078 | M143: 0.4688208157
I145: Cost-Effectiveness
J147: Test | K147: Ratio
A148: =B148&"_"&C148&"_"&D148&"_"&E148&"_"&F148 -> Residential_Residential HVAC_All_All_Actual | B148: =B143 -> Residential | C148: =C143 -> Residential HVAC | D148: =D143 -> All | E148: =E143 -> All | F148: =F143 -> Actual | J148: TRC | K148: =INDEX(OFFSET('2016'!$AG$11:$AK$11,MATCH($A148,OFFSET('2016'!$B$11,,,TotalPrograms),0)-1,0),MATCH($J148,'2016'!$AG$5:$AK$5,0)) -> 1.62697919
A149: Residential_Residential HVAC_All_All_Actual | B149: =B148 -> Residential | C149: =C148 -> Residential HVAC | D149: =D148 -> All | E149: =E148 -> All | F149: =F148 -> Actual | J149: UCT | K149: =INDEX(OFFSET('2016'!$AG$11:$AK$11,MATCH($A149,OFFSET('2016'!$B$11,,,TotalPrograms),0)-1,0),MATCH($J149,'2016'!$AG$5:$AK$5,0)) -> 3.725225799
A150: Residential_Residential HVAC_All_All_Actual | B150: =B149 -> Residential | C150: Residential HVAC | D150: All | E150: All | F150: Actual | J150: SCT | K150: =INDEX(OFFSET('2016'!$AG$11:$AK$11,MATCH($A150,OFFSET('2016'!$B$11,,,TotalPrograms),0)-1,0),MATCH($J150,'2016'!$AG$5:$AK$5,0)) -> 1.993303487
A151: Residential_Residential HVAC_All_All_Actual | B151: Residential | C151: Residential HVAC | D151: All | E151: All | F151: Actual | J151: PCT | K151: =INDEX(OFFSET('2016'!$AG$11:$AK$11,MATCH($A151,OFFSET('2016'!$B$11,,,TotalPrograms),0)-1,0),MATCH($J151,'2016'!$AG$5:$AK$5,0)) -> 5.150747549
A152: Residential_Residential HVAC_All_All_Actual | B152: Residential | C152: Residential HVAC | D152: All | E152: All | F152: Actual | J152: RIM | K152: =INDEX(OFFSET('2016'!$AG$11:$AK$11,MATCH($A152,OFFSET('2016'!$B$11,,,TotalPrograms),0)-1,0),MATCH($J152,'2016'!$AG$5:$AK$5,0)) -> 0.3186642324
H154: Whole House Efficiency
I156: Summary
K158: Goal | L158: Actual | M158: % Goal Achieved
A159: =B159&"_"&C159&"_"&D159&"_"&E159&"_"&F159 -> Residential_Whole House Efficiency_Various_Audit Measures_Actual | B159: Residential | C159: Whole House Efficiency | D159: Various | E159: Audit Measures | F159: Actual | J159: Participation | K159: =INDEX(OFFSET('Measure Inputs'!$M$7,,,TotalMeasures),MATCH($A159,OFFSET('Measure Inputs'!$B$7,,,TotalMeasures),0)) -> 100 | L159: =INDEX(OFFSET('2016'!$I$23,,,TotalMeasures),MATCH($A159,OFFSET('2016'!$B$23,,,TotalMeasures),0)) -> 17 | M159: =IFERROR(L159/K159,0) -> 0.17
A160: =B160&"_"&C160&"_"&D160&"_"&E160&"_"&F160 -> Residential_Whole House Efficiency_All_All_Actual | B160: =B159 -> Residential | C160: =C159 -> Whole House Efficiency | D160: All | E160: All | F160: Actual | J160: Expenditures | K160: =INDEX('Program Inputs'!$AS$5:$AS$15,MATCH(B160&"_"&C160&"_"&F160,'Program Inputs'!$A$5:$A$15,0)) -> 32287.5 | L160: =INDEX(OFFSET('2016'!$AE$11,,,TotalPrograms),MATCH($A160,OFFSET('2016'!$B$11,,,TotalPrograms),0)) -> 9043.62 | M160: =IFERROR(L160/K160,0) -> 0.2800966318
A161: Residential_Whole House Efficiency_All_All_Actual | B161: =B160 -> Residential | C161: =C160 -> Whole House Efficiency | D161: All | E161: =E160 -> All | F161: Actual | J161: Energy Impacts (kWh) | K161: =INDEX('Program Inputs'!$AT$5:$AT$15,MATCH(B161&"_"&C161&"_"&F161,'Program Inputs'!$A$5:$A$15,0)) -> 90540.20014 | L161: =INDEX(OFFSET('2016'!$J$11,,,TotalPrograms),MATCH($A161,OFFSET('2016'!$B$11,,,TotalPrograms),0)) -> 15725 | M161: 0.1736797575
A162: Residential_Whole House Efficiency_All_All_Actual | B162: =B161 -> Residential | C162: Whole House Efficiency | D162: All | E162: All | F162: Actual | J162: Demand Impacts (kW) | K162: =INDEX('Program Inputs'!$AU$5:$AU$15,MATCH(B162&"_"&C162&"_"&F162,'Program Inputs'!$A$5:$A$15,0)) -> 23.03041474 | L162: =INDEX(OFFSET('2016'!$M$11,,,TotalPrograms),MATCH($A162,OFFSET('2016'!$B$11,,,TotalPrograms),0)) -> 3.978 | M162: 0.1727281096
I164: Cost-Effectiveness
J166: Test | K166: Ratio
A167: =B167&"_"&C167&"_"&D167&"_"&E167&"_"&F167 -> Residential_Whole House Efficiency_All_All_Actual | B167: =B162 -> Residential | C167: Whole House Efficiency | D167: All | E167: All | F167: =F162 -> Actual | J167: TRC | K167: =INDEX(OFFSET('2016'!$AG$11:$AK$11,MATCH($A167,OFFSET('2016'!$B$11,,,TotalPrograms),0)-1,0),MATCH($J167,'2016'!$AG$5:$AK$5,0)) -> 0.7110261246
A168: Residential_Whole House Efficiency_All_All_Actual | B168: =B167 -> Residential | C168: =C167 -> Whole House Efficiency | D168: All | E168: =E167 -> All | F168: =F167 -> Actual | J168: UCT | K168: =INDEX(OFFSET('2016'!$AG$11:$AK$11,MATCH($A168,OFFSET('2016'!$B$11,,,TotalPrograms),0)-1,0),MATCH($J168,'2016'!$AG$5:$AK$5,0)) -> 0.7110261246
A169: Residential_Whole House Efficiency_All_All_Actual | B169: =B168 -> Residential | C169: Whole House Efficiency | D169: All | E169: All | F169: Actual | J169: SCT | K169: =INDEX(OFFSET('2016'!$AG$11:$AK$11,MATCH($A169,OFFSET('2016'!$B$11,,,TotalPrograms),0)-1,0),MATCH($J169,'2016'!$AG$5:$AK$5,0)) -> 0.8703024958
A170: Residential_Whole House Efficiency_All_All_Actual | B170: Residential | C170: Whole House Efficiency | D170: All | E170: All | F170: Actual | J170: PCT | K170: =INDEX(OFFSET('2016'!$AG$11:$AK$11,MATCH($A170,OFFSET('2016'!$B$11,,,TotalPrograms),0)-1,0),MATCH($J170,'2016'!$AG$5:$AK$5,0)) -> n/a
A171: Residential_Whole House Efficiency_All_All_Actual | B171: Residential | C171: Whole House Efficiency | D171: All | E171: All | F171: Actual | J171: RIM | K171: =INDEX(OFFSET('2016'!$AG$11:$AK$11,MATCH($A171,OFFSET('2016'!$B$11,,,TotalPrograms),0)-1,0),MATCH($J171,'2016'!$AG$5:$AK$5,0)) -> 0.238160648
H173: Residential Audit
I175: Summary
K177: Goal | L177: Actual | M177: % Goal Achieved
A178: =B178&"_"&C178&"_"&D178&"_"&E178&"_"&F178 -> Residential_Residential Audit_Various_Online Audit_Actual | B178: Residential | C178: Residential Audit | D178: Various | E178: Online Audit | F178: Actual | J178: Participation | K178: =INDEX(OFFSET('Measure Inputs'!$M$7,,,TotalMeasures),MATCH($A178,OFFSET('Measure Inputs'!$B$7,,,TotalMeasures),0)) -> 400 | L178: =INDEX(OFFSET('2016'!$I$23,,,TotalMeasures),MATCH($A178,OFFSET('2016'!$B$23,,,TotalMeasures),0)) -> 610 | M178: =IFERROR(L178/K178,0) -> 1.525
A179: =B179&"_"&C179&"_"&D179&"_"&E179&"_"&F179 -> Residential_Residential Audit_All_All_Actual | B179: =B178 -> Residential | C179: =C178 -> Residential Audit | D179: All | E179: All | F179: Actual | J179: Expenditures | K179: =INDEX('Program Inputs'!$AS$5:$AS$15,MATCH(B179&"_"&C179&"_"&F179,'Program Inputs'!$A$5:$A$15,0)) -> 25263 | L179: =INDEX(OFFSET('2016'!$AE$11,,,TotalPrograms),MATCH($A179,OFFSET('2016'!$B$11,,,TotalPrograms),0)) -> 6424.84 | M179: =IFERROR(L179/K179,0) -> 0.2543181728
A180: Residential_Residential Audit_All_All_Actual | B180: =B179 -> Residential | C180: =C179 -> Residential Audit | D180: =D179 -> All | E180: =E179 -> All | F180: Actual | J180: Energy Impacts (kWh) | K180: =INDEX('Program Inputs'!$AT$5:$AT$15,MATCH(B180&"_"&C180&"_"&F180,'Program Inputs'!$A$5:$A$15,0)) -> 79399.54408 | L180: =INDEX(OFFSET('2016'!$J$11,,,TotalPrograms),MATCH($A180,OFFSET('2016'!$B$11,,,TotalPrograms),0)) -> 127490 | M180: 1.605676726
A181: Residential_Residential Audit_All_All_Actual | B181: =B180 -> Residential | C181: Residential Audit | D181: All | E181: All | F181: Actual | J181: Demand Impacts (kW) | K181: =INDEX('Program Inputs'!$AU$5:$AU$15,MATCH(B181&"_"&C181&"_"&F181,'Program Inputs'!$A$5:$A$15,0)) -> 8.001817158 | L181: =INDEX(OFFSET('2016'!$M$11,,,TotalPrograms),MATCH($A181,OFFSET('2016'!$B$11,,,TotalPrograms),0)) -> 13.42 | M181: 1.677119051
I183: Cost-Effectiveness
J185: Test | K185: Ratio
A186: =B186&"_"&C186&"_"&D186&"_"&E186&"_"&F186 -> Residential_Residential Audit_All_All_Actual | B186: =B181 -> Residential | C186: Residential Audit | D186: All | E186: All | F186: =F181 -> Actual | J186: TRC | K186: =INDEX(OFFSET('2016'!$AG$11:$AK$11,MATCH($A186,OFFSET('2016'!$B$11,,,TotalPrograms),0)-1,0),MATCH($J186,'2016'!$AG$5:$AK$5,0)) -> 6.601132421
A187: Residential_Residential Audit_All_All_Actual | B187: =B186 -> Residential | C187: =C186 -> Residential Audit | D187: =D186 -> All | E187: =E186 -> All | F187: =F186 -> Actual | J187: UCT | K187: =INDEX(OFFSET('2016'!$AG$11:$AK$11,MATCH($A187,OFFSET('2016'!$B$11,,,TotalPrograms),0)-1,0),MATCH($J187,'2016'!$AG$5:$AK$5,0)) -> 6.601132421
A188: Residential_Residential Audit_All_All_Actual | B188: =B187 -> Residential | C188: Residential Audit | D188: All | E188: All | F188: Actual | J188: SCT | K188: =INDEX(OFFSET('2016'!$AG$11:$AK$11,MATCH($A188,OFFSET('2016'!$B$11,,,TotalPrograms),0)-1,0),MATCH($J188,'2016'!$AG$5:$AK$5,0)) -> 8.19241853
A189: Residential_Residential Audit_All_All_Actual | B189: Residential | C189: Residential Audit | D189: All | E189: All | F189: Actual | J189: PCT | K189: =INDEX(OFFSET('2016'!$AG$11:$AK$11,MATCH($A189,OFFSET('2016'!$B$11,,,TotalPrograms),0)-1,0),MATCH($J189,'2016'!$AG$5:$AK$5,0)) -> n/a
A190: Residential_Residential Audit_All_All_Actual | B190: Residential | C190: Residential Audit | D190: All | E190: All | F190: Actual | J190: RIM | K190: =INDEX(OFFSET('2016'!$AG$11:$AK$11,MATCH($A190,OFFSET('2016'!$B$11,,,TotalPrograms),0)-1,0),MATCH($J190,'2016'!$AG$5:$AK$5,0)) -> 0.3215400931
H192: School-Based Energy Education
I194: Summary
K196: Goal | L196: Actual | M196: % Goal Achieved
A197: =B197&"_"&C197&"_"&D197&"_"&E197&"_"&F197 -> Residential_School-Based Energy Education_Various_EE Kit/Education Materials_Actual | B197: Residential | C197: School-Based Energy Education | D197: Various | E197: EE Kit/Education Materials | F197: Actual | J197: Participation | K197: =INDEX(OFFSET('Measure Inputs'!$M$7,,,TotalMeasures),MATCH($A197,OFFSET('Measure Inputs'!$B$7,,,TotalMeasures),0)) -> 1200 | L197: =INDEX(OFFSET('2016'!$I$23,,,TotalMeasures),MATCH($A197,OFFSET('2016'!$B$23,,,TotalMeasures),0)) -> 1360 | M197: =IFERROR(L197/K197,0) -> 1.133333333
A198: =B198&"_"&C198&"_"&D198&"_"&E198&"_"&F198 -> Residential_School-Based Energy Education_All_All_Actual | B198: =B197 -> Residential | C198: =C197 -> School-Based Energy Education | D198: All | E198: All | F198: Actual | J198: Expenditures | K198: =INDEX('Program Inputs'!$AS$5:$AS$15,MATCH(B198&"_"&C198&"_"&F198,'Program Inputs'!$A$5:$A$15,0)) -> 66150 | L198: =INDEX(OFFSET('2016'!$AE$11,,,TotalPrograms),MATCH($A198,OFFSET('2016'!$B$11,,,TotalPrograms),0)) -> 69731.04 | M198: =IFERROR(L198/K198,0) -> 1.054135147
A199: Residential_School-Based Energy Education_All_All_Actual | B199: =B198 -> Residential | C199: =C198 -> School-Based Energy Education | D199: =D198 -> All | E199: =E198 -> All | F199: Actual | J199: Energy Impacts (kWh) | K199: =INDEX('Program Inputs'!$AT$5:$AT$15,MATCH(B199&"_"&C199&"_"&F199,'Program Inputs'!$A$5:$A$15,0)) -> 476397.2645 | L199: =INDEX(OFFSET('2016'!$J$11,,,TotalPrograms),MATCH($A199,OFFSET('2016'!$B$11,,,TotalPrograms),0)) -> 539920 | M199: 1.133339841
A200: Residential_School-Based Energy Education_All_All_Actual | B200: =B199 -> Residential | C200: School-Based Energy Education | D200: All | E200: All | F200: Actual | J200: Demand Impacts (kW) | K200: =INDEX('Program Inputs'!$AU$5:$AU$15,MATCH(B200&"_"&C200&"_"&F200,'Program Inputs'!$A$5:$A$15,0)) -> 48.01090295 | L200: =INDEX(OFFSET('2016'!$M$11,,,TotalPrograms),MATCH($A200,OFFSET('2016'!$B$11,,,TotalPrograms),0)) -> 54.4 | M200: 1.133075961
I202: Cost-Effectiveness
J204: Test | K204: Ratio
A205: =B205&"_"&C205&"_"&D205&"_"&E205&"_"&F205 -> Residential_School-Based Energy Education_All_All_Actual | B205: =B200 -> Residential | C205: School-Based Energy Education | D205: All | E205: All | F205: =F200 -> Actual | J205: TRC | K205: =INDEX(OFFSET('2016'!$AG$11:$AK$11,MATCH($A205,OFFSET('2016'!$B$11,,,TotalPrograms),0)-1,0),MATCH($J205,'2016'!$AG$5:$AK$5,0)) -> 1.50796984
A206: Residential_School-Based Energy Education_All_All_Actual | B206: =B205 -> Residential | C206: =C205 -> School-Based Energy Education | D206: =D205 -> All | E206: =E205 -> All | F206: =F205 -> Actual | J206: UCT | K206: =INDEX(OFFSET('2016'!$AG$11:$AK$11,MATCH($A206,OFFSET('2016'!$B$11,,,TotalPrograms),0)-1,0),MATCH($J206,'2016'!$AG$5:$AK$5,0)) -> 1.50796984
A207: Residential_School-Based Energy Education_All_All_Actual | B207: =B206 -> Residential | C207: School-Based Energy Education | D207: All | E207: All | F207: Actual | J207: SCT | K207: =INDEX(OFFSET('2016'!$AG$11:$AK$11,MATCH($A207,OFFSET('2016'!$B$11,,,TotalPrograms),0)-1,0),MATCH($J207,'2016'!$AG$5:$AK$5,0)) -> 1.883212789
A208: Residential_School-Based Energy Education_All_All_Actual | B208: Residential | C208: School-Based Energy Education | D208: All | E208: All | F208: Actual | J208: PCT | K208: =INDEX(OFFSET('2016'!$AG$11:$AK$11,MATCH($A208,OFFSET('2016'!$B$11,,,TotalPrograms),0)-1,0),MATCH($J208,'2016'!$AG$5:$AK$5,0)) -> n/a
A209: Residential_School-Based Energy Education_All_All_Actual | B209: Residential | C209: School-Based Energy Education | D209: All | E209: All | F209: Actual | J209: RIM | K209: =INDEX(OFFSET('2016'!$AG$11:$AK$11,MATCH($A209,OFFSET('2016'!$B$11,,,TotalPrograms),0)-1,0),MATCH($J209,'2016'!$AG$5:$AK$5,0)) -> 0.2757465411
H211: Weatherization
I213: Summary
K215: Goal | L215: Actual | M215: % Goal Achieved
A216: =B216&"_"&C216&"_"&D216&"_"&E216&"_"&F216 -> Residential_Weatherization_Various_Weatherization Measures_Actual | B216: Residential | C216: Weatherization | D216: Various | E216: Weatherization Measures | F216: Actual | J216: Participation | K216: =INDEX(OFFSET('Measure Inputs'!$M$7,,,TotalMeasures),MATCH($A216,OFFSET('Measure Inputs'!$B$7,,,TotalMeasures),0)) -> 25 | L216: =INDEX(OFFSET('2016'!$I$23,,,TotalMeasures),MATCH($A216,OFFSET('2016'!$B$23,,,TotalMeasures),0)) -> 25 | M216: =IFERROR(L216/K216,0) -> 1
A217: =B217&"_"&C217&"_"&D217&"_"&E217&"_"&F217 -> Residential_Weatherization_All_All_Actual | B217: Residential | C217: Weatherization | D217: All | E217: All | F217: Actual | J217: Expenditures | K217: =INDEX('Program Inputs'!$AS$5:$AS$15,MATCH(B217&"_"&C217&"_"&F217,'Program Inputs'!$A$5:$A$15,0)) -> 9646.875 | L217: =INDEX(OFFSET('2016'!$AE$11,,,TotalPrograms),MATCH($A217,OFFSET('2016'!$B$11,,,TotalPrograms),0)) -> 8160.78 | M217: =IFERROR(L217/K217,0) -> 0.8459506317
A218: Residential_Weatherization_All_All_Actual | B218: Residential | C218: Weatherization | D218: =D217 -> All | E218: =E217 -> All | F218: Actual | J218: Energy Impacts (kWh) | K218: =INDEX('Program Inputs'!$AT$5:$AT$15,MATCH(B218&"_"&C218&"_"&F218,'Program Inputs'!$A$5:$A$15,0)) -> 41479.87403 | L218: =INDEX(OFFSET('2016'!$J$11,,,TotalPrograms),MATCH($A218,OFFSET('2016'!$B$11,,,TotalPrograms),0)) -> 32050 | M218: 0.7726638702
A219: Residential_Weatherization_All_All_Actual | B219: Residential | C219: Weatherization | D219: All | E219: All | F219: Actual | J219: Demand Impacts (kW) | K219: =INDEX('Program Inputs'!$AU$5:$AU$15,MATCH(B219&"_"&C219&"_"&F219,'Program Inputs'!$A$5:$A$15,0)) -> 5.886851215 | L219: =INDEX(OFFSET('2016'!$M$11,,,TotalPrograms),MATCH($A219,OFFSET('2016'!$B$11,,,TotalPrograms),0)) -> 4.975 | M219: 0.8451037436
I221: Cost-Effectiveness
J223: Test | K223: Ratio
A224: =B224&"_"&C224&"_"&D224&"_"&E224&"_"&F224 -> Residential_Weatherization_All_All_Actual | B224: =B219 -> Residential | C224: Weatherization | D224: All | E224: All | F224: =F219 -> Actual | J224: TRC | K224: =INDEX(OFFSET('2016'!$AG$11:$AK$11,MATCH($A224,OFFSET('2016'!$B$11,,,TotalPrograms),0)-1,0),MATCH($J224,'2016'!$AG$5:$AK$5,0)) -> 1.594125534
A225: Residential_Weatherization_All_All_Actual | B225: =B224 -> Residential | C225: =C224 -> Weatherization | D225: =D224 -> All | E225: =E224 -> All | F225: =F224 -> Actual | J225: UCT | K225: =INDEX(OFFSET('2016'!$AG$11:$AK$11,MATCH($A225,OFFSET('2016'!$B$11,,,TotalPrograms),0)-1,0),MATCH($J225,'2016'!$AG$5:$AK$5,0)) -> 1.594125534
A226: Residential_Weatherization_All_All_Actual | B226: =B225 -> Residential | C226: Weatherization | D226: All | E226: All | F226: Actual | J226: SCT | K226: =INDEX(OFFSET('2016'!$AG$11:$AK$11,MATCH($A226,OFFSET('2016'!$B$11,,,TotalPrograms),0)-1,0),MATCH($J226,'2016'!$AG$5:$AK$5,0)) -> 1.964116582
A227: Residential_Weatherization_All_All_Actual | B227: Residential | C227: Weatherization | D227: All | E227: All | F227: Actual | J227: PCT | K227: =INDEX(OFFSET('2016'!$AG$11:$AK$11,MATCH($A227,OFFSET('2016'!$B$11,,,TotalPrograms),0)-1,0),MATCH($J227,'2016'!$AG$5:$AK$5,0)) -> n/a
A228: Residential_Weatherization_All_All_Actual | B228: Residential | C228: Weatherization | D228: All | E228: All | F228: Actual | J228: RIM | K228: =INDEX(OFFSET('2016'!$AG$11:$AK$11,MATCH($A228,OFFSET('2016'!$B$11,,,TotalPrograms),0)-1,0),MATCH($J228,'2016'!$AG$5:$AK$5,0)) -> 0.2833461761
H230: Commercial Prescriptive Rebate
I232: Summary
K234: Goal | L234: Actual | M234: % Goal Achieved
J235: Participation
A236: =B236&"_"&C236&"_"&D236&"_"&E236&"_"&F236 -> Commercial_Commercial Prescriptive Rebate_Lighting_C&I Lighting_Actual | B236: Commercial | C236: Commercial Prescriptive Rebate | D236: Lighting | E236: C&I Lighting | F236: Actual | J236: =E236 -> C&I Lighting | K236: =INDEX(OFFSET('Measure Inputs'!$M$7,,,TotalMeasures),MATCH($A236,OFFSET('Measure Inputs'!$B$7,,,TotalMeasures),0)) -> 6500 | L236: =INDEX(OFFSET('2016'!$I$23,,,TotalMeasures),MATCH($A236,OFFSET('2016'!$B$23,,,TotalMeasures),0)) -> 19546 | M236: =IFERROR(L236/K236,0) -> 3.007076923
A237: Commercial_Commercial Prescriptive Rebate_Lighting_C&I HVAC_Actual | B237: Commercial | C237: Commercial Prescriptive Rebate | D237: Lighting | E237: C&I HVAC | F237: Actual | J237: =E237 -> C&I HVAC | K237: =INDEX(OFFSET('Measure Inputs'!$M$7,,,TotalMeasures),MATCH($A237,OFFSET('Measure Inputs'!$B$7,,,TotalMeasures),0)) -> 24 | L237: =INDEX(OFFSET('2016'!$I$23,,,TotalMeasures),MATCH($A237,OFFSET('2016'!$B$23,,,TotalMeasures),0)) -> 0 | M237: =IFERROR(L237/K237,0) -> 0
A238: Commercial_Commercial Prescriptive Rebate_Lighting_C&I Motors_Actual | B238: Commercial | C238: Commercial Prescriptive Rebate | D238: Lighting | E238: C&I Motors | F238: Actual | J238: C&I Motors | K238: =INDEX(OFFSET('Measure Inputs'!$M$7,,,TotalMeasures),MATCH($A238,OFFSET('Measure Inputs'!$B$7,,,TotalMeasures),0)) -> 10 | L238: =INDEX(OFFSET('2016'!$I$23,,,TotalMeasures),MATCH($A238,OFFSET('2016'!$B$23,,,TotalMeasures),0)) -> 2 | M238: 0.2
A239: Commercial_Commercial Prescriptive Rebate_All_All_Actual | B239: =B236 -> Commercial | C239: =C236 -> Commercial Prescriptive Rebate | D239: All | E239: All | F239: Actual | J239: Expenditures | K239: =INDEX('Program Inputs'!$AS$5:$AS$15,MATCH(B239&"_"&C239&"_"&F239,'Program Inputs'!$A$5:$A$15,0)) -> 242914.56 | L239: =INDEX(OFFSET('2016'!$AE$11,,,TotalPrograms),MATCH($A239,OFFSET('2016'!$B$11,,,TotalPrograms),0)) -> 295246.82 | M239: =IFERROR(L239/K239,0) -> 1.215434843
A240: Commercial_Commercial Prescriptive Rebate_All_All_Actual | B240: =B239 -> Commercial | C240: =C239 -> Commercial Prescriptive Rebate | D240: =D239 -> All | E240: =E239 -> All | F240: Actual | J240: Energy Impacts (kWh) | K240: =INDEX('Program Inputs'!$AT$5:$AT$15,MATCH(B240&"_"&C240&"_"&F240,'Program Inputs'!$A$5:$A$15,0)) -> 2740189.519 | L240: =INDEX(OFFSET('2016'!$J$11,,,TotalPrograms),MATCH($A240,OFFSET('2016'!$B$11,,,TotalPrograms),0)) -> 2940068.504 | M240: 1.072943489
A241: Commercial_Commercial Prescriptive Rebate_All_All_Actual | B241: =B240 -> Commercial | C241: Commercial Prescriptive Rebate | D241: All | E241: All | F241: Actual | J241: Demand Impacts (kW) | K241: =INDEX('Program Inputs'!$AU$5:$AU$15,MATCH(B241&"_"&C241&"_"&F241,'Program Inputs'!$A$5:$A$15,0)) -> 583.5529383 | L241: =INDEX(OFFSET('2016'!$M$11,,,TotalPrograms),MATCH($A241,OFFSET('2016'!$B$11,,,TotalPrograms),0)) -> 700.228589 | M241: 1.199940131
I243: Cost-Effectiveness
J245: Test | K245: Ratio
A246: =B246&"_"&C246&"_"&D246&"_"&E246&"_"&F246 -> Commercial_Commercial Prescriptive Rebate_All_All_Actual | B246: =B241 -> Commercial | C246: Commercial Prescriptive Rebate | D246: All | E246: All | F246: =F241 -> Actual | J246: TRC | K246: =INDEX(OFFSET('2016'!$AG$11:$AK$11,MATCH($A246,OFFSET('2016'!$B$11,,,TotalPrograms),0)-1,0),MATCH($J246,'2016'!$AG$5:$AK$5,0)) -> 1.095368597
A247: Commercial_Commercial Prescriptive Rebate_All_All_Actual | B247: =B246 -> Commercial | C247: =C246 -> Commercial Prescriptive Rebate | D247: =D246 -> All | E247: =E246 -> All | F247: =F246 -> Actual | J247: UCT | K247: =INDEX(OFFSET('2016'!$AG$11:$AK$11,MATCH($A247,OFFSET('2016'!$B$11,,,TotalPrograms),0)-1,0),MATCH($J247,'2016'!$AG$5:$AK$5,0)) -> 2.982239295
A248: Commercial_Commercial Prescriptive Rebate_All_All_Actual | B248: =B247 -> Commercial | C248: Commercial Prescriptive Rebate | D248: All | E248: All | F248: Actual | J248: SCT | K248: =INDEX(OFFSET('2016'!$AG$11:$AK$11,MATCH($A248,OFFSET('2016'!$B$11,,,TotalPrograms),0)-1,0),MATCH($J248,'2016'!$AG$5:$AK$5,0)) -> 1.350085289
A249: Commercial_Commercial Prescriptive Rebate_All_All_Actual | B249: Commercial | C249: Commercial Prescriptive Rebate | D249: All | E249: All | F249: Actual | J249: PCT | K249: =INDEX(OFFSET('2016'!$AG$11:$AK$11,MATCH($A249,OFFSET('2016'!$B$11,,,TotalPrograms),0)-1,0),MATCH($J249,'2016'!$AG$5:$AK$5,0)) -> 2.842836558
A250: Commercial_Commercial Prescriptive Rebate_All_All_Actual | B250: Commercial | C250: Commercial Prescriptive Rebate | D250: All | E250: All | F250: Actual | J250: RIM | K250: =INDEX(OFFSET('2016'!$AG$11:$AK$11,MATCH($A250,OFFSET('2016'!$B$11,,,TotalPrograms),0)-1,0),MATCH($J250,'2016'!$AG$5:$AK$5,0)) -> 0.3947636467
H252: Commercial Custom Rebate
I254: Summary
K256: Goal | L256: Actual | M256: % Goal Achieved
A257: =B257&"_"&C257&"_"&D257&"_"&E257&"_"&F257 -> Commercial_Commercial Custom Rebate_Various_C&I Custom_Actual | B257: Commercial | C257: Commercial Custom Rebate | D257: Various | E257: C&I Custom | F257: Actual | J257: Participation | K257: =INDEX(OFFSET('Measure Inputs'!$M$7,,,TotalMeasures),MATCH($A257,OFFSET('Measure Inputs'!$B$7,,,TotalMeasures),0)) -> 45 | L257: =INDEX(OFFSET('2016'!$I$23,,,TotalMeasures),MATCH($A257,OFFSET('2016'!$B$23,,,TotalMeasures),0)) -> 47 | M257: =IFERROR(L257/K257,0) -> 1.044444444
A258: =B258&"_"&C258&"_"&D258&"_"&E258&"_"&F258 -> Commercial_Commercial Custom Rebate_All_All_Actual | B258: =B257 -> Commercial | C258: =C257 -> Commercial Custom Rebate | D258: All | E258: All | F258: Actual | J258: Expenditures | K258: =INDEX('Program Inputs'!$AS$5:$AS$15,MATCH(B258&"_"&C258&"_"&F258,'Program Inputs'!$A$5:$A$15,0)) -> 275746.275 | L258: =INDEX(OFFSET('2016'!$AE$11,,,TotalPrograms),MATCH($A258,OFFSET('2016'!$B$11,,,TotalPrograms),0)) -> 199610.9 | M258: =IFERROR(L258/K258,0) -> 0.723893369
... 9 more rows

Sheet Portfolio Results
A1: =IFERROR(VALUE(MID(CELL("filename",$A$1),FIND("]",CELL("filename",$A$1))+1,255)),MID(CELL("filename",$A$1),FIND("]",CELL("filename",$A$1))+1,255)) -> Portfolio Results
A2: =HYPERLINK("#'Contents'!a1","Return to Contents") -> Return to Contents | D2: Energy Unit: | E2: kWh | I2: eGRID Subregion: | J2: MROW (MRO West)
D3: Demand Unit: | E3: kW | I3: Emission Name: | J3: Carbon Dioxide
B5: Key | C5: Sector | D5: Program | E5: Incentives | F5: Non-Incentives | G5: Total Expenditures | H5: ="Net First Year Energy Savings ("&$E$2&")" -> Net First Year Energy Savings (kWh) | I5: ="Net First Year Demand Savings ("&$E$3&")" -> Net First Year Demand Savings (kW) | J5: Avoided Carbon Dioxide Emissions (metric tons CO2)
B6: ='2016'!B11 -> Residential_Residential Lighting_All_All_Actual | C6: Residential | D6: Residential Lighting | E6: =INDEX(OFFSET('2016'!$AC$11,,,TotalPrograms),MATCH($B6,OFFSET('2016'!$B$11,,,TotalPrograms),0)) -> 14470.16 | F6: =INDEX(OFFSET('2016'!$AD$11,,,TotalPrograms),MATCH($B6,OFFSET('2016'!$B$11,,,TotalPrograms),0)) -> 15316.12 | G6: =E6+F6 -> 29786.28 | H6: =CONVERT(INDEX(OFFSET('2016'!$J$11,,,TotalPrograms),MATCH($B6,OFFSET('2016'!$B$11,,,TotalPrograms),0)),"kWh",$E$2) -> 103729.971 | I6: =CONVERT(INDEX(OFFSET('2016'!$M$11,,,TotalPrograms),MATCH($B6,OFFSET('2016'!$B$11,,,TotalPrograms),0)),"kW",$E$3) -> 12.2098 | J6: =-CONVERT(H6,$E$2,"MWh")*INDEX(#REF!,MATCH($J$2&"_Non-Baseload_"&$J$3,#REF!,0))/2204.62 -> 
B7: ='2016'!B12 -> Residential_Residential Appliance Recycling_All_All_Actual | C7: Residential | D7: Residential Appliance Recycling | E7: =INDEX(OFFSET('2016'!$AC$11,,,TotalPrograms),MATCH($B7,OFFSET('2016'!$B$11,,,TotalPrograms),0)) -> 3750 | F7: =INDEX(OFFSET('2016'!$AD$11,,,TotalPrograms),MATCH($B7,OFFSET('2016'!$B$11,,,TotalPrograms),0)) -> 8998.21 | G7: =E7+F7 -> 12748.21 | H7: =CONVERT(INDEX(OFFSET('2016'!$J$11,,,TotalPrograms),MATCH($B7,OFFSET('2016'!$B$11,,,TotalPrograms),0)),"kWh",$E$2) -> 95939 | I7: =CONVERT(INDEX(OFFSET('2016'!$M$11,,,TotalPrograms),MATCH($B7,OFFSET('2016'!$B$11,,,TotalPrograms),0)),"kW",$E$3) -> 10.941 | J7: =-CONVERT(H7,$E$2,"MWh")*INDEX(#REF!,MATCH($J$2&"_Non-Baseload_"&$J$3,#REF!,0))/2204.62 -> 
B8: ='2016'!B13 -> Residential_Residential HVAC_All_All_Actual | C8: Residential | D8: Residential HVAC | E8: =INDEX(OFFSET('2016'!$AC$11,,,TotalPrograms),MATCH($B8,OFFSET('2016'!$B$11,,,TotalPrograms),0)) -> 20761.75 | F8: =INDEX(OFFSET('2016'!$AD$11,,,TotalPrograms),MATCH($B8,OFFSET('2016'!$B$11,,,TotalPrograms),0)) -> 530 | G8: 21291.75 | H8: =CONVERT(INDEX(OFFSET('2016'!$J$11,,,TotalPrograms),MATCH($B8,OFFSET('2016'!$B$11,,,TotalPrograms),0)),"kWh",$E$2) -> 169564.6157 | I8: =CONVERT(INDEX(OFFSET('2016'!$M$11,,,TotalPrograms),MATCH($B8,OFFSET('2016'!$B$11,,,TotalPrograms),0)),"kW",$E$3) -> 32.31078 | J8: =-CONVERT(H8,$E$2,"MWh")*INDEX(#REF!,MATCH($J$2&"_Non-Baseload_"&$J$3,#REF!,0))/2204.62 -> 
B9: ='2016'!B14 -> Residential_Whole House Efficiency_All_All_Actual | C9: Residential | D9: Whole House Efficiency | E9: =INDEX(OFFSET('2016'!$AC$11,,,TotalPrograms),MATCH($B9,OFFSET('2016'!$B$11,,,TotalPrograms),0)) -> 0 | F9: =INDEX(OFFSET('2016'!$AD$11,,,TotalPrograms),MATCH($B9,OFFSET('2016'!$B$11,,,TotalPrograms),0)) -> 9043.62 | G9: 9043.62 | H9: =CONVERT(INDEX(OFFSET('2016'!$J$11,,,TotalPrograms),MATCH($B9,OFFSET('2016'!$B$11,,,TotalPrograms),0)),"kWh",$E$2) -> 15725 | I9: =CONVERT(INDEX(OFFSET('2016'!$M$11,,,TotalPrograms),MATCH($B9,OFFSET('2016'!$B$11,,,TotalPrograms),0)),"kW",$E$3) -> 3.978 | J9: =-CONVERT(H9,$E$2,"MWh")*INDEX(#REF!,MATCH($J$2&"_Non-Baseload_"&$J$3,#REF!,0))/2204.62 -> 
B10: ='2016'!B15 -> Residential_Residential Audit_All_All_Actual | C10: Residential | D10: Residential Evaluation | E10: =INDEX(OFFSET('2016'!$AC$11,,,TotalPrograms),MATCH($B10,OFFSET('2016'!$B$11,,,TotalPrograms),0)) -> 0 | F10: =INDEX(OFFSET('2016'!$AD$11,,,TotalPrograms),MATCH($B10,OFFSET('2016'!$B$11,,,TotalPrograms),0)) -> 6424.84 | G10: 6424.84 | H10: =CONVERT(INDEX(OFFSET('2016'!$J$11,,,TotalPrograms),MATCH($B10,OFFSET('2016'!$B$11,,,TotalPrograms),0)),"kWh",$E$2) -> 127490 | I10: =CONVERT(INDEX(OFFSET('2016'!$M$11,,,TotalPrograms),MATCH($B10,OFFSET('2016'!$B$11,,,TotalPrograms),0)),"kW",$E$3) -> 13.42 | J10: =-CONVERT(H10,$E$2,"MWh")*INDEX(#REF!,MATCH($J$2&"_Non-Baseload_"&$J$3,#REF!,0))/2204.62 -> 
B11: ='2016'!B16 -> Residential_School-Based Energy Education_All_All_Actual | C11: Residential | D11: School-Based Energy Education | E11: =INDEX(OFFSET('2016'!$AC$11,,,TotalPrograms),MATCH($B11,OFFSET('2016'!$B$11,,,TotalPrograms),0)) -> 0 | F11: =INDEX(OFFSET('2016'!$AD$11,,,TotalPrograms),MATCH($B11,OFFSET('2016'!$B$11,,,TotalPrograms),0)) -> 69731.04 | G11: 69731.04 | H11: =CONVERT(INDEX(OFFSET('2016'!$J$11,,,TotalPrograms),MATCH($B11,OFFSET('2016'!$B$11,,,TotalPrograms),0)),"kWh",$E$2) -> 539920 | I11: =CONVERT(INDEX(OFFSET('2016'!$M$11,,,TotalPrograms),MATCH($B11,OFFSET('2016'!$B$11,,,TotalPrograms),0)),"kW",$E$3) -> 54.4 | J11: =-CONVERT(H11,$E$2,"MWh")*INDEX(#REF!,MATCH($J$2&"_Non-Baseload_"&$J$3,#REF!,0))/2204.62 -> 
B12: ='2016'!B17 -> Residential_Weatherization_All_All_Actual | C12: Residential | D12: Weatherization | E12: =INDEX(OFFSET('2016'!$AC$11,,,TotalPrograms),MATCH($B12,OFFSET('2016'!$B$11,,,TotalPrograms),0)) -> 0 | F12: =INDEX(OFFSET('2016'!$AD$11,,,TotalPrograms),MATCH($B12,OFFSET('2016'!$B$11,,,TotalPrograms),0)) -> 8160.78 | G12: 8160.78 | H12: =CONVERT(INDEX(OFFSET('2016'!$J$11,,,TotalPrograms),MATCH($B12,OFFSET('2016'!$B$11,,,TotalPrograms),0)),"kWh",$E$2) -> 32050 | I12: =CONVERT(INDEX(OFFSET('2016'!$M$11,,,TotalPrograms),MATCH($B12,OFFSET('2016'!$B$11,,,TotalPrograms),0)),"kW",$E$3) -> 4.975 | J12: =-CONVERT(H12,$E$2,"MWh")*INDEX(#REF!,MATCH($J$2&"_Non-Baseload_"&$J$3,#REF!,0))/2204.62 -> 
C13: Residential | D13: Total | E13: =SUM(E6:E12) -> 38981.91 | F13: =SUM(F6:F12) -> 118204.61 | G13: 157186.52 | H13: =SUM(H6:H12) -> 1084418.587 | I13: 132.23458
B14: ='2016'!B18 -> Commercial_Commercial Prescriptive Rebate_All_All_Actual | C14: Commercial | D14: Commercial Prescriptive Rebate | E14: =INDEX(OFFSET('2016'!$AC$11,,,TotalPrograms),MATCH($B14,OFFSET('2016'!$B$11,,,TotalPrograms),0)) -> 265545.7849 | F14: =INDEX(OFFSET('2016'!$AD$11,,,TotalPrograms),MATCH($B14,OFFSET('2016'!$B$11,,,TotalPrograms),0)) -> 29701.03508 | G14: =E14+F14 -> 295246.82 | H14: =CONVERT(INDEX(OFFSET('2016'!$J$11,,,TotalPrograms),MATCH($B14,OFFSET('2016'!$B$11,,,TotalPrograms),0)),"kWh",$E$2) -> 2940068.504 | I14: =CONVERT(INDEX(OFFSET('2016'!$M$11,,,TotalPrograms),MATCH($B14,OFFSET('2016'!$B$11,,,TotalPrograms),0)),"kW",$E$3) -> 700.228589 | J14: =-CONVERT(H14,$E$2,"MWh")*INDEX(#REF!,MATCH($J$2&"_Non-Baseload_"&$J$3,#REF!,0))/2204.62 -> 
B15: ='2016'!B19 -> Commercial_Commercial Custom Rebate_All_All_Actual | C15: Commercial | D15: Commercial Custom Rebate | E15: =INDEX(OFFSET('2016'!$AC$11,,,TotalPrograms),MATCH($B15,OFFSET('2016'!$B$11,,,TotalPrograms),0)) -> 172610.94 | F15: =INDEX(OFFSET('2016'!$AD$11,,,TotalPrograms),MATCH($B15,OFFSET('2016'!$B$11,,,TotalPrograms),0)) -> 26999.96 | G15: =E15+F15 -> 199610.9 | H15: =CONVERT(INDEX(OFFSET('2016'!$J$11,,,TotalPrograms),MATCH($B15,OFFSET('2016'!$B$11,,,TotalPrograms),0)),"kWh",$E$2) -> 1540272.74 | I15: =CONVERT(INDEX(OFFSET('2016'!$M$11,,,TotalPrograms),MATCH($B15,OFFSET('2016'!$B$11,,,TotalPrograms),0)),"kW",$E$3) -> 373.149 | J15: =-CONVERT(H15,$E$2,"MWh")*INDEX(#REF!,MATCH($J$2&"_Non-Baseload_"&$J$3,#REF!,0))/2204.62 -> 
C16: Commercial | D16: Total | E16: =SUM(E14:E15) -> 438156.7249 | F16: =SUM(F14:F15) -> 56700.99508 | G16: 494857.72 | H16: 4480341.244 | I16: 1073.377589
C17: Portfolio | D17: Total | E17: =SUM(E16,E13) -> 477138.6349 | F17: =SUM(F16,F13) -> 174905.6051 | G17: 652044.24 | H17: 5564759.831 | I17: 1205.612169

Sheet ErrorCheck (hidden)
A1: Error Check
B3: =SUM(IF(FREQUENCY(MATCH(OFFSET('Measure Inputs'!$B$6,1,,TotalMeasures),OFFSET('Measure Inputs'!$B$6,1,,TotalMeasures),0),MATCH(OFFSET('Measure Inputs'!$B$6,1,,TotalMeasures),OFFSET('Measure Inputs'!$B$6,1,,TotalMeasures),0))>0,1))=TotalMeasures ->  | C3: Unique measure key | D3: =IF(B3,"OK","ERROR") -> 
B4: =SUM(IF(FREQUENCY(MATCH(OFFSET('Program Inputs'!$A$4,1,,TotalPrograms),OFFSET('Program Inputs'!$A$4,1,,TotalPrograms),0),MATCH(OFFSET('Program Inputs'!$A$4,1,,TotalPrograms),OFFSET('Program Inputs'!$A$4,1,,TotalPrograms),0))>0,1))=TotalPrograms -> TRUE | C4: Unique program key | D4: =IF(B4,"OK","ERROR") -> OK
B5: =B16>B15 -> FALSE | C5: Max measure life is greater than model forecast | D5: =IF(NOT(B5),"OK","ERROR") -> OK
B6: =COUNTIF('Measure Inputs'!C:C,TRUE)=TotalMeasures -> FALSE | C6: All measures included in model | D6: =IF(B6,"OK","ERROR") -> ERROR
A8: Metadata
B10: =COUNTA('Measure Inputs'!G:G)-1 -> 26 | C10: Measure line items
B11: =COUNTA('Program Inputs'!$C:$C)-1 -> 11 | C11: Program line items
B12: =SUM(IF(FREQUENCY(IF(LEN('Program Inputs'!B:B)>0,MATCH('Program Inputs'!B:B,'Program Inputs'!B:B,0),""), IF(LEN('Program Inputs'!B:B)>0,MATCH('Program Inputs'!B:B,'Program Inputs'!B:B,0),""))>0,1))-1 -> 3 | C12: Sector line items
B13: =SUM(IF(FREQUENCY(IF(LEN('Measure Inputs'!F:F)>0,MATCH('Measure Inputs'!F:F,'Measure Inputs'!F:F,0),""), IF(LEN('Measure Inputs'!F:F)>0,MATCH('Measure Inputs'!F:F,'Measure Inputs'!F:F,0),""))>0,1))-1 -> 6 | C13: End uses
B14: =CycleEndYear-CycleStartYear+1 -> 1 | C14: Cycle years
B15: =EndYear-BaseYear+1 -> 35 | C15: Model years
B16: =MAX('Measure Inputs'!N:O) -> 25 | C16: Max measure life

Sheet Measure Inputs
S1: TRUE | T1: TRUE | Z1: TRUE | AA1: TRUE | AB1: TRUE | AC1: TRUE | AD1: TRUE | AE1: TRUE | AF1: TRUE | AG1: TRUE | AL1: TRUE | AM1: TRUE | AN1: TRUE | AO1: TRUE | AP1: TRUE | AQ1: TRUE | AR1: TRUE | AS1: TRUE
B2: =MID(CELL("filename",$B$2),FIND("]",CELL("filename",$B$2))+1,255) -> Measure Inputs
B3: =HYPERLINK("#'Contents'!a1","Return to Contents") -> Return to Contents
J4: Participation | N4: Measure Economics | V4: Gross Measure Impacts per Unit | AH4: Net Measure Impacts per Unit | AU4: Sources
B6: Key | C6: InModel | D6: Sector | E6: Program | F6: End Use | G6: Measure | H6: Version | I6: First Year TRC | J6: Units as Integer? | K6: Units | L6: 2016 | M6: Plan | N6: Lifetime | O6: RUL | P6: Gross Incentive | Q6: Gross Incremental Cost | R6: Gross Future Avoided Cost | S6: Gross Avoided Baseline Cost | T6: Baseline Shift | U6: NTG | V6: Gross kWh | W6: Gross Ret. kWh | X6: Gross Coincident kW | Y6: Gross Ret. kW | Z6: Gross Therms | AA6: Gross Ret. Therms | AB6: Gross Water (Gal) | AC6: Gross Water Ret. (Gal) | AD6: Gross Propane (Gal) | AE6: Gross Propane Ret. (Gal) | AF6: Gross Fuel Oil (Gal) | AG6: Gross Fuel Oil Ret. (Gal) | AH6: Net kWh | AI6: Net Ret. kWh | AJ6: Net kW | AK6: Net Ret. kW | AL6: Net Therms | AM6: Net Ret. Therms | AN6: Net Water (Gal) | AO6: Net Water Ret. (Gal) | AP6: Net Propane (Gal) | AQ6: Net Propane Ret. (Gal) | AR6: Net Fuel Oil (Gal) | AS6: Net Fuel Oil Ret. (Gal) | AT6: space | AU6: Savings | AV6: Incremental Cost | AW6: Measure Life | AX6: NTG
G7: measure
B8: =D8&"_"&E8&"_"&F8&"_"&G8&"_"&H8 -> Residential_Residential Lighting_Lighting_LED_Actual | C8: =ISNUMBER(MATCH(B8,'2016'!B:B,0)) -> TRUE | D8: Residential | E8: Residential Lighting | F8: Lighting | G8: LED | H8: Actual | I8: =INDEX(OFFSET('2016'!$AG$23,,,TotalMeasures),MATCH($B8,OFFSET('2016'!$B$23,,,TotalMeasures),0)) -> 1.234319682 | J8: TRUE | K8: Units | L8: =IFERROR(SUMIFS('Program App Details Report'!$X$3:$X$870,'Program App Details Report'!$N$3:$N$870,$E8,'Program App Details Report'!$O$3:$O$870,$G8),0) -> 3029 | M8: =SUMIFS('Plan Data'!E:E,'Plan Data'!$A:$A,$E8&"_"&$G8) -> 3000 | N8: 10 | P8: =Budget!E4/L8 -> 3.842905249 | Q8: 8.6 | U8: 1 | V8: =IFERROR(SUMIFS('Program App Details Report'!$AA$3:$AA$870,'Program App Details Report'!$N$3:$N$870,$E8,'Program App Details Report'!$O$3:$O$870,$G8)/L8,0) -> 31.76575801 | X8: =IFERROR(SUMIFS('Program App Details Report'!$Z$3:$Z$870,'Program App Details Report'!$N$3:$N$870,$E8,'Program App Details Report'!$O$3:$O$870,$G8)/L8,0) -> 0.003741366788 | Z8: 0 | AH8: =V8*$U8 -> 31.76575801 | AI8: =W8*$U8 -> 0 | AJ8: =X8*$U8 -> 0.003741366788 | AK8: =Y8*$U8 -> 0 | AL8: =Z8*$U8 -> 0 | AM8: =AA8*$U8 -> 0 | AN8: =AB8*$U8 -> 0 | AO8: =AC8*$U8 -> 0 | AP8: =AD8*$U8 -> 0 | AQ8: =AE8*$U8 -> 0 | AR8: =AF8*$U8 -> 0 | AS8: =AG8*$U8 -> 0 | AV8: Plan | AW8: Plan | AX8: n/a
B9: Residential_Residential Lighting_Lighting_ENERGY STAR LED Fixture_Actual | C9: =ISNUMBER(MATCH(B9,'2016'!B:B,0)) -> TRUE | D9: Residential | E9: Residential Lighting | F9: Lighting | G9: ENERGY STAR LED Fixture | H9: Actual | I9: =INDEX(OFFSET('2016'!$AG$23,,,TotalMeasures),MATCH($B9,OFFSET('2016'!$B$23,,,TotalMeasures),0)) -> 0.7340077985 | J9: TRUE | K9: Units | L9: =IFERROR(SUMIFS('Program App Details Report'!$X$3:$X$870,'Program App Details Report'!$N$3:$N$870,$E9,'Program App Details Report'!$O$3:$O$870,$G9),0) -> 168 | M9: =SUMIFS('Plan Data'!E:E,'Plan Data'!$A:$A,$E9&"_"&$G9) -> 500 | N9: 9.4 | P9: =Budget!E5/L9 -> 9.464285714 | Q9: 15 | U9: 1 | V9: =IFERROR(SUMIFS('Program App Details Report'!$AA$3:$AA$870,'Program App Details Report'!$N$3:$N$870,$E9,'Program App Details Report'!$O$3:$O$870,$G9)/L9,0) -> 32.94934524 | X9: =IFERROR(SUMIFS('Program App Details Report'!$Z$3:$Z$870,'Program App Details Report'!$N$3:$N$870,$E9,'Program App Details Report'!$O$3:$O$870,$G9)/L9,0) -> 0.003876190476 | Z9: 0 | AH9: 32.94934524 | AI9: 0 | AJ9: 0.003876190476 | AK9: 0 | AL9: 0 | AM9: 0 | AN9: 0 | AO9: 0 | AP9: 0 | AQ9: 0 | AR9: 0 | AS9: 0 | AV9: Plan | AW9: Plan | AX9: n/a
B10: Residential_Residential Lighting_Electronics_Advanced Power Strip_Actual | C10: =ISNUMBER(MATCH(B10,'2016'!B:B,0)) -> TRUE | D10: Residential | E10: Residential Lighting | F10: Electronics | G10: Advanced Power Strip | H10: Actual | I10: =INDEX(OFFSET('2016'!$AG$23,,,TotalMeasures),MATCH($B10,OFFSET('2016'!$B$23,,,TotalMeasures),0)) -> n/a | J10: TRUE | K10: Units | L10: =IFERROR(SUMIFS('Program App Details Report'!$X$3:$X$870,'Program App Details Report'!$N$3:$N$870,$E10,'Program App Details Report'!$O$3:$O$870,$G10),0) -> 0 | M10: =SUMIFS('Plan Data'!E:E,'Plan Data'!$A:$A,$E10&"_"&$G10) -> 10 | N10: 10 | P10: =IFERROR(SUMIFS('Program App Details Report'!$AB$3:$AB$870,'Program App Details Report'!$N$3:$N$870,$E10,'Program App Details Report'!$O$3:$O$870,$G10)/L10,0) -> 0 | Q10: 20 | U10: 1 | V10: =IFERROR(SUMIFS('Program App Details Report'!$AA$3:$AA$870,'Program App Details Report'!$N$3:$N$870,$E10,'Program App Details Report'!$O$3:$O$870,$G10)/L10,0) -> 0 | X10: =IFERROR(SUMIFS('Program App Details Report'!$Z$3:$Z$870,'Program App Details Report'!$N$3:$N$870,$E10,'Program App Details Report'!$O$3:$O$870,$G10)/L10,0) -> 0 | Z10: 0 | AH10: 0 | AI10: 0 | AJ10: 0 | AK10: 0 | AL10: 0 | AM10: 0 | AN10: 0 | AO10: 0 | AP10: 0 | AQ10: 0 | AR10: 0 | AS10: 0 | AV10: Plan | AW10: Plan | AX10: n/a
B11: =D11&"_"&E11&"_"&F11&"_"&G11&"_"&H11 -> Residential_Residential Lighting_Appliance_Refrigerator_Actual | C11: =ISNUMBER(MATCH(B11,'2016'!B:B,0)) -> TRUE | D11: Residential | E11: Residential Lighting | F11: Appliance | G11: Refrigerator | H11: Actual | I11: =INDEX(OFFSET('2016'!$AG$23,,,TotalMeasures),MATCH($B11,OFFSET('2016'!$B$23,,,TotalMeasures),0)) -> 0.660161689 | J11: TRUE | K11: Units | L11: =IFERROR(SUMIFS('Program App Details Report'!$X$3:$X$870,'Program App Details Report'!$N$3:$N$870,$E11,'Program App Details Report'!$O$3:$O$870,$G11),0) -> 31 | M11: =SUMIFS('Plan Data'!E:E,'Plan Data'!$A:$A,$E11&"_"&$G11) -> 0 | N11: 14 | P11: =IFERROR(SUMIFS('Program App Details Report'!$AB$3:$AB$870,'Program App Details Report'!$N$3:$N$870,$E11,'Program App Details Report'!$O$3:$O$870,$G11)/L11,0) -> 40 | Q11: 40 | U11: 1 | V11: =IFERROR(SUMIFS('Program App Details Report'!$AA$3:$AA$870,'Program App Details Report'!$N$3:$N$870,$E11,'Program App Details Report'!$O$3:$O$870,$G11)/L11,0) -> 63.74193548 | X11: =IFERROR(SUMIFS('Program App Details Report'!$Z$3:$Z$870,'Program App Details Report'!$N$3:$N$870,$E11,'Program App Details Report'!$O$3:$O$870,$G11)/L11,0) -> 0.007290322581 | Z11: 0 | AH11: =V11*$U11 -> 63.74193548 | AI11: =W11*$U11 -> 0 | AJ11: =X11*$U11 -> 0.007290322581 | AK11: =Y11*$U11 -> 0 | AL11: =Z11*$U11 -> 0 | AM11: =AA11*$U11 -> 0 | AN11: =AB11*$U11 -> 0 | AO11: =AC11*$U11 -> 0 | AP11: =AD11*$U11 -> 0 | AQ11: =AE11*$U11 -> 0 | AR11: =AF11*$U11 -> 0 | AS11: =AG11*$U11 -> 0 | AV11: Plan | AW11: Plan | AX11: n/a
B12: =D12&"_"&E12&"_"&F12&"_"&G12&"_"&H12 -> Residential_Residential Appliance Recycling_Appliance_Refrigerator Recycle_Actual | C12: =ISNUMBER(MATCH(B12,'2016'!B:B,0)) -> TRUE | D12: Residential | E12: Residential Appliance Recycling | F12: Appliance | G12: Refrigerator Recycle | H12: Actual | I12: =INDEX(OFFSET('2016'!$AG$23,,,TotalMeasures),MATCH($B12,OFFSET('2016'!$B$23,,,TotalMeasures),0)) -> 3.939213599 | J12: TRUE | K12: Units | L12: =IFERROR(SUMIFS('Program App Details Report'!$X$3:$X$870,'Program App Details Report'!$N$3:$N$870,$E12,'Program App Details Report'!$O$3:$O$870,$G12),0) -> 71 | M12: =SUMIFS('Plan Data'!E:E,'Plan Data'!$A:$A,$E12&"_"&$G12) -> 40 | N12: 8 | P12: =IFERROR(SUMIFS('Program App Details Report'!$AB$3:$AB$870,'Program App Details Report'!$N$3:$N$870,$E12,'Program App Details Report'!$O$3:$O$870,$G12)/L12,0) -> 50 | Q12: 93 | R12: 0 | U12: 1 | V12: =IFERROR(SUMIFS('Program App Details Report'!$AA$3:$AA$870,'Program App Details Report'!$N$3:$N$870,$E12,'Program App Details Report'!$O$3:$O$870,$G12)/L12,0) -> 1289 | X12: =IFERROR(SUMIFS('Program App Details Report'!$Z$3:$Z$870,'Program App Details Report'!$N$3:$N$870,$E12,'Program App Details Report'!$O$3:$O$870,$G12)/L12,0) -> 0.147 | Z12: 0 | AH12: 1289 | AI12: 0 | AJ12: 0.147 | AK12: 0 | AL12: 0 | AM12: 0 | AN12: 0 | AO12: 0 | AP12: 0 | AQ12: 0 | AR12: 0 | AS12: 0 | AV12: Plan | AW12: Plan | AX12: n/a
B13: Residential_Residential Appliance Recycling_Appliance_Freezer Recycle_Actual | C13: =ISNUMBER(MATCH(B13,'2016'!B:B,0)) -> TRUE | D13: Residential | E13: Residential Appliance Recycling | F13: Appliance | G13: Freezer Recycle | H13: Actual | I13: =INDEX(OFFSET('2016'!$AG$23,,,TotalMeasures),MATCH($B13,OFFSET('2016'!$B$23,,,TotalMeasures),0)) -> 3.376887418 | J13: TRUE | K13: Units | L13: =IFERROR(SUMIFS('Program App Details Report'!$X$3:$X$870,'Program App Details Report'!$N$3:$N$870,$E13,'Program App Details Report'!$O$3:$O$870,$G13),0) -> 4 | M13: =SUMIFS('Plan Data'!E:E,'Plan Data'!$A:$A,$E13&"_"&$G13) -> 25 | N13: 8 | P13: =IFERROR(SUMIFS('Program App Details Report'!$AB$3:$AB$870,'Program App Details Report'!$N$3:$N$870,$E13,'Program App Details Report'!$O$3:$O$870,$G13)/L13,0) -> 50 | Q13: 93 | R13: 0 | U13: 1 | V13: =IFERROR(SUMIFS('Program App Details Report'!$AA$3:$AA$870,'Program App Details Report'!$N$3:$N$870,$E13,'Program App Details Report'!$O$3:$O$870,$G13)/L13,0) -> 1105 | X13: =IFERROR(SUMIFS('Program App Details Report'!$Z$3:$Z$870,'Program App Details Report'!$N$3:$N$870,$E13,'Program App Details Report'!$O$3:$O$870,$G13)/L13,0) -> 0.126 | Z13: 0 | AH13: 1105 | AI13: 0 | AJ13: 0.126 | AK13: 0 | AL13: 0 | AM13: 0 | AN13: 0 | AO13: 0 | AP13: 0 | AQ13: 0 | AR13: 0 | AS13: 0 | AV13: Plan | AW13: Plan | AX13: n/a
B14: =D14&"_"&E14&"_"&F14&"_"&G14&"_"&H14 -> Residential_Residential HVAC_HVAC_Air Source Heat Pump_Actual | C14: =ISNUMBER(MATCH(B14,'2016'!B:B,0)) -> TRUE | D14: Residential | E14: Residential HVAC | F14: HVAC | G14: Air Source Heat Pump | H14: Actual | I14: =INDEX(OFFSET('2016'!$AG$23,,,TotalMeasures),MATCH($B14,OFFSET('2016'!$B$23,,,TotalMeasures),0)) -> 2.443506366 | J14: TRUE | K14: Units | L14: =IFERROR(SUMIFS('Program App Details Report'!$X$3:$X$870,'Program App Details Report'!$N$3:$N$870,$E14,'Program App Details Report'!$O$3:$O$870,$G14),0) -> 13 | M14: =SUMIFS('Plan Data'!E:E,'Plan Data'!$A:$A,$E14&"_"&$G14) -> 50 | N14: 18 | P14: =IFERROR(SUMIFS('Program App Details Report'!$AB$3:$AB$870,'Program App Details Report'!$N$3:$N$870,$E14,'Program App Details Report'!$O$3:$O$870,$G14)/L14,0) -> 190.9038462 | Q14: 293.8082481 | R14: 0 | U14: 1 | V14: =IFERROR(SUMIFS('Program App Details Report'!$AA$3:$AA$870,'Program App Details Report'!$N$3:$N$870,$E14,'Program App Details Report'!$O$3:$O$870,$G14)/L14,0) -> 1277.740615 | X14: =IFERROR(SUMIFS('Program App Details Report'!$Z$3:$Z$870,'Program App Details Report'!$N$3:$N$870,$E14,'Program App Details Report'!$O$3:$O$870,$G14)/L14,0) -> 0.7926923077 | Z14: 0 | AH14: 1277.740615 | AI14: 0 | AJ14: 0.7926923077 | AK14: 0 | AL14: 0 | AM14: 0 | AN14: 0 | AO14: 0 | AP14: 0 | AQ14: 0 | AR14: 0 | AS14: 0 | AV14: Plan | AW14: Plan | AX14: n/a
B15: Residential_Residential HVAC_HVAC_Air Source Heat Pump, Early Retirement_Actual | C15: =ISNUMBER(MATCH(B15,'2016'!B:B,0)) -> TRUE | D15: Residential | E15: Residential HVAC | F15: HVAC | G15: Air Source Heat Pump, Early Retirement | H15: Actual | I15: =INDEX(OFFSET('2016'!$AG$23,,,TotalMeasures),MATCH($B15,OFFSET('2016'!$B$23,,,TotalMeasures),0)) -> 0.9368316084 | J15: TRUE | K15: Units | L15: =IFERROR(SUMIFS('Program App Details Report'!$X$3:$X$870,'Program App Details Report'!$N$3:$N$870,$E15,'Program App Details Report'!$O$3:$O$870,$G15),0) -> 3 | M15: =SUMIFS('Plan Data'!E:E,'Plan Data'!$A:$A,$E15&"_"&$G15) -> 5 | N15: 18 | O15: 8 | P15: =Budget!E9/L15 -> 491.6666667 | Q15: 2480.150139 | R15: 2186.341891 | U15: 1 | V15: 478.804919 | W15: =IFERROR(SUMIFS('Program App Details Report'!$AA$3:$AA$870,'Program App Details Report'!$N$3:$N$870,$E15,'Program App Details Report'!$O$3:$O$870,$G15)/L15,0) -> 3523.762667 | X15: 0.4929093518 | Y15: =IFERROR(SUMIFS('Program App Details Report'!$Z$3:$Z$870,'Program App Details Report'!$N$3:$N$870,$E15,'Program App Details Report'!$O$3:$O$870,$G15)/L15,0) -> 1.966 | Z15: 0 | AH15: 478.804919 | AI15: 3523.762667 | AJ15: 0.4929093518 | AK15: 1.966 | AL15: 0 | AM15: 0 | AN15: 0 | AO15: 0 | AP15: 0 | AQ15: 0 | AR15: 0 | AS15: 0 | AV15: Plan | AW15: Plan | AX15: n/a
B16: Residential_Residential HVAC_HVAC_Air Source Heat Pump, Replace Furnace_Actual | C16: =ISNUMBER(MATCH(B16,'2016'!B:B,0)) -> TRUE | D16: Residential | E16: Residential HVAC | F16: HVAC | G16: Air Source Heat Pump, Replace Furnace | H16: Actual | I16: =INDEX(OFFSET('2016'!$AG$23,,,TotalMeasures),MATCH($B16,OFFSET('2016'!$B$23,,,TotalMeasures),0)) -> 1.604739741 | J16: TRUE | K16: Units | L16: =IFERROR(SUMIFS('Program App Details Report'!$X$3:$X$870,'Program App Details Report'!$N$3:$N$870,$E16,'Program App Details Report'!$O$3:$O$870,$G16),0) -> 4 | M16: =SUMIFS('Plan Data'!E:E,'Plan Data'!$A:$A,$E16&"_"&$G16) -> 3 | N16: 18 | P16: =IFERROR(SUMIFS('Program App Details Report'!$AB$3:$AB$870,'Program App Details Report'!$N$3:$N$870,$E16,'Program App Details Report'!$O$3:$O$870,$G16)/L16,0) -> 1500 | Q16: 4554 | U16: 1 | V16: =IFERROR(SUMIFS('Program App Details Report'!$AA$3:$AA$870,'Program App Details Report'!$N$3:$N$870,$E16,'Program App Details Report'!$O$3:$O$870,$G16)/L16,0) -> 16020.05199 | X16: =IFERROR(SUMIFS('Program App Details Report'!$Z$3:$Z$870,'Program App Details Report'!$N$3:$N$870,$E16,'Program App Details Report'!$O$3:$O$870,$G16)/L16,0) -> 0.057 | Z16: 0 | AH16: 16020.05199 | AI16: 0 | AJ16: 0.057 | AK16: 0 | AL16: 0 | AM16: 0 | AN16: 0 | AO16: 0 | AP16: 0 | AQ16: 0 | AR16: 0 | AS16: 0 | AV16: Plan | AW16: Plan | AX16: n/a
B17: Residential_Residential HVAC_HVAC_Geothermal Heat Pump_Actual | C17: =ISNUMBER(MATCH(B17,'2016'!B:B,0)) -> TRUE | D17: Residential | E17: Residential HVAC | F17: HVAC | G17: Geothermal Heat Pump | H17: Actual | I17: =INDEX(OFFSET('2016'!$AG$23,,,TotalMeasures),MATCH($B17,OFFSET('2016'!$B$23,,,TotalMeasures),0)) -> 1.834502779 | J17: TRUE | K17: Units | L17: =IFERROR(SUMIFS('Program App Details Report'!$X$3:$X$870,'Program App Details Report'!$N$3:$N$870,$E17,'Program App Details Report'!$O$3:$O$870,$G17),0) -> 3 | M17: =SUMIFS('Plan Data'!E:E,'Plan Data'!$A:$A,$E17&"_"&$G17) -> 12 | N17: 25 | P17: =IFERROR(SUMIFS('Program App Details Report'!$AB$3:$AB$870,'Program App Details Report'!$N$3:$N$870,$E17,'Program App Details Report'!$O$3:$O$870,$G17)/L17,0) -> 866.6666667 | Q17: 2313.658109 | U17: 1 | V17: =IFERROR(SUMIFS('Program App Details Report'!$AA$3:$AA$870,'Program App Details Report'!$N$3:$N$870,$E17,'Program App Details Report'!$O$3:$O$870,$G17)/L17,0) -> 7261.583333 | X17: =IFERROR(SUMIFS('Program App Details Report'!$Z$3:$Z$870,'Program App Details Report'!$N$3:$N$870,$E17,'Program App Details Report'!$O$3:$O$870,$G17)/L17,0) -> 2.162666667 | Z17: 0 | AH17: 7261.583333 | AI17: 0 | AJ17: 2.162666667 | AK17: 0 | AL17: 0 | AM17: 0 | AN17: 0 | AO17: 0 | AP17: 0 | AQ17: 0 | AR17: 0 | AS17: 0 | AV17: Plan | AW17: Plan | AX17: n/a
B18: Residential_Residential HVAC_HVAC_Geothermal Heat Pump, Early Retirement_Actual | C18: =ISNUMBER(MATCH(B18,'2016'!B:B,0)) -> TRUE | D18: Residential | E18: Residential HVAC | F18: HVAC | G18: Geothermal Heat Pump, Early Retirement | H18: Actual | I18: =INDEX(OFFSET('2016'!$AG$23,,,TotalMeasures),MATCH($B18,OFFSET('2016'!$B$23,,,TotalMeasures),0)) -> 1.946401098 | J18: TRUE | K18: Units | L18: =IFERROR(SUMIFS('Program App Details Report'!$X$3:$X$870,'Program App Details Report'!$N$3:$N$870,$E18,'Program App Details Report'!$O$3:$O$870,$G18),0) -> 1 | M18: =SUMIFS('Plan Data'!E:E,'Plan Data'!$A:$A,$E18&"_"&$G18) -> 5 | N18: 25 | O18: 8 | P18: =IFERROR(SUMIFS('Program App Details Report'!$AB$3:$AB$870,'Program App Details Report'!$N$3:$N$870,$E18,'Program App Details Report'!$O$3:$O$870,$G18)/L18,0) -> 1500 | Q18: 4500 | R18: 2186.341891 | U18: 1 | V18: 4935.268115 | W18: =IFERROR(SUMIFS('Program App Details Report'!$AA$3:$AA$870,'Program App Details Report'!$N$3:$N$870,$E18,'Program App Details Report'!$O$3:$O$870,$G18)/L18,0) -> 18621.166 | X18: 0.7622706343 | Y18: =IFERROR(SUMIFS('Program App Details Report'!$Z$3:$Z$870,'Program App Details Report'!$N$3:$N$870,$E15,'Program App Details Report'!$O$3:$O$870,$G15)/L15,0) -> 1.966 | Z18: 0 | AH18: =V18*$U18 -> 4935.268115 | AI18: =W18*$U18 -> 18621.166 | AJ18: =X18*$U18 -> 0.7622706343 | AK18: =Y18*$U18 -> 1.966 | AL18: =Z18*$U18 -> 0 | AM18: =AA18*$U18 -> 0 | AN18: =AB18*$U18 -> 0 | AO18: =AC18*$U18 -> 0 | AP18: =AD18*$U18 -> 0 | AQ18: =AE18*$U18 -> 0 | AR18: =AF18*$U18 -> 0 | AS18: =AG18*$U18 -> 0 | AV18: Plan | AW18: Plan | AX18: n/a
B19: Residential_Residential HVAC_HVAC_Ductless Minisplit HP_Actual | C19: =ISNUMBER(MATCH(B19,'2016'!B:B,0)) -> TRUE | D19: Residential | E19: Residential HVAC | F19: HVAC | G19: Ductless Minisplit HP | H19: Actual | I19: =INDEX(OFFSET('2016'!$AG$23,,,TotalMeasures),MATCH($B19,OFFSET('2016'!$B$23,,,TotalMeasures),0)) -> 1.415742878 | J19: TRUE | K19: Units | L19: =IFERROR(SUMIFS('Program App Details Report'!$X$3:$X$870,'Program App Details Report'!$N$3:$N$870,$E19,'Program App Details Report'!$O$3:$O$870,$G19),0) -> 8 | M19: =SUMIFS('Plan Data'!E:E,'Plan Data'!$A:$A,$E19&"_"&$G19) -> 5 | N19: 18 | P19: =IFERROR(SUMIFS('Program App Details Report'!$AB$3:$AB$870,'Program App Details Report'!$N$3:$N$870,$E19,'Program App Details Report'!$O$3:$O$870,$G19)/L19,0) -> 81.25 | Q19: 716 | U19: 1 | V19: =IFERROR(SUMIFS('Program App Details Report'!$AA$3:$AA$870,'Program App Details Report'!$N$3:$N$870,$E19,'Program App Details Report'!$O$3:$O$870,$G19)/L19,0) -> 1957.185375 | X19: =IFERROR(SUMIFS('Program App Details Report'!$Z$3:$Z$870,'Program App Details Report'!$N$3:$N$870,$E19,'Program App Details Report'!$O$3:$O$870,$G19)/L19,0) -> 0.71225 | Z19: 0 | AH19: 1957.185375 | AI19: 0 | AJ19: 0.71225 | AK19: 0 | AL19: 0 | AM19: 0 | AN19: 0 | AO19: 0 | AP19: 0 | AQ19: 0 | AR19: 0 | AS19: 0 | AV19: Plan | AW19: Plan | AX19: n/a
B20: Residential_Residential HVAC_DHW_Heat Pump Water Heater_Actual | C20: =ISNUMBER(MATCH(B20,'2016'!B:B,0)) -> TRUE | D20: Residential | E20: Residential HVAC | F20: DHW | G20: Heat Pump Water Heater | H20: Actual | I20: =INDEX(OFFSET('2016'!$AG$23,,,TotalMeasures),MATCH($B20,OFFSET('2016'!$B$23,,,TotalMeasures),0)) -> 1.824064685 | J20: TRUE | K20: Units | L20: =IFERROR(SUMIFS('Program App Details Report'!$X$3:$X$870,'Program App Details Report'!$N$3:$N$870,$E20,'Program App Details Report'!$O$3:$O$870,$G20),0) -> 4 | M20: =SUMIFS('Plan Data'!E:E,'Plan Data'!$A:$A,$E20&"_"&$G20) -> 12 | N20: 15 | P20: =IFERROR(SUMIFS('Program App Details Report'!$AB$3:$AB$870,'Program App Details Report'!$N$3:$N$870,$E20,'Program App Details Report'!$O$3:$O$870,$G20)/L20,0) -> 287.5 | Q20: 700 | U20: 1 | V20: =IFERROR(SUMIFS('Program App Details Report'!$AA$3:$AA$870,'Program App Details Report'!$N$3:$N$870,$E20,'Program App Details Report'!$O$3:$O$870,$G20)/L20,0) -> 3035 | X20: =IFERROR(SUMIFS('Program App Details Report'!$Z$3:$Z$870,'Program App Details Report'!$N$3:$N$870,$E20,'Program App Details Report'!$O$3:$O$870,$G20)/L20,0) -> 0.14375 | Z20: 0 | AH20: 3035 | AI20: 0 | AJ20: 0.14375 | AK20: 0 | AL20: 0 | AM20: 0 | AN20: 0 | AO20: 0 | AP20: 0 | AQ20: 0 | AR20: 0 | AS20: 0 | AV20: Plan | AW20: Plan | AX20: n/a
B21: Residential_Residential HVAC_DHW_Electric Water Heater EF ≥ 0.95_Actual | C21: =ISNUMBER(MATCH(B21,'2016'!B:B,0)) -> TRUE | D21: Residential | E21: Residential HVAC | F21: DHW | G21: Electric Water Heater EF ≥ 0.95 | H21: Actual | I21: =INDEX(OFFSET('2016'!$AG$23,,,TotalMeasures),MATCH($B21,OFFSET('2016'!$B$23,,,TotalMeasures),0)) -> 1.424281318 | J21: TRUE | K21: Units | L21: =IFERROR(SUMIFS('Program App Details Report'!$X$3:$X$870,'Program App Details Report'!$N$3:$N$870,$E21,'Program App Details Report'!$O$3:$O$870,$G21),0) -> 52 | M21: =SUMIFS('Plan Data'!E:E,'Plan Data'!$A:$A,$E21&"_"&$G21) -> 10 | N21: 15 | P21: =IFERROR(SUMIFS('Program App Details Report'!$AB$3:$AB$870,'Program App Details Report'!$N$3:$N$870,$E21,'Program App Details Report'!$O$3:$O$870,$G21)/L21,0) -> 84.13461538 | Q21: 51.06 | U21: 1 | V21: =IFERROR(SUMIFS('Program App Details Report'!$AA$3:$AA$870,'Program App Details Report'!$N$3:$N$870,$E21,'Program App Details Report'!$O$3:$O$870,$G21)/L21,0) -> 168.69793 | X21: =IFERROR(SUMIFS('Program App Details Report'!$Z$3:$Z$870,'Program App Details Report'!$N$3:$N$870,$E21,'Program App Details Report'!$O$3:$O$870,$G21)/L21,0) -> 0.01925596154 | Z21: 0 | AH21: 168.69793 | AI21: 0 | AJ21: 0.01925596154 | AK21: 0 | AL21: 0 | AM21: 0 | AN21: 0 | AO21: 0 | AP21: 0 | AQ21: 0 | AR21: 0 | AS21: 0 | AV21: Plan | AW21: Plan | AX21: n/a
B22: Residential_Residential HVAC_DHW_Electric Water Heater EF 0.95_Actual | C22: =ISNUMBER(MATCH(B22,'2016'!B:B,0)) -> TRUE | D22: Residential | E22: Residential HVAC | F22: DHW | G22: Electric Water Heater EF 0.95 | H22: Actual | I22: =INDEX(OFFSET('2016'!$AG$23,,,TotalMeasures),MATCH($B22,OFFSET('2016'!$B$23,,,TotalMeasures),0)) -> 1.018360689 | J22: TRUE | K22: Units | L22: =IFERROR(SUMIFS('Program App Details Report'!$X$3:$X$870,'Program App Details Report'!$N$3:$N$870,$E22,'Program App Details Report'!$O$3:$O$870,$G22),0) -> 11 | M22: =SUMIFS('Plan Data'!E:E,'Plan Data'!$A:$A,$E22&"_"&$G22) -> 10 | N22: 15 | P22: =IFERROR(SUMIFS('Program App Details Report'!$AB$3:$AB$870,'Program App Details Report'!$N$3:$N$870,$E22,'Program App Details Report'!$O$3:$O$870,$G22)/L22,0) -> 48.18181818 | Q22: 51.06 | U22: 1 | V22: =IFERROR(SUMIFS('Program App Details Report'!$AA$3:$AA$870,'Program App Details Report'!$N$3:$N$870,$E22,'Program App Details Report'!$O$3:$O$870,$G22)/L22,0) -> 120.6182164 | X22: =IFERROR(SUMIFS('Program App Details Report'!$Z$3:$Z$870,'Program App Details Report'!$N$3:$N$870,$E22,'Program App Details Report'!$O$3:$O$870,$G22)/L22,0) -> 0.01377 | Z22: 0 | AH22: 120.6182164 | AI22: 0 | AJ22: 0.01377 | AK22: 0 | AL22: 0 | AM22: 0 | AN22: 0 | AO22: 0 | AP22: 0 | AQ22: 0 | AR22: 0 | AS22: 0 | AV22: Plan | AW22: Plan | AX22: n/a
B23: =D23&"_"&E23&"_"&F23&"_"&G23&"_"&H23 -> Residential_Whole House Efficiency_Various_Audit Measures_Actual | C23: =ISNUMBER(MATCH(B23,'2016'!B:B,0)) -> TRUE | D23: Residential | E23: Whole House Efficiency | F23: Various | G23: Audit Measures | H23: Actual | I23: =INDEX(OFFSET('2016'!$AG$23,,,TotalMeasures),MATCH($B23,OFFSET('2016'!$B$23,,,TotalMeasures),0)) -> n/a | J23: TRUE | K23: Units | L23: =IFERROR(SUMIFS('Program App Details Report'!$X$3:$X$870,'Program App Details Report'!$N$3:$N$870,$E23,'Program App Details Report'!$O$3:$O$870,$G23),0) -> 17 | M23: =SUMIFS('Plan Data'!E:E,'Plan Data'!$A:$A,$E23&"_"&$G23) -> 100 | N23: 15 | P23: =IFERROR(SUMIFS('Program App Details Report'!$AB$3:$AB$870,'Program App Details Report'!$N$3:$N$870,$E23,'Program App Details Report'!$O$3:$O$870,$G23)/L23,0) -> 0 | U23: 1 | V23: =IFERROR(SUMIFS('Program App Details Report'!$AA$3:$AA$870,'Program App Details Report'!$N$3:$N$870,$E23,'Program App Details Report'!$O$3:$O$870,$G23)/L23,0) -> 508 | X23: =IFERROR(SUMIFS('Program App Details Report'!$Z$3:$Z$870,'Program App Details Report'!$N$3:$N$870,$E23,'Program App Details Report'!$O$3:$O$870,$G23)/L23,0) -> 0.19 | Z23: 0 | AH23: 508 | AI23: 0 | AJ23: 0.19 | AK23: 0 | AL23: 0 | AM23: 0 | AN23: 0 | AO23: 0 | AP23: 0 | AQ23: 0 | AR23: 0 | AS23: 0 | AV23: Plan | AW23: Plan | AX23: n/a
B24: Residential_Whole House Efficiency_Various_EE Kit_Actual | C24: =ISNUMBER(MATCH(B24,'2016'!B:B,0)) -> TRUE | D24: Residential | E24: Whole House Efficiency | F24: Various | G24: EE Kit | H24: Actual | I24: =INDEX(OFFSET('2016'!$AG$23,,,TotalMeasures),MATCH($B24,OFFSET('2016'!$B$23,,,TotalMeasures),0)) -> n/a | J24: TRUE | K24: Units | L24: =IFERROR(SUMIFS('Program App Details Report'!$X$3:$X$870,'Program App Details Report'!$N$3:$N$870,$E24,'Program App Details Report'!$O$3:$O$870,$G24),0) -> 17 | M24: =SUMIFS('Plan Data'!E:E,'Plan Data'!$A:$A,$E24&"_"&$G24) -> 100 | N24: 10 | P24: =IFERROR(SUMIFS('Program App Details Report'!$AB$3:$AB$870,'Program App Details Report'!$N$3:$N$870,$E24,'Program App Details Report'!$O$3:$O$870,$G24)/L24,0) -> 0 | U24: 1 | V24: =IFERROR(SUMIFS('Program App Details Report'!$AA$3:$AA$870,'Program App Details Report'!$N$3:$N$870,$E24,'Program App Details Report'!$O$3:$O$870,$G24)/L24,0) -> 417 | X24: =IFERROR(SUMIFS('Program App Details Report'!$Z$3:$Z$870,'Program App Details Report'!$N$3:$N$870,$E24,'Program App Details Report'!$O$3:$O$870,$G24)/L24,0) -> 0.044 | Z24: 0 | AH24: 417 | AI24: 0 | AJ24: 0.044 | AK24: 0 | AL24: 0 | AM24: 0 | AN24: 0 | AO24: 0 | AP24: 0 | AQ24: 0 | AR24: 0 | AS24: 0 | AV24: Plan | AW24: Plan | AX24: n/a
B25: =D25&"_"&E25&"_"&F25&"_"&G25&"_"&H25 -> Residential_Residential Audit_Various_Online Audit_Actual | C25: =ISNUMBER(MATCH(B25,'2016'!B:B,0)) -> TRUE | D25: Residential | E25: Residential Audit | F25: Various | G25: Online Audit | H25: Actual | I25: =INDEX(OFFSET('2016'!$AG$23,,,TotalMeasures),MATCH($B25,OFFSET('2016'!$B$23,,,TotalMeasures),0)) -> n/a | J25: TRUE | K25: Units | L25: =IFERROR(SUMIFS('Program App Details Report'!$X$3:$X$870,'Program App Details Report'!$N$3:$N$870,$E25,'Program App Details Report'!$O$3:$O$870,$G25),0) -> 610 | M25: =SUMIFS('Plan Data'!E:E,'Plan Data'!$A:$A,$E25&"_"&$G25) -> 400 | N25: 10 | P25: =IFERROR(SUMIFS('Program App Details Report'!$AB$3:$AB$870,'Program App Details Report'!$N$3:$N$870,$E25,'Program App Details Report'!$O$3:$O$870,$G25)/L25,0) -> 0 | U25: 1 | V25: =IFERROR(SUMIFS('Program App Details Report'!$AA$3:$AA$870,'Program App Details Report'!$N$3:$N$870,$E25,'Program App Details Report'!$O$3:$O$870,$G25)/L25,0) -> 209 | X25: =IFERROR(SUMIFS('Program App Details Report'!$Z$3:$Z$870,'Program App Details Report'!$N$3:$N$870,$E25,'Program App Details Report'!$O$3:$O$870,$G25)/L25,0) -> 0.022 | Z25: 0 | AH25: 209 | AI25: 0 | AJ25: 0.022 | AK25: 0 | AL25: 0 | AM25: 0 | AN25: 0 | AO25: 0 | AP25: 0 | AQ25: 0 | AR25: 0 | AS25: 0 | AV25: Plan | AW25: Plan | AX25: n/a
B26: =D26&"_"&E26&"_"&F26&"_"&G26&"_"&H26 -> Residential_School-Based Energy Education_Various_EE Kit/Education Materials_Actual | C26: =ISNUMBER(MATCH(B26,'2016'!B:B,0)) -> TRUE | D26: Residential | E26: School-Based Energy Education | F26: Various | G26: EE Kit/Education Materials | H26: Actual | I26: =INDEX(OFFSET('2016'!$AG$23,,,TotalMeasures),MATCH($B26,OFFSET('2016'!$B$23,,,TotalMeasures),0)) -> n/a | J26: TRUE | K26: Units | L26: =IFERROR(SUMIFS('Program App Details Report'!$X$3:$X$870,'Program App Details Report'!$N$3:$N$870,$E26,'Program App Details Report'!$O$3:$O$870,$G26),0) -> 1360 | M26: =SUMIFS('Plan Data'!E:E,'Plan Data'!$A:$A,$E26&"_"&$G26) -> 1200 | N26: 5 | P26: =IFERROR(SUMIFS('Program App Details Report'!$AB$3:$AB$870,'Program App Details Report'!$N$3:$N$870,$E26,'Program App Details Report'!$O$3:$O$870,$G26)/L26,0) -> 0 | U26: 1 | V26: =IFERROR(SUMIFS('Program App Details Report'!$AA$3:$AA$870,'Program App Details Report'!$N$3:$N$870,$E26,'Program App Details Report'!$O$3:$O$870,$G26)/L26,0) -> 397 | X26: =IFERROR(SUMIFS('Program App Details Report'!$Z$3:$Z$870,'Program App Details Report'!$N$3:$N$870,$E26,'Program App Details Report'!$O$3:$O$870,$G26)/L26,0) -> 0.04 | AH26: 397 | AI26: 0 | AJ26: 0.04 | AK26: 0 | AX26: n/a
B27: =D27&"_"&E27&"_"&F27&"_"&G27&"_"&H27 -> Residential_Weatherization_Various_Weatherization Measures_Actual | C27: =ISNUMBER(MATCH(B27,'2016'!B:B,0)) -> TRUE | D27: Residential | E27: Weatherization | F27: Various | G27: Weatherization Measures | H27: Actual | I27: =INDEX(OFFSET('2016'!$AG$23,,,TotalMeasures),MATCH($B27,OFFSET('2016'!$B$23,,,TotalMeasures),0)) -> n/a | J27: TRUE | K27: Units | L27: =IFERROR(SUMIFS('Program App Details Report'!$X$3:$X$870,'Program App Details Report'!$N$3:$N$870,$E27,'Program App Details Report'!$O$3:$O$870,$G27),0) -> 25 | M27: =SUMIFS('Plan Data'!E:E,'Plan Data'!$A:$A,$E27&"_"&$G27) -> 25 | N27: 15 | P27: =IFERROR(SUMIFS('Program App Details Report'!$AB$3:$AB$870,'Program App Details Report'!$N$3:$N$870,$E27,'Program App Details Report'!$O$3:$O$870,$G27)/L27,0) -> 0 | U27: 1 | V27: =IFERROR(SUMIFS('Program App Details Report'!$AA$3:$AA$870,'Program App Details Report'!$N$3:$N$870,$E27,'Program App Details Report'!$O$3:$O$870,$G27)/L27,0) -> 865 | X27: =IFERROR(SUMIFS('Program App Details Report'!$Z$3:$Z$870,'Program App Details Report'!$N$3:$N$870,$E27,'Program App Details Report'!$O$3:$O$870,$G27)/L27,0) -> 0.155 | AH27: 865 | AI27: 0 | AJ27: 0.155 | AK27: 0 | AX27: n/a
B28: =D28&"_"&E28&"_"&F28&"_"&G28&"_"&H28 -> Residential_Weatherization_Various_EE Kit_Actual | C28: =ISNUMBER(MATCH(B28,'2016'!B:B,0)) -> TRUE | D28: Residential | E28: Weatherization | F28: Various | G28: EE Kit | H28: Actual | I28: =INDEX(OFFSET('2016'!$AG$23,,,TotalMeasures),MATCH($B28,OFFSET('2016'!$B$23,,,TotalMeasures),0)) -> n/a | J28: TRUE | K28: Units | L28: =IFERROR(SUMIFS('Program App Details Report'!$X$3:$X$870,'Program App Details Report'!$N$3:$N$870,$E28,'Program App Details Report'!$O$3:$O$870,$G28),0) -> 25 | M28: =SUMIFS('Plan Data'!E:E,'Plan Data'!$A:$A,$E28&"_"&$G28) -> 25 | N28: 10 | P28: =IFERROR(SUMIFS('Program App Details Report'!$AB$3:$AB$870,'Program App Details Report'!$N$3:$N$870,$E28,'Program App Details Report'!$O$3:$O$870,$G28)/L28,0) -> 0 | U28: 1 | V28: =IFERROR(SUMIFS('Program App Details Report'!$AA$3:$AA$870,'Program App Details Report'!$N$3:$N$870,$E28,'Program App Details Report'!$O$3:$O$870,$G28)/L28,0) -> 417 | X28: =IFERROR(SUMIFS('Program App Details Report'!$Z$3:$Z$870,'Program App Details Report'!$N$3:$N$870,$E28,'Program App Details Report'!$O$3:$O$870,$G28)/L28,0) -> 0.044 | AH28: 417 | AI28: 0 | AJ28: 0.044 | AK28: 0 | AX28: n/a
B29: =D29&"_"&E29&"_"&F29&"_"&G29&"_"&H29 -> Commercial_Commercial Prescriptive Rebate_Lighting_C&I Lighting_Actual | C29: =ISNUMBER(MATCH(B29,'2016'!B:B,0)) -> TRUE | D29: Commercial | E29: Commercial Prescriptive Rebate | F29: Lighting | G29: C&I Lighting | H29: Actual | I29: =INDEX(OFFSET('2016'!$AG$23,,,TotalMeasures),MATCH($B29,OFFSET('2016'!$B$23,,,TotalMeasures),0)) -> 1.109311705 | J29: TRUE | K29: Units | L29: =IFERROR(SUMIFS('Program App Details Report'!$X$3:$X$870,'Program App Details Report'!$N$3:$N$870,$E29,'Program App Details Report'!$O$3:$O$870,$G29),0) -> 19546 | M29: =SUMIFS('Plan Data'!E:E,'Plan Data'!$A:$A,$E29&"_"&$G29) -> 6500 | N29: 8 | P29: =IFERROR(SUMIFS('Program App Details Report'!$AB$3:$AB$870,'Program App Details Report'!$N$3:$N$870,$E29,'Program App Details Report'!$O$3:$O$870,$G29)/L29,0) -> 13.55242939 | Q29: =SUMPRODUCT(--('Plan Data'!$A$3:$A$107=$E29&"_"&$G29),'Plan Data'!$E$3:$E$107,'Plan Data'!$H$3:$H$107)/M29 -> 39.59403077 | U29: 1 | V29: =IFERROR(SUMIFS('Program App Details Report'!$AA$3:$AA$870,'Program App Details Report'!$N$3:$N$870,$E29,'Program App Details Report'!$O$3:$O$870,$G29)/L29,0) -> 147.7928751 | X29: =IFERROR(SUMIFS('Program App Details Report'!$Z$3:$Z$870,'Program App Details Report'!$N$3:$N$870,$E29,'Program App Details Report'!$O$3:$O$870,$G29)/L29,0) -> 0.03556577249 | AH29: 147.7928751 | AI29: 0 | AJ29: 0.03556577249 | AK29: 0 | AX29: n/a
B30: Commercial_Commercial Prescriptive Rebate_Lighting_C&I HVAC_Actual | C30: =ISNUMBER(MATCH(B30,'2016'!B:B,0)) -> TRUE | D30: Commercial | E30: Commercial Prescriptive Rebate | F30: Lighting | G30: C&I HVAC | H30: Actual | I30: =INDEX(OFFSET('2016'!$AG$23,,,TotalMeasures),MATCH($B30,OFFSET('2016'!$B$23,,,TotalMeasures),0)) -> n/a | J30: TRUE | K30: Units | L30: =IFERROR(SUMIFS('Program App Details Report'!$X$3:$X$870,'Program App Details Report'!$N$3:$N$870,$E30,'Program App Details Report'!$O$3:$O$870,$G30),0) -> 0 | M30: =SUMIFS('Plan Data'!E:E,'Plan Data'!$A:$A,$E30&"_"&$G30) -> 24 | N30: 15 | P30: =IFERROR(SUMIFS('Program App Details Report'!$AB$3:$AB$870,'Program App Details Report'!$N$3:$N$870,$E30,'Program App Details Report'!$O$3:$O$870,$G30)/L30,0) -> 0 | Q30: =SUMPRODUCT(--('Plan Data'!$A$3:$A$107=$E30&"_"&$G30),'Plan Data'!$E$3:$E$107,'Plan Data'!$H$3:$H$107)/M30 -> 1101.666667 | U30: 1 | V30: =IFERROR(SUMIFS('Program App Details Report'!$AA$3:$AA$870,'Program App Details Report'!$N$3:$N$870,$E30,'Program App Details Report'!$O$3:$O$870,$G30)/L30,0) -> 0 | X30: =IFERROR(SUMIFS('Program App Details Report'!$Z$3:$Z$870,'Program App Details Report'!$N$3:$N$870,$E30,'Program App Details Report'!$O$3:$O$870,$G30)/L30,0) -> 0 | AH30: 0 | AI30: 0 | AJ30: 0 | AK30: 0 | AX30: n/a
B31: =D31&"_"&E31&"_"&F31&"_"&G31&"_"&H31 -> Commercial_Commercial Prescriptive Rebate_Lighting_C&I Motors_Actual | C31: =ISNUMBER(MATCH(B31,'2016'!B:B,0)) -> TRUE | D31: Commercial | E31: Commercial Prescriptive Rebate | F31: Lighting | G31: C&I Motors | H31: Actual | I31: =INDEX(OFFSET('2016'!$AG$23,,,TotalMeasures),MATCH($B31,OFFSET('2016'!$B$23,,,TotalMeasures),0)) -> 95.62989417 | J31: TRUE | K31: Units | L31: =IFERROR(SUMIFS('Program App Details Report'!$X$3:$X$870,'Program App Details Report'!$N$3:$N$870,$E31,'Program App Details Report'!$O$3:$O$870,$G31),0) -> 2 | M31: =SUMIFS('Plan Data'!E:E,'Plan Data'!$A:$A,$E31&"_"&$G31) -> 10 | N31: 15 | P31: =IFERROR(SUMIFS('Program App Details Report'!$AB$3:$AB$870,'Program App Details Report'!$N$3:$N$870,$E31,'Program App Details Report'!$O$3:$O$870,$G31)/L31,0) -> 325 | Q31: =SUMPRODUCT(--('Plan Data'!$A$3:$A$107=$E31&"_"&$G31),'Plan Data'!$E$3:$E$107,'Plan Data'!$H$3:$H$107)/M31 -> 115 | U31: 1 | V31: =IFERROR(SUMIFS('Program App Details Report'!$AA$3:$AA$870,'Program App Details Report'!$N$3:$N$870,$E31,'Program App Details Report'!$O$3:$O$870,$G31)/L31,0) -> 25654.4835 | X31: =IFERROR(SUMIFS('Program App Details Report'!$Z$3:$Z$870,'Program App Details Report'!$N$3:$N$870,$E31,'Program App Details Report'!$O$3:$O$870,$G31)/L31,0) -> 2.53 | AH31: 25654.4835 | AI31: 0 | AJ31: 2.53 | AK31: 0 | AX31: n/a
B32: =D32&"_"&E32&"_"&F32&"_"&G32&"_"&H32 -> Commercial_Commercial Custom Rebate_Various_C&I Custom_Actual | C32: =ISNUMBER(MATCH(B32,'2016'!B:B,0)) -> TRUE | D32: Commercial | E32: Commercial Custom Rebate | F32: Various | G32: C&I Custom | H32: Actual | I32: =INDEX(OFFSET('2016'!$AG$23,,,TotalMeasures),MATCH($B32,OFFSET('2016'!$B$23,,,TotalMeasures),0)) -> 2.01225141 | J32: TRUE | K32: Units | L32: 47 | M32: =SUMIFS('Plan Data'!E:E,'Plan Data'!$A:$A,$E32&"_"&$G32) -> 45 | N32: 15 | P32: =IFERROR(SUMIFS('Program App Details Report'!$AB$3:$AB$870,'Program App Details Report'!$N$3:$N$870,$E32,'Program App Details Report'!$O$3:$O$870,$G32)/L32,0) -> 3672.573191 | Q32: =P32*2 -> 7345.146383 | U32: 1 | V32: =IFERROR(SUMIFS('Program App Details Report'!$AA$3:$AA$870,'Program App Details Report'!$N$3:$N$870,$E32,'Program App Details Report'!$O$3:$O$870,$G32)/L32,0) -> 32771.76043 | X32: =IFERROR(SUMIFS('Program App Details Report'!$Z$3:$Z$870,'Program App Details Report'!$N$3:$N$870,$E32,'Program App Details Report'!$O$3:$O$870,$G32)/L32,0) -> 7.939340426 | AH32: 32771.76043 | AI32: 0 | AJ32: 7.939340426 | AK32: 0 | AV32: Plan ($/kWh) | AX32: n/a

Sheet Program Inputs
A1: =IFERROR(VALUE(MID(CELL("filename",$A$1),FIND("]",CELL("filename",$A$1))+1,255)),MID(CELL("filename",$A$1),FIND("]",CELL("filename",$A$1))+1,255)) -> Program Inputs
A2: =HYPERLINK("#'Contents'!a1","Return to Contents") -> Return to Contents | AD2: From App Data | AI2: From Budget Detail | AQ2: From Plan
F3: Total Participants (Customers) | J3: Delivery | K3: Admin | L3: Marketing | M3: Evaluation | N3: Delivery | R3: Administrative | V3: Marketing | Z3: Evaluation | AD3: Total Incentive Cost ($) | AE3: Total Non-Incentive Cost ($) | AI3: Total Program Expenditures ($)
A4: Key | B4: Sector | C4: Program | E4: First Year TRC | F4: 2017 | G4: 2018 | H4: 2019 | I4: Total | J4: ($/Participant) | K4: % (Delivery + Incentive) | L4: % (Delivery + Incentive) | M4: % Total Program Cost | N4: 2017 | O4: 2018 | P4: 2019 | Q4: Total | R4: 2017 | S4: 2018 | T4: 2019 | U4: Total | V4: 2017 | W4: 2018 | X4: 2019 | Y4: Total | Z4: 2017 | AA4: 2018 | AB4: 2019 | AC4: Total | AD4: 2016 | AE4: 2016 | AF4: 2018 | AG4: 2019 | AH4: Total | AI4: 2016 | AJ4: 2018 | AK4: 2019 | AL4: Total | AM4: Customer Incentives | AN4: Utility Direct Costs | AO4: Incentive Variance | AP4: Notes | AQ4: Total Incentive Cost ($) | AR4: Total Non-Incentive Cost ($) | AS4: Total | AT4: kWh | AU4: kW
A5: =B5&"_"&C5&"_"&D5 -> Residential_Residential Lighting_Actual | B5: Residential | C5: Residential Lighting | D5: Actual | E5: ='2016'!AG11 -> 0.771660632 | F5: 0 | G5: 0 | H5: 0 | I5: =SUM(F5:H5) -> 0 | J5: 0 | K5: 0 | L5: 0 | N5: =$J5*F5 -> 0 | O5: =$J5*G5 -> 0 | P5: =$J5*H5 -> 0 | Q5: 0 | R5: =$K5*(N5+AD5) -> 0 | S5: =$K5*(O5+#REF!) ->  | T5: =$K5*(P5+#REF!) ->  | U5: =$K5*(Q5+#REF!) ->  | V5: =$L5*(N5+AD5) -> 0 | W5: =$L5*(O5+#REF!) ->  | X5: =$L5*(P5+#REF!) ->  | Y5: =$L5*(Q5+#REF!) ->  | Z5: =SUM(SUMIFS($N5:$Y5,$N$4:$Y$4,Z$4),SUMIFS($AD5:$AD5,$AD$4:$AD$4,Z$4))*$M5 -> 0 | AD5: =Budget!E38 -> 14470.16 | AE5: =Budget!D38 -> 15316.12 | AF5: =SUMIFS($N5:$AC5,$N$4:$AC$4,AF$4) ->  | AI5: =SUM(AE5,AD5) -> 29786.28 | AJ5: =SUMIFS($AD5:$AH5,$AD$4:$AH$4,AJ$4) ->  | AM5: 1886 | AN5: 26621 | AO5: =IFERROR(AM5/AD5-1,0) -> -0.8696628095 | AP5: Incentives in App Data do not match budget detail | AQ5: ='Plan Data'!J7 -> 20100 | AR5: ='Plan Data'!K7 -> 11535.45 | AS5: =SUM(AQ5,AR5) -> 31635.45 | AT5: ='Plan Data'!F7 -> 152003.5 | AU5: ='Plan Data'!G7 -> 17.88934437
A6: =B6&"_"&C6&"_"&D6 -> Residential_Residential Appliance Recycling_Actual | B6: Residential | C6: Residential Appliance Recycling | D6: Actual | E6: ='2016'!AG12 -> 1.707035062 | F6: 0 | G6: 0 | H6: 0 | I6: =SUM(F6:H6) -> 0 | J6: 0 | K6: 0 | L6: 0 | N6: =$J6*F6 -> 0 | O6: =$J6*G6 -> 0 | P6: =$J6*H6 -> 0 | Q6: =$J6*I6 -> 0 | R6: 0 | S6: =$K6*(O6+#REF!) ->  | T6: =$K6*(P6+#REF!) ->  | U6: =$K6*(Q6+#REF!) ->  | V6: 0 | W6: =$L6*(O6+#REF!) ->  | X6: =$L6*(P6+#REF!) ->  | Y6: =$L6*(Q6+#REF!) ->  | Z6: 0 | AD6: =Budget!E39 -> 3750 | AE6: =Budget!D39 -> 8998.21 | AI6: =SUM(AE6,AD6) -> 12748.21 | AM6: 3850 | AN6: 8885 | AO6: 0.02666666667 | AP6: ? | AQ6: ='Plan Data'!J11 -> 9875 | AR6: ='Plan Data'!K11 -> 14124.0625 | AS6: =SUM(AQ6,AR6) -> 23999.0625 | AT6: ='Plan Data'!F11 -> 81399.9 | AU6: ='Plan Data'!G11 -> 9.373223012
A7: Residential_Residential HVAC_Actual | B7: Residential | C7: Residential HVAC | D7: Actual | E7: ='2016'!AG13 -> 1.62697919 | F7: 0 | G7: 0 | H7: 0 | I7: 0 | J7: 0 | K7: 0 | L7: 0 | N7: 0 | O7: 0 | P7: 0 | Q7: 0 | R7: 0 | S7: =$K7*(O7+#REF!) ->  | T7: =$K7*(P7+#REF!) ->  | U7: =$K7*(Q7+#REF!) ->  | V7: 0 | W7: =$L7*(O7+#REF!) ->  | X7: =$L7*(P7+#REF!) ->  | Y7: =$L7*(Q7+#REF!) ->  | Z7: 0 | AD7: =Budget!E40 -> 20761.75 | AE7: =Budget!D40 -> 530 | AI7: 21291.75 | AM7: 23552 | AN7: 0 | AO7: 0.134393777 | AP7: ? | AQ7: ='Plan Data'!J15 -> 43240 | AR7: ='Plan Data'!K15 -> 14420.54 | AS7: 57660.54 | AT7: ='Plan Data'!F15 -> 193823.8128 | AU7: ='Plan Data'!G15 -> 68.91925213
A8: Residential_Whole House Efficiency_Actual | B8: Residential | C8: Whole House Efficiency | D8: Actual | E8: ='2016'!AG14 -> 0.7110261246 | F8: 0 | G8: 0 | H8: 0 | I8: 0 | J8: 0 | K8: 0 | L8: 0 | N8: 0 | O8: 0 | P8: 0 | Q8: 0 | R8: 0 | S8: =$K8*(O8+#REF!) ->  | T8: =$K8*(P8+#REF!) ->  | U8: =$K8*(Q8+#REF!) ->  | V8: 0 | W8: =$L8*(O8+#REF!) ->  | X8: =$L8*(P8+#REF!) ->  | Y8: =$L8*(Q8+#REF!) ->  | Z8: 0 | AD8: =Budget!E41 -> 0 | AE8: =Budget!D41 -> 9043.62 | AI8: 9043.62 | AM8: 0 | AN8: 15044 | AO8: 0 | AP8: Confirm measure cost included in Utility Direct | AQ8: ='Plan Data'!J27 -> 0 | AR8: ='Plan Data'!K27 -> 32287.5 | AS8: 32287.5 | AT8: ='Plan Data'!F27 -> 90540.20014 | AU8: ='Plan Data'!G27 -> 23.03041474
A9: Residential_Residential Audit_Actual | B9: Residential | C9: Residential Audit | D9: Actual | E9: ='2016'!AG15 -> 6.601132421 | F9: 0 | G9: 0 | H9: 0 | I9: 0 | J9: 0 | K9: 0 | L9: 0 | N9: 0 | O9: 0 | P9: 0 | Q9: 0 | R9: 0 | S9: =$K9*(O9+#REF!) ->  | T9: =$K9*(P9+#REF!) ->  | U9: =$K9*(Q9+#REF!) ->  | V9: 0 | W9: =$L9*(O9+#REF!) ->  | X9: =$L9*(P9+#REF!) ->  | Y9: =$L9*(Q9+#REF!) ->  | Z9: 0 | AD9: =Budget!E42 -> 0 | AE9: =Budget!D42 -> 6424.84 | AI9: 6424.84 | AM9: 0 | AN9: 0 | AO9: 0 | AP9: Confirm measure cost included in Utility Direct | AQ9: ='Plan Data'!J37 -> 0 | AR9: ='Plan Data'!K37 -> 25263 | AS9: 25263 | AT9: ='Plan Data'!F37 -> 79399.54408 | AU9: ='Plan Data'!G37 -> 8.001817158
A10: Residential_School-Based Energy Education_Actual | B10: Residential | C10: School-Based Energy Education | D10: Actual | E10: ='2016'!AG16 -> 1.50796984 | F10: 0 | G10: 0 | H10: 0 | I10: 0 | J10: 0 | K10: 0 | L10: 0 | N10: 0 | O10: 0 | P10: 0 | Q10: 0 | R10: 0 | S10: =$K10*(O10+#REF!) ->  | T10: =$K10*(P10+#REF!) ->  | U10: =$K10*(Q10+#REF!) ->  | V10: 0 | W10: =$L10*(O10+#REF!) ->  | X10: =$L10*(P10+#REF!) ->  | Y10: =$L10*(Q10+#REF!) ->  | Z10: 0 | AD10: =Budget!E43 -> 0 | AE10: =Budget!D43 -> 69731.04 | AI10: 69731.04 | AM10: 0 | AN10: 69732 | AO10: 0 | AP10: Confirm measure cost included in Utility Direct | AQ10: ='Plan Data'!J43 -> 0 | AR10: ='Plan Data'!K43 -> 66150 | AS10: 66150 | AT10: ='Plan Data'!F43 -> 476397.2645 | AU10: ='Plan Data'!G43 -> 48.01090295
A11: Residential_Weatherization_Actual | B11: Residential | C11: Weatherization | D11: Actual | E11: ='2016'!AG17 -> 1.594125534 | F11: 0 | G11: 0 | H11: 0 | I11: 0 | J11: 0 | K11: 0 | L11: 0 | N11: 0 | O11: 0 | P11: 0 | Q11: 0 | R11: 0 | S11: =$K11*(O11+#REF!) ->  | T11: =$K11*(P11+#REF!) ->  | U11: =$K11*(Q11+#REF!) ->  | V11: 0 | W11: =$L11*(O11+#REF!) ->  | X11: =$L11*(P11+#REF!) ->  | Y11: =$L11*(Q11+#REF!) ->  | Z11: 0 | AD11: =Budget!E44 -> 0 | AE11: =Budget!D44 -> 8160.78 | AI11: 8160.78 | AM11: 0 | AN11: 8156 | AO11: 0 | AP11: Confirm measure cost included in Utility Direct | AQ11: ='Plan Data'!J44 -> 0 | AR11: ='Plan Data'!K44 -> 9646.875 | AS11: 9646.875 | AT11: ='Plan Data'!F44 -> 41479.87403 | AU11: ='Plan Data'!G44 -> 5.886851215
A12: Commercial_Commercial Prescriptive Rebate_Actual | B12: Commercial | C12: Commercial Prescriptive Rebate | D12: Actual | E12: ='2016'!AG18 -> 1.095368597 | F12: 0 | G12: 0 | H12: 0 | I12: 0 | J12: 0 | K12: 0 | L12: 0 | N12: 0 | O12: 0 | P12: 0 | Q12: 0 | R12: 0 | S12: =$K12*(O12+#REF!) ->  | T12: =$K12*(P12+#REF!) ->  | U12: =$K12*(Q12+#REF!) ->  | V12: 0 | W12: =$L12*(O12+#REF!) ->  | X12: =$L12*(P12+#REF!) ->  | Y12: =$L12*(Q12+#REF!) ->  | Z12: 0 | AD12: =Budget!E45 -> 265545.7849 | AE12: =Budget!D45 -> 29701.03508 | AI12: 295246.82 | AM12: 267018 | AN12: 28309 | AO12: 0.005544110144 | AP12: ? | AQ12: ='Plan Data'!J56 -> 144592 | AR12: ='Plan Data'!K56 -> 98322.56 | AS12: 242914.56 | AT12: ='Plan Data'!F56 -> 2740189.519 | AU12: ='Plan Data'!G56 -> 583.5529383
A13: Commercial_Commercial Custom Rebate_Actual | B13: Commercial | C13: Commercial Custom Rebate | D13: Actual | E13: ='2016'!AG19 -> 1.866288165 | F13: 0 | G13: 0 | H13: 0 | I13: 0 | J13: 0 | K13: 0 | L13: 0 | N13: 0 | O13: 0 | P13: 0 | Q13: 0 | R13: 0 | S13: =$K13*(O13+#REF!) ->  | T13: =$K13*(P13+#REF!) ->  | U13: =$K13*(Q13+#REF!) ->  | V13: 0 | W13: =$L13*(O13+#REF!) ->  | X13: =$L13*(P13+#REF!) ->  | Y13: =$L13*(Q13+#REF!) ->  | Z13: 0 | AD13: =Budget!E46 -> 172610.94 | AE13: =Budget!D46 -> 26999.96 | AI13: 199610.9 | AM13: 172612 | AN13: 27004 | AO13: 6.140978086e-06 | AP13: ? | AQ13: ='Plan Data'!J55 -> 178650 | AR13: ='Plan Data'!K55 -> 97096.275 | AS13: 275746.275 | AT13: ='Plan Data'!F55 -> 1942980.21 | AU13: ='Plan Data'!G55 -> 481.9845
A14: Portfolio_Cross Marketing and Training_Actual | B14: Portfolio | C14: Cross Marketing and Training | D14: Actual | E14: ='2016'!AG20 -> 0 | AD14: =Budget!E47 -> 0 | AE14: =Budget!D47 -> 107681.59 | AF14: 0 | AG14: 0 | AH14: 0 | AI14: 107681.59 | AM14: 0 | AN14: 97311 | AO14: 0 | AP14: Only included in portfolio level TRC | AQ14: ='Plan Data'!J5 -> 0 | AR14: ='Plan Data'!K5 -> 39645.7 | AS14: 39645.7
A15: =B15&"_"&C15&"_"&D15 -> Portfolio_General Administration_Actual | B15: Portfolio | C15: General Administration | D15: Actual | E15: ='2016'!AG21 -> 0 | AD15: =Budget!E48 -> 0 | AE15: =Budget!D48 -> 66144.05 | AF15: 0 | AG15: 0 | AH15: 0 | AI15: 66144.05 | AM15: 0 | AN15: 65826 | AO15: 0 | AP15: Only included in portfolio level TRC

Sheet Portfolio Inputs
A1: =IFERROR(VALUE(MID(CELL("filename",$A$1),FIND("]",CELL("filename",$A$1))+1,255)),MID(CELL("filename",$A$1),FIND("]",CELL("filename",$A$1))+1,255)) -> Portfolio Inputs
A2: =HYPERLINK("#'Contents'!a1","Return to Contents") -> Return to Contents
B4: Variable | D4: Input | E4: Source
B5: Forecast | C5: Model Start Year | D5: 2016
C6: Model End Year | D6: 2050
C7: Cycle Start Year | D7: 2016
C8: Cycle End Year | D8: 2016
B10: Discount Rate | C10: Discount Rate (TRC) | D10: 0.0884 | E10: \\ameresco.com\d\aeg\Clients\Black Hills\Black Hills So Dakota\2015-16 DSM Planning\Draft\[Black Hills South Dakota PY2-3 (8.19.15).xlsx]
C11: Discount Rate (UCT) | D11: 0.0884 | E11: \\ameresco.com\d\aeg\Clients\Black Hills\Black Hills So Dakota\2015-16 DSM Planning\Draft\[Black Hills South Dakota PY2-3 (8.19.15).xlsx]
C12: Discount Rate (SCT) | D12: 0.0884 | E12: \\ameresco.com\d\aeg\Clients\Black Hills\Black Hills So Dakota\2015-16 DSM Planning\Draft\[Black Hills South Dakota PY2-3 (8.19.15).xlsx]
C13: Discount Rate (PCT) | D13: 0.0884 | E13: \\ameresco.com\d\aeg\Clients\Black Hills\Black Hills So Dakota\2015-16 DSM Planning\Draft\[Black Hills South Dakota PY2-3 (8.19.15).xlsx]
C14: Discount Rate (RIM) | D14: 0.0884 | E14: \\ameresco.com\d\aeg\Clients\Black Hills\Black Hills So Dakota\2015-16 DSM Planning\Draft\[Black Hills South Dakota PY2-3 (8.19.15).xlsx]
B16: Losses | C16: Electric Line Losses | D16: 1.047 | E16: \\ameresco.com\d\aeg\Clients\Black Hills\Black Hills So Dakota\2015-16 DSM Planning\Draft\[Black Hills South Dakota PY2-3 (8.19.15).xlsx]
C17: Electric Peak Line Losses | D17: 1.047 | E17: \\ameresco.com\d\aeg\Clients\Black Hills\Black Hills So Dakota\2015-16 DSM Planning\Draft\[Black Hills South Dakota PY2-3 (8.19.15).xlsx]
C18: Natural Gas Losses | D18: 1
C19: Water Losses | D19: 1
C20: Propane Losses | D20: 1
C21: Fuel Oil Losses | D21: 1
C23: Wholesale | D23: Escalation | E23: Notes | F23: =BaseYear -> 2016 | G23: =F23+1 -> 2017 | H23: 2018 | I23: 2019 | J23: 2020 | K23: =J23+1 -> 2021 | L23: 2022 | M23: 2023 | N23: 2024 | O23: 2025 | P23: 2026 | Q23: 2027 | R23: 2028 | S23: 2029 | T23: 2030 | U23: 2031 | V23: 2032 | W23: =V23+1 -> 2033 | X23: 2034 | Y23: 2035 | Z23: 2036 | AA23: 2037 | AB23: 2038 | AC23: 2039 | AD23: 2040 | AE23: 2041 | AF23: 2042 | AG23: 2043 | AH23: 2044 | AI23: 2045 | AJ23: 2046 | AK23: 2047 | AL23: 2048 | AM23: 2049 | AN23: 2050 | AO23: 2051 | AP23: 2052 | AQ23: 2053 | AR23: 2054 | AS23: 2055 | AT23: 2056 | AU23: 2057 | AV23: 2058 | AW23: 2059 | AX23: 2060 | AY23: 2061 | AZ23: 2062 | BA23: 2063 | BB23: 2064 | BC23: 2065 | BD23: 2066 | BE23: 2067 | BF23: 2068 | BG23: 2069 | BH23: 2070 | BI23: 2071 | BJ23: 2072 | BK23: 2073 | BL23: 2074
C24: Avoided Energy Cost ($/kWh) | D24: 0.015 | E24: \\ameresco.com\d\aeg\Clients\Black Hills\Black Hills So Dakota\2015-16 DSM Planning\Draft\[Black Hills South Dakota PY2-3 (8.19.15).xlsx] | F24: 0.04101559508 | G24: 0.041630829 | H24: 0.04225529144 | I24: 0.04288912081 | J24: 0.04353245762 | K24: 0.04418544449 | L24: 0.04484822615 | M24: 0.04552094955 | N24: 0.04620376379 | O24: 0.04689682025 | P24: 0.04760027255 | Q24: 0.04831427664 | R24: 0.04903899079 | S24: 0.04977457565 | T24: 0.05052119429 | U24: 0.0512790122 | V24: 0.05204819738 | W24: 0.05282892034 | X24: =W24*(1+$D24) -> 0.05362135415 | Y24: =X24*(1+$D24) -> 0.05442567446 | Z24: 0.05524205958 | AA24: 0.05607069047 | AB24: 0.05691175083 | AC24: 0.05776542709 | AD24: 0.0586319085 | AE24: 0.05951138712 | AF24: 0.06040405793 | AG24: 0.0613101188 | AH24: 0.06222977058 | AI24: 0.06316321714 | AJ24: 0.0641106654 | AK24: 0.06507232538 | AL24: 0.06604841026 | AM24: 0.06703913641 | AN24: 0.06804472346 | AO24: 0.06906539431 | AP24: 0.07010137523 | AQ24: 0.07115289585 | AR24: 0.07222018929 | AS24: 0.07330349213 | AT24: 0.07440304451 | AU24: 0.07551909018 | AV24: 0.07665187653 | AW24: 0.07780165468 | AX24: 0.0789686795 | AY24: 0.0801532097 | AZ24: 0.08135550784 | BA24: 0.08257584046 | BB24: 0.08381447807 | BC24: 0.08507169524 | BD24: 0.08634777066 | BE24: 0.08764298722 | BF24: 0.08895763203 | BG24: 0.09029199651 | BH24: 0.09164637646 | BI24: 0.09302107211 | BJ24: 0.09441638819 | BK24: 0.09583263401 | BL24: 0.09727012352
C25: Avoided Demand Forecast ($/kW-year) | D25: 0.015 | E25: \\ameresco.com\d\aeg\Clients\Black Hills\Black Hills So Dakota\2015-16 DSM Planning\Draft\[Black Hills South Dakota PY2-3 (8.19.15).xlsx] | F25: 15.42663253 | G25: 15.65803202 | H25: 15.8929025 | I25: 16.13129604 | J25: 16.37326548 | K25: 16.61886446 | L25: 16.86814743 | M25: 17.12116964 | N25: 17.37798719 | O25: 17.63865699 | P25: 17.90323685 | Q25: 18.1717854 | R25: 18.44436218 | S25: 18.72102762 | T25: 19.00184303 | U25: 19.28687067 | V25: 19.57617374 | W25: 19.86981634 | X25: =W25*(1+$D25) -> 20.16786359 | Y25: 20.47038154 | Z25: 20.77743726 | AA25: 21.08909882 | AB25: 21.4054353 | AC25: 21.72651683 | AD25: 22.05241459 | AE25: 22.38320081 | AF25: 22.71894882 | AG25: 23.05973305 | AH25: 23.40562905 | AI25: 23.75671348 | AJ25: 24.11306418 | AK25: 24.47476015 | AL25: 24.84188155 | AM25: 25.21450977 | AN25: 25.59272742 | AO25: 25.97661833 | AP25: 26.3662676 | AQ25: 26.76176162 | AR25: 27.16318804 | AS25: 27.57063586 | AT25: 27.9841954 | AU25: 28.40395833 | AV25: 28.83001771 | AW25: 29.26246797 | AX25: 29.70140499 | AY25: 30.14692607 | AZ25: 30.59912996 | BA25: 31.05811691 | BB25: 31.52398866 | BC25: 31.99684849 | BD25: 32.47680122 | BE25: 32.96395324 | BF25: 33.45841254 | BG25: 33.96028872 | BH25: 34.46969305 | BI25: 34.98673845 | BJ25: 35.51153953 | BK25: 36.04421262 | BL25: 36.58487581
C26: Avoided Natural Gas Cost ($/Therm) | D26: n/a | F26: 0 | G26: 0 | H26: 0 | I26: 0 | J26: 0 | K26: 0 | L26: 0 | M26: 0 | N26: 0 | O26: 0 | P26: 0 | Q26: 0 | R26: 0 | S26: 0 | T26: 0 | U26: 0 | V26: 0 | W26: 0 | X26: 0 | Y26: 0 | Z26: 0 | AA26: 0 | AB26: 0 | AC26: 0 | AD26: 0 | AE26: 0 | AF26: 0 | AG26: 0 | AH26: 0 | AI26: 0 | AJ26: 0 | AK26: 0 | AL26: 0 | AM26: 0 | AN26: 0 | AO26: 0 | AP26: 0 | AQ26: 0 | AR26: 0 | AS26: 0 | AT26: 0 | AU26: 0 | AV26: 0 | AW26: 0 | AX26: 0 | AY26: 0 | AZ26: 0 | BA26: 0 | BB26: 0 | BC26: 0 | BD26: 0 | BE26: 0 | BF26: 0 | BG26: 0 | BH26: 0 | BI26: 0 | BJ26: 0 | BK26: 0 | BL26: 0
C27: Avoided Propane | D27: n/a | F27: 0 | G27: 0 | H27: 0 | I27: 0 | J27: 0 | K27: 0 | L27: 0 | M27: 0 | N27: 0 | O27: 0 | P27: 0 | Q27: 0 | R27: 0 | S27: 0 | T27: 0 | U27: 0 | V27: 0 | W27: 0 | X27: 0 | Y27: 0 | Z27: 0 | AA27: 0 | AB27: 0 | AC27: 0 | AD27: 0 | AE27: 0 | AF27: 0 | AG27: 0 | AH27: 0 | AI27: 0 | AJ27: 0 | AK27: 0 | AL27: 0 | AM27: 0 | AN27: 0 | AO27: 0 | AP27: 0 | AQ27: 0 | AR27: 0 | AS27: 0 | AT27: 0 | AU27: 0 | AV27: 0 | AW27: 0 | AX27: 0 | AY27: 0 | AZ27: 0 | BA27: 0 | BB27: 0 | BC27: 0 | BD27: 0 | BE27: 0 | BF27: 0 | BG27: 0 | BH27: 0 | BI27: 0 | BJ27: 0 | BK27: 0 | BL27: 0
C28: Avoided Fuel Oil | D28: n/a | F28: 0 | G28: 0 | H28: 0 | I28: 0 | J28: 0 | K28: 0 | L28: 0 | M28: 0 | N28: 0 | O28: 0 | P28: 0 | Q28: 0 | R28: 0 | S28: 0 | T28: 0 | U28: 0 | V28: 0 | W28: 0 | X28: 0 | Y28: 0 | Z28: 0 | AA28: 0 | AB28: 0 | AC28: 0 | AD28: 0 | AE28: 0 | AF28: 0 | AG28: 0 | AH28: 0 | AI28: 0 | AJ28: 0 | AK28: 0 | AL28: 0 | AM28: 0 | AN28: 0 | AO28: 0 | AP28: 0 | AQ28: 0 | AR28: 0 | AS28: 0 | AT28: 0 | AU28: 0 | AV28: 0 | AW28: 0 | AX28: 0 | AY28: 0 | AZ28: 0 | BA28: 0 | BB28: 0 | BC28: 0 | BD28: 0 | BE28: 0 | BF28: 0 | BG28: 0 | BH28: 0 | BI28: 0 | BJ28: 0 | BK28: 0 | BL28: 0
C29: Environmental Costs ($/kWh) | D29: 0 | E29: \\ameresco.com\d\aeg\Clients\Black Hills\Black Hills So Dakota\2015-16 DSM Planning\Draft\[Black Hills South Dakota PY2-3 (8.19.15).xlsx] | F29: 0.0114 | G29: 0.0114 | H29: 0.0114 | I29: 0.0114 | J29: 0.0114 | K29: 0.0114 | L29: 0.0114 | M29: 0.0114 | N29: 0.0114 | O29: 0.0114 | P29: 0.0114 | Q29: 0.0114 | R29: 0.0114 | S29: 0.0114 | T29: 0.0114 | U29: 0.0114 | V29: 0.0114 | W29: 0.0114 | X29: =W29*(1+$D29) -> 0.0114 | Y29: =X29*(1+$D29) -> 0.0114 | Z29: 0.0114 | AA29: 0.0114 | AB29: 0.0114 | AC29: 0.0114 | AD29: 0.0114 | AE29: 0.0114 | AF29: 0.0114 | AG29: 0.0114 | AH29: 0.0114 | AI29: 0.0114 | AJ29: 0.0114 | AK29: 0.0114 | AL29: 0.0114 | AM29: 0.0114 | AN29: 0.0114 | AO29: 0.0114 | AP29: 0.0114 | AQ29: 0.0114 | AR29: 0.0114 | AS29: 0.0114 | AT29: 0.0114 | AU29: 0.0114 | AV29: 0.0114 | AW29: 0.0114 | AX29: 0.0114 | AY29: 0.0114 | AZ29: 0.0114 | BA29: 0.0114 | BB29: 0.0114 | BC29: 0.0114 | BD29: 0.0114 | BE29: 0.0114 | BF29: 0.0114 | BG29: 0.0114 | BH29: 0.0114 | BI29: 0.0114 | BJ29: 0.0114 | BK29: 0.0114 | BL29: 0.0114
C30: Avoided Water Supply Cost ($/gal) | D30: n/a | F30: 0 | G30: 0 | H30: 0 | I30: 0 | J30: 0 | K30: 0 | L30: 0 | M30: 0 | N30: 0 | O30: 0 | P30: 0 | Q30: 0 | R30: 0 | S30: 0 | T30: 0 | U30: 0 | V30: 0 | W30: 0 | X30: 0 | Y30: 0 | Z30: 0 | AA30: 0 | AB30: 0 | AC30: 0 | AD30: 0 | AE30: 0 | AF30: 0 | AG30: 0 | AH30: 0 | AI30: 0 | AJ30: 0 | AK30: 0 | AL30: 0 | AM30: 0 | AN30: 0 | AO30: 0 | AP30: 0 | AQ30: 0 | AR30: 0 | AS30: 0 | AT30: 0 | AU30: 0 | AV30: 0 | AW30: 0 | AX30: 0 | AY30: 0 | AZ30: 0 | BA30: 0 | BB30: 0 | BC30: 0 | BD30: 0 | BE30: 0 | BF30: 0 | BG30: 0 | BH30: 0 | BI30: 0 | BJ30: 0 | BK30: 0 | BL30: 0
C32: Retail | D32: Escalation | E32: Notes | F32: =F23 -> 2016 | G32: =G23 -> 2017 | H32: 2018 | I32: 2019 | J32: 2020 | K32: 2021 | L32: 2022 | M32: 2023 | N32: 2024 | O32: 2025 | P32: 2026 | Q32: 2027 | R32: 2028 | S32: 2029 | T32: 2030 | U32: 2031 | V32: 2032 | W32: 2033 | X32: 2034 | Y32: 2035 | Z32: 2036 | AA32: 2037 | AB32: 2038 | AC32: 2039 | AD32: 2040 | AE32: 2041 | AF32: 2042 | AG32: 2043 | AH32: 2044 | AI32: 2045 | AJ32: 2046 | AK32: 2047 | AL32: 2048 | AM32: 2049 | AN32: 2050 | AO32: 2051 | AP32: 2052 | AQ32: 2053 | AR32: 2054 | AS32: 2055 | AT32: 2056 | AU32: 2057 | AV32: 2058 | AW32: 2059 | AX32: 2060 | AY32: 2061 | AZ32: 2062 | BA32: 2063 | BB32: 2064 | BC32: 2065 | BD32: 2066 | BE32: 2067 | BF32: 2068 | BG32: 2069 | BH32: 2070 | BI32: 2071 | BJ32: 2072 | BK32: 2073 | BL32: 2074
C33: Elec Residential | D33: 0.015 | E33: \\ameresco.com\d\aeg\Clients\Black Hills\Black Hills So Dakota\2015-16 DSM Planning\Draft\[Black Hills South Dakota PY2-3 (8.19.15).xlsx] | F33: 0.1382874732 | G33: 0.1403617852 | H33: 0.142467212 | I33: 0.1446042202 | J33: 0.1467732835 | K33: 0.1489748828 | L33: 0.151209506 | M33: 0.1534776486 | N33: 0.1557798133 | O33: 0.1581165105 | P33: 0.1604882582 | Q33: 0.1628955821 | R33: 0.1653390158 | S33: 0.167819101 | T33: 0.1703363875 | U33: 0.1728914334 | V33: 0.1754848049 | W33: 0.1781170769 | X33: =W33*(1+$D33) -> 0.1807888331 | Y33: =X33*(1+$D33) -> 0.1835006656 | Z33: =Y33*(1+$D33) -> 0.1862531756 | AA33: =Z33*(1+$D33) -> 0.1890469732 | AB33: =AA33*(1+$D33) -> 0.1918826778 | AC33: =AB33*(1+$D33) -> 0.194760918 | AD33: =AC33*(1+$D33) -> 0.1976823317 | AE33: =AD33*(1+$D33) -> 0.2006475667 | AF33: =AE33*(1+$D33) -> 0.2036572802 | AG33: =AF33*(1+$D33) -> 0.2067121394 | AH33: =AG33*(1+$D33) -> 0.2098128215 | AI33: =AH33*(1+$D33) -> 0.2129600138 | AJ33: =AI33*(1+$D33) -> 0.216154414 | AK33: =AJ33*(1+$D33) -> 0.2193967302 | AL33: =AK33*(1+$D33) -> 0.2226876812 | AM33: =AL33*(1+$D33) -> 0.2260279964 | AN33: =AM33*(1+$D33) -> 0.2294184164 | AO33: =AN33*(1+$D33) -> 0.2328596926 | AP33: =AO33*(1+$D33) -> 0.236352588 | AQ33: =AP33*(1+$D33) -> 0.2398978768 | AR33: =AQ33*(1+$D33) -> 0.243496345 | AS33: =AR33*(1+$D33) -> 0.2471487901 | AT33: =AS33*(1+$D33) -> 0.250856022 | AU33: =AT33*(1+$D33) -> 0.2546188623 | AV33: =AU33*(1+$D33) -> 0.2584381452 | AW33: =AV33*(1+$D33) -> 0.2623147174 | AX33: =AW33*(1+$D33) -> 0.2662494382 | AY33: =AX33*(1+$D33) -> 0.2702431798 | AZ33: =AY33*(1+$D33) -> 0.2742968275 | BA33: =AZ33*(1+$D33) -> 0.2784112799 | BB33: =BA33*(1+$D33) -> 0.2825874491 | BC33: =BB33*(1+$D33) -> 0.2868262608 | BD33: =BC33*(1+$D33) -> 0.2911286547 | BE33: =BD33*(1+$D33) -> 0.2954955845 | BF33: =BE33*(1+$D33) -> 0.2999280183 | BG33: =BF33*(1+$D33) -> 0.3044269386 | BH33: =BG33*(1+$D33) -> 0.3089933427 | BI33: =BH33*(1+$D33) -> 0.3136282428 | BJ33: =BI33*(1+$D33) -> 0.3183326664 | BK33: =BJ33*(1+$D33) -> 0.3231076564 | BL33: =BK33*(1+$D33) -> 0.3279542713
C34: Elec C&I | D34: 0.015 | E34: \\ameresco.com\d\aeg\Clients\Black Hills\Black Hills So Dakota\2015-16 DSM Planning\Draft\[Black Hills South Dakota PY2-3 (8.19.15).xlsx] | F34: 0.1076243594 | G34: 0.1092387248 | H34: 0.1108773057 | I34: 0.1125404653 | J34: 0.1142285723 | K34: 0.1159420008 | L34: 0.1176811308 | M34: 0.1194463478 | N34: 0.121238043 | O34: 0.1230566137 | P34: 0.1249024629 | Q34: 0.1267759998 | R34: 0.1286776398 | S34: 0.1306078044 | T34: 0.1325669215 | U34: 0.1345554253 | V34: 0.1365737567 | W34: 0.138622363 | X34: =W34*(1+$D34) -> 0.1407016985 | Y34: =X34*(1+$D34) -> 0.142812224 | Z34: =Y34*(1+$D34) -> 0.1449544073 | AA34: =Z34*(1+$D34) -> 0.1471287234 | AB34: =AA34*(1+$D34) -> 0.1493356543 | AC34: =AB34*(1+$D34) -> 0.1515756891 | AD34: =AC34*(1+$D34) -> 0.1538493244 | AE34: =AD34*(1+$D34) -> 0.1561570643 | AF34: =AE34*(1+$D34) -> 0.1584994203 | AG34: =AF34*(1+$D34) -> 0.1608769116 | AH34: =AG34*(1+$D34) -> 0.1632900652 | AI34: =AH34*(1+$D34) -> 0.1657394162 | AJ34: =AI34*(1+$D34) -> 0.1682255075 | AK34: =AJ34*(1+$D34) -> 0.1707488901 | AL34: =AK34*(1+$D34) -> 0.1733101234 | AM34: =AL34*(1+$D34) -> 0.1759097753 | AN34: =AM34*(1+$D34) -> 0.1785484219 | AO34: =AN34*(1+$D34) -> 0.1812266482 | AP34: =AO34*(1+$D34) -> 0.183945048 | AQ34: =AP34*(1+$D34) -> 0.1867042237 | AR34: =AQ34*(1+$D34) -> 0.189504787 | AS34: =AR34*(1+$D34) -> 0.1923473588 | AT34: =AS34*(1+$D34) -> 0.1952325692 | AU34: =AT34*(1+$D34) -> 0.1981610578 | AV34: =AU34*(1+$D34) -> 0.2011334736 | AW34: =AV34*(1+$D34) -> 0.2041504757 | AX34: =AW34*(1+$D34) -> 0.2072127329 | AY34: =AX34*(1+$D34) -> 0.2103209239 | AZ34: =AY34*(1+$D34) -> 0.2134757377 | BA34: =AZ34*(1+$D34) -> 0.2166778738 | BB34: =BA34*(1+$D34) -> 0.2199280419 | BC34: =BB34*(1+$D34) -> 0.2232269625 | BD34: =BC34*(1+$D34) -> 0.226575367 | BE34: =BD34*(1+$D34) -> 0.2299739975 | BF34: =BE34*(1+$D34) -> 0.2334236074 | BG34: =BF34*(1+$D34) -> 0.2369249615 | BH34: =BG34*(1+$D34) -> 0.240478836 | BI34: =BH34*(1+$D34) -> 0.2440860185 | BJ34: =BI34*(1+$D34) -> 0.2477473088 | BK34: =BJ34*(1+$D34) -> 0.2514635184 | BL34: =BK34*(1+$D34) -> 0.2552354712
C35: Gas Residential | D35: n/a | F35: 0 | G35: 0 | H35: 0 | I35: 0 | J35: 0 | K35: 0 | L35: 0 | M35: 0 | N35: 0 | O35: 0 | P35: 0 | Q35: 0 | R35: 0 | S35: 0 | T35: 0 | U35: 0 | V35: 0 | W35: 0 | X35: 0 | Y35: 0 | Z35: 0 | AA35: 0 | AB35: 0 | AC35: 0 | AD35: 0 | AE35: 0 | AF35: 0 | AG35: 0 | AH35: 0 | AI35: 0 | AJ35: 0 | AK35: 0 | AL35: 0 | AM35: 0 | AN35: 0 | AO35: 0 | AP35: 0 | AQ35: 0 | AR35: 0 | AS35: 0 | AT35: 0 | AU35: 0 | AV35: 0 | AW35: 0 | AX35: 0 | AY35: 0 | AZ35: 0 | BA35: 0 | BB35: 0 | BC35: 0 | BD35: 0 | BE35: 0 | BF35: 0 | BG35: 0 | BH35: 0 | BI35: 0 | BJ35: 0 | BK35: 0 | BL35: 0
C36: Gas C&I | D36: n/a | F36: 0 | G36: 0 | H36: 0 | I36: 0 | J36: 0 | K36: 0 | L36: 0 | M36: 0 | N36: 0 | O36: 0 | P36: 0 | Q36: 0 | R36: 0 | S36: 0 | T36: 0 | U36: 0 | V36: 0 | W36: 0 | X36: 0 | Y36: 0 | Z36: 0 | AA36: 0 | AB36: 0 | AC36: 0 | AD36: 0 | AE36: 0 | AF36: 0 | AG36: 0 | AH36: 0 | AI36: 0 | AJ36: 0 | AK36: 0 | AL36: 0 | AM36: 0 | AN36: 0 | AO36: 0 | AP36: 0 | AQ36: 0 | AR36: 0 | AS36: 0 | AT36: 0 | AU36: 0 | AV36: 0 | AW36: 0 | AX36: 0 | AY36: 0 | AZ36: 0 | BA36: 0 | BB36: 0 | BC36: 0 | BD36: 0 | BE36: 0 | BF36: 0 | BG36: 0 | BH36: 0 | BI36: 0 | BJ36: 0 | BK36: 0 | BL36: 0
C37: Res Water ($/gal) | D37: n/a | F37: 0 | G37: 0 | H37: 0 | I37: 0 | J37: 0 | K37: 0 | L37: 0 | M37: 0 | N37: 0 | O37: 0 | P37: 0 | Q37: 0 | R37: 0 | S37: 0 | T37: 0 | U37: 0 | V37: 0 | W37: 0 | X37: 0 | Y37: 0 | Z37: 0 | AA37: 0 | AB37: 0 | AC37: 0 | AD37: 0 | AE37: 0 | AF37: 0 | AG37: 0 | AH37: 0 | AI37: 0 | AJ37: 0 | AK37: 0 | AL37: 0 | AM37: 0 | AN37: 0 | AO37: 0 | AP37: 0 | AQ37: 0 | AR37: 0 | AS37: 0 | AT37: 0 | AU37: 0 | AV37: 0 | AW37: 0 | AX37: 0 | AY37: 0 | AZ37: 0 | BA37: 0 | BB37: 0 | BC37: 0 | BD37: 0 | BE37: 0 | BF37: 0 | BG37: 0 | BH37: 0 | BI37: 0 | BJ37: 0 | BK37: 0 | BL37: 0
C38: Com Water ($/gal) | D38: n/a | F38: 0 | G38: 0 | H38: 0 | I38: 0 | J38: 0 | K38: 0 | L38: 0 | M38: 0 | N38: 0 | O38: 0 | P38: 0 | Q38: 0 | R38: 0 | S38: 0 | T38: 0 | U38: 0 | V38: 0 | W38: 0 | X38: 0 | Y38: 0 | Z38: 0 | AA38: 0 | AB38: 0 | AC38: 0 | AD38: 0 | AE38: 0 | AF38: 0 | AG38: 0 | AH38: 0 | AI38: 0 | AJ38: 0 | AK38: 0 | AL38: 0 | AM38: 0 | AN38: 0 | AO38: 0 | AP38: 0 | AQ38: 0 | AR38: 0 | AS38: 0 | AT38: 0 | AU38: 0 | AV38: 0 | AW38: 0 | AX38: 0 | AY38: 0 | AZ38: 0 | BA38: 0 | BB38: 0 | BC38: 0 | BD38: 0 | BE38: 0 | BF38: 0 | BG38: 0 | BH38: 0 | BI38: 0 | BJ38: 0 | BK38: 0 | BL38: 0
C39: Propane (Res) | D39: n/a | F39: 0 | G39: 0 | H39: 0 | I39: 0 | J39: 0 | K39: 0 | L39: 0 | M39: 0 | N39: 0 | O39: 0 | P39: 0 | Q39: 0 | R39: 0 | S39: 0 | T39: 0 | U39: 0 | V39: 0 | W39: 0 | X39: 0 | Y39: 0 | Z39: 0 | AA39: 0 | AB39: 0 | AC39: 0 | AD39: 0 | AE39: 0 | AF39: 0 | AG39: 0 | AH39: 0 | AI39: 0 | AJ39: 0 | AK39: 0 | AL39: 0 | AM39: 0 | AN39: 0 | AO39: 0 | AP39: 0 | AQ39: 0 | AR39: 0 | AS39: 0 | AT39: 0 | AU39: 0 | AV39: 0 | AW39: 0 | AX39: 0 | AY39: 0 | AZ39: 0 | BA39: 0 | BB39: 0 | BC39: 0 | BD39: 0 | BE39: 0 | BF39: 0 | BG39: 0 | BH39: 0 | BI39: 0 | BJ39: 0 | BK39: 0 | BL39: 0
C40: Propane (NRes) | D40: n/a | F40: 0 | G40: 0 | H40: 0 | I40: 0 | J40: 0 | K40: 0 | L40: 0 | M40: 0 | N40: 0 | O40: 0 | P40: 0 | Q40: 0 | R40: 0 | S40: 0 | T40: 0 | U40: 0 | V40: 0 | W40: 0 | X40: 0 | Y40: 0 | Z40: 0 | AA40: 0 | AB40: 0 | AC40: 0 | AD40: 0 | AE40: 0 | AF40: 0 | AG40: 0 | AH40: 0 | AI40: 0 | AJ40: 0 | AK40: 0 | AL40: 0 | AM40: 0 | AN40: 0 | AO40: 0 | AP40: 0 | AQ40: 0 | AR40: 0 | AS40: 0 | AT40: 0 | AU40: 0 | AV40: 0 | AW40: 0 | AX40: 0 | AY40: 0 | AZ40: 0 | BA40: 0 | BB40: 0 | BC40: 0 | BD40: 0 | BE40: 0 | BF40: 0 | BG40: 0 | BH40: 0 | BI40: 0 | BJ40: 0 | BK40: 0 | BL40: 0
C41: Fuel Oil (Res) | D41: n/a | F41: 0 | G41: 0 | H41: 0 | I41: 0 | J41: 0 | K41: 0 | L41: 0 | M41: 0 | N41: 0 | O41: 0 | P41: 0 | Q41: 0 | R41: 0 | S41: 0 | T41: 0 | U41: 0 | V41: 0 | W41: 0 | X41: 0 | Y41: 0 | Z41: 0 | AA41: 0 | AB41: 0 | AC41: 0 | AD41: 0 | AE41: 0 | AF41: 0 | AG41: 0 | AH41: 0 | AI41: 0 | AJ41: 0 | AK41: 0 | AL41: 0 | AM41: 0 | AN41: 0 | AO41: 0 | AP41: 0 | AQ41: 0 | AR41: 0 | AS41: 0 | AT41: 0 | AU41: 0 | AV41: 0 | AW41: 0 | AX41: 0 | AY41: 0 | AZ41: 0 | BA41: 0 | BB41: 0 | BC41: 0 | BD41: 0 | BE41: 0 | BF41: 0 | BG41: 0 | BH41: 0 | BI41: 0 | BJ41: 0 | BK41: 0 | BL41: 0
C42: Fuel Oil (NRes) | D42: n/a | F42: 0 | G42: 0 | H42: 0 | I42: 0 | J42: 0 | K42: 0 | L42: 0 | M42: 0 | N42: 0 | O42: 0 | P42: 0 | Q42: 0 | R42: 0 | S42: 0 | T42: 0 | U42: 0 | V42: 0 | W42: 0 | X42: 0 | Y42: 0 | Z42: 0 | AA42: 0 | AB42: 0 | AC42: 0 | AD42: 0 | AE42: 0 | AF42: 0 | AG42: 0 | AH42: 0 | AI42: 0 | AJ42: 0 | AK42: 0 | AL42: 0 | AM42: 0 | AN42: 0 | AO42: 0 | AP42: 0 | AQ42: 0 | AR42: 0 | AS42: 0 | AT42: 0 | AU42: 0 | AV42: 0 | AW42: 0 | AX42: 0 | AY42: 0 | AZ42: 0 | BA42: 0 | BB42: 0 | BC42: 0 | BD42: 0 | BE42: 0 | BF42: 0 | BG42: 0 | BH42: 0 | BI42: 0 | BJ42: 0 | BK42: 0 | BL42: 0

Sheet 2016
P1: TRUE | Q1: TRUE | R1: TRUE | S1: TRUE | T1: TRUE | U1: TRUE | V1: TRUE | W1: TRUE | AT1: TRUE | AU1: TRUE | AV1: TRUE | AW1: TRUE | AX1: TRUE | AY1: TRUE | AZ1: TRUE | BA1: TRUE | BB1: TRUE | BC1: TRUE | BD1: TRUE | BE1: TRUE | BF1: TRUE | BG1: TRUE | BH1: TRUE | BN1: TRUE | BO1: TRUE | BP1: TRUE | BQ1: TRUE | BR1: TRUE | BS1: TRUE | BT1: TRUE | BU1: TRUE | BV1: TRUE | BW1: TRUE | BX1: TRUE | BY1: TRUE | BZ1: TRUE | CA1: TRUE | CB1: TRUE | CC1: TRUE | CD1: TRUE | CE1: TRUE | CF1: TRUE | CG1: TRUE | CH1: TRUE | CI1: TRUE | CJ1: TRUE | CK1: TRUE | CL1: TRUE | CM1: TRUE | CN1: TRUE | CO1: TRUE | CP1: TRUE | CQ1: TRUE | CW1: TRUE | CX1: TRUE | CY1: TRUE | CZ1: TRUE | DA1: TRUE | DB1: TRUE | DC1: TRUE | DD1: TRUE | DE1: TRUE | DF1: TRUE | DG1: TRUE | DH1: TRUE | DI1: TRUE | DJ1: TRUE | DK1: TRUE | DL1: TRUE | DM1: TRUE | DN1: TRUE | DO1: TRUE | DP1: TRUE | DQ1: TRUE | DR1: TRUE | DS1: TRUE | DT1: TRUE | DU1: TRUE | DV1: TRUE | DW1: TRUE | DX1: TRUE | DY1: TRUE | DZ1: TRUE | EF1: TRUE | EG1: TRUE | EH1: TRUE | EI1: TRUE | EJ1: TRUE | EK1: TRUE | EL1: TRUE | EM1: TRUE | EN1: TRUE | EO1: TRUE | EP1: TRUE | EQ1: TRUE | ER1: TRUE | ES1: TRUE | ET1: TRUE | EU1: TRUE | EV1: TRUE | EW1: TRUE | EX1: TRUE | EY1: TRUE | EZ1: TRUE | FA1: TRUE | FB1: TRUE | FC1: TRUE | FD1: TRUE | FE1: TRUE | FF1: TRUE | FG1: TRUE | FH1: TRUE | FI1: TRUE | FO1: TRUE | FP1: TRUE | FQ1: TRUE | FR1: TRUE | FS1: TRUE | FT1: TRUE | FU1: TRUE | FV1: TRUE | FW1: TRUE | FX1: TRUE | FY1: TRUE | FZ1: TRUE | GA1: TRUE | GB1: TRUE | GC1: TRUE | GD1: TRUE | GE1: TRUE | GF1: TRUE | GG1: TRUE | GH1: TRUE | GI1: TRUE | GJ1: TRUE | GK1: TRUE | GL1: TRUE | GM1: TRUE | GN1: TRUE | GO1: TRUE | GP1: TRUE | GQ1: TRUE | GR1: TRUE | GX1: TRUE | GY1: TRUE | GZ1: TRUE | HA1: TRUE | HB1: TRUE | HC1: TRUE | HD1: TRUE | HE1: TRUE | HF1: TRUE | HG1: TRUE | HH1: TRUE | HI1: TRUE | HJ1: TRUE | HK1: TRUE | HL1: TRUE | HM1: TRUE | HN1: TRUE | HO1: TRUE | HP1: TRUE | HQ1: TRUE | HR1: TRUE | HS1: TRUE | HT1: TRUE | HU1: TRUE | HV1: TRUE | HW1: TRUE | HX1: TRUE | HY1: TRUE | HZ1: TRUE | IA1: TRUE | IG1: TRUE | IH1: TRUE | II1: TRUE | IJ1: TRUE | IK1: TRUE | IL1: TRUE | IM1: TRUE | IN1: TRUE | IO1: TRUE | IP1: TRUE | IQ1: TRUE | IR1: TRUE | IS1: TRUE | IT1: TRUE | IU1: TRUE | IV1: TRUE | IW1: TRUE | IX1: TRUE | IY1: TRUE | IZ1: TRUE | JA1: TRUE | JB1: TRUE | JC1: TRUE | JD1: TRUE | JE1: TRUE | JF1: TRUE | JG1: TRUE | JH1: TRUE | JI1: TRUE | JJ1: TRUE | JP1: TRUE | JQ1: TRUE | JR1: TRUE | JS1: TRUE | JT1: TRUE | JU1: TRUE | JV1: TRUE | JW1: TRUE | JX1: TRUE | JY1: TRUE | JZ1: TRUE | KA1: TRUE | KB1: TRUE | KC1: TRUE | KD1: TRUE | KE1: TRUE | KF1: TRUE | KG1: TRUE | KH1: TRUE | KI1: TRUE | KJ1: TRUE | KK1: TRUE | KL1: TRUE | KM1: TRUE | KN1: TRUE | KO1: TRUE | KP1: TRUE | KQ1: TRUE | KR1: TRUE | KS1: TRUE | KY1: TRUE | KZ1: TRUE | LA1: TRUE | LB1: TRUE | LC1: TRUE | LD1: TRUE | LE1: TRUE | LF1: TRUE | LG1: TRUE | LH1: TRUE | LI1: TRUE | LJ1: TRUE | LK1: TRUE | LL1: TRUE | LM1: TRUE | LN1: TRUE | LO1: TRUE | LP1: TRUE | LQ1: TRUE | LR1: TRUE | LS1: TRUE | LT1: TRUE | LU1: TRUE | LV1: TRUE | LW1: TRUE | LX1: TRUE | LY1: TRUE | LZ1: TRUE | MA1: TRUE | MB1: TRUE | NQ1: TRUE | NR1: TRUE | NS1: TRUE | NT1: TRUE | NU1: TRUE | NV1: TRUE | NW1: TRUE | NX1: TRUE | NY1: TRUE | NZ1: TRUE | OA1: TRUE | OB1: TRUE | OC1: TRUE | OD1: TRUE | OE1: TRUE | OF1: TRUE | OG1: TRUE | OH1: TRUE | OI1: TRUE | OJ1: TRUE | OK1: TRUE | OL1: TRUE | OM1: TRUE | ON1: TRUE | OO1: TRUE | OP1: TRUE | OQ1: TRUE | OR1: TRUE | OS1: TRUE | OT1: TRUE | OZ1: TRUE | PA1: TRUE | PB1: TRUE | PC1: TRUE | PD1: TRUE | PE1: TRUE | PF1: TRUE | PG1: TRUE | PH1: TRUE | PI1: TRUE | PJ1: TRUE | PK1: TRUE | PL1: TRUE | PM1: TRUE | PN1: TRUE | PO1: TRUE | PP1: TRUE | PQ1: TRUE | PR1: TRUE | PS1: TRUE | PT1: TRUE | PU1: TRUE | PV1: TRUE | PW1: TRUE | PX1: TRUE | PY1: TRUE | PZ1: TRUE | QA1: TRUE | QB1: TRUE | QC1: TRUE
B2: =HYPERLINK("#'Contents'!a1","Return to Contents") -> Return to Contents | D2: Program Year: | E2: =IFERROR(VALUE(MID(CELL("filename",B2),FIND("]",CELL("filename",B2))+1,255)),MID(CELL("filename",B2),FIND("]",CELL("filename",B2))+1,255)) -> 2016
B4: Key | C4: Sector | D4: Program | E4: End Use | F4: Measure | G4: Version | H4: 0 | I4: Measure Impacts | X4: 0 | Y4: Measure Financials | AF4: 0 | AG4: B/C Ratio -- Cost Tests | AL4: 0 | AM4: Levelized Costs per Energy | AP4: 0 | AQ4: NPV_TRC | AS4: 0 | AT4: NPV_UCT | AV4: 0 | AW4: NPV_SCT | BB4: 0 | BC4: NPV_PCT | BF4: 0 | BG4: NPV_RIM | BI4: 0 | BJ4: Avoided Energy & Demand Savings, Electricity + Natural Gas ($) | CR4: 0 | CS4: Avoided Environmental Costs ($) | EA4: 0 | EB4: Avoided Propane and Fuel Oil Cost ($) | FJ4: 0 | FK4: Participant Propane & Fuel Oil Bill Savings ($) | GS4: 0 | GT4: Participant Electric and Natural Gas Bill Savings ($) | IB4: 0 | IC4: Incremental Cost ($) | JK4: 0 | JL4: Avoided Water Supply Cost ($) | KT4: 0 | KU4: Participant Water Bill Savings ($) | MC4: 0 | MD4: Net Electric Savings (kWh at gen) | NL4: 0 | NM4: Net Demand Savings (kW) | OU4: 0 | OV4: Net Gas Savings (therm) | QD4: 0
H5: space | I5: Units | J5: First Year kWh | K5: Net kWh | L5: Net Ret. kWh | M5: First Year kW | N5: Net kW | O5: Net Ret. kW | P5: Net Therms | Q5: Net Ret. Therms | R5: Net Water (Gal) | S5: Net Water Ret. (Gal) | T5: Net Propane (Gal) | U5: Net Propane Ret. (Gal) | V5: Net Fuel Oil (Gal) | W5: Net Fuel Oil Ret. (Gal) | X5: space | Y5: Incremental Costs | Z5: Future Avoided Cost | AA5: Measure Life | AB5: Remaining Life | AC5: Incentives | AD5: Non-incentives | AE5: Total Program Expenditures | AF5: space | AG5: TRC | AH5: UCT | AI5: SCT | AJ5: PCT | AK5: RIM | AL5: space | AM5: Levelized $/kWh | AN5: Levelized $/kW | AO5: Levelized $/therm | AP5: space | AQ5: Avoided Energy and Demand Cost (Electric & NG) | AR5: Incremental Cost | AS5: space | AT5: Avoided Energy and Demand Cost (Electric & NG) | AU5: Avoided Propane & Fuel Oil Cost | AV5: space | AW5: Avoided Energy and Demand Cost (Electric & NG) | AX5: Avoided Water Supply Cost | AY5: Avoided Environmental Costs | AZ5: Avoided Propane & Fuel Oil Cost | BA5: Incremental Cost | BB5: space | BC5: Electric & NG Bill Savings/Lost Revenue | BD5: Propane & Fuel Oil Bill Savings | BE5: Incremental Cost | BF5: space | BG5: Avoided Energy and Demand Cost (Electric & NG) | BH5: Electric & NG Bill Savings/Lost Revenue | BI5: space | BJ5: =BaseYear -> 2016 | BK5: =BJ5+1 -> 2017 | BL5: =BK5+1 -> 2018 | BM5: 2019 | BN5: 2020 | BO5: 2021 | BP5: 2022 | BQ5: 2023 | BR5: 2024 | BS5: 2025 | BT5: 2026 | BU5: 2027 | BV5: 2028 | BW5: 2029 | BX5: 2030 | BY5: 2031 | BZ5: 2032 | CA5: 2033 | CB5: 2034 | CC5: 2035 | CD5: 2036 | CE5: 2037 | CF5: 2038 | CG5: 2039 | CH5: 2040 | CI5: 2041 | CJ5: 2042 | CK5: 2043 | CL5: 2044 | CM5: 2045 | CN5: 2046 | CO5: 2047 | CP5: 2048 | CQ5: 2049 | CR5: space | CS5: =BaseYear -> 2016 | CT5: =CS5+1 -> 2017 | CU5: =CT5+1 -> 2018 | CV5: 2019 | CW5: 2020 | CX5: 2021 | CY5: 2022 | CZ5: 2023 | DA5: 2024 | DB5: 2025 | DC5: 2026 | DD5: 2027 | DE5: 2028 | DF5: 2029 | DG5: 2030 | DH5: 2031 | DI5: 2032 | DJ5: 2033 | DK5: 2034 | DL5: 2035 | DM5: 2036 | DN5: 2037 | DO5: 2038 | DP5: 2039 | DQ5: 2040 | DR5: 2041 | DS5: 2042 | DT5: 2043 | DU5: 2044 | DV5: 2045 | DW5: 2046 | DX5: 2047 | DY5: 2048 | DZ5: 2049 | EB5: =BaseYear -> 2016 | EC5: =EB5+1 -> 2017 | ED5: 2018 | EE5: 2019 | EF5: 2020 | EG5: 2021 | EH5: 2022 | EI5: 2023 | EJ5: 2024 | EK5: 2025 | EL5: 2026 | EM5: 2027 | EN5: 2028 | EO5: 2029 | EP5: 2030 | EQ5: 2031 | ER5: 2032 | ES5: 2033 | ET5: 2034 | EU5: 2035 | EV5: 2036 | EW5: 2037 | EX5: 2038 | EY5: 2039 | EZ5: 2040 | FA5: 2041 | FB5: 2042 | FC5: 2043 | FD5: 2044 | FE5: 2045 | FF5: 2046 | FG5: 2047 | FH5: 2048 | FI5: 2049 | FK5: =BaseYear -> 2016 | FL5: =FK5+1 -> 2017 | FM5: 2018 | FN5: 2019 | FO5: 2020 | FP5: 2021 | FQ5: 2022 | FR5: 2023 | FS5: 2024 | FT5: 2025 | FU5: 2026 | FV5: 2027 | FW5: 2028 | FX5: 2029 | FY5: 2030 | FZ5: 2031 | GA5: 2032 | GB5: 2033 | GC5: 2034 | GD5: 2035 | GE5: 2036 | GF5: 2037 | GG5: 2038 | GH5: 2039 | GI5: 2040 | GJ5: 2041 | GK5: 2042 | GL5: 2043 | GM5: 2044 | GN5: 2045 | GO5: 2046 | GP5: 2047 | GQ5: 2048 | GR5: 2049 | GT5: =BaseYear -> 2016 | GU5: =GT5+1 -> 2017 | GV5: =GU5+1 -> 2018 | GW5: 2019 | GX5: 2020 | GY5: 2021 | GZ5: 2022 | HA5: 2023 | HB5: 2024 | HC5: 2025 | HD5: 2026 | HE5: 2027 | HF5: 2028 | HG5: 2029 | HH5: 2030 | HI5: 2031 | HJ5: 2032 | HK5: 2033 | HL5: 2034 | HM5: 2035 | HN5: 2036 | HO5: 2037 | HP5: 2038 | HQ5: 2039 | HR5: 2040 | HS5: 2041 | HT5: 2042 | HU5: 2043 | HV5: 2044 | HW5: 2045 | HX5: 2046 | HY5: 2047 | HZ5: 2048 | IA5: 2049 | IC5: =BaseYear -> 2016 | ID5: =IC5+1 -> 2017 | IE5: =ID5+1 -> 2018 | IF5: 2019 | IG5: 2020 | IH5: 2021 | II5: 2022 | IJ5: 2023 | IK5: 2024 | IL5: 2025 | IM5: 2026 | IN5: 2027 | IO5: 2028 | IP5: 2029 | IQ5: 2030 | IR5: 2031 | IS5: 2032 | IT5: 2033 | IU5: 2034 | IV5: 2035 | IW5: 2036 | IX5: 2037 | IY5: 2038 | IZ5: 2039 | JA5: 2040 | JB5: 2041 | JC5: 2042 | JD5: 2043 | JE5: 2044 | JF5: 2045 | JG5: 2046 | JH5: 2047 | JI5: 2048 | JJ5: 2049 | JL5: =BaseYear -> 2016 | JM5: =JL5+1 -> 2017 | JN5: 2018 | JO5: 2019 | JP5: 2020 | JQ5: 2021 | JR5: 2022 | JS5: 2023 | JT5: 2024 | JU5: 2025 | JV5: 2026 | JW5: 2027 | JX5: 2028 | JY5: 2029 | JZ5: 2030 | KA5: 2031 | KB5: 2032 | KC5: 2033 | KD5: 2034 | KE5: 2035 | KF5: 2036 | KG5: 2037 | KH5: 2038 | KI5: 2039 | KJ5: 2040 | KK5: 2041 | KL5: 2042 | KM5: 2043 | KN5: 2044 | KO5: 2045 | KP5: 2046 | KQ5: 2047 | KR5: 2048 | KS5: 2049 | KU5: =BaseYear -> 2016 | KV5: =KU5+1 -> 2017 | KW5: 2018 | KX5: 2019 | KY5: 2020 | KZ5: 2021 | LA5: 2022 | LB5: 2023 | LC5: 2024 | LD5: 2025 | LE5: 2026 | LF5: 2027 | LG5: 2028 | LH5: 2029 | LI5: 2030 | LJ5: 2031 | LK5: 2032 | LL5: 2033 | LM5: 2034 | LN5: 2035 | LO5: 2036 | LP5: 2037 | LQ5: 2038 | LR5: 2039 | LS5: 2040 | LT5: 2041 | LU5: 2042 | LV5: 2043 | LW5: 2044 | LX5: 2045 | LY5: 2046 | LZ5: 2047 | MA5: 2048 | MB5: 2049 | MD5: =BaseYear -> 2016 | ME5: =MD5+1 -> 2017 | MF5: 2018 | MG5: 2019 | MH5: 2020 | MI5: 2021 | MJ5: 2022 | MK5: 2023 | ML5: 2024 | MM5: 2025 | MN5: 2026 | MO5: 2027 | MP5: 2028 | MQ5: 2029 | MR5: 2030 | MS5: 2031 | MT5: 2032 | MU5: 2033 | MV5: 2034 | MW5: 2035 | MX5: 2036 | MY5: 2037 | MZ5: 2038 | NA5: 2039 | NB5: 2040 | NC5: 2041 | ND5: 2042 | NE5: 2043 | NF5: 2044 | NG5: 2045 | NH5: 2046 | NI5: 2047 | NJ5: 2048 | NK5: 2049 | NM5: =BaseYear -> 2016 | NN5: =NM5+1 -> 2017 | NO5: 2018 | NP5: 2019 | NQ5: 2020 | NR5: 2021 | NS5: 2022 | NT5: 2023 | NU5: 2024 | NV5: 2025 | NW5: 2026 | NX5: 2027 | NY5: 2028 | NZ5: 2029 | OA5: 2030 | OB5: 2031 | OC5: 2032 | OD5: 2033 | OE5: 2034 | OF5: 2035 | OG5: 2036 | OH5: 2037 | OI5: 2038 | OJ5: 2039 | OK5: 2040 | OL5: 2041 | OM5: 2042 | ON5: 2043 | OO5: 2044 | OP5: 2045 | OQ5: 2046 | OR5: 2047 | OS5: 2048 | OT5: 2049 | OV5: =BaseYear -> 2016 | OW5: =OV5+1 -> 2017 | OX5: 2018 | OY5: 2019 | OZ5: 2020 | PA5: 2021 | PB5: 2022 | PC5: 2023 | PD5: 2024 | PE5: 2025 | PF5: 2026 | PG5: 2027 | PH5: 2028 | PI5: 2029 | PJ5: 2030 | PK5: 2031 | PL5: 2032 | PM5: 2033 | PN5: 2034 | PO5: 2035 | PP5: 2036 | PQ5: 2037 | PR5: 2038 | PS5: 2039 | PT5: 2040 | PU5: 2041 | PV5: 2042 | PW5: 2043 | PX5: 2044 | PY5: 2045 | PZ5: 2046 | QA5: 2047 | QB5: 2048 | QC5: 2049
B6: =C6&"_"&D6&"_"&E6&"_"&F6&"_"&G6 -> Portfolio_All_All_All_Actual | C6: Portfolio | D6: All | E6: All | F6: All | G6: Actual | I6: n/a | J6: =SUM(J11:J21) -> 5564759.831 | K6: 5541939.06 | L6: 29192.454 | M6: 1205.612169 | N6: 1199.989168 | O6: 7.864 | P6: =SUM(OFFSET(P$8,,,TotalSectors)) -> 0 | Q6: 0 | R6: 0 | S6: 0 | T6: 0 | U6: 0 | V6: 0 | W6: 0 | Y6: =SUM(Y11:Y21) -> 1208802.917 | Z6: =SUM(Z11:Z21) -> 8745.367564 | AC6: =SUM(AC11:AC21) -> 477138.6349 | AD6: =SUM(AD11:AD21) -> 348731.2451 | AE6: =AD6+AC6 -> 825869.88 | AG6: =IF(OR(AR6>0,AD6>0),(AQ6)/(AD6+AR6),"n/a") -> 1.212791266 | AH6: =IF(OR(AD6>0,AC6>0),(AT6+AU6)/((AC6+AD6)),"n/a") -> 2.280720008 | AI6: =IF(OR(AD6>0,BA6>0),(AW6+AY6+AZ6+AX6)/(AD6+BA6),"n/a") -> 1.492205047 | AJ6: =IF(BE6>0,(AC6+BC6+BD6)/BE6,"n/a") -> 4.018458691 | AK6: =IF((BH6+AD6+AC6)>0,BG6/(BH6+AD6+AC6),"n/a") -> 0.3630356596 | AM6: =IFERROR(($AD6+$AC6)/($MD6+NPV(DiscountRateTRC,$ME6:$NK6)),"n/a") -> 0.02072165491 | AN6: =IFERROR(($AD6+$AC6)/($NM6+NPV(DiscountRateTRC,$NN6:$OT6)),"n/a") -> 93.73589191 | AO6: =($AD6+$AC6)/($OV6+NPV(DiscountRateTRC,$OW6:$QC6)) ->  | AQ6: =SUM(AQ11:AQ21) -> 1883577.959 | AR6: =SUM(AR11:AR21) -> 1204362.03 | AT6: =SUM(AT11:AT21) -> 1883577.959 | AU6: =SUM(AU11:AU21) -> 0 | AW6: =SUM(AW11:AW21) -> 1883577.959 | AX6: =SUM(AX11:AX21) -> 0 | AY6: =SUM(AY11:AY21) -> 433955.6631 | AZ6: =SUM(AZ11:AZ21) -> 0 | BA6: =SUM(BA11:BA21) -> 1204362.03 | BC6: =SUM(BC11:BC21) -> 4362540.429 | BD6: =SUM(BD11:BD21) -> 0 | BE6: =SUM(BE11:BE21) -> 1204362.03 | BG6: =SUM(BG11:BG21) -> 1883577.959 | BH6: =SUM(BH11:BH21) -> 4362540.429 | BJ6: =SUM(OFFSET(BJ$8,,,TotalSectors)) -> 258441.974 | BK6: 262318.6036 | BL6: 266253.3827 | BM6: 270247.1834 | BN6: 274300.8912 | BO6: 252490.9816 | BP6: 256278.3463 | BQ6: 260122.5215 | BR6: 105584.7898 | BS6: 107168.5616 | BT6: 95967.46675 | BU6: 97406.97875 | BV6: 98868.08343 | BW6: 100351.1047 | BX6: 101747.3531 | BY6: 7188.57736 | BZ6: 7296.406021 | CA6: 7405.852111 | CB6: 1653.198366 | CC6: 1677.996342 | CD6: 1703.166287 | CE6: 1728.713781 | CF6: 1754.644488 | CG6: 1780.964155 | CH6: 1807.678618 | CI6: 0 | CJ6: 0 | CK6: 0 | CL6: 0 | CM6: 0 | CN6: 0 | CO6: 0 | CP6: 0 | CQ6: 0 | CS6: 63438.26207 | CT6: 63438.26207 | CU6: 63438.26207 | CV6: 63438.26207 | CW6: 63438.26207 | CX6: 57283.17407 | CY6: 57283.17407 | CZ6: 57283.17407 | DA6: 22997.45396 | DB6: 22997.45396 | DC6: 20184.41309 | DD6: 20184.41309 | DE6: 20184.41309 | DF6: 20184.41309 | DG6: 20161.88669 | DH6: 1419.354171 | DI6: 1419.354171 | DJ6: 1419.354171 | DK6: 304.6082065 | DL6: 304.6082065 | DM6: 304.6082065 | DN6: 304.6082065 | DO6: 304.6082065 | DP6: 304.6082065 | DQ6: 304.6082065 | DR6: 0 | DS6: 0 | DT6: 0 | DU6: 0 | DV6: =SUM(OFFSET(DV$8,,,TotalSectors)) -> 0 | DW6: =SUM(OFFSET(DW$8,,,TotalSectors)) -> 0 | DX6: =SUM(OFFSET(DX$8,,,TotalSectors)) -> 0 | DY6: =SUM(OFFSET(DY$8,,,TotalSectors)) -> 0 | DZ6: =SUM(OFFSET(DZ$8,,,TotalSectors)) -> 0 | EB6: =SUM(OFFSET(EB$8,,,TotalSectors)) -> 0 | EC6: 0 | ED6: 0 | EE6: 0 | EF6: 0 | EG6: 0 | EH6: 0 | EI6: 0 | EJ6: 0 | EK6: 0 | EL6: 0 | EM6: 0 | EN6: 0 | EO6: 0 | EP6: 0 | EQ6: 0 | ER6: 0 | ES6: 0 | ET6: 0 | EU6: 0 | EV6: 0 | EW6: 0 | EX6: 0 | EY6: 0 | EZ6: 0 | FA6: 0 | FB6: 0 | FC6: 0 | FD6: 0 | FE6: 0 | FF6: 0 | FG6: 0 | FH6: 0 | FI6: 0 | FK6: 0 | FL6: 0 | FM6: 0 | FN6: 0 | FO6: 0 | FP6: 0 | FQ6: 0 | FR6: 0 | FS6: 0 | FT6: 0 | FU6: 0 | FV6: 0 | FW6: 0 | FX6: 0 | FY6: 0 | FZ6: 0 | GA6: 0 | GB6: 0 | GC6: 0 | GD6: 0 | GE6: 0 | GF6: 0 | GG6: 0 | GH6: 0 | GI6: 0 | GJ6: 0 | GK6: 0 | GL6: 0 | GM6: 0 | GN6: =SUM(OFFSET(GN$8,,,TotalSectors)) -> 0 | GO6: =SUM(OFFSET(GO$8,,,TotalSectors)) -> 0 | GP6: =SUM(OFFSET(GP$8,,,TotalSectors)) -> 0 | GQ6: =SUM(OFFSET(GQ$8,,,TotalSectors)) -> 0 | GR6: =SUM(OFFSET(GR$8,,,TotalSectors)) -> 0 | GT6: =SUM(OFFSET(GT$8,,,TotalSectors)) -> 603777.8057 | GU6: 612834.4728 | GV6: 622026.9899 | GW6: 631357.3947 | GX6: 640827.7557 | GY6: 573616.3719 | GZ6: 582220.6175 | HA6: 590953.9267 | HB6: 247642.5642 | HC6: 251357.2026 | HD6: 217303.533 | HE6: 220563.086 | HF6: 223871.5323 | HG6: 227229.6053 | HH6: 230316.574 | HI6: 20559.50812 | HJ6: 20867.90075 | HK6: 21180.91926 | HL6: 4613.830845 | HM6: 4683.038308 | HN6: 4753.283882 | HO6: 4824.583141 | HP6: 4896.951888 | HQ6: 4970.406166 | HR6: 5044.962259 | HS6: 0 | HT6: 0 | HU6: 0 | HV6: 0 | HW6: 0 | HX6: 0 | HY6: 0 | HZ6: 0 | IA6: 0 | IC6: =SUM(OFFSET(IC$8,,,TotalSectors)) -> 1208802.917 | ID6: 0 | IE6: 0 | IF6: 0 | IG6: 0 | IH6: 0 | II6: 0 | IJ6: 0 | IK6: -8745.367564 | IL6: 0 | IM6: 0 | IN6: 0 | IO6: 0 | IP6: 0 | IQ6: 0 | IR6: 0 | IS6: 0 | IT6: 0 | IU6: 0 | IV6: 0 | IW6: 0 | IX6: 0 | IY6: 0 | IZ6: 0 | JA6: 0 | JB6: 0 | JC6: 0 | JD6: 0 | JE6: 0 | JF6: 0 | JG6: 0 | JH6: 0 | JI6: 0 | JJ6: 0 | JL6: =SUM(OFFSET(JL$8,,,TotalSectors)) -> 0 | JM6: 0 | JN6: 0 | JO6: 0 | JP6: 0 | JQ6: 0 | JR6: 0 | JS6: 0 | JT6: 0 | JU6: 0 | JV6: 0 | JW6: 0 | JX6: 0 | JY6: 0 | JZ6: 0 | KA6: 0 | KB6: 0 | KC6: 0 | KD6: 0 | KE6: 0 | KF6: 0 | KG6: 0 | KH6: 0 | KI6: 0 | KJ6: 0 | KK6: 0 | KL6: 0 | KM6: 0 | KN6: 0 | KO6: 0 | KP6: 0 | KQ6: 0 | KR6: 0 | KS6: 0 | KU6: =SUM(OFFSET(KU$8,,,TotalSectors)) -> 0 | KV6: 0 | KW6: 0 | KX6: 0 | KY6: 0 | KZ6: 0 | LA6: 0 | LB6: 0 | LC6: 0 | LD6: 0 | LE6: 0 | LF6: 0 | LG6: 0 | LH6: 0 | LI6: 0 | LJ6: 0 | LK6: 0 | LL6: 0 | LM6: 0 | LN6: 0 | LO6: 0 | LP6: 0 | LQ6: 0 | LR6: 0 | LS6: 0 | LT6: 0 | LU6: 0 | LV6: 0 | LW6: 0 | LX6: 0 | LY6: 0 | LZ6: 0 | MA6: 0 | MB6: 0 | MD6: =SUM(OFFSET(MD$8,,,TotalSectors)) -> 5826303.543 | ME6: 5826303.543 | MF6: 5826303.543 | MG6: 5826303.543 | MH6: 5826303.543 | MI6: 5261007.303 | MJ6: 5261007.303 | MK6: 5261007.303 | ML6: 2112134.587 | MM6: 2112134.587 | MN6: 1853778.992 | MO6: 1853778.992 | MP6: 1853778.992 | MQ6: 1853778.992 | MR6: 1851710.12 | MS6: 130356.4752 | MT6: 130356.4752 | MU6: 130356.4752 | MV6: 27975.85897 | MW6: 27975.85897 | MX6: 27975.85897 | MY6: 27975.85897 | MZ6: 27975.85897 | NA6: 27975.85897 | NB6: 27975.85897 | NC6: 0 | ND6: 0 | NE6: 0 | NF6: 0 | NG6: 0 | NH6: 0 | NI6: 0 | NJ6: 0 | NK6: 0 | NM6: =SUM(OFFSET(NM$8,,,TotalSectors)) -> 1262.275941 | NN6: 1262.275941 | NO6: 1262.275941 | NP6: 1262.275941 | NQ6: 1262.275941 | NR6: 1205.319141 | NS6: 1205.319141 | NT6: 1205.319141 | NU6: 460.1351189 | NV6: 460.1351189 | NW6: 431.6024843 | NX6: 431.6024843 | NY6: 431.6024843 | NZ6: 431.6024843 | OA6: 431.3658623 | OB6: 26.13311863 | OC6: 26.13311863 | OD6: 26.13311863 | OE6: 7.591033354 | OF6: 7.591033354 | OG6: 7.591033354 | OH6: 7.591033354 | OI6: 7.591033354 | OJ6: 7.591033354 | OK6: 7.591033354 | OL6: 0 | OM6: 0 | ON6: 0 | OO6: 0 | OP6: 0 | OQ6: 0 | OR6: 0 | OS6: 0 | OT6: 0 | OV6: =SUM(OFFSET(OV$8,,,TotalSectors)) -> 0 | OW6: 0 | OX6: 0 | OY6: 0 | OZ6: 0 | PA6: 0 | PB6: 0 | PC6: 0 | PD6: 0 | PE6: 0 | PF6: 0 | PG6: 0 | PH6: 0 | PI6: 0 | PJ6: 0 | PK6: 0 | PL6: 0 | PM6: 0 | PN6: 0 | PO6: 0 | PP6: 0 | PQ6: 0 | PR6: 0 | PS6: 0 | PT6: 0 | PU6: 0 | PV6: 0 | PW6: 0 | PX6: 0 | PY6: 0 | PZ6: 0 | QA6: 0 | QB6: 0 | QC6: 0
B8: =C8&"_"&D8&"_"&E8&"_"&F8&"_"&G8 -> Residential_All_All_All_Actual | C8: Residential | D8: All | E8: All | F8: All | G8: Actual | I8: n/a | J8: =SUMIFS(OFFSET(J$11,,,TotalPrograms),OFFSET($C$11,,,TotalPrograms),$C8) -> 1084418.587 | K8: 1061597.816 | L8: 29192.454 | M8: 132.23458 | N8: 126.6115787 | O8: 7.864 | P8: 0 | Q8: 0 | R8: 0 | S8: 0 | T8: 0 | U8: 0 | V8: 0 | W8: 0 | Y8: =SUMIFS(OFFSET(Y$11,,,TotalPrograms),OFFSET($C$11,,,TotalPrograms),$C8) -> 89446.11197 | Z8: 8745.367564 | AA8: 0 | AB8: 0 | AC8: 38981.91 | AD8: 118204.61 | AE8: =AD8+AC8 -> 157186.52 | AG8: =IF(OR(AR8>0,AD8>0),(AQ8)/(AD8+AR8),"n/a") -> 1.517682829 | AH8: =IF(OR(AD8>0,AC8>0),(AT8+AU8)/((AC8+AD8)),"n/a") -> 1.962051682 | AI8: =IF(OR(AD8>0,BA8>0),(AW8+AY8+AZ8+AX8)/(AD8+BA8),"n/a") -> 1.880306986 | AJ8: =IF(BE8>0,(AC8+BC8+BD8)/BE8,"n/a") -> 11.08587936 | AK8: =IF((BH8+AD8+AC8)>0,BG8/(BH8+AD8+AC8),"n/a") -> 0.2907967639 | AM8: =IFERROR(($AD8+$AC8)/($MD8+NPV(DiscountRateTRC,$ME8:$NK8)),"n/a") -> 0.02322587125 | AN8: =IFERROR(($AD8+$AC8)/($NM8+NPV(DiscountRateTRC,$NN8:$OT8)),"n/a") -> 176.0823111 | AO8: =($AD8+$AC8)/($OV8+NPV(DiscountRateTRC,$OW8:$QC8)) ->  | AQ8: =SUMIFS(AQ$11:AQ$21,$C$11:$C$21,$C8) -> 308408.0759 | AR8: =SUMIFS(AR$11:AR$21,$C$11:$C$21,$C8) -> 85005.22415 | AT8: =SUMIFS(AT$11:AT$21,$C$11:$C$21,$C8) -> 308408.0759 | AU8: =SUMIFS(AU$11:AU$21,$C$11:$C$21,$C8) -> 0 | AW8: =SUMIFS(AW$11:AW$21,$C$11:$C$21,$C8) -> 308408.0759 | AX8: 0 | AY8: 73688.79497 | AZ8: 0 | BA8: 85005.22415 | BC8: =SUMIFS(BC$11:BC$21,$C$11:$C$21,$C8) -> 903375.7495 | BD8: 0 | BE8: 85005.22415 | BG8: =SUMIFS(BG$11:BG$21,$C$11:$C$21,$C8) -> 308408.0759 | BH8: =SUMIFS(BH$11:BH$21,$C$11:$C$21,$C8) -> 903375.7495 | BJ8: =SUMIFS(OFFSET(BJ$11,,,TotalPrograms),OFFSET($C$11,,,TotalPrograms),$C8) -> 48704.35429 | BK8: 49434.91961 | BL8: 50176.4434 | BM8: 50929.09005 | BN8: 51693.0264 | BO8: 26543.99883 | BP8: 26942.15881 | BQ8: 27346.29119 | BR8: 21710.06327 | BS8: 22035.71422 | BT8: 9557.626648 | BU8: 9700.991048 | BV8: 9846.505913 | BW8: 9994.203502 | BX8: 10035.09842 | BY8: 7188.57736 | BZ8: =SUMIFS(OFFSET(BZ$11,,,TotalPrograms),OFFSET($C$11,,,TotalPrograms),$C8) -> 7296.406021 | CA8: 7405.852111 | CB8: 1653.198366 | CC8: 1677.996342 | CD8: 1703.166287 | CE8: 1728.713781 | CF8: 1754.644488 | CG8: 1780.964155 | CH8: 1807.678618 | CI8: 0 | CJ8: 0 | CK8: 0 | CL8: 0 | CM8: 0 | CN8: 0 | CO8: 0 | CP8: 0 | CQ8: 0 | CS8: =SUMIFS(OFFSET(CS$11,,,TotalPrograms),OFFSET($C$11,,,TotalPrograms),$C8) -> 12362.37189 | CT8: 12362.37189 | CU8: 12362.37189 | CV8: 12362.37189 | CW8: 12362.37189 | CX8: 6207.283889 | CY8: 6207.283889 | CZ8: 6207.283889 | DA8: 4853.422498 | DB8: 4853.422498 | DC8: 2040.381628 | DD8: 2040.381628 | DE8: 2040.381628 | DF8: 2040.381628 | DG8: 2017.855228 | DH8: 1419.354171 | DI8: =SUMIFS(OFFSET(DI$11,,,TotalPrograms),OFFSET($C$11,,,TotalPrograms),$C8) -> 1419.354171 | DJ8: 1419.354171 | DK8: 304.6082065 | DL8: 304.6082065 | DM8: 304.6082065 | DN8: 304.6082065 | DO8: 304.6082065 | DP8: 304.6082065 | DQ8: 304.6082065 | DR8: 0 | DS8: 0 | DT8: 0 | DU8: 0 | DV8: 0 | DW8: 0 | DX8: 0 | DY8: 0 | DZ8: 0 | EB8: =SUMIFS(OFFSET(EB$11,,,TotalPrograms),OFFSET($C$11,,,TotalPrograms),$C8) -> 0 | EC8: 0 | ED8: 0 | EE8: 0 | EF8: 0 | EG8: 0 | EH8: 0 | EI8: 0 | EJ8: 0 | EK8: 0 | EL8: 0 | EM8: 0 | EN8: 0 | EO8: 0 | EP8: 0 | EQ8: 0 | ER8: =SUMIFS(OFFSET(ER$11,,,TotalPrograms),OFFSET($C$11,,,TotalPrograms),$C8) -> 0 | ES8: 0 | ET8: 0 | EU8: 0 | EV8: 0 | EW8: 0 | EX8: 0 | EY8: 0 | EZ8: 0 | FA8: 0 | FB8: 0 | FC8: 0 | FD8: 0 | FE8: 0 | FF8: 0 | FG8: 0 | FH8: 0 | FI8: 0 | FK8: =SUMIFS(OFFSET(FK$11,,,TotalPrograms),OFFSET($C$11,,,TotalPrograms),$C8) -> 0 | FL8: 0 | FM8: 0 | FN8: 0 | FO8: 0 | FP8: 0 | FQ8: 0 | FR8: 0 | FS8: 0 | FT8: 0 | FU8: 0 | FV8: 0 | FW8: 0 | FX8: 0 | FY8: 0 | FZ8: 0 | GA8: =SUMIFS(OFFSET(GA$11,,,TotalPrograms),OFFSET($C$11,,,TotalPrograms),$C8) -> 0 | GB8: 0 | GC8: 0 | GD8: 0 | GE8: 0 | GF8: 0 | GG8: 0 | GH8: 0 | GI8: 0 | GJ8: 0 | GK8: 0 | GL8: 0 | GM8: 0 | GN8: 0 | GO8: 0 | GP8: 0 | GQ8: 0 | GR8: 0 | GT8: =SUMIFS(OFFSET(GT$11,,,TotalPrograms),OFFSET($C$11,,,TotalPrograms),$C8) -> 143229.7098 | GU8: 145378.1555 | GV8: 147558.8278 | GW8: 149772.2102 | GX8: 152018.7934 | GY8: 77475.27519 | GZ8: 78637.40431 | HA8: 79816.96538 | HB8: 63344.32972 | HC8: 64294.49467 | HD8: 27434.88443 | HE8: 27846.40769 | HF8: 28264.10381 | HG8: 28688.06537 | HH8: 28796.91099 | HI8: 20559.50812 | HJ8: =SUMIFS(OFFSET(HJ$11,,,TotalPrograms),OFFSET($C$11,,,TotalPrograms),$C8) -> 20867.90075 | HK8: 21180.91926 | HL8: 4613.830845 | HM8: 4683.038308 | HN8: 4753.283882 | HO8: 4824.583141 | HP8: 4896.951888 | HQ8: 4970.406166 | HR8: 5044.962259 | HS8: 0 | HT8: 0 | HU8: 0 | HV8: 0 | HW8: 0 | HX8: 0 | HY8: 0 | HZ8: 0 | IA8: 0 | IC8: =SUMIFS(OFFSET(IC$11,,,TotalPrograms),OFFSET($C$11,,,TotalPrograms),$C8) -> 89446.11197 | ID8: 0 | IE8: 0 | IF8: 0 | IG8: 0 | IH8: 0 | II8: 0 | IJ8: 0 | IK8: -8745.367564 | IL8: 0 | IM8: 0 | IN8: 0 | IO8: 0 | IP8: 0 | IQ8: 0 | IR8: 0 | IS8: =SUMIFS(OFFSET(IS$11,,,TotalPrograms),OFFSET($C$11,,,TotalPrograms),$C8) -> 0 | IT8: 0 | IU8: 0 | IV8: 0 | IW8: 0 | IX8: 0 | IY8: 0 | IZ8: 0 | JA8: 0 | JB8: 0 | JC8: 0 | JD8: 0 | JE8: 0 | JF8: 0 | JG8: 0 | JH8: 0 | JI8: 0 | JJ8: 0 | JL8: =SUMIFS(OFFSET(JL$11,,,TotalPrograms),OFFSET($C$11,,,TotalPrograms),$C8) -> 0 | JM8: 0 | JN8: 0 | JO8: 0 | JP8: 0 | JQ8: 0 | JR8: 0 | JS8: 0 | JT8: 0 | JU8: 0 | JV8: 0 | JW8: 0 | JX8: 0 | JY8: 0 | JZ8: 0 | KA8: 0 | KB8: =SUMIFS(OFFSET(KB$11,,,TotalPrograms),OFFSET($C$11,,,TotalPrograms),$C8) -> 0 | KC8: 0 | KD8: 0 | KE8: 0 | KF8: 0 | KG8: 0 | KH8: 0 | KI8: 0 | KJ8: 0 | KK8: 0 | KL8: 0 | KM8: 0 | KN8: 0 | KO8: 0 | KP8: 0 | KQ8: 0 | KR8: 0 | KS8: 0 | KU8: =SUMIFS(OFFSET(KU$11,,,TotalPrograms),OFFSET($C$11,,,TotalPrograms),$C8) -> 0 | KV8: 0 | KW8: 0 | KX8: 0 | KY8: 0 | KZ8: 0 | LA8: 0 | LB8: 0 | LC8: 0 | LD8: 0 | LE8: 0 | LF8: 0 | LG8: 0 | LH8: 0 | LI8: 0 | LJ8: 0 | LK8: =SUMIFS(OFFSET(LK$11,,,TotalPrograms),OFFSET($C$11,,,TotalPrograms),$C8) -> 0 | LL8: 0 | LM8: 0 | LN8: 0 | LO8: 0 | LP8: 0 | LQ8: 0 | LR8: 0 | LS8: 0 | LT8: 0 | LU8: 0 | LV8: 0 | LW8: 0 | LX8: 0 | LY8: 0 | LZ8: 0 | MA8: 0 | MB8: 0 | MD8: =SUMIFS(OFFSET(MD$11,,,TotalPrograms),OFFSET($C$11,,,TotalPrograms),$C8) -> 1135386.26 | ME8: 1135386.26 | MF8: 1135386.26 | MG8: 1135386.26 | MH8: 1135386.26 | MI8: 570090.0203 | MJ8: 570090.0203 | MK8: 570090.0203 | ML8: 445748.5399 | MM8: 445748.5399 | MN8: 187392.9443 | MO8: 187392.9443 | MP8: 187392.9443 | MQ8: 187392.9443 | MR8: 185324.0723 | MS8: 130356.4752 | MT8: =SUMIFS(OFFSET(MT$11,,,TotalPrograms),OFFSET($C$11,,,TotalPrograms),$C8) -> 130356.4752 | MU8: 130356.4752 | MV8: 27975.85897 | MW8: 27975.85897 | MX8: 27975.85897 | MY8: 27975.85897 | MZ8: 27975.85897 | NA8: 27975.85897 | NB8: 27975.85897 | NC8: 0 | ND8: 0 | NE8: 0 | NF8: 0 | NG8: 0 | NH8: 0 | NI8: 0 | NJ8: 0 | NK8: 0 | NM8: =SUMIFS(OFFSET(NM$11,,,TotalPrograms),OFFSET($C$11,,,TotalPrograms),$C8) -> 138.4496053 | NN8: 138.4496053 | NO8: 138.4496053 | NP8: 138.4496053 | NQ8: 138.4496053 | NR8: 81.49280526 | NS8: 81.49280526 | NT8: 81.49280526 | NU8: 64.15029589 | NV8: 64.15029589 | NW8: 35.61766129 | NX8: 35.61766129 | NY8: 35.61766129 | NZ8: 35.61766129 | OA8: 35.38103929 | OB8: 26.13311863 | OC8: =SUMIFS(OFFSET(OC$11,,,TotalPrograms),OFFSET($C$11,,,TotalPrograms),$C8) -> 26.13311863 | OD8: 26.13311863 | OE8: 7.591033354 | OF8: 7.591033354 | OG8: 7.591033354 | OH8: 7.591033354 | OI8: 7.591033354 | OJ8: 7.591033354 | OK8: 7.591033354 | OL8: 0 | OM8: 0 | ON8: 0 | OO8: 0 | OP8: 0 | OQ8: 0 | OR8: 0 | OS8: 0 | OT8: 0 | OV8: =SUMIFS(OFFSET(OV$11,,,TotalPrograms),OFFSET($C$11,,,TotalPrograms),$C8) -> 0 | OW8: 0 | OX8: 0 | OY8: 0 | OZ8: 0 | PA8: 0 | PB8: 0 | PC8: 0 | PD8: 0 | PE8: 0 | PF8: 0 | PG8: 0 | PH8: 0 | PI8: 0 | PJ8: 0 | PK8: 0 | PL8: =SUMIFS(OFFSET(PL$11,,,TotalPrograms),OFFSET($C$11,,,TotalPrograms),$C8) -> 0 | PM8: 0 | PN8: 0 | PO8: 0 | PP8: 0 | PQ8: 0 | PR8: 0 | PS8: 0 | PT8: 0 | PU8: 0 | PV8: 0 | PW8: 0 | PX8: 0 | PY8: 0 | PZ8: 0 | QA8: 0 | QB8: 0 | QC8: 0
B9: =C9&"_"&D9&"_"&E9&"_"&F9&"_"&G9 -> Commercial_All_All_All_Actual | C9: Commercial | D9: All | E9: All | F9: All | G9: Actual | I9: n/a | J9: 4480341.244 | K9: 4480341.244 | L9: 0 | M9: 1073.377589 | N9: 1073.377589 | O9: 0 | P9: 0 | Q9: 0 | R9: 0 | S9: 0 | T9: 0 | U9: 0 | V9: 0 | W9: 0 | Y9: 1119356.805 | Z9: 0 | AA9: 0 | AB9: 0 | AC9: 438156.7249 | AD9: 56700.99508 | AE9: =AD9+AC9 -> 494857.72 | AG9: =IF(OR(AR9>0,AD9>0),(AQ9)/(AD9+AR9),"n/a") -> 1.339364343 | AH9: =IF(OR(AD9>0,AC9>0),(AT9+AU9)/((AC9+AD9)),"n/a") -> 3.183076306 | AI9: =IF(OR(AD9>0,BA9>0),(AW9+AY9+AZ9+AX9)/(AD9+BA9),"n/a") -> 1.645698664 | AJ9: =IF(BE9>0,(AC9+BC9+BD9)/BE9,"n/a") -> 3.481750757 | AK9: =IF((BH9+AD9+AC9)>0,BG9/(BH9+AD9+AC9),"n/a") -> 0.3983715123 | AM9: =IFERROR(($AD9+$AC9)/($MD9+NPV(DiscountRateTRC,$ME9:$NK9)),"n/a") -> 0.01495595657 | AN9: =IFERROR(($AD9+$AC9)/($NM9+NPV(DiscountRateTRC,$NN9:$OT9)),"n/a") -> 62.49847389 | AO9: =($AD9+$AC9)/($OV9+NPV(DiscountRateTRC,$OW9:$QC9)) ->  | AQ9: =SUMIFS(AQ$11:AQ$21,$C$11:$C$21,$C9) -> 1575169.883 | AR9: =SUMIFS(AR$11:AR$21,$C$11:$C$21,$C9) -> 1119356.805 | AT9: =SUMIFS(AT$11:AT$21,$C$11:$C$21,$C9) -> 1575169.883 | AU9: =SUMIFS(AU$11:AU$21,$C$11:$C$21,$C9) -> 0 | AW9: 1575169.883 | AX9: 0 | AY9: 360266.8681 | AZ9: 0 | BA9: 1119356.805 | BC9: 3459164.68 | BD9: 0 | BE9: 1119356.805 | BG9: =SUMIFS(BG$11:BG$21,$C$11:$C$21,$C9) -> 1575169.883 | BH9: =SUMIFS(BH$11:BH$21,$C$11:$C$21,$C9) -> 3459164.68 | BJ9: 209737.6197 | BK9: 212883.684 | BL9: 216076.9393 | BM9: 219318.0934 | BN9: 222607.8648 | BO9: 225946.9827 | BP9: 229336.1875 | BQ9: 232776.2303 | BR9: 83874.72649 | BS9: 85132.84739 | BT9: 86409.8401 | BU9: 87705.9877 | BV9: 89021.57751 | BW9: 90356.90118 | BX9: 91712.25469 | BY9: 0 | BZ9: 0 | CA9: 0 | CB9: 0 | CC9: 0 | CD9: 0 | CE9: 0 | CF9: 0 | CG9: 0 | CH9: 0 | CI9: 0 | CJ9: 0 | CK9: 0 | CL9: 0 | CM9: 0 | CN9: 0 | CO9: 0 | CP9: 0 | CQ9: 0 | CS9: 51075.89018 | CT9: 51075.89018 | CU9: 51075.89018 | CV9: 51075.89018 | CW9: 51075.89018 | CX9: 51075.89018 | CY9: 51075.89018 | CZ9: 51075.89018 | DA9: 18144.03146 | DB9: 18144.03146 | DC9: 18144.03146 | DD9: 18144.03146 | DE9: 18144.03146 | DF9: 18144.03146 | DG9: 18144.03146 | DH9: 0 | DI9: 0 | DJ9: 0 | DK9: 0 | DL9: 0 | DM9: 0 | DN9: 0 | DO9: 0 | DP9: 0 | DQ9: 0 | DR9: 0 | DS9: 0 | DT9: 0 | DU9: 0 | DV9: 0 | DW9: 0 | DX9: 0 | DY9: 0 | DZ9: 0 | EB9: 0 | EC9: 0 | ED9: 0 | EE9: 0 | EF9: 0 | EG9: 0 | EH9: 0 | EI9: 0 | EJ9: 0 | EK9: 0 | EL9: 0 | EM9: 0 | EN9: 0 | EO9: 0 | EP9: 0 | EQ9: 0 | ER9: 0 | ES9: 0 | ET9: 0 | EU9: 0 | EV9: 0 | EW9: 0 | EX9: 0 | EY9: 0 | EZ9: 0 | FA9: 0 | FB9: 0 | FC9: 0 | FD9: 0 | FE9: 0 | FF9: 0 | FG9: 0 | FH9: 0 | FI9: 0 | FK9: 0 | FL9: 0 | FM9: 0 | FN9: 0 | FO9: 0 | FP9: 0 | FQ9: 0 | FR9: 0 | FS9: 0 | FT9: 0 | FU9: 0 | FV9: 0 | FW9: 0 | FX9: 0 | FY9: 0 | FZ9: 0 | GA9: 0 | GB9: 0 | GC9: 0 | GD9: 0 | GE9: 0 | GF9: 0 | GG9: 0 | GH9: 0 | GI9: 0 | GJ9: 0 | GK9: 0 | GL9: 0 | GM9: 0 | GN9: 0 | GO9: 0 | GP9: 0 | GQ9: 0 | GR9: 0 | GT9: 460548.0959 | GU9: 467456.3173 | GV9: 474468.1621 | GW9: 481585.1845 | GX9: 488808.9623 | GY9: 496141.0967 | GZ9: 503583.2132 | HA9: 511136.9614 | HB9: 184298.2345 | HC9: 187062.708 | HD9: 189868.6486 | HE9: 192716.6783 | HF9: 195607.4285 | HG9: 198541.5399 | HH9: 201519.663 | HI9: 0 | HJ9: 0 | HK9: 0 | HL9: 0 | HM9: 0 | HN9: 0 | HO9: 0 | HP9: 0 | HQ9: 0 | HR9: 0 | HS9: 0 | HT9: 0 | HU9: 0 | HV9: 0 | HW9: 0 | HX9: 0 | HY9: 0 | HZ9: 0 | IA9: 0 | IC9: 1119356.805 | ID9: 0 | IE9: 0 | IF9: 0 | IG9: 0 | IH9: 0 | II9: 0 | IJ9: 0 | IK9: 0 | IL9: 0 | IM9: 0 | IN9: 0 | IO9: 0 | IP9: 0 | IQ9: 0 | IR9: 0 | IS9: 0 | IT9: 0 | IU9: 0 | IV9: 0 | IW9: 0 | IX9: 0 | IY9: 0 | IZ9: 0 | JA9: 0 | JB9: 0 | JC9: 0 | JD9: 0 | JE9: 0 | JF9: 0 | JG9: 0 | JH9: 0 | JI9: 0 | JJ9: 0 | JL9: 0 | JM9: 0 | JN9: 0 | JO9: 0 | JP9: 0 | JQ9: 0 | JR9: 0 | JS9: 0 | JT9: 0 | JU9: 0 | JV9: 0 | JW9: 0 | JX9: 0 | JY9: 0 | JZ9: 0 | KA9: 0 | KB9: 0 | KC9: 0 | KD9: 0 | KE9: 0 | KF9: 0 | KG9: 0 | KH9: 0 | KI9: 0 | KJ9: 0 | KK9: 0 | KL9: 0 | KM9: 0 | KN9: 0 | KO9: 0 | KP9: 0 | KQ9: 0 | KR9: 0 | KS9: 0 | KU9: 0 | KV9: 0 | KW9: 0 | KX9: 0 | KY9: 0 | KZ9: 0 | LA9: 0 | LB9: 0 | LC9: 0 | LD9: 0 | LE9: 0 | LF9: 0 | LG9: 0 | LH9: 0 | LI9: 0 | LJ9: 0 | LK9: 0 | LL9: 0 | LM9: 0 | LN9: 0 | LO9: 0 | LP9: 0 | LQ9: 0 | LR9: 0 | LS9: 0 | LT9: 0 | LU9: 0 | LV9: 0 | LW9: 0 | LX9: 0 | LY9: 0 | LZ9: 0 | MA9: 0 | MB9: 0 | MD9: 4690917.282 | ME9: 4690917.282 | MF9: 4690917.282 | MG9: 4690917.282 | MH9: 4690917.282 | MI9: 4690917.282 | MJ9: 4690917.282 | MK9: 4690917.282 | ML9: 1666386.047 | MM9: 1666386.047 | MN9: 1666386.047 | MO9: 1666386.047 | MP9: 1666386.047 | MQ9: 1666386.047 | MR9: 1666386.047 | MS9: 0 | MT9: 0 | MU9: 0 | MV9: 0 | MW9: 0 | MX9: 0 | MY9: 0 | MZ9: 0 | NA9: 0 | NB9: 0 | NC9: 0 | ND9: 0 | NE9: 0 | NF9: 0 | NG9: 0 | NH9: 0 | NI9: 0 | NJ9: 0 | NK9: 0 | NM9: 1123.826336 | NN9: 1123.826336 | NO9: 1123.826336 | NP9: 1123.826336 | NQ9: 1123.826336 | NR9: 1123.826336 | NS9: 1123.826336 | NT9: 1123.826336 | NU9: 395.984823 | NV9: 395.984823 | NW9: 395.984823 | NX9: 395.984823 | NY9: 395.984823 | NZ9: 395.984823 | OA9: 395.984823 | OB9: 0 | OC9: 0 | OD9: 0 | OE9: 0 | OF9: 0 | OG9: 0 | OH9: 0 | OI9: 0 | OJ9: 0 | OK9: 0 | OL9: 0 | OM9: 0 | ON9: 0 | OO9: 0 | OP9: 0 | OQ9: 0 | OR9: 0 | OS9: 0 | OT9: 0 | OV9: 0 | OW9: 0 | OX9: 0 | OY9: 0 | OZ9: 0 | PA9: 0 | PB9: 0 | PC9: 0 | PD9: 0 | PE9: 0 | PF9: 0 | PG9: 0 | PH9: 0 | PI9: 0 | PJ9: 0 | PK9: 0 | PL9: 0 | PM9: 0 | PN9: 0 | PO9: 0 | PP9: 0 | PQ9: 0 | PR9: 0 | PS9: 0 | PT9: 0 | PU9: 0 | PV9: 0 | PW9: 0 | PX9: 0 | PY9: 0 | PZ9: 0 | QA9: 0 | QB9: 0 | QC9: 0
B11: =C11&"_"&D11&"_"&E11&"_"&F11&"_"&G11 -> Residential_Residential Lighting_All_All_Actual | C11: Residential | D11: Residential Lighting | E11: All | F11: All | G11: Actual | I11: n/a | J11: =SUMIFS(OFFSET(J$23,,,TotalMeasures),OFFSET($B$23,,,TotalMeasures),SUBSTITUTE($B11,"All","*")) -> 103729.971 | K11: 103729.971 | L11: 0 | M11: 12.2098 | N11: 12.2098 | O11: 0 | P11: 0 | Q11: 0 | R11: 0 | S11: 0 | T11: 0 | U11: 0 | V11: 0 | W11: 0 | Y11: =SUMIFS(OFFSET(Y$23,,,TotalMeasures),OFFSET($B$23,,,TotalMeasures),SUBSTITUTE($B11,"All","*")) -> 29809.4 | Z11: 0 | AC11: =SUMIFS(OFFSET(AC$23,,,TotalMeasures),OFFSET($B$23,,,TotalMeasures),SUBSTITUTE($B11,"All","*")) -> 14470.16 | AD11: =INDEX(OFFSET('Program Inputs'!$AE$5,,,TotalPrograms),MATCH($C11&"_"&$D11&"_"&$G11,OFFSET('Program Inputs'!$A$5,,,TotalPrograms),0)) -> 15316.12 | AE11: =AD11+AC11 -> 29786.28 | AG11: =IF(OR(AR11>0,AD11>0),(AQ11)/(AD11+AR11),"n/a") -> 0.771660632 | AH11: =IF(OR(AD11>0,AC11>0),(AT11+AU11)/((AC11+AD11)),"n/a") -> 1.169047873 | AI11: =IF(OR(AD11>0,BA11>0),(AW11+AY11+AZ11+AX11)/(AD11+BA11),"n/a") -> 0.9567565192 | AJ11: =IF(BE11>0,(AC11+BC11+BD11)/BE11,"n/a") -> 3.925947248 | AK11: =IF((BH11+AD11+AC11)>0,BG11/(BH11+AD11+AC11),"n/a") -> 0.2631097351 | AM11: =IFERROR(($AD11+$AC11)/($MD11+NPV(DiscountRateTRC,$ME11:$NK11)),"n/a") -> 0.03882893233 | AN11: =IFERROR(($AD11+$AC11)/($NM11+NPV(DiscountRateTRC,$NN11:$OT11)),"n/a") -> 329.9145704 | AO11: =IFERROR(($AD11+$AC11)/($OV11+NPV(DiscountRateTRC,$OW11:$QC11)),"n/a") -> n/a | AQ11: =SUMIFS(OFFSET(AQ$23,,,TotalMeasures),OFFSET($D$23,,,TotalMeasures),$D11) -> 34821.58728 | AR11: 29809.4 | AT11: =SUMIFS(AT$23:AT$48,$C$23:$C$48,$C11,$D$23:$D$48,$D11) -> 34821.58728 | AU11: 0 | AW11: =SUMIFS(AW$23:AW$48,$C$23:$C$48,$C11,$D$23:$D$48,$D11) -> 34821.58728 | AX11: 0 | AY11: 8352.548159 | AZ11: 0 | BA11: 29809.4 | BC11: =SUMIFS(BC$23:BC$48,$C$23:$C$48,$C11,$D$23:$D$48,$D11) -> 102559.9719 | BD11: 0 | BE11: 29809.4 | BG11: =SUMIFS(BG$23:BG$48,$C$23:$C$48,$C11,$D$23:$D$48,$D11) -> 34821.58728 | BH11: 102559.9719 | BJ11: =SUMIFS(OFFSET(BJ$23,,,TotalMeasures),OFFSET($D$23,,,TotalMeasures),$D11) -> 4651.719007 | BK11: 4721.494793 | BL11: 4792.317214 | BM11: 4864.201973 | BN11: 4937.165002 | BO11: 5011.222477 | BP11: 5086.390814 | BQ11: 5162.686677 | BR11: 5240.126977 | BS11: 5318.728881 | BT11: =SUMIFS(OFFSET(BT$23,,,TotalMeasures),OFFSET($D$23,,,TotalMeasures),$D11) -> 102.7151708 | BU11: 104.2558983 | BV11: 105.8197368 | BW11: 107.4070329 | BX11: 0 | BY11: 0 | BZ11: 0 | CA11: 0 | CB11: 0 | CC11: 0 | CD11: =SUMIFS(OFFSET(CD$23,,,TotalMeasures),OFFSET($D$23,,,TotalMeasures),$D11) -> 0 | CE11: 0 | CF11: 0 | CG11: 0 | CH11: 0 | CI11: 0 | CJ11: 0 | CK11: 0 | CL11: 0 | CM11: 0 | CN11: 0 | CO11: 0 | CP11: 0 | CQ11: 0 | CS11: =SUMIFS(OFFSET(CS$23,,,TotalMeasures),OFFSET($D$23,,,TotalMeasures),$D11) -> 1182.521669 | CT11: 1182.521669 | CU11: 1182.521669 | CV11: 1182.521669 | CW11: 1182.521669 | CX11: 1182.521669 | CY11: 1182.521669 | CZ11: 1182.521669 | DA11: 1182.521669 | DB11: 1182.521669 | DC11: =SUMIFS(OFFSET(DC$23,,,TotalMeasures),OFFSET($D$23,,,TotalMeasures),$D11) -> 22.5264 | DD11: 22.5264 | DE11: 22.5264 | DF11: 22.5264 | DG11: 0 | DH11: 0 | DI11: 0 | DJ11: 0 | DK11: 0 | DL11: 0 | DM11: =SUMIFS(OFFSET(DM$23,,,TotalMeasures),OFFSET($D$23,,,TotalMeasures),$D11) -> 0 | DN11: 0 | DO11: 0 | DP11: 0 | DQ11: 0 | DR11: 0 | DS11: 0 | DT11: 0 | DU11: 0 | DV11: 0 | DW11: 0 | DX11: 0 | DY11: 0 | DZ11: 0 | EB11: =SUMIFS(OFFSET(EB$23,,,TotalMeasures),OFFSET($D$23,,,TotalMeasures),$D11) -> 0 | EC11: 0 | ED11: 0 | EE11: 0 | EF11: 0 | EG11: 0 | EH11: 0 | EI11: 0 | EJ11: 0 | EK11: 0 | EL11: =SUMIFS(OFFSET(EL$23,,,TotalMeasures),OFFSET($D$23,,,TotalMeasures),$D11) -> 0 | EM11: 0 | EN11: 0 | EO11: 0 | EP11: 0 | EQ11: 0 | ER11: 0 | ES11: 0 | ET11: 0 | EU11: 0 | EV11: =SUMIFS(OFFSET(EV$23,,,TotalMeasures),OFFSET($D$23,,,TotalMeasures),$D11) -> 0 | EW11: 0 | EX11: 0 | EY11: 0 | EZ11: 0 | FA11: 0 | FB11: 0 | FC11: 0 | FD11: 0 | FE11: 0 | FF11: 0 | FG11: 0 | FH11: 0 | FI11: 0 | FK11: =SUMIFS(OFFSET(FK$23,,,TotalMeasures),OFFSET($D$23,,,TotalMeasures),$D11) -> 0 | FL11: 0 | FM11: 0 | FN11: 0 | FO11: 0 | FP11: 0 | FQ11: 0 | FR11: 0 | FS11: 0 | FT11: 0 | FU11: =SUMIFS(OFFSET(FU$23,,,TotalMeasures),OFFSET($D$23,,,TotalMeasures),$D11) -> 0 | FV11: 0 | FW11: 0 | FX11: 0 | FY11: 0 | FZ11: 0 | GA11: 0 | GB11: 0 | GC11: 0 | GD11: 0 | GE11: =SUMIFS(OFFSET(GE$23,,,TotalMeasures),OFFSET($D$23,,,TotalMeasures),$D11) -> 0 | GF11: 0 | GG11: 0 | GH11: 0 | GI11: 0 | GJ11: 0 | GK11: 0 | GL11: 0 | GM11: 0 | GN11: 0 | GO11: 0 | GP11: 0 | GQ11: 0 | GR11: 0 | GT11: =SUMIFS(OFFSET(GT$23,,,TotalMeasures),OFFSET($D$23,,,TotalMeasures),$D11) -> 13700.62615 | GU11: 13906.13554 | GV11: 14114.72758 | GW11: 14326.44849 | GX11: 14541.34522 | GY11: 14759.4654 | GZ11: 14980.85738 | HA11: 15205.57024 | HB11: 15433.65379 | HC11: 15665.1586 | HD11: =SUMIFS(OFFSET(HD$23,,,TotalMeasures),OFFSET($D$23,,,TotalMeasures),$D11) -> 302.8890145 | HE11: 307.4323497 | HF11: 312.0438349 | HG11: 316.7244925 | HH11: 0 | HI11: 0 | HJ11: 0 | HK11: 0 | HL11: 0 | HM11: 0 | HN11: =SUMIFS(OFFSET(HN$23,,,TotalMeasures),OFFSET($D$23,,,TotalMeasures),$D11) -> 0 | HO11: 0 | HP11: 0 | HQ11: 0 | HR11: 0 | HS11: 0 | HT11: 0 | HU11: 0 | HV11: 0 | HW11: 0 | HX11: 0 | HY11: 0 | HZ11: 0 | IA11: 0 | IC11: =SUMIFS(OFFSET(IC$23,,,TotalMeasures),OFFSET($D$23,,,TotalMeasures),$D11) -> 29809.4 | ID11: 0 | IE11: 0 | IF11: 0 | IG11: 0 | IH11: 0 | II11: 0 | IJ11: 0 | IK11: 0 | IL11: 0 | IM11: =SUMIFS(OFFSET(IM$23,,,TotalMeasures),OFFSET($D$23,,,TotalMeasures),$D11) -> 0 | IN11: 0 | IO11: 0 | IP11: 0 | IQ11: 0 | IR11: 0 | IS11: 0 | IT11: 0 | IU11: 0 | IV11: 0 | IW11: =SUMIFS(OFFSET(IW$23,,,TotalMeasures),OFFSET($D$23,,,TotalMeasures),$D11) -> 0 | IX11: 0 | IY11: 0 | IZ11: 0 | JA11: 0 | JB11: 0 | JC11: 0 | JD11: 0 | JE11: 0 | JF11: 0 | JG11: 0 | JH11: 0 | JI11: 0 | JJ11: 0 | JL11: =SUMIFS(OFFSET(JL$23,,,TotalMeasures),OFFSET($D$23,,,TotalMeasures),$D11) -> 0 | JM11: 0 | JN11: 0 | JO11: 0 | JP11: 0 | JQ11: 0 | JR11: 0 | JS11: 0 | JT11: 0 | JU11: 0 | JV11: =SUMIFS(OFFSET(JV$23,,,TotalMeasures),OFFSET($D$23,,,TotalMeasures),$D11) -> 0 | JW11: 0 | JX11: 0 | JY11: 0 | JZ11: 0 | KA11: 0 | KB11: 0 | KC11: 0 | KD11: 0 | KE11: 0 | KF11: =SUMIFS(OFFSET(KF$23,,,TotalMeasures),OFFSET($D$23,,,TotalMeasures),$D11) -> 0 | KG11: 0 | KH11: 0 | KI11: 0 | KJ11: 0 | KK11: 0 | KL11: 0 | KM11: 0 | KN11: 0 | KO11: 0 | KP11: 0 | KQ11: 0 | KR11: 0 | KS11: 0 | KU11: =SUMIFS(OFFSET(KU$23,,,TotalMeasures),OFFSET($D$23,,,TotalMeasures),$D11) -> 0 | KV11: 0 | KW11: 0 | KX11: 0 | KY11: 0 | KZ11: 0 | LA11: 0 | LB11: 0 | LC11: 0 | LD11: 0 | LE11: =SUMIFS(OFFSET(LE$23,,,TotalMeasures),OFFSET($D$23,,,TotalMeasures),$D11) -> 0 | LF11: 0 | LG11: 0 | LH11: 0 | LI11: 0 | LJ11: 0 | LK11: 0 | LL11: 0 | LM11: 0 | LN11: 0 | LO11: =SUMIFS(OFFSET(LO$23,,,TotalMeasures),OFFSET($D$23,,,TotalMeasures),$D11) -> 0 | LP11: 0 | LQ11: 0 | LR11: 0 | LS11: 0 | LT11: 0 | LU11: 0 | LV11: 0 | LW11: 0 | LX11: 0 | LY11: 0 | LZ11: 0 | MA11: 0 | MB11: 0 | MD11: =SUMIFS(OFFSET(MD$23,,,TotalMeasures),OFFSET($D$23,,,TotalMeasures),$D11) -> 108605.2796 | ME11: 108605.2796 | MF11: 108605.2796 | MG11: 108605.2796 | MH11: 108605.2796 | MI11: 108605.2796 | MJ11: 108605.2796 | MK11: 108605.2796 | ML11: 108605.2796 | MM11: 108605.2796 | MN11: =SUMIFS(OFFSET(MN$23,,,TotalMeasures),OFFSET($D$23,,,TotalMeasures),$D11) -> 2068.872 | MO11: 2068.872 | MP11: 2068.872 | MQ11: 2068.872 | MR11: 0 | MS11: 0 | MT11: 0 | MU11: 0 | MV11: 0 | MW11: 0 | MX11: =SUMIFS(OFFSET(MX$23,,,TotalMeasures),OFFSET($D$23,,,TotalMeasures),$D11) -> 0 | MY11: 0 | MZ11: 0 | NA11: 0 | NB11: 0 | NC11: 0 | ND11: 0 | NE11: 0 | NF11: 0 | NG11: 0 | NH11: 0 | NI11: 0 | NJ11: 0 | NK11: 0 | NM11: =SUMIFS(OFFSET(NM$23,,,TotalMeasures),OFFSET($D$23,,,TotalMeasures),$D11) -> 12.7836606 | NN11: 12.7836606 | NO11: 12.7836606 | NP11: 12.7836606 | NQ11: 12.7836606 | NR11: 12.7836606 | NS11: 12.7836606 | NT11: 12.7836606 | NU11: 12.7836606 | NV11: 12.7836606 | NW11: =SUMIFS(OFFSET(NW$23,,,TotalMeasures),OFFSET($D$23,,,TotalMeasures),$D11) -> 0.236622 | NX11: 0.236622 | NY11: 0.236622 | NZ11: 0.236622 | OA11: 0 | OB11: 0 | OC11: 0 | OD11: 0 | OE11: 0 | OF11: 0 | OG11: =SUMIFS(OFFSET(OG$23,,,TotalMeasures),OFFSET($D$23,,,TotalMeasures),$D11) -> 0 | OH11: 0 | OI11: 0 | OJ11: 0 | OK11: 0 | OL11: 0 | OM11: 0 | ON11: 0 | OO11: 0 | OP11: 0 | OQ11: 0 | OR11: 0 | OS11: 0 | OT11: 0 | OV11: =SUMIFS(OFFSET(OV$23,,,TotalMeasures),OFFSET($D$23,,,TotalMeasures),$D11) -> 0 | OW11: 0 | OX11: 0 | OY11: 0 | OZ11: 0 | PA11: 0 | PB11: 0 | PC11: 0 | PD11: 0 | PE11: 0 | PF11: =SUMIFS(OFFSET(PF$23,,,TotalMeasures),OFFSET($D$23,,,TotalMeasures),$D11) -> 0 | PG11: 0 | PH11: 0 | PI11: 0 | PJ11: 0 | PK11: 0 | PL11: 0 | PM11: 0 | PN11: 0 | PO11: 0 | PP11: =SUMIFS(OFFSET(PP$23,,,TotalMeasures),OFFSET($D$23,,,TotalMeasures),$D11) -> 0 | PQ11: 0 | PR11: 0 | PS11: 0 | PT11: 0 | PU11: 0 | PV11: 0 | PW11: 0 | PX11: 0 | PY11: 0 | PZ11: 0 | QA11: 0 | QB11: 0 | QC11: 0
B12: =C12&"_"&D12&"_"&E12&"_"&F12&"_"&G12 -> Residential_Residential Appliance Recycling_All_All_Actual | C12: Residential | D12: Residential Appliance Recycling | E12: All | F12: All | G12: Actual | I12: n/a | J12: 95939 | K12: 95939 | L12: 0 | M12: 10.941 | N12: 10.941 | O12: 0 | P12: 0 | Q12: 0 | R12: 0 | S12: 0 | T12: 0 | U12: 0 | V12: 0 | W12: 0 | Y12: 6975 | Z12: 0 | AC12: 3750 | AD12: =INDEX(OFFSET('Program Inputs'!$AE$5,,,TotalPrograms),MATCH($C12&"_"&$D12&"_"&$G12,OFFSET('Program Inputs'!$A$5,,,TotalPrograms),0)) -> 8998.21 | AE12: 12748.21 | AG12: =IF(OR(AR12>0,AD12>0),(AQ12)/(AD12+AR12),"n/a") -> 1.707035062 | AH12: 2.138875145 | AI12: =IF(OR(AD12>0,BA12>0),(AW12+AY12+AZ12+AX12)/(AD12+BA12),"n/a") -> 2.121976403 | AJ12: 12.06662384 | AK12: 0.2926790195 | AM12: 0.02094249742 | AN12: 183.6397276 | AO12: n/a | AQ12: 27266.82952 | AR12: 6975 | AT12: 27266.82952 | AU12: 0 | AW12: 27266.82952 | AX12: 0 | AY12: 6627.945185 | AZ12: 0 | BA12: 6975 | BC12: 80414.70126 | BD12: 0 | BE12: 6975 | BG12: 27266.82952 | BH12: 80414.70126 | BJ12: 4296.655527 | BK12: 4361.10536 | BL12: 4426.52194 | BM12: 4492.919769 | BN12: 4560.313566 | BO12: 4628.718269 | BP12: 4698.149043 | BQ12: 4768.621279 | BR12: 0 | BS12: 0 | BT12: 0 | BU12: 0 | BV12: 0 | BW12: 0 | BX12: 0 | BY12: 0 | BZ12: 0 | CA12: 0 | CB12: 0 | CC12: 0 | CD12: 0 | CE12: 0 | CF12: 0 | CG12: 0 | CH12: 0 | CI12: 0 | CJ12: 0 | CK12: 0 | CL12: 0 | CM12: 0 | CN12: 0 | CO12: 0 | CP12: 0 | CQ12: 0 | CS12: 1093.7046 | CT12: 1093.7046 | CU12: 1093.7046 | CV12: 1093.7046 | CW12: 1093.7046 | CX12: 1093.7046 | CY12: 1093.7046 | CZ12: 1093.7046 | DA12: 0 | DB12: 0 | DC12: 0 | DD12: 0 | DE12: 0 | DF12: 0 | DG12: 0 | DH12: 0 | DI12: 0 | DJ12: 0 | DK12: 0 | DL12: 0 | DM12: 0 | DN12: 0 | DO12: 0 | DP12: 0 | DQ12: 0 | DR12: 0 | DS12: 0 | DT12: 0 | DU12: 0 | DV12: 0 | DW12: 0 | DX12: 0 | DY12: 0 | DZ12: 0 | EB12: 0 | EC12: 0 | ED12: 0 | EE12: 0 | EF12: 0 | EG12: 0 | EH12: 0 | EI12: 0 | EJ12: 0 | EK12: 0 | EL12: 0 | EM12: 0 | EN12: 0 | EO12: 0 | EP12: 0 | EQ12: 0 | ER12: 0 | ES12: 0 | ET12: 0 | EU12: 0 | EV12: 0 | EW12: 0 | EX12: 0 | EY12: 0 | EZ12: 0 | FA12: 0 | FB12: 0 | FC12: 0 | FD12: 0 | FE12: 0 | FF12: 0 | FG12: 0 | FH12: 0 | FI12: 0 | FK12: 0 | FL12: 0 | FM12: 0 | FN12: 0 | FO12: 0 | FP12: 0 | FQ12: 0 | FR12: 0 | FS12: 0 | FT12: 0 | FU12: 0 | FV12: 0 | FW12: 0 | FX12: 0 | FY12: 0 | FZ12: 0 | GA12: 0 | GB12: 0 | GC12: 0 | GD12: 0 | GE12: 0 | GF12: 0 | GG12: 0 | GH12: 0 | GI12: 0 | GJ12: 0 | GK12: 0 | GL12: 0 | GM12: 0 | GN12: 0 | GO12: 0 | GP12: 0 | GQ12: 0 | GR12: 0 | GT12: 12671.59684 | GU12: 12861.67079 | GV12: 13054.59585 | GW12: 13250.41479 | GX12: 13449.17101 | GY12: 13650.90857 | GZ12: 13855.6722 | HA12: 14063.50729 | HB12: 0 | HC12: 0 | HD12: 0 | HE12: 0 | HF12: 0 | HG12: 0 | HH12: 0 | HI12: 0 | HJ12: 0 | HK12: 0 | HL12: 0 | HM12: 0 | HN12: 0 | HO12: 0 | HP12: 0 | HQ12: 0 | HR12: 0 | HS12: 0 | HT12: 0 | HU12: 0 | HV12: 0 | HW12: 0 | HX12: 0 | HY12: 0 | HZ12: 0 | IA12: 0 | IC12: 6975 | ID12: 0 | IE12: 0 | IF12: 0 | IG12: 0 | IH12: 0 | II12: 0 | IJ12: 0 | IK12: 0 | IL12: 0 | IM12: 0 | IN12: 0 | IO12: 0 | IP12: 0 | IQ12: 0 | IR12: 0 | IS12: 0 | IT12: 0 | IU12: 0 | IV12: 0 | IW12: 0 | IX12: 0 | IY12: 0 | IZ12: 0 | JA12: 0 | JB12: 0 | JC12: 0 | JD12: 0 | JE12: 0 | JF12: 0 | JG12: 0 | JH12: 0 | JI12: 0 | JJ12: 0 | JL12: 0 | JM12: 0 | JN12: 0 | JO12: 0 | JP12: 0 | JQ12: 0 | JR12: 0 | JS12: 0 | JT12: 0 | JU12: 0 | JV12: 0 | JW12: 0 | JX12: 0 | JY12: 0 | JZ12: 0 | KA12: 0 | KB12: 0 | KC12: 0 | KD12: 0 | KE12: 0 | KF12: 0 | KG12: 0 | KH12: 0 | KI12: 0 | KJ12: 0 | KK12: 0 | KL12: 0 | KM12: 0 | KN12: 0 | KO12: 0 | KP12: 0 | KQ12: 0 | KR12: 0 | KS12: 0 | KU12: 0 | KV12: 0 | KW12: 0 | KX12: 0 | KY12: 0 | KZ12: 0 | LA12: 0 | LB12: 0 | LC12: 0 | LD12: 0 | LE12: 0 | LF12: 0 | LG12: 0 | LH12: 0 | LI12: 0 | LJ12: 0 | LK12: 0 | LL12: 0 | LM12: 0 | LN12: 0 | LO12: 0 | LP12: 0 | LQ12: 0 | LR12: 0 | LS12: 0 | LT12: 0 | LU12: 0 | LV12: 0 | LW12: 0 | LX12: 0 | LY12: 0 | LZ12: 0 | MA12: 0 | MB12: 0 | MD12: 100448.133 | ME12: 100448.133 | MF12: 100448.133 | MG12: 100448.133 | MH12: 100448.133 | MI12: 100448.133 | MJ12: 100448.133 | MK12: 100448.133 | ML12: 0 | MM12: 0 | MN12: 0 | MO12: 0 | MP12: 0 | MQ12: 0 | MR12: 0 | MS12: 0 | MT12: 0 | MU12: 0 | MV12: 0 | MW12: 0 | MX12: 0 | MY12: 0 | MZ12: 0 | NA12: 0 | NB12: 0 | NC12: 0 | ND12: 0 | NE12: 0 | NF12: 0 | NG12: 0 | NH12: 0 | NI12: 0 | NJ12: 0 | NK12: 0 | NM12: 11.455227 | NN12: 11.455227 | NO12: 11.455227 | NP12: 11.455227 | NQ12: 11.455227 | NR12: 11.455227 | NS12: 11.455227 | NT12: 11.455227 | NU12: 0 | NV12: 0 | NW12: 0 | NX12: 0 | NY12: 0 | NZ12: 0 | OA12: 0 | OB12: 0 | OC12: 0 | OD12: 0 | OE12: 0 | OF12: 0 | OG12: 0 | OH12: 0 | OI12: 0 | OJ12: 0 | OK12: 0 | OL12: 0 | OM12: 0 | ON12: 0 | OO12: 0 | OP12: 0 | OQ12: 0 | OR12: 0 | OS12: 0 | OT12: 0 | OV12: 0 | OW12: 0 | OX12: 0 | OY12: 0 | OZ12: 0 | PA12: 0 | PB12: 0 | PC12: 0 | PD12: 0 | PE12: 0 | PF12: 0 | PG12: 0 | PH12: 0 | PI12: 0 | PJ12: 0 | PK12: 0 | PL12: 0 | PM12: 0 | PN12: 0 | PO12: 0 | PP12: 0 | PQ12: 0 | PR12: 0 | PS12: 0 | PT12: 0 | PU12: 0 | PV12: 0 | PW12: 0 | PX12: 0 | PY12: 0 | PZ12: 0 | QA12: 0 | QB12: 0 | QC12: 0
B13: Residential_Residential HVAC_All_All_Actual | C13: Residential | D13: Residential HVAC | E13: All | F13: All | G13: Actual | I13: n/a | J13: 169564.6157 | K13: 146743.8446 | L13: 29192.454 | M13: 32.31078 | N13: 26.68777869 | O13: 7.864 | P13: 0 | Q13: 0 | R13: 0 | S13: 0 | T13: 0 | U13: 0 | V13: 0 | W13: 0 | Y13: 52661.71197 | Z13: 8745.367564 | AC13: 20761.75 | AD13: =INDEX(OFFSET('Program Inputs'!$AE$5,,,TotalPrograms),MATCH($C13&"_"&$D13&"_"&$G13,OFFSET('Program Inputs'!$A$5,,,TotalPrograms),0)) -> 530 | AE13: 21291.75 | AG13: 1.62697919 | AH13: 3.725225799 | AI13: 1.993303487 | AJ13: 5.150747549 | AK13: 0.3186642324 | AM13: 0.01298140926 | AN13: 68.12967111 | AO13: n/a | AQ13: 79316.57641 | AR13: 48220.82415 | AT13: 79316.57641 | AU13: 0 | AW13: 79316.57641 | AX13: 0 | AY13: 17858.61135 | AZ13: 0 | BA13: 48220.82415 | BC13: 227611.5418 | BD13: 0 | BE13: 48220.82415 | BG13: 79316.57641 | BH13: 227611.5418 | BJ13: 7803.542435 | BK13: 7920.595571 | BL13: 8039.404505 | BM13: 8159.995572 | BN13: 8282.395506 | BO13: 8406.631438 | BP13: 8532.73091 | BQ13: 8660.721874 | BR13: 7584.361006 | BS13: 7698.126421 | BT13: 7813.598317 | BU13: 7930.802292 | BV13: 8049.764327 | BW13: 8170.510791 | BX13: 8293.068453 | BY13: 7188.57736 | BZ13: 7296.406021 | CA13: 7405.852111 | CB13: 1653.198366 | CC13: 1677.996342 | CD13: 1703.166287 | CE13: 1728.713781 | CF13: 1754.644488 | CG13: 1780.964155 | CH13: 1807.678618 | CI13: 0 | CJ13: 0 | CK13: 0 | CL13: 0 | CM13: 0 | CN13: 0 | CO13: 0 | CP13: 0 | CQ13: 0 | CS13: 1933.036619 | CT13: 1933.036619 | CU13: 1933.036619 | CV13: 1933.036619 | CW13: 1933.036619 | CX13: 1933.036619 | CY13: 1933.036619 | CZ13: 1933.036619 | DA13: 1672.879828 | DB13: 1672.879828 | DC13: 1672.879828 | DD13: 1672.879828 | DE13: 1672.879828 | DF13: 1672.879828 | DG13: 1672.879828 | DH13: 1419.354171 | DI13: 1419.354171 | DJ13: 1419.354171 | DK13: 304.6082065 | DL13: 304.6082065 | DM13: 304.6082065 | DN13: 304.6082065 | DO13: 304.6082065 | DP13: 304.6082065 | DQ13: 304.6082065 | DR13: 0 | DS13: 0 | DT13: 0 | DU13: 0 | DV13: 0 | DW13: 0 | DX13: 0 | DY13: 0 | DZ13: 0 | EB13: 0 | EC13: 0 | ED13: 0 | EE13: 0 | EF13: 0 | EG13: 0 | EH13: 0 | EI13: 0 | EJ13: 0 | EK13: 0 | EL13: 0 | EM13: 0 | EN13: 0 | EO13: 0 | EP13: 0 | EQ13: 0 | ER13: 0 | ES13: 0 | ET13: 0 | EU13: 0 | EV13: 0 | EW13: 0 | EX13: 0 | EY13: 0 | EZ13: 0 | FA13: 0 | FB13: 0 | FC13: 0 | FD13: 0 | FE13: 0 | FF13: 0 | FG13: 0 | FH13: 0 | FI13: 0 | FK13: 0 | FL13: 0 | FM13: 0 | FN13: 0 | FO13: 0 | FP13: 0 | FQ13: 0 | FR13: 0 | FS13: 0 | FT13: 0 | FU13: 0 | FV13: 0 | FW13: 0 | FX13: 0 | FY13: 0 | FZ13: 0 | GA13: 0 | GB13: 0 | GC13: 0 | GD13: 0 | GE13: 0 | GF13: 0 | GG13: 0 | GH13: 0 | GI13: 0 | GJ13: 0 | GK13: 0 | GL13: 0 | GM13: 0 | GN13: 0 | GO13: 0 | GP13: 0 | GQ13: 0 | GR13: 0 | GT13: 22396.04799 | GU13: 22731.98871 | GV13: 23072.96854 | GW13: 23419.06307 | GX13: 23770.34901 | GY13: 24126.90425 | GZ13: 24488.80781 | HA13: 24856.13993 | HB13: 21833.55178 | HC13: 22161.05506 | HD13: 22493.47088 | HE13: 22830.87295 | HF13: 23173.33604 | HG13: 23520.93608 | HH13: 23873.75012 | HI13: 20559.50812 | HJ13: 20867.90075 | HK13: 21180.91926 | HL13: 4613.830845 | HM13: 4683.038308 | HN13: 4753.283882 | HO13: 4824.583141 | HP13: 4896.951888 | HQ13: 4970.406166 | HR13: 5044.962259 | HS13: 0 | HT13: 0 | HU13: 0 | HV13: 0 | HW13: 0 | HX13: 0 | HY13: 0 | HZ13: 0 | IA13: 0 | IC13: 52661.71197 | ID13: 0 | IE13: 0 | IF13: 0 | IG13: 0 | IH13: 0 | II13: 0 | IJ13: 0 | IK13: -8745.367564 | IL13: 0 | IM13: 0 | IN13: 0 | IO13: 0 | IP13: 0 | IQ13: 0 | IR13: 0 | IS13: 0 | IT13: 0 | IU13: 0 | IV13: 0 | IW13: 0 | IX13: 0 | IY13: 0 | IZ13: 0 | JA13: 0 | JB13: 0 | JC13: 0 | JD13: 0 | JE13: 0 | JF13: 0 | JG13: 0 | JH13: 0 | JI13: 0 | JJ13: 0 | JL13: 0 | JM13: 0 | JN13: 0 | JO13: 0 | JP13: 0 | JQ13: 0 | JR13: 0 | JS13: 0 | JT13: 0 | JU13: 0 | JV13: 0 | JW13: 0 | JX13: 0 | JY13: 0 | JZ13: 0 | KA13: 0 | KB13: 0 | KC13: 0 | KD13: 0 | KE13: 0 | KF13: 0 | KG13: 0 | KH13: 0 | KI13: 0 | KJ13: 0 | KK13: 0 | KL13: 0 | KM13: 0 | KN13: 0 | KO13: 0 | KP13: 0 | KQ13: 0 | KR13: 0 | KS13: 0 | KU13: 0 | KV13: 0 | KW13: 0 | KX13: 0 | KY13: 0 | KZ13: 0 | LA13: 0 | LB13: 0 | LC13: 0 | LD13: 0 | LE13: 0 | LF13: 0 | LG13: 0 | LH13: 0 | LI13: 0 | LJ13: 0 | LK13: 0 | LL13: 0 | LM13: 0 | LN13: 0 | LO13: 0 | LP13: 0 | LQ13: 0 | LR13: 0 | LS13: 0 | LT13: 0 | LU13: 0 | LV13: 0 | LW13: 0 | LX13: 0 | LY13: 0 | LZ13: 0 | MA13: 0 | MB13: 0 | MD13: 177534.1527 | ME13: 177534.1527 | MF13: 177534.1527 | MG13: 177534.1527 | MH13: 177534.1527 | MI13: 177534.1527 | MJ13: 177534.1527 | MK13: 177534.1527 | ML13: 153640.8053 | MM13: 153640.8053 | MN13: 153640.8053 | MO13: 153640.8053 | MP13: 153640.8053 | MQ13: 153640.8053 | MR13: 153640.8053 | MS13: 130356.4752 | MT13: 130356.4752 | MU13: 130356.4752 | MV13: 27975.85897 | MW13: 27975.85897 | MX13: 27975.85897 | MY13: 27975.85897 | MZ13: 27975.85897 | NA13: 27975.85897 | NB13: 27975.85897 | NC13: 0 | ND13: 0 | NE13: 0 | NF13: 0 | NG13: 0 | NH13: 0 | NI13: 0 | NJ13: 0 | NK13: 0 | NM13: 33.82938666 | NN13: 33.82938666 | NO13: 33.82938666 | NP13: 33.82938666 | NQ13: 33.82938666 | NR13: 33.82938666 | NS13: 33.82938666 | NT13: 33.82938666 | NU13: 27.94210429 | NV13: 27.94210429 | NW13: 27.94210429 | NX13: 27.94210429 | NY13: 27.94210429 | NZ13: 27.94210429 | OA13: 27.94210429 | OB13: 26.13311863 | OC13: 26.13311863 | OD13: 26.13311863 | OE13: 7.591033354 | OF13: 7.591033354 | OG13: 7.591033354 | OH13: 7.591033354 | OI13: 7.591033354 | OJ13: 7.591033354 | OK13: 7.591033354 | OL13: 0 | OM13: 0 | ON13: 0 | OO13: 0 | OP13: 0 | OQ13: 0 | OR13: 0 | OS13: 0 | OT13: 0 | OV13: 0 | OW13: 0 | OX13: 0 | OY13: 0 | OZ13: 0 | PA13: 0 | PB13: 0 | PC13: 0 | PD13: 0 | PE13: 0 | PF13: 0 | PG13: 0 | PH13: 0 | PI13: 0 | PJ13: 0 | PK13: 0 | PL13: 0 | PM13: 0 | PN13: 0 | PO13: 0 | PP13: 0 | PQ13: 0 | PR13: 0 | PS13: 0 | PT13: 0 | PU13: 0 | PV13: 0 | PW13: 0 | PX13: 0 | PY13: 0 | PZ13: 0 | QA13: 0 | QB13: 0 | QC13: 0
B14: Residential_Whole House Efficiency_All_All_Actual | C14: Residential | D14: Whole House Efficiency | E14: All | F14: All | G14: Actual | I14: n/a | J14: 15725 | K14: 15725 | L14: 0 | M14: 3.978 | N14: 3.978 | O14: 0 | P14: 0 | Q14: 0 | R14: 0 | S14: 0 | T14: 0 | U14: 0 | V14: 0 | W14: 0 | Y14: 0 | Z14: 0 | AC14: 0 | AD14: =INDEX(OFFSET('Program Inputs'!$AE$5,,,TotalPrograms),MATCH($C14&"_"&$D14&"_"&$G14,OFFSET('Program Inputs'!$A$5,,,TotalPrograms),0)) -> 9043.62 | AE14: 9043.62 | AG14: 0.7110261246 | AH14: 0.7110261246 | AI14: 0.8703024958 | AJ14: n/a | AK14: 0.238160648 | AM14: 0.06836074976 | AN14: 255.0309649 | AO14: n/a | AQ14: 6430.250081 | AR14: 0 | AT14: 6430.250081 | AU14: 0 | AW14: 6430.250081 | AX14: 0 | AY14: 1440.434975 | AZ14: 0 | BA14: 0 | BC14: 17956.01296 | BD14: 0 | BE14: 0 | BG14: 6430.250081 | BH14: 17956.01296 | BJ14: 739.5352335 | BK14: 750.628262 | BL14: 761.887686 | BM14: 773.3160013 | BN14: 784.9157413 | BO14: 796.6894774 | BP14: 808.6398196 | BQ14: 820.7694168 | BR14: 833.0809581 | BS14: 845.5771725 | BT14: 490.941869 | BU14: 498.305997 | BV14: 505.780587 | BW14: 513.3672958 | BX14: 521.0678052 | BY14: 0 | BZ14: 0 | CA14: 0 | CB14: 0 | CC14: 0 | CD14: 0 | CE14: 0 | CF14: 0 | CG14: 0 | CH14: 0 | CI14: 0 | CJ14: 0 | CK14: 0 | CL14: 0 | CM14: 0 | CN14: 0 | CO14: 0 | CP14: 0 | CQ14: 0 | CS14: 179.265 | CT14: 179.265 | CU14: 179.265 | CV14: 179.265 | CW14: 179.265 | CX14: 179.265 | CY14: 179.265 | CZ14: 179.265 | DA14: 179.265 | DB14: 179.265 | DC14: 98.4504 | DD14: 98.4504 | DE14: 98.4504 | DF14: 98.4504 | DG14: 98.4504 | DH14: 0 | DI14: 0 | DJ14: 0 | DK14: 0 | DL14: 0 | DM14: 0 | DN14: 0 | DO14: 0 | DP14: 0 | DQ14: 0 | DR14: 0 | DS14: 0 | DT14: 0 | DU14: 0 | DV14: 0 | DW14: 0 | DX14: 0 | DY14: 0 | DZ14: 0 | EB14: 0 | EC14: 0 | ED14: 0 | EE14: 0 | EF14: 0 | EG14: 0 | EH14: 0 | EI14: 0 | EJ14: 0 | EK14: 0 | EL14: 0 | EM14: 0 | EN14: 0 | EO14: 0 | EP14: 0 | EQ14: 0 | ER14: 0 | ES14: 0 | ET14: 0 | EU14: 0 | EV14: 0 | EW14: 0 | EX14: 0 | EY14: 0 | EZ14: 0 | FA14: 0 | FB14: 0 | FC14: 0 | FD14: 0 | FE14: 0 | FF14: 0 | FG14: 0 | FH14: 0 | FI14: 0 | FK14: 0 | FL14: 0 | FM14: 0 | FN14: 0 | FO14: 0 | FP14: 0 | FQ14: 0 | FR14: 0 | FS14: 0 | FT14: 0 | FU14: 0 | FV14: 0 | FW14: 0 | FX14: 0 | FY14: 0 | FZ14: 0 | GA14: 0 | GB14: 0 | GC14: 0 | GD14: 0 | GE14: 0 | GF14: 0 | GG14: 0 | GH14: 0 | GI14: 0 | GJ14: 0 | GK14: 0 | GL14: 0 | GM14: 0 | GN14: 0 | GO14: 0 | GP14: 0 | GQ14: 0 | GR14: 0 | GT14: 2076.953692 | GU14: 2108.107997 | GV14: 2139.729617 | GW14: 2171.825561 | GX14: 2204.402945 | GY14: 2237.468989 | GZ14: 2271.031024 | HA14: 2305.096489 | HB14: 2339.672937 | HC14: 2374.768031 | HD14: 1323.759883 | HE14: 1343.616281 | HF14: 1363.770526 | HG14: 1384.227084 | HH14: 1404.99049 | HI14: 0 | HJ14: 0 | HK14: 0 | HL14: 0 | HM14: 0 | HN14: 0 | HO14: 0 | HP14: 0 | HQ14: 0 | HR14: 0 | HS14: 0 | HT14: 0 | HU14: 0 | HV14: 0 | HW14: 0 | HX14: 0 | HY14: 0 | HZ14: 0 | IA14: 0 | IC14: 0 | ID14: 0 | IE14: 0 | IF14: 0 | IG14: 0 | IH14: 0 | II14: 0 | IJ14: 0 | IK14: 0 | IL14: 0 | IM14: 0 | IN14: 0 | IO14: 0 | IP14: 0 | IQ14: 0 | IR14: 0 | IS14: 0 | IT14: 0 | IU14: 0 | IV14: 0 | IW14: 0 | IX14: 0 | IY14: 0 | IZ14: 0 | JA14: 0 | JB14: 0 | JC14: 0 | JD14: 0 | JE14: 0 | JF14: 0 | JG14: 0 | JH14: 0 | JI14: 0 | JJ14: 0 | JL14: 0 | JM14: 0 | JN14: 0 | JO14: 0 | JP14: 0 | JQ14: 0 | JR14: 0 | JS14: 0 | JT14: 0 | JU14: 0 | JV14: 0 | JW14: 0 | JX14: 0 | JY14: 0 | JZ14: 0 | KA14: 0 | KB14: 0 | KC14: 0 | KD14: 0 | KE14: 0 | KF14: 0 | KG14: 0 | KH14: 0 | KI14: 0 | KJ14: 0 | KK14: 0 | KL14: 0 | KM14: 0 | KN14: 0 | KO14: 0 | KP14: 0 | KQ14: 0 | KR14: 0 | KS14: 0 | KU14: 0 | KV14: 0 | KW14: 0 | KX14: 0 | KY14: 0 | KZ14: 0 | LA14: 0 | LB14: 0 | LC14: 0 | LD14: 0 | LE14: 0 | LF14: 0 | LG14: 0 | LH14: 0 | LI14: 0 | LJ14: 0 | LK14: 0 | LL14: 0 | LM14: 0 | LN14: 0 | LO14: 0 | LP14: 0 | LQ14: 0 | LR14: 0 | LS14: 0 | LT14: 0 | LU14: 0 | LV14: 0 | LW14: 0 | LX14: 0 | LY14: 0 | LZ14: 0 | MA14: 0 | MB14: 0 | MD14: 16464.075 | ME14: 16464.075 | MF14: 16464.075 | MG14: 16464.075 | MH14: 16464.075 | MI14: 16464.075 | MJ14: 16464.075 | MK14: 16464.075 | ML14: 16464.075 | MM14: 16464.075 | MN14: 9041.892 | MO14: 9041.892 | MP14: 9041.892 | MQ14: 9041.892 | MR14: 9041.892 | MS14: 0 | MT14: 0 | MU14: 0 | MV14: 0 | MW14: 0 | MX14: 0 | MY14: 0 | MZ14: 0 | NA14: 0 | NB14: 0 | NC14: 0 | ND14: 0 | NE14: 0 | NF14: 0 | NG14: 0 | NH14: 0 | NI14: 0 | NJ14: 0 | NK14: 0 | NM14: 4.164966 | NN14: 4.164966 | NO14: 4.164966 | NP14: 4.164966 | NQ14: 4.164966 | NR14: 4.164966 | NS14: 4.164966 | NT14: 4.164966 | NU14: 4.164966 | NV14: 4.164966 | NW14: 3.38181 | NX14: 3.38181 | NY14: 3.38181 | NZ14: 3.38181 | OA14: 3.38181 | OB14: 0 | OC14: 0 | OD14: 0 | OE14: 0 | OF14: 0 | OG14: 0 | OH14: 0 | OI14: 0 | OJ14: 0 | OK14: 0 | OL14: 0 | OM14: 0 | ON14: 0 | OO14: 0 | OP14: 0 | OQ14: 0 | OR14: 0 | OS14: 0 | OT14: 0 | OV14: 0 | OW14: 0 | OX14: 0 | OY14: 0 | OZ14: 0 | PA14: 0 | PB14: 0 | PC14: 0 | PD14: 0 | PE14: 0 | PF14: 0 | PG14: 0 | PH14: 0 | PI14: 0 | PJ14: 0 | PK14: 0 | PL14: 0 | PM14: 0 | PN14: 0 | PO14: 0 | PP14: 0 | PQ14: 0 | PR14: 0 | PS14: 0 | PT14: 0 | PU14: 0 | PV14: 0 | PW14: 0 | PX14: 0 | PY14: 0 | PZ14: 0 | QA14: 0 | QB14: 0 | QC14: 0
B15: Residential_Residential Audit_All_All_Actual | C15: Residential | D15: Residential Audit | E15: All | F15: All | G15: Actual | I15: n/a | J15: 127490 | K15: 127490 | L15: 0 | M15: 13.42 | N15: 13.42 | O15: 0 | P15: 0 | Q15: 0 | R15: 0 | S15: 0 | T15: 0 | U15: 0 | V15: 0 | W15: 0 | Y15: 0 | Z15: 0 | AC15: 0 | AD15: =INDEX(OFFSET('Program Inputs'!$AE$5,,,TotalPrograms),MATCH($C15&"_"&$D15&"_"&$G15,OFFSET('Program Inputs'!$A$5,,,TotalPrograms),0)) -> 6424.84 | AE15: 6424.84 | AG15: 6.601132421 | AH15: 6.601132421 | AI15: 8.19241853 | AJ15: n/a | AK15: 0.3215400931 | AM15: 0.006842422669 | AN15: 65.00301536 | AO15: n/a | AQ15: 42411.21962 | AR15: 0 | AT15: 42411.21962 | AU15: 0 | AW15: 42411.21962 | AX15: 0 | AY15: 10223.75865 | AZ15: 0 | BA15: 0 | BC15: 125475.413 | BD15: 0 | BE15: 0 | BG15: 42411.21962 | BH15: 125475.413 | BJ15: 5691.600495 | BK15: 5776.974503 | BL15: 5863.62912 | BM15: 5951.583557 | BN15: 6040.857311 | BO15: 6131.47017 | BP15: 6223.442223 | BQ15: 6316.793856 | BR15: 6411.545764 | BS15: 6507.71895 | BT15: 0 | BU15: 0 | BV15: 0 | BW15: 0 | BX15: 0 | BY15: 0 | BZ15: 0 | CA15: 0 | CB15: 0 | CC15: 0 | CD15: 0 | CE15: 0 | CF15: 0 | CG15: 0 | CH15: 0 | CI15: 0 | CJ15: 0 | CK15: 0 | CL15: 0 | CM15: 0 | CN15: 0 | CO15: 0 | CP15: 0 | CQ15: 0 | CS15: 1453.386 | CT15: 1453.386 | CU15: 1453.386 | CV15: 1453.386 | CW15: 1453.386 | CX15: 1453.386 | CY15: 1453.386 | CZ15: 1453.386 | DA15: 1453.386 | DB15: 1453.386 | DC15: 0 | DD15: 0 | DE15: 0 | DF15: 0 | DG15: 0 | DH15: 0 | DI15: 0 | DJ15: 0 | DK15: 0 | DL15: 0 | DM15: 0 | DN15: 0 | DO15: 0 | DP15: 0 | DQ15: 0 | DR15: 0 | DS15: 0 | DT15: 0 | DU15: 0 | DV15: 0 | DW15: 0 | DX15: 0 | DY15: 0 | DZ15: 0 | EB15: 0 | EC15: 0 | ED15: 0 | EE15: 0 | EF15: 0 | EG15: 0 | EH15: 0 | EI15: 0 | EJ15: 0 | EK15: 0 | EL15: 0 | EM15: 0 | EN15: 0 | EO15: 0 | EP15: 0 | EQ15: 0 | ER15: 0 | ES15: 0 | ET15: 0 | EU15: 0 | EV15: 0 | EW15: 0 | EX15: 0 | EY15: 0 | EZ15: 0 | FA15: 0 | FB15: 0 | FC15: 0 | FD15: 0 | FE15: 0 | FF15: 0 | FG15: 0 | FH15: 0 | FI15: 0 | FK15: 0 | FL15: 0 | FM15: 0 | FN15: 0 | FO15: 0 | FP15: 0 | FQ15: 0 | FR15: 0 | FS15: 0 | FT15: 0 | FU15: 0 | FV15: 0 | FW15: 0 | FX15: 0 | FY15: 0 | FZ15: 0 | GA15: 0 | GB15: 0 | GC15: 0 | GD15: 0 | GE15: 0 | GF15: 0 | GG15: 0 | GH15: 0 | GI15: 0 | GJ15: 0 | GK15: 0 | GL15: 0 | GM15: 0 | GN15: 0 | GO15: 0 | GP15: 0 | GQ15: 0 | GR15: 0 | GT15: 16838.84427 | GU15: 17091.42694 | GV15: 17347.79834 | GW15: 17608.01531 | GX15: 17872.13554 | GY15: 18140.21758 | GZ15: 18412.32084 | HA15: 18688.50565 | HB15: 18968.83324 | HC15: 19253.36574 | HD15: 0 | HE15: 0 | HF15: 0 | HG15: 0 | HH15: 0 | HI15: 0 | HJ15: 0 | HK15: 0 | HL15: 0 | HM15: 0 | HN15: 0 | HO15: 0 | HP15: 0 | HQ15: 0 | HR15: 0 | HS15: 0 | HT15: 0 | HU15: 0 | HV15: 0 | HW15: 0 | HX15: 0 | HY15: 0 | HZ15: 0 | IA15: 0 | IC15: 0 | ID15: 0 | IE15: 0 | IF15: 0 | IG15: 0 | IH15: 0 | II15: 0 | IJ15: 0 | IK15: 0 | IL15: 0 | IM15: 0 | IN15: 0 | IO15: 0 | IP15: 0 | IQ15: 0 | IR15: 0 | IS15: 0 | IT15: 0 | IU15: 0 | IV15: 0 | IW15: 0 | IX15: 0 | IY15: 0 | IZ15: 0 | JA15: 0 | JB15: 0 | JC15: 0 | JD15: 0 | JE15: 0 | JF15: 0 | JG15: 0 | JH15: 0 | JI15: 0 | JJ15: 0 | JL15: 0 | JM15: 0 | JN15: 0 | JO15: 0 | JP15: 0 | JQ15: 0 | JR15: 0 | JS15: 0 | JT15: 0 | JU15: 0 | JV15: 0 | JW15: 0 | JX15: 0 | JY15: 0 | JZ15: 0 | KA15: 0 | KB15: 0 | KC15: 0 | KD15: 0 | KE15: 0 | KF15: 0 | KG15: 0 | KH15: 0 | KI15: 0 | KJ15: 0 | KK15: 0 | KL15: 0 | KM15: 0 | KN15: 0 | KO15: 0 | KP15: 0 | KQ15: 0 | KR15: 0 | KS15: 0 | KU15: 0 | KV15: 0 | KW15: 0 | KX15: 0 | KY15: 0 | KZ15: 0 | LA15: 0 | LB15: 0 | LC15: 0 | LD15: 0 | LE15: 0 | LF15: 0 | LG15: 0 | LH15: 0 | LI15: 0 | LJ15: 0 | LK15: 0 | LL15: 0 | LM15: 0 | LN15: 0 | LO15: 0 | LP15: 0 | LQ15: 0 | LR15: 0 | LS15: 0 | LT15: 0 | LU15: 0 | LV15: 0 | LW15: 0 | LX15: 0 | LY15: 0 | LZ15: 0 | MA15: 0 | MB15: 0 | MD15: 133482.03 | ME15: 133482.03 | MF15: 133482.03 | MG15: 133482.03 | MH15: 133482.03 | MI15: 133482.03 | MJ15: 133482.03 | MK15: 133482.03 | ML15: 133482.03 | MM15: 133482.03 | MN15: 0 | MO15: 0 | MP15: 0 | MQ15: 0 | MR15: 0 | MS15: 0 | MT15: 0 | MU15: 0 | MV15: 0 | MW15: 0 | MX15: 0 | MY15: 0 | MZ15: 0 | NA15: 0 | NB15: 0 | NC15: 0 | ND15: 0 | NE15: 0 | NF15: 0 | NG15: 0 | NH15: 0 | NI15: 0 | NJ15: 0 | NK15: 0 | NM15: 14.05074 | NN15: 14.05074 | NO15: 14.05074 | NP15: 14.05074 | NQ15: 14.05074 | NR15: 14.05074 | NS15: 14.05074 | NT15: 14.05074 | NU15: 14.05074 | NV15: 14.05074 | NW15: 0 | NX15: 0 | NY15: 0 | NZ15: 0 | OA15: 0 | OB15: 0 | OC15: 0 | OD15: 0 | OE15: 0 | OF15: 0 | OG15: 0 | OH15: 0 | OI15: 0 | OJ15: 0 | OK15: 0 | OL15: 0 | OM15: 0 | ON15: 0 | OO15: 0 | OP15: 0 | OQ15: 0 | OR15: 0 | OS15: 0 | OT15: 0 | OV15: 0 | OW15: 0 | OX15: 0 | OY15: 0 | OZ15: 0 | PA15: 0 | PB15: 0 | PC15: 0 | PD15: 0 | PE15: 0 | PF15: 0 | PG15: 0 | PH15: 0 | PI15: 0 | PJ15: 0 | PK15: 0 | PL15: 0 | PM15: 0 | PN15: 0 | PO15: 0 | PP15: 0 | PQ15: 0 | PR15: 0 | PS15: 0 | PT15: 0 | PU15: 0 | PV15: 0 | PW15: 0 | PX15: 0 | PY15: 0 | PZ15: 0 | QA15: 0 | QB15: 0 | QC15: 0
B16: Residential_School-Based Energy Education_All_All_Actual | C16: Residential | D16: School-Based Energy Education | E16: All | F16: All | G16: Actual | I16: n/a | J16: 539920 | K16: 539920 | L16: 0 | M16: 54.4 | N16: 54.4 | O16: 0 | P16: 0 | Q16: 0 | R16: 0 | S16: 0 | T16: 0 | U16: 0 | V16: 0 | W16: 0 | Y16: 0 | Z16: 0 | AC16: 0 | AD16: =INDEX(OFFSET('Program Inputs'!$AE$5,,,TotalPrograms),MATCH($C16&"_"&$D16&"_"&$G16,OFFSET('Program Inputs'!$A$5,,,TotalPrograms),0)) -> 69731.04 | AE16: 69731.04 | AG16: =IF(OR(AR16>0,AD16>0),(AQ16)/(AD16+AR16),"n/a") -> 1.50796984 | AH16: =IF(OR(AD16>0,AC16>0),(AT16+AU16)/((AC16+AD16)),"n/a") -> 1.50796984 | AI16: =IF(OR(AD16>0,BA16>0),(AW16+AY16+AZ16+AX16)/(AD16+BA16),"n/a") -> 1.883212789 | AJ16: =IF(BE16>0,(AC16+BC16+BD16)/BE16,"n/a") -> n/a | AK16: =IF((BH16+AD16+AC16)>0,BG16/(BH16+AD16+AC16),"n/a") -> 0.2757465411 | AM16: 0.02901654027 | AN16: 287.9891622 | AO16: n/a | AQ16: 105152.3052 | AR16: 0 | AT16: 105152.3052 | AU16: 0 | AW16: 105152.3052 | AX16: 0 | AY16: 26166.08111 | AZ16: 0 | BA16: 0 | BC16: 311605.7659 | BD16: 0 | BE16: 0 | BG16: 105152.3052 | BH16: 311605.7659 | BJ16: 24064.6133 | BK16: 24425.5825 | BL16: 24791.96624 | BM16: 25163.84573 | BN16: 25541.30342 | BO16: 0 | BP16: 0 | BQ16: 0 | BR16: 0 | BS16: 0 | BT16: 0 | BU16: 0 | BV16: 0 | BW16: 0 | BX16: 0 | BY16: 0 | BZ16: 0 | CA16: 0 | CB16: 0 | CC16: 0 | CD16: 0 | CE16: 0 | CF16: 0 | CG16: 0 | CH16: 0 | CI16: 0 | CJ16: 0 | CK16: 0 | CL16: 0 | CM16: 0 | CN16: 0 | CO16: 0 | CP16: 0 | CQ16: 0 | CS16: 6155.088 | CT16: 6155.088 | CU16: 6155.088 | CV16: 6155.088 | CW16: 6155.088 | CX16: 0 | CY16: 0 | CZ16: 0 | DA16: 0 | DB16: 0 | DC16: 0 | DD16: 0 | DE16: 0 | DF16: 0 | DG16: 0 | DH16: 0 | DI16: 0 | DJ16: 0 | DK16: 0 | DL16: 0 | DM16: 0 | DN16: 0 | DO16: 0 | DP16: 0 | DQ16: 0 | DR16: 0 | DS16: 0 | DT16: 0 | DU16: 0 | DV16: 0 | DW16: 0 | DX16: 0 | DY16: 0 | DZ16: 0 | EB16: 0 | EC16: 0 | ED16: 0 | EE16: 0 | EF16: 0 | EG16: 0 | EH16: 0 | EI16: 0 | EJ16: 0 | EK16: 0 | EL16: 0 | EM16: 0 | EN16: 0 | EO16: 0 | EP16: 0 | EQ16: 0 | ER16: 0 | ES16: 0 | ET16: 0 | EU16: 0 | EV16: 0 | EW16: 0 | EX16: 0 | EY16: 0 | EZ16: 0 | FA16: 0 | FB16: 0 | FC16: 0 | FD16: 0 | FE16: 0 | FF16: 0 | FG16: 0 | FH16: 0 | FI16: 0 | FK16: 0 | FL16: 0 | FM16: 0 | FN16: 0 | FO16: 0 | FP16: 0 | FQ16: 0 | FR16: 0 | FS16: 0 | FT16: 0 | FU16: 0 | FV16: 0 | FW16: 0 | FX16: 0 | FY16: 0 | FZ16: 0 | GA16: 0 | GB16: 0 | GC16: 0 | GD16: 0 | GE16: 0 | GF16: 0 | GG16: 0 | GH16: 0 | GI16: 0 | GJ16: 0 | GK16: 0 | GL16: 0 | GM16: 0 | GN16: 0 | GO16: 0 | GP16: 0 | GQ16: 0 | GR16: 0 | GT16: 71312.48568 | GU16: 72382.17296 | GV16: 73467.90556 | GW16: 74569.92414 | GX16: 75688.473 | GY16: 0 | GZ16: 0 | HA16: 0 | HB16: 0 | HC16: 0 | HD16: 0 | HE16: 0 | HF16: 0 | HG16: 0 | HH16: 0 | HI16: 0 | HJ16: 0 | HK16: 0 | HL16: 0 | HM16: 0 | HN16: 0 | HO16: 0 | HP16: 0 | HQ16: 0 | HR16: 0 | HS16: 0 | HT16: 0 | HU16: 0 | HV16: 0 | HW16: 0 | HX16: 0 | HY16: 0 | HZ16: 0 | IA16: 0 | IC16: 0 | ID16: 0 | IE16: 0 | IF16: 0 | IG16: 0 | IH16: 0 | II16: 0 | IJ16: 0 | IK16: 0 | IL16: 0 | IM16: 0 | IN16: 0 | IO16: 0 | IP16: 0 | IQ16: 0 | IR16: 0 | IS16: 0 | IT16: 0 | IU16: 0 | IV16: 0 | IW16: 0 | IX16: 0 | IY16: 0 | IZ16: 0 | JA16: 0 | JB16: 0 | JC16: 0 | JD16: 0 | JE16: 0 | JF16: 0 | JG16: 0 | JH16: 0 | JI16: 0 | JJ16: 0 | JL16: 0 | JM16: 0 | JN16: 0 | JO16: 0 | JP16: 0 | JQ16: 0 | JR16: 0 | JS16: 0 | JT16: 0 | JU16: 0 | JV16: 0 | JW16: 0 | JX16: 0 | JY16: 0 | JZ16: 0 | KA16: 0 | KB16: 0 | KC16: 0 | KD16: 0 | KE16: 0 | KF16: 0 | KG16: 0 | KH16: 0 | KI16: 0 | KJ16: 0 | KK16: 0 | KL16: 0 | KM16: 0 | KN16: 0 | KO16: 0 | KP16: 0 | KQ16: 0 | KR16: 0 | KS16: 0 | KU16: 0 | KV16: 0 | KW16: 0 | KX16: 0 | KY16: 0 | KZ16: 0 | LA16: 0 | LB16: 0 | LC16: 0 | LD16: 0 | LE16: 0 | LF16: 0 | LG16: 0 | LH16: 0 | LI16: 0 | LJ16: 0 | LK16: 0 | LL16: 0 | LM16: 0 | LN16: 0 | LO16: 0 | LP16: 0 | LQ16: 0 | LR16: 0 | LS16: 0 | LT16: 0 | LU16: 0 | LV16: 0 | LW16: 0 | LX16: 0 | LY16: 0 | LZ16: 0 | MA16: 0 | MB16: 0 | MD16: 565296.24 | ME16: 565296.24 | MF16: 565296.24 | MG16: 565296.24 | MH16: 565296.24 | MI16: 0 | MJ16: 0 | MK16: 0 | ML16: 0 | MM16: 0 | MN16: 0 | MO16: 0 | MP16: 0 | MQ16: 0 | MR16: 0 | MS16: 0 | MT16: 0 | MU16: 0 | MV16: 0 | MW16: 0 | MX16: 0 | MY16: 0 | MZ16: 0 | NA16: 0 | NB16: 0 | NC16: 0 | ND16: 0 | NE16: 0 | NF16: 0 | NG16: 0 | NH16: 0 | NI16: 0 | NJ16: 0 | NK16: 0 | NM16: 56.9568 | NN16: 56.9568 | NO16: 56.9568 | NP16: 56.9568 | NQ16: 56.9568 | NR16: 0 | NS16: 0 | NT16: 0 | NU16: 0 | NV16: 0 | NW16: 0 | NX16: 0 | NY16: 0 | NZ16: 0 | OA16: 0 | OB16: 0 | OC16: 0 | OD16: 0 | OE16: 0 | OF16: 0 | OG16: 0 | OH16: 0 | OI16: 0 | OJ16: 0 | OK16: 0 | OL16: 0 | OM16: 0 | ON16: 0 | OO16: 0 | OP16: 0 | OQ16: 0 | OR16: 0 | OS16: 0 | OT16: 0 | OV16: 0 | OW16: 0 | OX16: 0 | OY16: 0 | OZ16: 0 | PA16: 0 | PB16: 0 | PC16: 0 | PD16: 0 | PE16: 0 | PF16: 0 | PG16: 0 | PH16: 0 | PI16: 0 | PJ16: 0 | PK16: 0 | PL16: 0 | PM16: 0 | PN16: 0 | PO16: 0 | PP16: 0 | PQ16: 0 | PR16: 0 | PS16: 0 | PT16: 0 | PU16: 0 | PV16: 0 | PW16: 0 | PX16: 0 | PY16: 0 | PZ16: 0 | QA16: 0 | QB16: 0 | QC16: 0
B17: Residential_Weatherization_All_All_Actual | C17: Residential | D17: Weatherization | E17: All | F17: All | G17: Actual | I17: n/a | J17: 32050 | K17: 32050 | L17: 0 | M17: 4.975 | N17: 4.975 | O17: 0 | P17: 0 | Q17: 0 | R17: 0 | S17: 0 | T17: 0 | U17: 0 | V17: 0 | W17: 0 | Y17: 0 | Z17: 0 | AC17: 0 | AD17: =INDEX(OFFSET('Program Inputs'!$AE$5,,,TotalPrograms),MATCH($C17&"_"&$D17&"_"&$G17,OFFSET('Program Inputs'!$A$5,,,TotalPrograms),0)) -> 8160.78 | AE17: 8160.78 | AG17: 1.594125534 | AH17: 1.594125534 | AI17: 1.964116582 | AJ17: n/a | AK17: 0.2833461761 | AM17: 0.02942842052 | AN17: 185.3271293 | AO17: n/a | AQ17: 13009.30777 | AR17: 0 | AT17: 13009.30777 | AU17: 0 | AW17: 13009.30777 | AX17: 0 | AY17: 3019.415545 | AZ17: 0 | BA17: 0 | BC17: 37752.34278 | BD17: 0 | BE17: 0 | BG17: 13009.30777 | BH17: 37752.34278 | BJ17: 1456.688293 | BK17: 1478.538618 | BL17: 1500.716697 | BM17: 1523.227447 | BN17: 1546.075859 | BO17: 1569.266997 | BP17: 1592.806002 | BQ17: 1616.698092 | BR17: 1640.948563 | BS17: 1665.562792 | BT17: 1150.371291 | BU17: 1167.62686 | BV17: 1185.141263 | BW17: 1202.918382 | BX17: 1220.962158 | BY17: 0 | BZ17: 0 | CA17: 0 | CB17: 0 | CC17: 0 | CD17: 0 | CE17: 0 | CF17: 0 | CG17: 0 | CH17: 0 | CI17: 0 | CJ17: 0 | CK17: 0 | CL17: 0 | CM17: 0 | CN17: 0 | CO17: 0 | CP17: 0 | CQ17: 0 | CS17: 365.37 | CT17: 365.37 | CU17: 365.37 | CV17: 365.37 | CW17: 365.37 | CX17: 365.37 | CY17: 365.37 | CZ17: 365.37 | DA17: 365.37 | DB17: 365.37 | DC17: 246.525 | DD17: 246.525 | DE17: 246.525 | DF17: 246.525 | DG17: 246.525 | DH17: 0 | DI17: 0 | DJ17: 0 | DK17: 0 | DL17: 0 | DM17: 0 | DN17: 0 | DO17: 0 | DP17: 0 | DQ17: 0 | DR17: 0 | DS17: 0 | DT17: 0 | DU17: 0 | DV17: 0 | DW17: 0 | DX17: 0 | DY17: 0 | DZ17: 0 | EB17: 0 | EC17: 0 | ED17: 0 | EE17: 0 | EF17: 0 | EG17: 0 | EH17: 0 | EI17: 0 | EJ17: 0 | EK17: 0 | EL17: 0 | EM17: 0 | EN17: 0 | EO17: 0 | EP17: 0 | EQ17: 0 | ER17: 0 | ES17: 0 | ET17: 0 | EU17: 0 | EV17: 0 | EW17: 0 | EX17: 0 | EY17: 0 | EZ17: 0 | FA17: 0 | FB17: 0 | FC17: 0 | FD17: 0 | FE17: 0 | FF17: 0 | FG17: 0 | FH17: 0 | FI17: 0 | FK17: 0 | FL17: 0 | FM17: 0 | FN17: 0 | FO17: 0 | FP17: 0 | FQ17: 0 | FR17: 0 | FS17: 0 | FT17: 0 | FU17: 0 | FV17: 0 | FW17: 0 | FX17: 0 | FY17: 0 | FZ17: 0 | GA17: 0 | GB17: 0 | GC17: 0 | GD17: 0 | GE17: 0 | GF17: 0 | GG17: 0 | GH17: 0 | GI17: 0 | GJ17: 0 | GK17: 0 | GL17: 0 | GM17: 0 | GN17: 0 | GO17: 0 | GP17: 0 | GQ17: 0 | GR17: 0 | GT17: 4233.155219 | GU17: 4296.652547 | GV17: 4361.102336 | GW17: 4426.518871 | GX17: 4492.916654 | GY17: 4560.310404 | GZ17: 4628.71506 | HA17: 4698.145786 | HB17: 4768.617972 | HC17: 4840.147242 | HD17: 3314.764645 | HE17: 3364.486115 | HF17: 3414.953406 | HG17: 3466.177707 | HH17: 3518.170373 | HI17: 0 | HJ17: 0 | HK17: 0 | HL17: 0 | HM17: 0 | HN17: 0 | HO17: 0 | HP17: 0 | HQ17: 0 | HR17: 0 | HS17: 0 | HT17: 0 | HU17: 0 | HV17: 0 | HW17: 0 | HX17: 0 | HY17: 0 | HZ17: 0 | IA17: 0 | IC17: 0 | ID17: 0 | IE17: 0 | IF17: 0 | IG17: 0 | IH17: 0 | II17: 0 | IJ17: 0 | IK17: 0 | IL17: 0 | IM17: 0 | IN17: 0 | IO17: 0 | IP17: 0 | IQ17: 0 | IR17: 0 | IS17: 0 | IT17: 0 | IU17: 0 | IV17: 0 | IW17: 0 | IX17: 0 | IY17: 0 | IZ17: 0 | JA17: 0 | JB17: 0 | JC17: 0 | JD17: 0 | JE17: 0 | JF17: 0 | JG17: 0 | JH17: 0 | JI17: 0 | JJ17: 0 | JL17: 0 | JM17: 0 | JN17: 0 | JO17: 0 | JP17: 0 | JQ17: 0 | JR17: 0 | JS17: 0 | JT17: 0 | JU17: 0 | JV17: 0 | JW17: 0 | JX17: 0 | JY17: 0 | JZ17: 0 | KA17: 0 | KB17: 0 | KC17: 0 | KD17: 0 | KE17: 0 | KF17: 0 | KG17: 0 | KH17: 0 | KI17: 0 | KJ17: 0 | KK17: 0 | KL17: 0 | KM17: 0 | KN17: 0 | KO17: 0 | KP17: 0 | KQ17: 0 | KR17: 0 | KS17: 0 | KU17: 0 | KV17: 0 | KW17: 0 | KX17: 0 | KY17: 0 | KZ17: 0 | LA17: 0 | LB17: 0 | LC17: 0 | LD17: 0 | LE17: 0 | LF17: 0 | LG17: 0 | LH17: 0 | LI17: 0 | LJ17: 0 | LK17: 0 | LL17: 0 | LM17: 0 | LN17: 0 | LO17: 0 | LP17: 0 | LQ17: 0 | LR17: 0 | LS17: 0 | LT17: 0 | LU17: 0 | LV17: 0 | LW17: 0 | LX17: 0 | LY17: 0 | LZ17: 0 | MA17: 0 | MB17: 0 | MD17: 33556.35 | ME17: 33556.35 | MF17: 33556.35 | MG17: 33556.35 | MH17: 33556.35 | MI17: 33556.35 | MJ17: 33556.35 | MK17: 33556.35 | ML17: 33556.35 | MM17: 33556.35 | MN17: 22641.375 | MO17: 22641.375 | MP17: 22641.375 | MQ17: 22641.375 | MR17: 22641.375 | MS17: 0 | MT17: 0 | MU17: 0 | MV17: 0 | MW17: 0 | MX17: 0 | MY17: 0 | MZ17: 0 | NA17: 0 | NB17: 0 | NC17: 0 | ND17: 0 | NE17: 0 | NF17: 0 | NG17: 0 | NH17: 0 | NI17: 0 | NJ17: 0 | NK17: 0 | NM17: 5.208825 | NN17: 5.208825 | NO17: 5.208825 | NP17: 5.208825 | NQ17: 5.208825 | NR17: 5.208825 | NS17: 5.208825 | NT17: 5.208825 | NU17: 5.208825 | NV17: 5.208825 | NW17: 4.057125 | NX17: 4.057125 | NY17: 4.057125 | NZ17: 4.057125 | OA17: 4.057125 | OB17: 0 | OC17: 0 | OD17: 0 | OE17: 0 | OF17: 0 | OG17: 0 | OH17: 0 | OI17: 0 | OJ17: 0 | OK17: 0 | OL17: 0 | OM17: 0 | ON17: 0 | OO17: 0 | OP17: 0 | OQ17: 0 | OR17: 0 | OS17: 0 | OT17: 0 | OV17: 0 | OW17: 0 | OX17: 0 | OY17: 0 | OZ17: 0 | PA17: 0 | PB17: 0 | PC17: 0 | PD17: 0 | PE17: 0 | PF17: 0 | PG17: 0 | PH17: 0 | PI17: 0 | PJ17: 0 | PK17: 0 | PL17: 0 | PM17: 0 | PN17: 0 | PO17: 0 | PP17: 0 | PQ17: 0 | PR17: 0 | PS17: 0 | PT17: 0 | PU17: 0 | PV17: 0 | PW17: 0 | PX17: 0 | PY17: 0 | PZ17: 0 | QA17: 0 | QB17: 0 | QC17: 0
B18: Commercial_Commercial Prescriptive Rebate_All_All_Actual | C18: Commercial | D18: Commercial Prescriptive Rebate | E18: All | F18: All | G18: Actual | I18: n/a | J18: 2940068.504 | K18: 2940068.504 | L18: 0 | M18: 700.228589 | N18: 700.228589 | O18: 0 | P18: 0 | Q18: 0 | R18: 0 | S18: 0 | T18: 0 | U18: 0 | V18: 0 | W18: 0 | Y18: 774134.9254 | Z18: 0 | AC18: 265545.7849 | AD18: =INDEX(OFFSET('Program Inputs'!$AE$5,,,TotalPrograms),MATCH($C18&"_"&$D18&"_"&$G18,OFFSET('Program Inputs'!$A$5,,,TotalPrograms),0)) -> 29701.03508 | AE18: 295246.82 | AG18: 1.095368597 | AH18: 2.982239295 | AI18: 1.350085289 | AJ18: 2.842836558 | AK18: 0.3947636467 | AM18: 0.0157006836 | AN18: 66.23292925 | AO18: n/a | AQ18: 880496.6684 | AR18: 774134.9254 | AT18: 880496.6684 | AU18: 0 | AW18: 880496.6684 | AX18: 0 | AY18: 204750.4366 | AZ18: 0 | BA18: 774134.9254 | BC18: 1935193.282 | BD18: 0 | BE18: 774134.9254 | BG18: 880496.6684 | BH18: 1935193.282 | BJ18: 137566.1973 | BK18: 139629.6903 | BL18: 141724.1356 | BM18: 143849.9977 | BN18: 146007.7476 | BO18: 148197.8639 | BP18: 150420.8318 | BQ18: 152677.1443 | BR18: 2574.154207 | BS18: 2612.76652 | BT18: 2651.958018 | BU18: 2691.737388 | BV18: 2732.113449 | BW18: 2773.095151 | BX18: 2814.691578 | BY18: 0 | BZ18: 0 | CA18: 0 | CB18: 0 | CC18: 0 | CD18: 0 | CE18: 0 | CF18: 0 | CG18: 0 | CH18: 0 | CI18: 0 | CJ18: 0 | CK18: 0 | CL18: 0 | CM18: 0 | CN18: 0 | CO18: 0 | CP18: 0 | CQ18: 0 | CS18: 33516.78095 | CT18: 33516.78095 | CU18: 33516.78095 | CV18: 33516.78095 | CW18: 33516.78095 | CX18: 33516.78095 | CY18: 33516.78095 | CZ18: 33516.78095 | DA18: 584.9222238 | DB18: 584.9222238 | DC18: 584.9222238 | DD18: 584.9222238 | DE18: 584.9222238 | DF18: 584.9222238 | DG18: 584.9222238 | DH18: 0 | DI18: 0 | DJ18: 0 | DK18: 0 | DL18: 0 | DM18: 0 | DN18: 0 | DO18: 0 | DP18: 0 | DQ18: 0 | DR18: 0 | DS18: 0 | DT18: 0 | DU18: 0 | DV18: 0 | DW18: 0 | DX18: 0 | DY18: 0 | DZ18: 0 | EB18: 0 | EC18: 0 | ED18: 0 | EE18: 0 | EF18: 0 | EG18: 0 | EH18: 0 | EI18: 0 | EJ18: 0 | EK18: 0 | EL18: 0 | EM18: 0 | EN18: 0 | EO18: 0 | EP18: 0 | EQ18: 0 | ER18: 0 | ES18: 0 | ET18: 0 | EU18: 0 | EV18: 0 | EW18: 0 | EX18: 0 | EY18: 0 | EZ18: 0 | FA18: 0 | FB18: 0 | FC18: 0 | FD18: 0 | FE18: 0 | FF18: 0 | FG18: 0 | FH18: 0 | FI18: 0 | FK18: 0 | FL18: 0 | FM18: 0 | FN18: 0 | FO18: 0 | FP18: 0 | FQ18: 0 | FR18: 0 | FS18: 0 | FT18: 0 | FU18: 0 | FV18: 0 | FW18: 0 | FX18: 0 | FY18: 0 | FZ18: 0 | GA18: 0 | GB18: 0 | GC18: 0 | GD18: 0 | GE18: 0 | GF18: 0 | GG18: 0 | GH18: 0 | GI18: 0 | GJ18: 0 | GK18: 0 | GL18: 0 | GM18: 0 | GN18: 0 | GO18: 0 | GP18: 0 | GQ18: 0 | GR18: 0 | GT18: 302218.71 | GU18: 306751.9907 | GV18: 311353.2705 | GW18: 316023.5696 | GX18: 320763.9231 | GY18: 325575.382 | GZ18: 330459.0127 | HA18: 335415.8979 | HB18: 5941.355061 | HC18: 6030.475387 | HD18: 6120.932518 | HE18: 6212.746506 | HF18: 6305.937703 | HG18: 6400.526769 | HH18: 6496.53467 | HI18: 0 | HJ18: 0 | HK18: 0 | HL18: 0 | HM18: 0 | HN18: 0 | HO18: 0 | HP18: 0 | HQ18: 0 | HR18: 0 | HS18: 0 | HT18: 0 | HU18: 0 | HV18: 0 | HW18: 0 | HX18: 0 | HY18: 0 | HZ18: 0 | IA18: 0 | IC18: 774134.9254 | ID18: 0 | IE18: 0 | IF18: 0 | IG18: 0 | IH18: 0 | II18: 0 | IJ18: 0 | IK18: 0 | IL18: 0 | IM18: 0 | IN18: 0 | IO18: 0 | IP18: 0 | IQ18: 0 | IR18: 0 | IS18: 0 | IT18: 0 | IU18: 0 | IV18: 0 | IW18: 0 | IX18: 0 | IY18: 0 | IZ18: 0 | JA18: 0 | JB18: 0 | JC18: 0 | JD18: 0 | JE18: 0 | JF18: 0 | JG18: 0 | JH18: 0 | JI18: 0 | JJ18: 0 | JL18: 0 | JM18: 0 | JN18: 0 | JO18: 0 | JP18: 0 | JQ18: 0 | JR18: 0 | JS18: 0 | JT18: 0 | JU18: 0 | JV18: 0 | JW18: 0 | JX18: 0 | JY18: 0 | JZ18: 0 | KA18: 0 | KB18: 0 | KC18: 0 | KD18: 0 | KE18: 0 | KF18: 0 | KG18: 0 | KH18: 0 | KI18: 0 | KJ18: 0 | KK18: 0 | KL18: 0 | KM18: 0 | KN18: 0 | KO18: 0 | KP18: 0 | KQ18: 0 | KR18: 0 | KS18: 0 | KU18: 0 | KV18: 0 | KW18: 0 | KX18: 0 | KY18: 0 | KZ18: 0 | LA18: 0 | LB18: 0 | LC18: 0 | LD18: 0 | LE18: 0 | LF18: 0 | LG18: 0 | LH18: 0 | LI18: 0 | LJ18: 0 | LK18: 0 | LL18: 0 | LM18: 0 | LN18: 0 | LO18: 0 | LP18: 0 | LQ18: 0 | LR18: 0 | LS18: 0 | LT18: 0 | LU18: 0 | LV18: 0 | LW18: 0 | LX18: 0 | LY18: 0 | LZ18: 0 | MA18: 0 | MB18: 0 | MD18: 3078251.724 | ME18: 3078251.724 | MF18: 3078251.724 | MG18: 3078251.724 | MH18: 3078251.724 | MI18: 3078251.724 | MJ18: 3078251.724 | MK18: 3078251.724 | ML18: 53720.48845 | MM18: 53720.48845 | MN18: 53720.48845 | MO18: 53720.48845 | MP18: 53720.48845 | MQ18: 53720.48845 | MR18: 53720.48845 | MS18: 0 | MT18: 0 | MU18: 0 | MV18: 0 | MW18: 0 | MX18: 0 | MY18: 0 | MZ18: 0 | NA18: 0 | NB18: 0 | NC18: 0 | ND18: 0 | NE18: 0 | NF18: 0 | NG18: 0 | NH18: 0 | NI18: 0 | NJ18: 0 | NK18: 0 | NM18: 733.1393327 | NN18: 733.1393327 | NO18: 733.1393327 | NP18: 733.1393327 | NQ18: 733.1393327 | NR18: 733.1393327 | NS18: 733.1393327 | NT18: 733.1393327 | NU18: 5.29782 | NV18: 5.29782 | NW18: 5.29782 | NX18: 5.29782 | NY18: 5.29782 | NZ18: 5.29782 | OA18: 5.29782 | OB18: 0 | OC18: 0 | OD18: 0 | OE18: 0 | OF18: 0 | OG18: 0 | OH18: 0 | OI18: 0 | OJ18: 0 | OK18: 0 | OL18: 0 | OM18: 0 | ON18: 0 | OO18: 0 | OP18: 0 | OQ18: 0 | OR18: 0 | OS18: 0 | OT18: 0 | OV18: 0 | OW18: 0 | OX18: 0 | OY18: 0 | OZ18: 0 | PA18: 0 | PB18: 0 | PC18: 0 | PD18: 0 | PE18: 0 | PF18: 0 | PG18: 0 | PH18: 0 | PI18: 0 | PJ18: 0 | PK18: 0 | PL18: 0 | PM18: 0 | PN18: 0 | PO18: 0 | PP18: 0 | PQ18: 0 | PR18: 0 | PS18: 0 | PT18: 0 | PU18: 0 | PV18: 0 | PW18: 0 | PX18: 0 | PY18: 0 | PZ18: 0 | QA18: 0 | QB18: 0 | QC18: 0
B19: Commercial_Commercial Custom Rebate_All_All_Actual | C19: Commercial | D19: Commercial Custom Rebate | E19: All | F19: All | G19: Actual | I19: n/a | J19: 1540272.74 | K19: 1540272.74 | L19: 0 | M19: 373.149 | N19: 373.149 | O19: 0 | P19: 0 | Q19: 0 | R19: 0 | S19: 0 | T19: 0 | U19: 0 | V19: 0 | W19: 0 | Y19: 345221.88 | Z19: 0 | AC19: 172610.94 | AD19: =INDEX(OFFSET('Program Inputs'!$AE$5,,,TotalPrograms),MATCH($C19&"_"&$D19&"_"&$G19,OFFSET('Program Inputs'!$A$5,,,TotalPrograms),0)) -> 26999.96 | AE19: 199610.9 | AG19: 1.866288165 | AH19: 3.48013668 | AI19: 2.284093933 | AJ19: 4.91446932 | AK19: 0.4030403513 | AM19: 0.01397546092 | AN19: 57.68746929 | AO19: n/a | AQ19: 694673.2148 | AR19: 345221.88 | AT19: 694673.2148 | AU19: 0 | AW19: 694673.2148 | AX19: 0 | AY19: 155516.4315 | AZ19: 0 | BA19: 345221.88 | BC19: 1523971.398 | BD19: 0 | BE19: 345221.88 | BG19: 694673.2148 | BH19: 1523971.398 | BJ19: 72171.42239 | BK19: 73253.99372 | BL19: 74352.80363 | BM19: 75468.09568 | BN19: 76600.11712 | BO19: 77749.11887 | BP19: 78915.35566 | BQ19: 80099.08599 | BR19: 81300.57228 | BS19: 82520.08087 | BT19: 83757.88208 | BU19: 85014.25031 | BV19: 86289.46407 | BW19: 87583.80603 | BX19: 88897.56312 | BY19: 0 | BZ19: 0 | CA19: 0 | CB19: 0 | CC19: 0 | CD19: 0 | CE19: 0 | CF19: 0 | CG19: 0 | CH19: 0 | CI19: 0 | CJ19: 0 | CK19: 0 | CL19: 0 | CM19: 0 | CN19: 0 | CO19: 0 | CP19: 0 | CQ19: 0 | CS19: 17559.10924 | CT19: 17559.10924 | CU19: 17559.10924 | CV19: 17559.10924 | CW19: 17559.10924 | CX19: 17559.10924 | CY19: 17559.10924 | CZ19: 17559.10924 | DA19: 17559.10924 | DB19: 17559.10924 | DC19: 17559.10924 | DD19: 17559.10924 | DE19: 17559.10924 | DF19: 17559.10924 | DG19: 17559.10924 | DH19: 0 | DI19: 0 | DJ19: 0 | DK19: 0 | DL19: 0 | DM19: 0 | DN19: 0 | DO19: 0 | DP19: 0 | DQ19: 0 | DR19: 0 | DS19: 0 | DT19: 0 | DU19: 0 | DV19: 0 | DW19: 0 | DX19: 0 | DY19: 0 | DZ19: 0 | EB19: 0 | EC19: 0 | ED19: 0 | EE19: 0 | EF19: 0 | EG19: 0 | EH19: 0 | EI19: 0 | EJ19: 0 | EK19: 0 | EL19: 0 | EM19: 0 | EN19: 0 | EO19: 0 | EP19: 0 | EQ19: 0 | ER19: 0 | ES19: 0 | ET19: 0 | EU19: 0 | EV19: 0 | EW19: 0 | EX19: 0 | EY19: 0 | EZ19: 0 | FA19: 0 | FB19: 0 | FC19: 0 | FD19: 0 | FE19: 0 | FF19: 0 | FG19: 0 | FH19: 0 | FI19: 0 | FK19: 0 | FL19: 0 | FM19: 0 | FN19: 0 | FO19: 0 | FP19: 0 | FQ19: 0 | FR19: 0 | FS19: 0 | FT19: 0 | FU19: 0 | FV19: 0 | FW19: 0 | FX19: 0 | FY19: 0 | FZ19: 0 | GA19: 0 | GB19: 0 | GC19: 0 | GD19: 0 | GE19: 0 | GF19: 0 | GG19: 0 | GH19: 0 | GI19: 0 | GJ19: 0 | GK19: 0 | GL19: 0 | GM19: 0 | GN19: 0 | GO19: 0 | GP19: 0 | GQ19: 0 | GR19: 0 | GT19: 158329.3858 | GU19: 160704.3266 | GV19: 163114.8915 | GW19: 165561.6149 | GX19: 168045.0391 | GY19: 170565.7147 | GZ19: 173124.2004 | HA19: 175721.0634 | HB19: 178356.8794 | HC19: 181032.2326 | HD19: 183747.7161 | HE19: 186503.9318 | HF19: 189301.4908 | HG19: 192141.0132 | HH19: 195023.1284 | HI19: 0 | HJ19: 0 | HK19: 0 | HL19: 0 | HM19: 0 | HN19: 0 | HO19: 0 | HP19: 0 | HQ19: 0 | HR19: 0 | HS19: 0 | HT19: 0 | HU19: 0 | HV19: 0 | HW19: 0 | HX19: 0 | HY19: 0 | HZ19: 0 | IA19: 0 | IC19: 345221.88 | ID19: 0 | IE19: 0 | IF19: 0 | IG19: 0 | IH19: 0 | II19: 0 | IJ19: 0 | IK19: 0 | IL19: 0 | IM19: 0 | IN19: 0 | IO19: 0 | IP19: 0 | IQ19: 0 | IR19: 0 | IS19: 0 | IT19: 0 | IU19: 0 | IV19: 0 | IW19: 0 | IX19: 0 | IY19: 0 | IZ19: 0 | JA19: 0 | JB19: 0 | JC19: 0 | JD19: 0 | JE19: 0 | JF19: 0 | JG19: 0 | JH19: 0 | JI19: 0 | JJ19: 0 | JL19: 0 | JM19: 0 | JN19: 0 | JO19: 0 | JP19: 0 | JQ19: 0 | JR19: 0 | JS19: 0 | JT19: 0 | JU19: 0 | JV19: 0 | JW19: 0 | JX19: 0 | JY19: 0 | JZ19: 0 | KA19: 0 | KB19: 0 | KC19: 0 | KD19: 0 | KE19: 0 | KF19: 0 | KG19: 0 | KH19: 0 | KI19: 0 | KJ19: 0 | KK19: 0 | KL19: 0 | KM19: 0 | KN19: 0 | KO19: 0 | KP19: 0 | KQ19: 0 | KR19: 0 | KS19: 0 | KU19: 0 | KV19: 0 | KW19: 0 | KX19: 0 | KY19: 0 | KZ19: 0 | LA19: 0 | LB19: 0 | LC19: 0 | LD19: 0 | LE19: 0 | LF19: 0 | LG19: 0 | LH19: 0 | LI19: 0 | LJ19: 0 | LK19: 0 | LL19: 0 | LM19: 0 | LN19: 0 | LO19: 0 | LP19: 0 | LQ19: 0 | LR19: 0 | LS19: 0 | LT19: 0 | LU19: 0 | LV19: 0 | LW19: 0 | LX19: 0 | LY19: 0 | LZ19: 0 | MA19: 0 | MB19: 0 | MD19: 1612665.559 | ME19: 1612665.559 | MF19: 1612665.559 | MG19: 1612665.559 | MH19: 1612665.559 | MI19: 1612665.559 | MJ19: 1612665.559 | MK19: 1612665.559 | ML19: 1612665.559 | MM19: 1612665.559 | MN19: 1612665.559 | MO19: 1612665.559 | MP19: 1612665.559 | MQ19: 1612665.559 | MR19: 1612665.559 | MS19: 0 | MT19: 0 | MU19: 0 | MV19: 0 | MW19: 0 | MX19: 0 | MY19: 0 | MZ19: 0 | NA19: 0 | NB19: 0 | NC19: 0 | ND19: 0 | NE19: 0 | NF19: 0 | NG19: 0 | NH19: 0 | NI19: 0 | NJ19: 0 | NK19: 0 | NM19: 390.687003 | NN19: 390.687003 | NO19: 390.687003 | NP19: 390.687003 | NQ19: 390.687003 | NR19: 390.687003 | NS19: 390.687003 | NT19: 390.687003 | NU19: 390.687003 | NV19: 390.687003 | NW19: 390.687003 | NX19: 390.687003 | NY19: 390.687003 | NZ19: 390.687003 | OA19: 390.687003 | OB19: 0 | OC19: 0 | OD19: 0 | OE19: 0 | OF19: 0 | OG19: 0 | OH19: 0 | OI19: 0 | OJ19: 0 | OK19: 0 | OL19: 0 | OM19: 0 | ON19: 0 | OO19: 0 | OP19: 0 | OQ19: 0 | OR19: 0 | OS19: 0 | OT19: 0 | OV19: 0 | OW19: 0 | OX19: 0 | OY19: 0 | OZ19: 0 | PA19: 0 | PB19: 0 | PC19: 0 | PD19: 0 | PE19: 0 | PF19: 0 | PG19: 0 | PH19: 0 | PI19: 0 | PJ19: 0 | PK19: 0 | PL19: 0 | PM19: 0 | PN19: 0 | PO19: 0 | PP19: 0 | PQ19: 0 | PR19: 0 | PS19: 0 | PT19: 0 | PU19: 0 | PV19: 0 | PW19: 0 | PX19: 0 | PY19: 0 | PZ19: 0 | QA19: 0 | QB19: 0 | QC19: 0
B20: Portfolio_Cross Marketing and Training_All_All_Actual | C20: Portfolio | D20: Cross Marketing and Training | E20: All | F20: All | G20: Actual | I20: n/a | K20: =SUMIFS(OFFSET(K$23,,,TotalMeasures),OFFSET($B$23,,,TotalMeasures),SUBSTITUTE($B20,"All","*")) -> 0 | L20: =SUMIFS(OFFSET(L$23,,,TotalMeasures),OFFSET($B$23,,,TotalMeasures),SUBSTITUTE($B20,"All","*")) -> 0 | N20: =SUMIFS(OFFSET(N$23,,,TotalMeasures),OFFSET($B$23,,,TotalMeasures),SUBSTITUTE($B20,"All","*")) -> 0 | O20: 0 | P20: 0 | Q20: 0 | R20: 0 | S20: 0 | T20: 0 | U20: 0 | V20: 0 | W20: 0 | Y20: 0 | Z20: 0 | AC20: 0 | AD20: =INDEX(OFFSET('Program Inputs'!$AE$5,,,TotalPrograms),MATCH($C20&"_"&$D20&"_"&$G20,OFFSET('Program Inputs'!$A$5,,,TotalPrograms),0)) -> 107681.59 | AE20: 107681.59 | AG20: 0 | AH20: 0 | AI20: 0 | AJ20: n/a | AK20: 0 | AM20: n/a | AN20: n/a | AO20: n/a | AQ20: 0 | AR20: 0 | AT20: 0 | AU20: 0 | AW20: 0 | AX20: 0 | AY20: 0 | AZ20: 0 | BA20: 0 | BC20: 0 | BD20: 0 | BE20: 0 | BG20: 0 | BH20: 0 | BJ20: 0 | BK20: 0 | BL20: 0 | BM20: 0 | BN20: 0 | BO20: 0 | BP20: 0 | BQ20: 0 | BR20: 0 | BS20: 0 | BT20: 0 | BU20: 0 | BV20: 0 | BW20: 0 | BX20: 0 | BY20: 0 | BZ20: 0 | CA20: 0 | CB20: 0 | CC20: 0 | CD20: 0 | CE20: 0 | CF20: 0 | CG20: 0 | CH20: 0 | CI20: 0 | CJ20: 0 | CK20: 0 | CL20: 0 | CM20: 0 | CN20: 0 | CO20: 0 | CP20: 0 | CQ20: 0 | CS20: 0 | CT20: 0 | CU20: 0 | CV20: 0 | CW20: 0 | CX20: 0 | CY20: 0 | CZ20: 0 | DA20: 0 | DB20: 0 | DC20: 0 | DD20: 0 | DE20: 0 | DF20: 0 | DG20: 0 | DH20: 0 | DI20: 0 | DJ20: 0 | DK20: 0 | DL20: 0 | DM20: 0 | DN20: 0 | DO20: 0 | DP20: 0 | DQ20: 0 | DR20: 0 | DS20: 0 | DT20: 0 | DU20: 0 | DV20: 0 | DW20: 0 | DX20: 0 | DY20: 0 | DZ20: 0 | EB20: 0 | EC20: 0 | ED20: 0 | EE20: 0 | EF20: 0 | EG20: 0 | EH20: 0 | EI20: 0 | EJ20: 0 | EK20: 0 | EL20: 0 | EM20: 0 | EN20: 0 | EO20: 0 | EP20: 0 | EQ20: 0 | ER20: 0 | ES20: 0 | ET20: 0 | EU20: 0 | EV20: 0 | EW20: 0 | EX20: 0 | EY20: 0 | EZ20: 0 | FA20: 0 | FB20: 0 | FC20: 0 | FD20: 0 | FE20: 0 | FF20: 0 | FG20: 0 | FH20: 0 | FI20: 0 | FK20: 0 | FL20: 0 | FM20: 0 | FN20: 0 | FO20: 0 | FP20: 0 | FQ20: 0 | FR20: 0 | FS20: 0 | FT20: 0 | FU20: 0 | FV20: 0 | FW20: 0 | FX20: 0 | FY20: 0 | FZ20: 0 | GA20: 0 | GB20: 0 | GC20: 0 | GD20: 0 | GE20: 0 | GF20: 0 | GG20: 0 | GH20: 0 | GI20: 0 | GJ20: 0 | GK20: 0 | GL20: 0 | GM20: 0 | GN20: 0 | GO20: 0 | GP20: 0 | GQ20: 0 | GR20: 0 | GT20: 0 | GU20: 0 | GV20: 0 | GW20: 0 | GX20: 0 | GY20: 0 | GZ20: 0 | HA20: 0 | HB20: 0 | HC20: 0 | HD20: 0 | HE20: 0 | HF20: 0 | HG20: 0 | HH20: 0 | HI20: 0 | HJ20: 0 | HK20: 0 | HL20: 0 | HM20: 0 | HN20: 0 | HO20: 0 | HP20: 0 | HQ20: 0 | HR20: 0 | HS20: 0 | HT20: 0 | HU20: 0 | HV20: 0 | HW20: 0 | HX20: 0 | HY20: 0 | HZ20: 0 | IA20: 0 | IC20: 0 | ID20: 0 | IE20: 0 | IF20: 0 | IG20: 0 | IH20: 0 | II20: 0 | IJ20: 0 | IK20: 0 | IL20: 0 | IM20: 0 | IN20: 0 | IO20: 0 | IP20: 0 | IQ20: 0 | IR20: 0 | IS20: 0 | IT20: 0 | IU20: 0 | IV20: 0 | IW20: 0 | IX20: 0 | IY20: 0 | IZ20: 0 | JA20: 0 | JB20: 0 | JC20: 0 | JD20: 0 | JE20: 0 | JF20: 0 | JG20: 0 | JH20: 0 | JI20: 0 | JJ20: 0 | JL20: 0 | JM20: 0 | JN20: 0 | JO20: 0 | JP20: 0 | JQ20: 0 | JR20: 0 | JS20: 0 | JT20: 0 | JU20: 0 | JV20: 0 | JW20: 0 | JX20: 0 | JY20: 0 | JZ20: 0 | KA20: 0 | KB20: 0 | KC20: 0 | KD20: 0 | KE20: 0 | KF20: 0 | KG20: 0 | KH20: 0 | KI20: 0 | KJ20: 0 | KK20: 0 | KL20: 0 | KM20: 0 | KN20: 0 | KO20: 0 | KP20: 0 | KQ20: 0 | KR20: 0 | KS20: 0 | KU20: 0 | KV20: 0 | KW20: 0 | KX20: 0 | KY20: 0 | KZ20: 0 | LA20: 0 | LB20: 0 | LC20: 0 | LD20: 0 | LE20: 0 | LF20: 0 | LG20: 0 | LH20: 0 | LI20: 0 | LJ20: 0 | LK20: 0 | LL20: 0 | LM20: 0 | LN20: 0 | LO20: 0 | LP20: 0 | LQ20: 0 | LR20: 0 | LS20: 0 | LT20: 0 | LU20: 0 | LV20: 0 | LW20: 0 | LX20: 0 | LY20: 0 | LZ20: 0 | MA20: 0 | MB20: 0 | MD20: 0 | ME20: 0 | MF20: 0 | MG20: 0 | MH20: 0 | MI20: 0 | MJ20: 0 | MK20: 0 | ML20: 0 | MM20: 0 | MN20: 0 | MO20: 0 | MP20: 0 | MQ20: 0 | MR20: 0 | MS20: 0 | MT20: 0 | MU20: 0 | MV20: 0 | MW20: 0 | MX20: 0 | MY20: 0 | MZ20: 0 | NA20: 0 | NB20: 0 | NC20: 0 | ND20: 0 | NE20: 0 | NF20: 0 | NG20: 0 | NH20: 0 | NI20: 0 | NJ20: 0 | NK20: 0 | NM20: 0 | NN20: 0 | NO20: 0 | NP20: 0 | NQ20: 0 | NR20: 0 | NS20: 0 | NT20: 0 | NU20: 0 | NV20: 0 | NW20: 0 | NX20: 0 | NY20: 0 | NZ20: 0 | OA20: 0 | OB20: 0 | OC20: 0 | OD20: 0 | OE20: 0 | OF20: 0 | OG20: 0 | OH20: 0 | OI20: 0 | OJ20: 0 | OK20: 0 | OL20: 0 | OM20: 0 | ON20: 0 | OO20: 0 | OP20: 0 | OQ20: 0 | OR20: 0 | OS20: 0 | OT20: 0 | OV20: 0 | OW20: 0 | OX20: 0 | OY20: 0 | OZ20: 0 | PA20: 0 | PB20: 0 | PC20: 0 | PD20: 0 | PE20: 0 | PF20: 0 | PG20: 0 | PH20: 0 | PI20: 0 | PJ20: 0 | PK20: 0 | PL20: 0 | PM20: 0 | PN20: 0 | PO20: 0 | PP20: 0 | PQ20: 0 | PR20: 0 | PS20: 0 | PT20: 0 | PU20: 0 | PV20: 0 | PW20: 0 | PX20: 0 | PY20: 0 | PZ20: 0 | QA20: 0 | QB20: 0 | QC20: 0
B21: Portfolio_General Administration_All_All_Actual | C21: Portfolio | D21: General Administration | E21: All | F21: All | G21: Actual | I21: n/a | K21: =SUMIFS(OFFSET(K$23,,,TotalMeasures),OFFSET($B$23,,,TotalMeasures),SUBSTITUTE($B21,"All","*")) -> 0 | L21: =SUMIFS(OFFSET(L$23,,,TotalMeasures),OFFSET($B$23,,,TotalMeasures),SUBSTITUTE($B21,"All","*")) -> 0 | N21: 0 | O21: 0 | P21: 0 | Q21: 0 | R21: 0 | S21: 0 | T21: 0 | U21: 0 | V21: 0 | W21: 0 | Y21: 0 | Z21: 0 | AC21: 0 | AD21: =INDEX(OFFSET('Program Inputs'!$AE$5,,,TotalPrograms),MATCH($C21&"_"&$D21&"_"&$G21,OFFSET('Program Inputs'!$A$5,,,TotalPrograms),0)) -> 66144.05 | AE21: 66144.05 | AG21: 0 | AH21: 0 | AI21: 0 | AJ21: n/a | AK21: 0 | AM21: n/a | AN21: n/a | AO21: n/a | AQ21: 0 | AR21: 0 | AT21: 0 | AU21: 0 | AW21: 0 | AX21: 0 | AY21: 0 | AZ21: 0 | BA21: 0 | BC21: 0 | BD21: 0 | BE21: 0 | BG21: 0 | BH21: 0 | BJ21: 0 | BK21: 0 | BL21: 0 | BM21: 0 | BN21: 0 | BO21: 0 | BP21: 0 | BQ21: 0 | BR21: 0 | BS21: 0 | BT21: 0 | BU21: 0 | BV21: 0 | BW21: 0 | BX21: 0 | BY21: 0 | BZ21: 0 | CA21: 0 | CB21: 0 | CC21: 0 | CD21: 0 | CE21: 0 | CF21: 0 | CG21: 0 | CH21: 0 | CI21: 0 | CJ21: 0 | CK21: 0 | CL21: 0 | CM21: 0 | CN21: 0 | CO21: 0 | CP21: 0 | CQ21: 0 | CS21: 0 | CT21: 0 | CU21: 0 | CV21: 0 | CW21: 0 | CX21: 0 | CY21: 0 | CZ21: 0 | DA21: 0 | DB21: 0 | DC21: 0 | DD21: 0 | DE21: 0 | DF21: 0 | DG21: 0 | DH21: 0 | DI21: 0 | DJ21: 0 | DK21: 0 | DL21: 0 | DM21: 0 | DN21: 0 | DO21: 0 | DP21: 0 | DQ21: 0 | DR21: 0 | DS21: 0 | DT21: 0 | DU21: 0 | DV21: 0 | DW21: 0 | DX21: 0 | DY21: 0 | DZ21: 0 | EB21: 0 | EC21: 0 | ED21: 0 | EE21: 0 | EF21: 0 | EG21: 0 | EH21: 0 | EI21: 0 | EJ21: 0 | EK21: 0 | EL21: 0 | EM21: 0 | EN21: 0 | EO21: 0 | EP21: 0 | EQ21: 0 | ER21: 0 | ES21: 0 | ET21: 0 | EU21: 0 | EV21: 0 | EW21: 0 | EX21: 0 | EY21: 0 | EZ21: 0 | FA21: 0 | FB21: 0 | FC21: 0 | FD21: 0 | FE21: 0 | FF21: 0 | FG21: 0 | FH21: 0 | FI21: 0 | FK21: 0 | FL21: 0 | FM21: 0 | FN21: 0 | FO21: 0 | FP21: 0 | FQ21: 0 | FR21: 0 | FS21: 0 | FT21: 0 | FU21: 0 | FV21: 0 | FW21: 0 | FX21: 0 | FY21: 0 | FZ21: 0 | GA21: 0 | GB21: 0 | GC21: 0 | GD21: 0 | GE21: 0 | GF21: 0 | GG21: 0 | GH21: 0 | GI21: 0 | GJ21: 0 | GK21: 0 | GL21: 0 | GM21: 0 | GN21: 0 | GO21: 0 | GP21: 0 | GQ21: 0 | GR21: 0 | GT21: 0 | GU21: 0 | GV21: 0 | GW21: 0 | GX21: 0 | GY21: 0 | GZ21: 0 | HA21: 0 | HB21: 0 | HC21: 0 | HD21: 0 | HE21: 0 | HF21: 0 | HG21: 0 | HH21: 0 | HI21: 0 | HJ21: 0 | HK21: 0 | HL21: 0 | HM21: 0 | HN21: 0 | HO21: 0 | HP21: 0 | HQ21: 0 | HR21: 0 | HS21: 0 | HT21: 0 | HU21: 0 | HV21: 0 | HW21: 0 | HX21: 0 | HY21: 0 | HZ21: 0 | IA21: 0 | IC21: 0 | ID21: 0 | IE21: 0 | IF21: 0 | IG21: 0 | IH21: 0 | II21: 0 | IJ21: 0 | IK21: 0 | IL21: 0 | IM21: 0 | IN21: 0 | IO21: 0 | IP21: 0 | IQ21: 0 | IR21: 0 | IS21: 0 | IT21: 0 | IU21: 0 | IV21: 0 | IW21: 0 | IX21: 0 | IY21: 0 | IZ21: 0 | JA21: 0 | JB21: 0 | JC21: 0 | JD21: 0 | JE21: 0 | JF21: 0 | JG21: 0 | JH21: 0 | JI21: 0 | JJ21: 0 | JL21: 0 | JM21: 0 | JN21: 0 | JO21: 0 | JP21: 0 | JQ21: 0 | JR21: 0 | JS21: 0 | JT21: 0 | JU21: 0 | JV21: 0 | JW21: 0 | JX21: 0 | JY21: 0 | JZ21: 0 | KA21: 0 | KB21: 0 | KC21: 0 | KD21: 0 | KE21: 0 | KF21: 0 | KG21: 0 | KH21: 0 | KI21: 0 | KJ21: 0 | KK21: 0 | KL21: 0 | KM21: 0 | KN21: 0 | KO21: 0 | KP21: 0 | KQ21: 0 | KR21: 0 | KS21: 0 | KU21: 0 | KV21: 0 | KW21: 0 | KX21: 0 | KY21: 0 | KZ21: 0 | LA21: 0 | LB21: 0 | LC21: 0 | LD21: 0 | LE21: 0 | LF21: 0 | LG21: 0 | LH21: 0 | LI21: 0 | LJ21: 0 | LK21: 0 | LL21: 0 | LM21: 0 | LN21: 0 | LO21: 0 | LP21: 0 | LQ21: 0 | LR21: 0 | LS21: 0 | LT21: 0 | LU21: 0 | LV21: 0 | LW21: 0 | LX21: 0 | LY21: 0 | LZ21: 0 | MA21: 0 | MB21: 0 | MD21: 0 | ME21: 0 | MF21: 0 | MG21: 0 | MH21: 0 | MI21: 0 | MJ21: 0 | MK21: 0 | ML21: 0 | MM21: 0 | MN21: 0 | MO21: 0 | MP21: 0 | MQ21: 0 | MR21: 0 | MS21: 0 | MT21: 0 | MU21: 0 | MV21: 0 | MW21: 0 | MX21: 0 | MY21: 0 | MZ21: 0 | NA21: 0 | NB21: 0 | NC21: 0 | ND21: 0 | NE21: 0 | NF21: 0 | NG21: 0 | NH21: 0 | NI21: 0 | NJ21: 0 | NK21: 0 | NM21: 0 | NN21: 0 | NO21: 0 | NP21: 0 | NQ21: 0 | NR21: 0 | NS21: 0 | NT21: 0 | NU21: 0 | NV21: 0 | NW21: 0 | NX21: 0 | NY21: 0 | NZ21: 0 | OA21: 0 | OB21: 0 | OC21: 0 | OD21: 0 | OE21: 0 | OF21: 0 | OG21: 0 | OH21: 0 | OI21: 0 | OJ21: 0 | OK21: 0 | OL21: 0 | OM21: 0 | ON21: 0 | OO21: 0 | OP21: 0 | OQ21: 0 | OR21: 0 | OS21: 0 | OT21: 0 | OV21: 0 | OW21: 0 | OX21: 0 | OY21: 0 | OZ21: 0 | PA21: 0 | PB21: 0 | PC21: 0 | PD21: 0 | PE21: 0 | PF21: 0 | PG21: 0 | PH21: 0 | PI21: 0 | PJ21: 0 | PK21: 0 | PL21: 0 | PM21: 0 | PN21: 0 | PO21: 0 | PP21: 0 | PQ21: 0 | PR21: 0 | PS21: 0 | PT21: 0 | PU21: 0 | PV21: 0 | PW21: 0 | PX21: 0 | PY21: 0 | PZ21: 0 | QA21: 0 | QB21: 0 | QC21: 0
A23: =ISERROR(C23) -> TRUE | B23: ='Measure Inputs'!B7 -> 0 | C23: =INDEX(OFFSET('Measure Inputs'!$D$7,,,TotalMeasures),MATCH($B23,OFFSET('Measure Inputs'!$B$7,,,TotalMeasures),0)) ->  | D23: =INDEX(OFFSET('Measure Inputs'!$E$7,,,TotalMeasures),MATCH($B23,OFFSET('Measure Inputs'!$B$7,,,TotalMeasures),0)) ->  | E23: =INDEX(OFFSET('Measure Inputs'!$F$7,,,TotalMeasures),MATCH($B23,OFFSET('Measure Inputs'!$B$7,,,TotalMeasures),0)) ->  | F23: =INDEX(OFFSET('Measure Inputs'!$G$7,,,TotalMeasures),MATCH($B23,OFFSET('Measure Inputs'!$B$7,,,TotalMeasures),0)) ->  | G23: =INDEX(OFFSET('Measure Inputs'!$H$7,,,TotalMeasures),MATCH($B23,OFFSET('Measure Inputs'!$B$7,,,TotalMeasures),0)) ->  | I23: =INDEX(OFFSET('Measure Inputs'!$L$7,,,TotalMeasures),MATCH($B23,OFFSET('Measure Inputs'!$B$7,,,TotalMeasures),0)) ->  | J23: =IF(L23<>0,L23,K23) ->  | K23: =INDEX(OFFSET('Measure Inputs'!$AH$7,,,TotalMeasures),MATCH($B23,OFFSET('Measure Inputs'!$B$7,,,TotalMeasures),0))*$I23 ->  | L23: =INDEX(OFFSET('Measure Inputs'!$AI$7,,,TotalMeasures),MATCH($B23,OFFSET('Measure Inputs'!$B$7,,,TotalMeasures),0))*$I23 ->  | M23: =IF(O23<>0,O23,N23) ->  | N23: =INDEX(OFFSET('Measure Inputs'!$AJ$7,,,TotalMeasures),MATCH($B23,OFFSET('Measure Inputs'!$B$7,,,TotalMeasures),0))*$I23 ->  | O23: =INDEX(OFFSET('Measure Inputs'!$AK$7,,,TotalMeasures),MATCH($B23,OFFSET('Measure Inputs'!$B$7,,,TotalMeasures),0))*$I23 ->  | P23: =INDEX(OFFSET('Measure Inputs'!$AL$7,,,TotalMeasures),MATCH($B23,OFFSET('Measure Inputs'!$B$7,,,TotalMeasures),0))*$I23 ->  | Q23: =INDEX(OFFSET('Measure Inputs'!$AM$7,,,TotalMeasures),MATCH($B23,OFFSET('Measure Inputs'!$B$7,,,TotalMeasures),0))*$I23 ->  | R23: 0 | S23: 0 | T23: 0 | U23: 0 | V23: 0 | W23: 0 | Y23: =INDEX(OFFSET('Measure Inputs'!$Q$7,,,TotalMeasures),MATCH($B23,OFFSET('Measure Inputs'!$B$7,,,TotalMeasures),0))*$I23 ->  | Z23: =INDEX(OFFSET('Measure Inputs'!$R$7,,,TotalMeasures),MATCH($B23,OFFSET('Measure Inputs'!$B$7,,,TotalMeasures),0))*$I23 ->  | AA23: =INDEX(OFFSET('Measure Inputs'!$N$7,,,TotalMeasures),MATCH($B23,OFFSET('Measure Inputs'!$B$7,,,TotalMeasures),0)) ->  | AB23: =INDEX(OFFSET('Measure Inputs'!$O$7,,,TotalMeasures),MATCH($B23,OFFSET('Measure Inputs'!$B$7,,,TotalMeasures),0)) ->  | AC23: =INDEX(OFFSET('Measure Inputs'!$P$7,,,TotalMeasures),MATCH($B23,OFFSET('Measure Inputs'!$B$7,,,TotalMeasures),0))*$I23 ->  | AD23: 0 | AG23: =IF(OR(AR23>0,AD23>0),(AQ23)/(AD23+AR23),"n/a") ->  | AH23: =IF(OR(AD23>0,AC23>0),(AT23+AU23)/((AC23+AD23)),"n/a") ->  | AI23: =IF(OR(AD23>0,BA23>0),(AW23+AY23+AZ23+AX23)/(AD23+BA23),"n/a") ->  | AJ23: =IF(BE23>0,(AC23+BC23+BD23)/BE23,"n/a") ->  | AK23: =IF((BH23+AD23+AC23)>0,BG23/(BH23+AD23+AC23),"n/a") ->  | AQ23: =$BJ23+NPV(DiscountRateTRC,$BK23:$CQ23) ->  | AR23: =$IC23+NPV(DiscountRateTRC,$ID23:$JJ23) ->  | AT23: =$BJ23+NPV(DiscountRateUCT,$BK23:$CQ23) ->  | AU23: =$EB23+NPV(DiscountRateUCT,$EC23:$FI23) ->  | AW23: =$BJ23+NPV(DiscountRateSCT,$BK23:$CQ23) ->  | AX23: =$JL23+NPV(DiscountRateSCT,$JM23:$KS23) ->  | AY23: =$CS23+NPV(DiscountRateSCT,$CT23:$DZ23) ->  | AZ23: =$EB23+NPV(DiscountRateSCT,$EC23:$FI23) ->  | BA23: =$IC23+NPV(DiscountRateSCT,$ID23:$JJ23) ->  | BC23: =$GT23+NPV(DiscountRatePCT,$GU23:$IA23) ->  | BD23: =$FK23+NPV(DiscountRatePCT,$FL23:$GR23) ->  | BE23: =$IC23+NPV(DiscountRatePCT,$ID23:$JJ23) ->  | BG23: =$BJ23+NPV(DiscountRateRIM,$BK23:$CQ23) ->  | BH23: =$GT23+NPV(DiscountRateRIM,$GU23:$IA23) ->  | BJ23: =IF(AND(($AB23+$E$2)>BJ$5,BJ$5>=$E$2),'Portfolio Inputs'!F$24*$L23,IF(AND(($AA23+$E$2)>BJ$5,BJ$5>=$E$2),'Portfolio Inputs'!F$24*$K23,0))*Loss_ElectricEnergy+IF(AND(($AB23+$E$2)>BJ$5,BJ$5>=$E$2),'Portfolio Inputs'!F$25*$O23,IF(AND(($AA23+$E$2)>BJ$5,BJ$5>=$E$2),'Portfolio Inputs'!F$25*$N23,0))*Loss_ElectricDemand+IF(AND(($AB23+$E$2)>BJ$5,BJ$5>=$E$2),'Portfolio Inputs'!F$26*$Q23,IF(AND(($AA23+$E$2)>BJ$5,BJ$5>=$E$2),'Portfolio Inputs'!F$26*$P23,0))*Loss_GasEnergy ->  | BK23: =IF(AND(($AB23+$E$2)>BK$5,BK$5>=$E$2),'Portfolio Inputs'!G$24*$L23,IF(AND(($AA23+$E$2)>BK$5,BK$5>=$E$2),'Portfolio Inputs'!G$24*$K23,0))*Loss_ElectricEnergy+IF(AND(($AB23+$E$2)>BK$5,BK$5>=$E$2),'Portfolio Inputs'!G$25*$O23,IF(AND(($AA23+$E$2)>BK$5,BK$5>=$E$2),'Portfolio Inputs'!G$25*$N23,0))*Loss_ElectricDemand+IF(AND(($AB23+$E$2)>BK$5,BK$5>=$E$2),'Portfolio Inputs'!G$26*$Q23,IF(AND(($AA23+$E$2)>BK$5,BK$5>=$E$2),'Portfolio Inputs'!G$26*$P23,0))*Loss_GasEnergy ->  | BL23: =IF(AND(($AB23+$E$2)>BL$5,BL$5>=$E$2),'Portfolio Inputs'!H$24*$L23,IF(AND(($AA23+$E$2)>BL$5,BL$5>=$E$2),'Portfolio Inputs'!H$24*$K23,0))*Loss_ElectricEnergy+IF(AND(($AB23+$E$2)>BL$5,BL$5>=$E$2),'Portfolio Inputs'!H$25*$O23,IF(AND(($AA23+$E$2)>BL$5,BL$5>=$E$2),'Portfolio Inputs'!H$25*$N23,0))*Loss_ElectricDemand+IF(AND(($AB23+$E$2)>BL$5,BL$5>=$E$2),'Portfolio Inputs'!H$26*$Q23,IF(AND(($AA23+$E$2)>BL$5,BL$5>=$E$2),'Portfolio Inputs'!H$26*$P23,0))*Loss_GasEnergy ->  | BM23: =IF(AND(($AB23+$E$2)>BM$5,BM$5>=$E$2),'Portfolio Inputs'!I$24*$L23,IF(AND(($AA23+$E$2)>BM$5,BM$5>=$E$2),'Portfolio Inputs'!I$24*$K23,0))*Loss_ElectricEnergy+IF(AND(($AB23+$E$2)>BM$5,BM$5>=$E$2),'Portfolio Inputs'!I$25*$O23,IF(AND(($AA23+$E$2)>BM$5,BM$5>=$E$2),'Portfolio Inputs'!I$25*$N23,0))*Loss_ElectricDemand+IF(AND(($AB23+$E$2)>BM$5,BM$5>=$E$2),'Portfolio Inputs'!I$26*$Q23,IF(AND(($AA23+$E$2)>BM$5,BM$5>=$E$2),'Portfolio Inputs'!I$26*$P23,0))*Loss_GasEnergy ->  | BN23: =IF(AND(($AB23+$E$2)>BN$5,BN$5>=$E$2),'Portfolio Inputs'!J$24*$L23,IF(AND(($AA23+$E$2)>BN$5,BN$5>=$E$2),'Portfolio Inputs'!J$24*$K23,0))*Loss_ElectricEnergy+IF(AND(($AB23+$E$2)>BN$5,BN$5>=$E$2),'Portfolio Inputs'!J$25*$O23,IF(AND(($AA23+$E$2)>BN$5,BN$5>=$E$2),'Portfolio Inputs'!J$25*$N23,0))*Loss_ElectricDemand+IF(AND(($AB23+$E$2)>BN$5,BN$5>=$E$2),'Portfolio Inputs'!J$26*$Q23,IF(AND(($AA23+$E$2)>BN$5,BN$5>=$E$2),'Portfolio Inputs'!J$26*$P23,0))*Loss_GasEnergy ->  | BO23: =IF(AND(($AB23+$E$2)>BO$5,BO$5>=$E$2),'Portfolio Inputs'!K$24*$L23,IF(AND(($AA23+$E$2)>BO$5,BO$5>=$E$2),'Portfolio Inputs'!K$24*$K23,0))*Loss_ElectricEnergy+IF(AND(($AB23+$E$2)>BO$5,BO$5>=$E$2),'Portfolio Inputs'!K$25*$O23,IF(AND(($AA23+$E$2)>BO$5,BO$5>=$E$2),'Portfolio Inputs'!K$25*$N23,0))*Loss_ElectricDemand+IF(AND(($AB23+$E$2)>BO$5,BO$5>=$E$2),'Portfolio Inputs'!K$26*$Q23,IF(AND(($AA23+$E$2)>BO$5,BO$5>=$E$2),'Portfolio Inputs'!K$26*$P23,0))*Loss_GasEnergy ->  | BP23: =IF(AND(($AB23+$E$2)>BP$5,BP$5>=$E$2),'Portfolio Inputs'!L$24*$L23,IF(AND(($AA23+$E$2)>BP$5,BP$5>=$E$2),'Portfolio Inputs'!L$24*$K23,0))*Loss_ElectricEnergy+IF(AND(($AB23+$E$2)>BP$5,BP$5>=$E$2),'Portfolio Inputs'!L$25*$O23,IF(AND(($AA23+$E$2)>BP$5,BP$5>=$E$2),'Portfolio Inputs'!L$25*$N23,0))*Loss_ElectricDemand+IF(AND(($AB23+$E$2)>BP$5,BP$5>=$E$2),'Portfolio Inputs'!L$26*$Q23,IF(AND(($AA23+$E$2)>BP$5,BP$5>=$E$2),'Portfolio Inputs'!L$26*$P23,0))*Loss_GasEnergy ->  | BQ23: =IF(AND(($AB23+$E$2)>BQ$5,BQ$5>=$E$2),'Portfolio Inputs'!M$24*$L23,IF(AND(($AA23+$E$2)>BQ$5,BQ$5>=$E$2),'Portfolio Inputs'!M$24*$K23,0))*Loss_ElectricEnergy+IF(AND(($AB23+$E$2)>BQ$5,BQ$5>=$E$2),'Portfolio Inputs'!M$25*$O23,IF(AND(($AA23+$E$2)>BQ$5,BQ$5>=$E$2),'Portfolio Inputs'!M$25*$N23,0))*Loss_ElectricDemand+IF(AND(($AB23+$E$2)>BQ$5,BQ$5>=$E$2),'Portfolio Inputs'!M$26*$Q23,IF(AND(($AA23+$E$2)>BQ$5,BQ$5>=$E$2),'Portfolio Inputs'!M$26*$P23,0))*Loss_GasEnergy ->  | BR23: =IF(AND(($AB23+$E$2)>BR$5,BR$5>=$E$2),'Portfolio Inputs'!N$24*$L23,IF(AND(($AA23+$E$2)>BR$5,BR$5>=$E$2),'Portfolio Inputs'!N$24*$K23,0))*Loss_ElectricEnergy+IF(AND(($AB23+$E$2)>BR$5,BR$5>=$E$2),'Portfolio Inputs'!N$25*$O23,IF(AND(($AA23+$E$2)>BR$5,BR$5>=$E$2),'Portfolio Inputs'!N$25*$N23,0))*Loss_ElectricDemand+IF(AND(($AB23+$E$2)>BR$5,BR$5>=$E$2),'Portfolio Inputs'!N$26*$Q23,IF(AND(($AA23+$E$2)>BR$5,BR$5>=$E$2),'Portfolio Inputs'!N$26*$P23,0))*Loss_GasEnergy ->  | BS23: =IF(AND(($AB23+$E$2)>BS$5,BS$5>=$E$2),'Portfolio Inputs'!O$24*$L23,IF(AND(($AA23+$E$2)>BS$5,BS$5>=$E$2),'Portfolio Inputs'!O$24*$K23,0))*Loss_ElectricEnergy+IF(AND(($AB23+$E$2)>BS$5,BS$5>=$E$2),'Portfolio Inputs'!O$25*$O23,IF(AND(($AA23+$E$2)>BS$5,BS$5>=$E$2),'Portfolio Inputs'!O$25*$N23,0))*Loss_ElectricDemand+IF(AND(($AB23+$E$2)>BS$5,BS$5>=$E$2),'Portfolio Inputs'!O$26*$Q23,IF(AND(($AA23+$E$2)>BS$5,BS$5>=$E$2),'Portfolio Inputs'!O$26*$P23,0))*Loss_GasEnergy ->  | BT23: =IF(AND(($AB23+$E$2)>BT$5,BT$5>=$E$2),'Portfolio Inputs'!P$24*$L23,IF(AND(($AA23+$E$2)>BT$5,BT$5>=$E$2),'Portfolio Inputs'!P$24*$K23,0))*Loss_ElectricEnergy+IF(AND(($AB23+$E$2)>BT$5,BT$5>=$E$2),'Portfolio Inputs'!P$25*$O23,IF(AND(($AA23+$E$2)>BT$5,BT$5>=$E$2),'Portfolio Inputs'!P$25*$N23,0))*Loss_ElectricDemand+IF(AND(($AB23+$E$2)>BT$5,BT$5>=$E$2),'Portfolio Inputs'!P$26*$Q23,IF(AND(($AA23+$E$2)>BT$5,BT$5>=$E$2),'Portfolio Inputs'!P$26*$P23,0))*Loss_GasEnergy ->  | BU23: =IF(AND(($AB23+$E$2)>BU$5,BU$5>=$E$2),'Portfolio Inputs'!Q$24*$L23,IF(AND(($AA23+$E$2)>BU$5,BU$5>=$E$2),'Portfolio Inputs'!Q$24*$K23,0))*Loss_ElectricEnergy+IF(AND(($AB23+$E$2)>BU$5,BU$5>=$E$2),'Portfolio Inputs'!Q$25*$O23,IF(AND(($AA23+$E$2)>BU$5,BU$5>=$E$2),'Portfolio Inputs'!Q$25*$N23,0))*Loss_ElectricDemand+IF(AND(($AB23+$E$2)>BU$5,BU$5>=$E$2),'Portfolio Inputs'!Q$26*$Q23,IF(AND(($AA23+$E$2)>BU$5,BU$5>=$E$2),'Portfolio Inputs'!Q$26*$P23,0))*Loss_GasEnergy ->  | BV23: =IF(AND(($AB23+$E$2)>BV$5,BV$5>=$E$2),'Portfolio Inputs'!R$24*$L23,IF(AND(($AA23+$E$2)>BV$5,BV$5>=$E$2),'Portfolio Inputs'!R$24*$K23,0))*Loss_ElectricEnergy+IF(AND(($AB23+$E$2)>BV$5,BV$5>=$E$2),'Portfolio Inputs'!R$25*$O23,IF(AND(($AA23+$E$2)>BV$5,BV$5>=$E$2),'Portfolio Inputs'!R$25*$N23,0))*Loss_ElectricDemand+IF(AND(($AB23+$E$2)>BV$5,BV$5>=$E$2),'Portfolio Inputs'!R$26*$Q23,IF(AND(($AA23+$E$2)>BV$5,BV$5>=$E$2),'Portfolio Inputs'!R$26*$P23,0))*Loss_GasEnergy ->  | BW23: =IF(AND(($AB23+$E$2)>BW$5,BW$5>=$E$2),'Portfolio Inputs'!S$24*$L23,IF(AND(($AA23+$E$2)>BW$5,BW$5>=$E$2),'Portfolio Inputs'!S$24*$K23,0))*Loss_ElectricEnergy+IF(AND(($AB23+$E$2)>BW$5,BW$5>=$E$2),'Portfolio Inputs'!S$25*$O23,IF(AND(($AA23+$E$2)>BW$5,BW$5>=$E$2),'Portfolio Inputs'!S$25*$N23,0))*Loss_ElectricDemand+IF(AND(($AB23+$E$2)>BW$5,BW$5>=$E$2),'Portfolio Inputs'!S$26*$Q23,IF(AND(($AA23+$E$2)>BW$5,BW$5>=$E$2),'Portfolio Inputs'!S$26*$P23,0))*Loss_GasEnergy ->  | BX23: =IF(AND(($AB23+$E$2)>BX$5,BX$5>=$E$2),'Portfolio Inputs'!T$24*$L23,IF(AND(($AA23+$E$2)>BX$5,BX$5>=$E$2),'Portfolio Inputs'!T$24*$K23,0))*Loss_ElectricEnergy+IF(AND(($AB23+$E$2)>BX$5,BX$5>=$E$2),'Portfolio Inputs'!T$25*$O23,IF(AND(($AA23+$E$2)>BX$5,BX$5>=$E$2),'Portfolio Inputs'!T$25*$N23,0))*Loss_ElectricDemand+IF(AND(($AB23+$E$2)>BX$5,BX$5>=$E$2),'Portfolio Inputs'!T$26*$Q23,IF(AND(($AA23+$E$2)>BX$5,BX$5>=$E$2),'Portfolio Inputs'!T$26*$P23,0))*Loss_GasEnergy ->  | BY23: =IF(AND(($AB23+$E$2)>BY$5,BY$5>=$E$2),'Portfolio Inputs'!U$24*$L23,IF(AND(($AA23+$E$2)>BY$5,BY$5>=$E$2),'Portfolio Inputs'!U$24*$K23,0))*Loss_ElectricEnergy+IF(AND(($AB23+$E$2)>BY$5,BY$5>=$E$2),'Portfolio Inputs'!U$25*$O23,IF(AND(($AA23+$E$2)>BY$5,BY$5>=$E$2),'Portfolio Inputs'!U$25*$N23,0))*Loss_ElectricDemand+IF(AND(($AB23+$E$2)>BY$5,BY$5>=$E$2),'Portfolio Inputs'!U$26*$Q23,IF(AND(($AA23+$E$2)>BY$5,BY$5>=$E$2),'Portfolio Inputs'!U$26*$P23,0))*Loss_GasEnergy ->  | BZ23: =IF(AND(($AB23+$E$2)>BZ$5,BZ$5>=$E$2),'Portfolio Inputs'!V$24*$L23,IF(AND(($AA23+$E$2)>BZ$5,BZ$5>=$E$2),'Portfolio Inputs'!V$24*$K23,0))*Loss_ElectricEnergy+IF(AND(($AB23+$E$2)>BZ$5,BZ$5>=$E$2),'Portfolio Inputs'!V$25*$O23,IF(AND(($AA23+$E$2)>BZ$5,BZ$5>=$E$2),'Portfolio Inputs'!V$25*$N23,0))*Loss_ElectricDemand+IF(AND(($AB23+$E$2)>BZ$5,BZ$5>=$E$2),'Portfolio Inputs'!V$26*$Q23,IF(AND(($AA23+$E$2)>BZ$5,BZ$5>=$E$2),'Portfolio Inputs'!V$26*$P23,0))*Loss_GasEnergy ->  | CA23: =IF(AND(($AB23+$E$2)>CA$5,CA$5>=$E$2),'Portfolio Inputs'!W$24*$L23,IF(AND(($AA23+$E$2)>CA$5,CA$5>=$E$2),'Portfolio Inputs'!W$24*$K23,0))*Loss_ElectricEnergy+IF(AND(($AB23+$E$2)>CA$5,CA$5>=$E$2),'Portfolio Inputs'!W$25*$O23,IF(AND(($AA23+$E$2)>CA$5,CA$5>=$E$2),'Portfolio Inputs'!W$25*$N23,0))*Loss_ElectricDemand+IF(AND(($AB23+$E$2)>CA$5,CA$5>=$E$2),'Portfolio Inputs'!W$26*$Q23,IF(AND(($AA23+$E$2)>CA$5,CA$5>=$E$2),'Portfolio Inputs'!W$26*$P23,0))*Loss_GasEnergy ->  | CB23: =IF(AND(($AB23+$E$2)>CB$5,CB$5>=$E$2),'Portfolio Inputs'!X$24*$L23,IF(AND(($AA23+$E$2)>CB$5,CB$5>=$E$2),'Portfolio Inputs'!X$24*$K23,0))*Loss_ElectricEnergy+IF(AND(($AB23+$E$2)>CB$5,CB$5>=$E$2),'Portfolio Inputs'!X$25*$O23,IF(AND(($AA23+$E$2)>CB$5,CB$5>=$E$2),'Portfolio Inputs'!X$25*$N23,0))*Loss_ElectricDemand+IF(AND(($AB23+$E$2)>CB$5,CB$5>=$E$2),'Portfolio Inputs'!X$26*$Q23,IF(AND(($AA23+$E$2)>CB$5,CB$5>=$E$2),'Portfolio Inputs'!X$26*$P23,0))*Loss_GasEnergy ->  | CC23: =IF(AND(($AB23+$E$2)>CC$5,CC$5>=$E$2),'Portfolio Inputs'!Y$24*$L23,IF(AND(($AA23+$E$2)>CC$5,CC$5>=$E$2),'Portfolio Inputs'!Y$24*$K23,0))*Loss_ElectricEnergy+IF(AND(($AB23+$E$2)>CC$5,CC$5>=$E$2),'Portfolio Inputs'!Y$25*$O23,IF(AND(($AA23+$E$2)>CC$5,CC$5>=$E$2),'Portfolio Inputs'!Y$25*$N23,0))*Loss_ElectricDemand+IF(AND(($AB23+$E$2)>CC$5,CC$5>=$E$2),'Portfolio Inputs'!Y$26*$Q23,IF(AND(($AA23+$E$2)>CC$5,CC$5>=$E$2),'Portfolio Inputs'!Y$26*$P23,0))*Loss_GasEnergy ->  | CD23: =IF(AND(($AB23+$E$2)>CD$5,CD$5>=$E$2),'Portfolio Inputs'!Z$24*$L23,IF(AND(($AA23+$E$2)>CD$5,CD$5>=$E$2),'Portfolio Inputs'!Z$24*$K23,0))*Loss_ElectricEnergy+IF(AND(($AB23+$E$2)>CD$5,CD$5>=$E$2),'Portfolio Inputs'!Z$25*$O23,IF(AND(($AA23+$E$2)>CD$5,CD$5>=$E$2),'Portfolio Inputs'!Z$25*$N23,0))*Loss_ElectricDemand+IF(AND(($AB23+$E$2)>CD$5,CD$5>=$E$2),'Portfolio Inputs'!Z$26*$Q23,IF(AND(($AA23+$E$2)>CD$5,CD$5>=$E$2),'Portfolio Inputs'!Z$26*$P23,0))*Loss_GasEnergy ->  | CE23: =IF(AND(($AB23+$E$2)>CE$5,CE$5>=$E$2),'Portfolio Inputs'!AA$24*$L23,IF(AND(($AA23+$E$2)>CE$5,CE$5>=$E$2),'Portfolio Inputs'!AA$24*$K23,0))*Loss_ElectricEnergy+IF(AND(($AB23+$E$2)>CE$5,CE$5>=$E$2),'Portfolio Inputs'!AA$25*$O23,IF(AND(($AA23+$E$2)>CE$5,CE$5>=$E$2),'Portfolio Inputs'!AA$25*$N23,0))*Loss_ElectricDemand+IF(AND(($AB23+$E$2)>CE$5,CE$5>=$E$2),'Portfolio Inputs'!AA$26*$Q23,IF(AND(($AA23+$E$2)>CE$5,CE$5>=$E$2),'Portfolio Inputs'!AA$26*$P23,0))*Loss_GasEnergy ->  | CF23: =IF(AND(($AB23+$E$2)>CF$5,CF$5>=$E$2),'Portfolio Inputs'!AB$24*$L23,IF(AND(($AA23+$E$2)>CF$5,CF$5>=$E$2),'Portfolio Inputs'!AB$24*$K23,0))*Loss_ElectricEnergy+IF(AND(($AB23+$E$2)>CF$5,CF$5>=$E$2),'Portfolio Inputs'!AB$25*$O23,IF(AND(($AA23+$E$2)>CF$5,CF$5>=$E$2),'Portfolio Inputs'!AB$25*$N23,0))*Loss_ElectricDemand+IF(AND(($AB23+$E$2)>CF$5,CF$5>=$E$2),'Portfolio Inputs'!AB$26*$Q23,IF(AND(($AA23+$E$2)>CF$5,CF$5>=$E$2),'Portfolio Inputs'!AB$26*$P23,0))*Loss_GasEnergy ->  | CG23: =IF(AND(($AB23+$E$2)>CG$5,CG$5>=$E$2),'Portfolio Inputs'!AC$24*$L23,IF(AND(($AA23+$E$2)>CG$5,CG$5>=$E$2),'Portfolio Inputs'!AC$24*$K23,0))*Loss_ElectricEnergy+IF(AND(($AB23+$E$2)>CG$5,CG$5>=$E$2),'Portfolio Inputs'!AC$25*$O23,IF(AND(($AA23+$E$2)>CG$5,CG$5>=$E$2),'Portfolio Inputs'!AC$25*$N23,0))*Loss_ElectricDemand+IF(AND(($AB23+$E$2)>CG$5,CG$5>=$E$2),'Portfolio Inputs'!AC$26*$Q23,IF(AND(($AA23+$E$2)>CG$5,CG$5>=$E$2),'Portfolio Inputs'!AC$26*$P23,0))*Loss_GasEnergy ->  | CH23: =IF(AND(($AB23+$E$2)>CH$5,CH$5>=$E$2),'Portfolio Inputs'!AD$24*$L23,IF(AND(($AA23+$E$2)>CH$5,CH$5>=$E$2),'Portfolio Inputs'!AD$24*$K23,0))*Loss_ElectricEnergy+IF(AND(($AB23+$E$2)>CH$5,CH$5>=$E$2),'Portfolio Inputs'!AD$25*$O23,IF(AND(($AA23+$E$2)>CH$5,CH$5>=$E$2),'Portfolio Inputs'!AD$25*$N23,0))*Loss_ElectricDemand+IF(AND(($AB23+$E$2)>CH$5,CH$5>=$E$2),'Portfolio Inputs'!AD$26*$Q23,IF(AND(($AA23+$E$2)>CH$5,CH$5>=$E$2),'Portfolio Inputs'!AD$26*$P23,0))*Loss_GasEnergy ->  | CI23: =IF(AND(($AB23+$E$2)>CI$5,CI$5>=$E$2),'Portfolio Inputs'!AE$24*$L23,IF(AND(($AA23+$E$2)>CI$5,CI$5>=$E$2),'Portfolio Inputs'!AE$24*$K23,0))*Loss_ElectricEnergy+IF(AND(($AB23+$E$2)>CI$5,CI$5>=$E$2),'Portfolio Inputs'!AE$25*$O23,IF(AND(($AA23+$E$2)>CI$5,CI$5>=$E$2),'Portfolio Inputs'!AE$25*$N23,0))*Loss_ElectricDemand+IF(AND(($AB23+$E$2)>CI$5,CI$5>=$E$2),'Portfolio Inputs'!AE$26*$Q23,IF(AND(($AA23+$E$2)>CI$5,CI$5>=$E$2),'Portfolio Inputs'!AE$26*$P23,0))*Loss_GasEnergy ->  | CJ23: =IF(AND(($AB23+$E$2)>CJ$5,CJ$5>=$E$2),'Portfolio Inputs'!AF$24*$L23,IF(AND(($AA23+$E$2)>CJ$5,CJ$5>=$E$2),'Portfolio Inputs'!AF$24*$K23,0))*Loss_ElectricEnergy+IF(AND(($AB23+$E$2)>CJ$5,CJ$5>=$E$2),'Portfolio Inputs'!AF$25*$O23,IF(AND(($AA23+$E$2)>CJ$5,CJ$5>=$E$2),'Portfolio Inputs'!AF$25*$N23,0))*Loss_ElectricDemand+IF(AND(($AB23+$E$2)>CJ$5,CJ$5>=$E$2),'Portfolio Inputs'!AF$26*$Q23,IF(AND(($AA23+$E$2)>CJ$5,CJ$5>=$E$2),'Portfolio Inputs'!AF$26*$P23,0))*Loss_GasEnergy ->  | CK23: =IF(AND(($AB23+$E$2)>CK$5,CK$5>=$E$2),'Portfolio Inputs'!AG$24*$L23,IF(AND(($AA23+$E$2)>CK$5,CK$5>=$E$2),'Portfolio Inputs'!AG$24*$K23,0))*Loss_ElectricEnergy+IF(AND(($AB23+$E$2)>CK$5,CK$5>=$E$2),'Portfolio Inputs'!AG$25*$O23,IF(AND(($AA23+$E$2)>CK$5,CK$5>=$E$2),'Portfolio Inputs'!AG$25*$N23,0))*Loss_ElectricDemand+IF(AND(($AB23+$E$2)>CK$5,CK$5>=$E$2),'Portfolio Inputs'!AG$26*$Q23,IF(AND(($AA23+$E$2)>CK$5,CK$5>=$E$2),'Portfolio Inputs'!AG$26*$P23,0))*Loss_GasEnergy ->  | CL23: =IF(AND(($AB23+$E$2)>CL$5,CL$5>=$E$2),'Portfolio Inputs'!AH$24*$L23,IF(AND(($AA23+$E$2)>CL$5,CL$5>=$E$2),'Portfolio Inputs'!AH$24*$K23,0))*Loss_ElectricEnergy+IF(AND(($AB23+$E$2)>CL$5,CL$5>=$E$2),'Portfolio Inputs'!AH$25*$O23,IF(AND(($AA23+$E$2)>CL$5,CL$5>=$E$2),'Portfolio Inputs'!AH$25*$N23,0))*Loss_ElectricDemand+IF(AND(($AB23+$E$2)>CL$5,CL$5>=$E$2),'Portfolio Inputs'!AH$26*$Q23,IF(AND(($AA23+$E$2)>CL$5,CL$5>=$E$2),'Portfolio Inputs'!AH$26*$P23,0))*Loss_GasEnergy ->  | CM23: =IF(AND(($AB23+$E$2)>CM$5,CM$5>=$E$2),'Portfolio Inputs'!AI$24*$L23,IF(AND(($AA23+$E$2)>CM$5,CM$5>=$E$2),'Portfolio Inputs'!AI$24*$K23,0))*Loss_ElectricEnergy+IF(AND(($AB23+$E$2)>CM$5,CM$5>=$E$2),'Portfolio Inputs'!AI$25*$O23,IF(AND(($AA23+$E$2)>CM$5,CM$5>=$E$2),'Portfolio Inputs'!AI$25*$N23,0))*Loss_ElectricDemand+IF(AND(($AB23+$E$2)>CM$5,CM$5>=$E$2),'Portfolio Inputs'!AI$26*$Q23,IF(AND(($AA23+$E$2)>CM$5,CM$5>=$E$2),'Portfolio Inputs'!AI$26*$P23,0))*Loss_GasEnergy ->  | CN23: =IF(AND(($AB23+$E$2)>CN$5,CN$5>=$E$2),'Portfolio Inputs'!AJ$24*$L23,IF(AND(($AA23+$E$2)>CN$5,CN$5>=$E$2),'Portfolio Inputs'!AJ$24*$K23,0))*Loss_ElectricEnergy+IF(AND(($AB23+$E$2)>CN$5,CN$5>=$E$2),'Portfolio Inputs'!AJ$25*$O23,IF(AND(($AA23+$E$2)>CN$5,CN$5>=$E$2),'Portfolio Inputs'!AJ$25*$N23,0))*Loss_ElectricDemand+IF(AND(($AB23+$E$2)>CN$5,CN$5>=$E$2),'Portfolio Inputs'!AJ$26*$Q23,IF(AND(($AA23+$E$2)>CN$5,CN$5>=$E$2),'Portfolio Inputs'!AJ$26*$P23,0))*Loss_GasEnergy ->  | CO23: =IF(AND(($AB23+$E$2)>CO$5,CO$5>=$E$2),'Portfolio Inputs'!AK$24*$L23,IF(AND(($AA23+$E$2)>CO$5,CO$5>=$E$2),'Portfolio Inputs'!AK$24*$K23,0))*Loss_ElectricEnergy+IF(AND(($AB23+$E$2)>CO$5,CO$5>=$E$2),'Portfolio Inputs'!AK$25*$O23,IF(AND(($AA23+$E$2)>CO$5,CO$5>=$E$2),'Portfolio Inputs'!AK$25*$N23,0))*Loss_ElectricDemand+IF(AND(($AB23+$E$2)>CO$5,CO$5>=$E$2),'Portfolio Inputs'!AK$26*$Q23,IF(AND(($AA23+$E$2)>CO$5,CO$5>=$E$2),'Portfolio Inputs'!AK$26*$P23,0))*Loss_GasEnergy ->  | CP23: =IF(AND(($AB23+$E$2)>CP$5,CP$5>=$E$2),'Portfolio Inputs'!AL$24*$L23,IF(AND(($AA23+$E$2)>CP$5,CP$5>=$E$2),'Portfolio Inputs'!AL$24*$K23,0))*Loss_ElectricEnergy+IF(AND(($AB23+$E$2)>CP$5,CP$5>=$E$2),'Portfolio Inputs'!AL$25*$O23,IF(AND(($AA23+$E$2)>CP$5,CP$5>=$E$2),'Portfolio Inputs'!AL$25*$N23,0))*Loss_ElectricDemand+IF(AND(($AB23+$E$2)>CP$5,CP$5>=$E$2),'Portfolio Inputs'!AL$26*$Q23,IF(AND(($AA23+$E$2)>CP$5,CP$5>=$E$2),'Portfolio Inputs'!AL$26*$P23,0))*Loss_GasEnergy ->  | CQ23: =IF(AND(($AB23+$E$2)>CQ$5,CQ$5>=$E$2),'Portfolio Inputs'!AM$24*$L23,IF(AND(($AA23+$E$2)>CQ$5,CQ$5>=$E$2),'Portfolio Inputs'!AM$24*$K23,0))*Loss_ElectricEnergy+IF(AND(($AB23+$E$2)>CQ$5,CQ$5>=$E$2),'Portfolio Inputs'!AM$25*$O23,IF(AND(($AA23+$E$2)>CQ$5,CQ$5>=$E$2),'Portfolio Inputs'!AM$25*$N23,0))*Loss_ElectricDemand+IF(AND(($AB23+$E$2)>CQ$5,CQ$5>=$E$2),'Portfolio Inputs'!AM$26*$Q23,IF(AND(($AA23+$E$2)>CQ$5,CQ$5>=$E$2),'Portfolio Inputs'!AM$26*$P23,0))*Loss_GasEnergy ->  | CS23: =IF(AND(($AB23+$E$2)>CS$5,CS$5>=$E$2),'Portfolio Inputs'!F$29*$L23,IF(AND(($AA23+$E$2)>CS$5,CS$5>=$E$2),'Portfolio Inputs'!F$29*$K23,0)) ->  | CT23: =IF(AND(($AB23+$E$2)>CT$5,CT$5>=$E$2),'Portfolio Inputs'!G$29*$L23,IF(AND(($AA23+$E$2)>CT$5,CT$5>=$E$2),'Portfolio Inputs'!G$29*$K23,0)) ->  | CU23: =IF(AND(($AB23+$E$2)>CU$5,CU$5>=$E$2),'Portfolio Inputs'!H$29*$L23,IF(AND(($AA23+$E$2)>CU$5,CU$5>=$E$2),'Portfolio Inputs'!H$29*$K23,0)) ->  | CV23: =IF(AND(($AB23+$E$2)>CV$5,CV$5>=$E$2),'Portfolio Inputs'!I$29*$L23,IF(AND(($AA23+$E$2)>CV$5,CV$5>=$E$2),'Portfolio Inputs'!I$29*$K23,0)) ->  | CW23: =IF(AND(($AB23+$E$2)>CW$5,CW$5>=$E$2),'Portfolio Inputs'!J$29*$L23,IF(AND(($AA23+$E$2)>CW$5,CW$5>=$E$2),'Portfolio Inputs'!J$29*$K23,0)) ->  | CX23: =IF(AND(($AB23+$E$2)>CX$5,CX$5>=$E$2),'Portfolio Inputs'!K$29*$L23,IF(AND(($AA23+$E$2)>CX$5,CX$5>=$E$2),'Portfolio Inputs'!K$29*$K23,0)) ->  | CY23: =IF(AND(($AB23+$E$2)>CY$5,CY$5>=$E$2),'Portfolio Inputs'!L$29*$L23,IF(AND(($AA23+$E$2)>CY$5,CY$5>=$E$2),'Portfolio Inputs'!L$29*$K23,0)) ->  | CZ23: =IF(AND(($AB23+$E$2)>CZ$5,CZ$5>=$E$2),'Portfolio Inputs'!M$29*$L23,IF(AND(($AA23+$E$2)>CZ$5,CZ$5>=$E$2),'Portfolio Inputs'!M$29*$K23,0)) ->  | DA23: =IF(AND(($AB23+$E$2)>DA$5,DA$5>=$E$2),'Portfolio Inputs'!N$29*$L23,IF(AND(($AA23+$E$2)>DA$5,DA$5>=$E$2),'Portfolio Inputs'!N$29*$K23,0)) ->  | DB23: =IF(AND(($AB23+$E$2)>DB$5,DB$5>=$E$2),'Portfolio Inputs'!O$29*$L23,IF(AND(($AA23+$E$2)>DB$5,DB$5>=$E$2),'Portfolio Inputs'!O$29*$K23,0)) ->  | DC23: =IF(AND(($AB23+$E$2)>DC$5,DC$5>=$E$2),'Portfolio Inputs'!P$29*$L23,IF(AND(($AA23+$E$2)>DC$5,DC$5>=$E$2),'Portfolio Inputs'!P$29*$K23,0)) ->  | DD23: =IF(AND(($AB23+$E$2)>DD$5,DD$5>=$E$2),'Portfolio Inputs'!Q$29*$L23,IF(AND(($AA23+$E$2)>DD$5,DD$5>=$E$2),'Portfolio Inputs'!Q$29*$K23,0)) ->  | DE23: =IF(AND(($AB23+$E$2)>DE$5,DE$5>=$E$2),'Portfolio Inputs'!R$29*$L23,IF(AND(($AA23+$E$2)>DE$5,DE$5>=$E$2),'Portfolio Inputs'!R$29*$K23,0)) ->  | DF23: =IF(AND(($AB23+$E$2)>DF$5,DF$5>=$E$2),'Portfolio Inputs'!S$29*$L23,IF(AND(($AA23+$E$2)>DF$5,DF$5>=$E$2),'Portfolio Inputs'!S$29*$K23,0)) ->  | DG23: =IF(AND(($AB23+$E$2)>DG$5,DG$5>=$E$2),'Portfolio Inputs'!T$29*$L23,IF(AND(($AA23+$E$2)>DG$5,DG$5>=$E$2),'Portfolio Inputs'!T$29*$K23,0)) ->  | DH23: =IF(AND(($AB23+$E$2)>DH$5,DH$5>=$E$2),'Portfolio Inputs'!U$29*$L23,IF(AND(($AA23+$E$2)>DH$5,DH$5>=$E$2),'Portfolio Inputs'!U$29*$K23,0)) ->  | DI23: =IF(AND(($AB23+$E$2)>DI$5,DI$5>=$E$2),'Portfolio Inputs'!V$29*$L23,IF(AND(($AA23+$E$2)>DI$5,DI$5>=$E$2),'Portfolio Inputs'!V$29*$K23,0)) ->  | DJ23: =IF(AND(($AB23+$E$2)>DJ$5,DJ$5>=$E$2),'Portfolio Inputs'!W$29*$L23,IF(AND(($AA23+$E$2)>DJ$5,DJ$5>=$E$2),'Portfolio Inputs'!W$29*$K23,0)) ->  | DK23: =IF(AND(($AB23+$E$2)>DK$5,DK$5>=$E$2),'Portfolio Inputs'!X$29*$L23,IF(AND(($AA23+$E$2)>DK$5,DK$5>=$E$2),'Portfolio Inputs'!X$29*$K23,0)) ->  | DL23: =IF(AND(($AB23+$E$2)>DL$5,DL$5>=$E$2),'Portfolio Inputs'!Y$29*$L23,IF(AND(($AA23+$E$2)>DL$5,DL$5>=$E$2),'Portfolio Inputs'!Y$29*$K23,0)) ->  | DM23: =IF(AND(($AB23+$E$2)>DM$5,DM$5>=$E$2),'Portfolio Inputs'!Z$29*$L23,IF(AND(($AA23+$E$2)>DM$5,DM$5>=$E$2),'Portfolio Inputs'!Z$29*$K23,0)) ->  | DN23: =IF(AND(($AB23+$E$2)>DN$5,DN$5>=$E$2),'Portfolio Inputs'!AA$29*$L23,IF(AND(($AA23+$E$2)>DN$5,DN$5>=$E$2),'Portfolio Inputs'!AA$29*$K23,0)) ->  | DO23: =IF(AND(($AB23+$E$2)>DO$5,DO$5>=$E$2),'Portfolio Inputs'!AB$29*$L23,IF(AND(($AA23+$E$2)>DO$5,DO$5>=$E$2),'Portfolio Inputs'!AB$29*$K23,0)) ->  | DP23: =IF(AND(($AB23+$E$2)>DP$5,DP$5>=$E$2),'Portfolio Inputs'!AC$29*$L23,IF(AND(($AA23+$E$2)>DP$5,DP$5>=$E$2),'Portfolio Inputs'!AC$29*$K23,0)) ->  | DQ23: =IF(AND(($AB23+$E$2)>DQ$5,DQ$5>=$E$2),'Portfolio Inputs'!AD$29*$L23,IF(AND(($AA23+$E$2)>DQ$5,DQ$5>=$E$2),'Portfolio Inputs'!AD$29*$K23,0)) ->  | DR23: =IF(AND(($AB23+$E$2)>DR$5,DR$5>=$E$2),'Portfolio Inputs'!AE$29*$L23,IF(AND(($AA23+$E$2)>DR$5,DR$5>=$E$2),'Portfolio Inputs'!AE$29*$K23,0)) ->  | DS23: =IF(AND(($AB23+$E$2)>DS$5,DS$5>=$E$2),'Portfolio Inputs'!AF$29*$L23,IF(AND(($AA23+$E$2)>DS$5,DS$5>=$E$2),'Portfolio Inputs'!AF$29*$K23,0)) ->  | DT23: =IF(AND(($AB23+$E$2)>DT$5,DT$5>=$E$2),'Portfolio Inputs'!AG$29*$L23,IF(AND(($AA23+$E$2)>DT$5,DT$5>=$E$2),'Portfolio Inputs'!AG$29*$K23,0)) ->  | DU23: =IF(AND(($AB23+$E$2)>DU$5,DU$5>=$E$2),'Portfolio Inputs'!AH$29*$L23,IF(AND(($AA23+$E$2)>DU$5,DU$5>=$E$2),'Portfolio Inputs'!AH$29*$K23,0)) ->  | DV23: =IF(AND(($AB23+$E$2)>DV$5,DV$5>=$E$2),'Portfolio Inputs'!AI$29*$L23,IF(AND(($AA23+$E$2)>DV$5,DV$5>=$E$2),'Portfolio Inputs'!AI$29*$K23,0)) ->  | DW23: =IF(AND(($AB23+$E$2)>DW$5,DW$5>=$E$2),'Portfolio Inputs'!AJ$29*$L23,IF(AND(($AA23+$E$2)>DW$5,DW$5>=$E$2),'Portfolio Inputs'!AJ$29*$K23,0)) ->  | DX23: =IF(AND(($AB23+$E$2)>DX$5,DX$5>=$E$2),'Portfolio Inputs'!AK$29*$L23,IF(AND(($AA23+$E$2)>DX$5,DX$5>=$E$2),'Portfolio Inputs'!AK$29*$K23,0)) ->  | DY23: =IF(AND(($AB23+$E$2)>DY$5,DY$5>=$E$2),'Portfolio Inputs'!AL$29*$L23,IF(AND(($AA23+$E$2)>DY$5,DY$5>=$E$2),'Portfolio Inputs'!AL$29*$K23,0)) ->  | DZ23: =IF(AND(($AB23+$E$2)>DZ$5,DZ$5>=$E$2),'Portfolio Inputs'!AM$29*$L23,IF(AND(($AA23+$E$2)>DZ$5,DZ$5>=$E$2),'Portfolio Inputs'!AM$29*$K23,0)) ->  | EB23: =IF(AND(($AB23+$E$2)>EB$5,EB$5>=$E$2),'Portfolio Inputs'!F$27*$U23,IF(AND(($AA23+$E$2)>EB$5,EB$5>=$E$2),'Portfolio Inputs'!F$27*$T23,0)) +IF(AND(($AB23+$E$2)>EB$5,EB$5>=$E$2),'Portfolio Inputs'!F$28*$W23,IF(AND(($AA23+$E$2)>EB$5,EB$5>=$E$2),'Portfolio Inputs'!F$28*$V23,0)) ->  | EC23: =IF(AND(($AB23+$E$2)>EC$5,EC$5>=$E$2),'Portfolio Inputs'!G$27*$U23,IF(AND(($AA23+$E$2)>EC$5,EC$5>=$E$2),'Portfolio Inputs'!G$27*$T23,0)) +IF(AND(($AB23+$E$2)>EC$5,EC$5>=$E$2),'Portfolio Inputs'!G$28*$W23,IF(AND(($AA23+$E$2)>EC$5,EC$5>=$E$2),'Portfolio Inputs'!G$28*$V23,0)) ->  | ED23: =IF(AND(($AB23+$E$2)>ED$5,ED$5>=$E$2),'Portfolio Inputs'!H$27*$U23,IF(AND(($AA23+$E$2)>ED$5,ED$5>=$E$2),'Portfolio Inputs'!H$27*$T23,0)) +IF(AND(($AB23+$E$2)>ED$5,ED$5>=$E$2),'Portfolio Inputs'!H$28*$W23,IF(AND(($AA23+$E$2)>ED$5,ED$5>=$E$2),'Portfolio Inputs'!H$28*$V23,0)) ->  | EE23: =IF(AND(($AB23+$E$2)>EE$5,EE$5>=$E$2),'Portfolio Inputs'!I$27*$U23,IF(AND(($AA23+$E$2)>EE$5,EE$5>=$E$2),'Portfolio Inputs'!I$27*$T23,0)) +IF(AND(($AB23+$E$2)>EE$5,EE$5>=$E$2),'Portfolio Inputs'!I$28*$W23,IF(AND(($AA23+$E$2)>EE$5,EE$5>=$E$2),'Portfolio Inputs'!I$28*$V23,0)) ->  | EF23: =IF(AND(($AB23+$E$2)>EF$5,EF$5>=$E$2),'Portfolio Inputs'!J$27*$U23,IF(AND(($AA23+$E$2)>EF$5,EF$5>=$E$2),'Portfolio Inputs'!J$27*$T23,0)) +IF(AND(($AB23+$E$2)>EF$5,EF$5>=$E$2),'Portfolio Inputs'!J$28*$W23,IF(AND(($AA23+$E$2)>EF$5,EF$5>=$E$2),'Portfolio Inputs'!J$28*$V23,0)) ->  | EG23: =IF(AND(($AB23+$E$2)>EG$5,EG$5>=$E$2),'Portfolio Inputs'!K$27*$U23,IF(AND(($AA23+$E$2)>EG$5,EG$5>=$E$2),'Portfolio Inputs'!K$27*$T23,0)) +IF(AND(($AB23+$E$2)>EG$5,EG$5>=$E$2),'Portfolio Inputs'!K$28*$W23,IF(AND(($AA23+$E$2)>EG$5,EG$5>=$E$2),'Portfolio Inputs'!K$28*$V23,0)) ->  | EH23: =IF(AND(($AB23+$E$2)>EH$5,EH$5>=$E$2),'Portfolio Inputs'!L$27*$U23,IF(AND(($AA23+$E$2)>EH$5,EH$5>=$E$2),'Portfolio Inputs'!L$27*$T23,0)) +IF(AND(($AB23+$E$2)>EH$5,EH$5>=$E$2),'Portfolio Inputs'!L$28*$W23,IF(AND(($AA23+$E$2)>EH$5,EH$5>=$E$2),'Portfolio Inputs'!L$28*$V23,0)) ->  | EI23: =IF(AND(($AB23+$E$2)>EI$5,EI$5>=$E$2),'Portfolio Inputs'!M$27*$U23,IF(AND(($AA23+$E$2)>EI$5,EI$5>=$E$2),'Portfolio Inputs'!M$27*$T23,0)) +IF(AND(($AB23+$E$2)>EI$5,EI$5>=$E$2),'Portfolio Inputs'!M$28*$W23,IF(AND(($AA23+$E$2)>EI$5,EI$5>=$E$2),'Portfolio Inputs'!M$28*$V23,0)) ->  | EJ23: =IF(AND(($AB23+$E$2)>EJ$5,EJ$5>=$E$2),'Portfolio Inputs'!N$27*$U23,IF(AND(($AA23+$E$2)>EJ$5,EJ$5>=$E$2),'Portfolio Inputs'!N$27*$T23,0)) +IF(AND(($AB23+$E$2)>EJ$5,EJ$5>=$E$2),'Portfolio Inputs'!N$28*$W23,IF(AND(($AA23+$E$2)>EJ$5,EJ$5>=$E$2),'Portfolio Inputs'!N$28*$V23,0)) ->  | EK23: =IF(AND(($AB23+$E$2)>EK$5,EK$5>=$E$2),'Portfolio Inputs'!O$27*$U23,IF(AND(($AA23+$E$2)>EK$5,EK$5>=$E$2),'Portfolio Inputs'!O$27*$T23,0)) +IF(AND(($AB23+$E$2)>EK$5,EK$5>=$E$2),'Portfolio Inputs'!O$28*$W23,IF(AND(($AA23+$E$2)>EK$5,EK$5>=$E$2),'Portfolio Inputs'!O$28*$V23,0)) ->  | EL23: =IF(AND(($AB23+$E$2)>EL$5,EL$5>=$E$2),'Portfolio Inputs'!P$27*$U23,IF(AND(($AA23+$E$2)>EL$5,EL$5>=$E$2),'Portfolio Inputs'!P$27*$T23,0)) +IF(AND(($AB23+$E$2)>EL$5,EL$5>=$E$2),'Portfolio Inputs'!P$28*$W23,IF(AND(($AA23+$E$2)>EL$5,EL$5>=$E$2),'Portfolio Inputs'!P$28*$V23,0)) ->  | EM23: =IF(AND(($AB23+$E$2)>EM$5,EM$5>=$E$2),'Portfolio Inputs'!Q$27*$U23,IF(AND(($AA23+$E$2)>EM$5,EM$5>=$E$2),'Portfolio Inputs'!Q$27*$T23,0)) +IF(AND(($AB23+$E$2)>EM$5,EM$5>=$E$2),'Portfolio Inputs'!Q$28*$W23,IF(AND(($AA23+$E$2)>EM$5,EM$5>=$E$2),'Portfolio Inputs'!Q$28*$V23,0)) ->  | EN23: =IF(AND(($AB23+$E$2)>EN$5,EN$5>=$E$2),'Portfolio Inputs'!R$27*$U23,IF(AND(($AA23+$E$2)>EN$5,EN$5>=$E$2),'Portfolio Inputs'!R$27*$T23,0)) +IF(AND(($AB23+$E$2)>EN$5,EN$5>=$E$2),'Portfolio Inputs'!R$28*$W23,IF(AND(($AA23+$E$2)>EN$5,EN$5>=$E$2),'Portfolio Inputs'!R$28*$V23,0)) ->  | EO23: =IF(AND(($AB23+$E$2)>EO$5,EO$5>=$E$2),'Portfolio Inputs'!S$27*$U23,IF(AND(($AA23+$E$2)>EO$5,EO$5>=$E$2),'Portfolio Inputs'!S$27*$T23,0)) +IF(AND(($AB23+$E$2)>EO$5,EO$5>=$E$2),'Portfolio Inputs'!S$28*$W23,IF(AND(($AA23+$E$2)>EO$5,EO$5>=$E$2),'Portfolio Inputs'!S$28*$V23,0)) ->  | EP23: =IF(AND(($AB23+$E$2)>EP$5,EP$5>=$E$2),'Portfolio Inputs'!T$27*$U23,IF(AND(($AA23+$E$2)>EP$5,EP$5>=$E$2),'Portfolio Inputs'!T$27*$T23,0)) +IF(AND(($AB23+$E$2)>EP$5,EP$5>=$E$2),'Portfolio Inputs'!T$28*$W23,IF(AND(($AA23+$E$2)>EP$5,EP$5>=$E$2),'Portfolio Inputs'!T$28*$V23,0)) ->  | EQ23: =IF(AND(($AB23+$E$2)>EQ$5,EQ$5>=$E$2),'Portfolio Inputs'!U$27*$U23,IF(AND(($AA23+$E$2)>EQ$5,EQ$5>=$E$2),'Portfolio Inputs'!U$27*$T23,0)) +IF(AND(($AB23+$E$2)>EQ$5,EQ$5>=$E$2),'Portfolio Inputs'!U$28*$W23,IF(AND(($AA23+$E$2)>EQ$5,EQ$5>=$E$2),'Portfolio Inputs'!U$28*$V23,0)) ->  | ER23: =IF(AND(($AB23+$E$2)>ER$5,ER$5>=$E$2),'Portfolio Inputs'!V$27*$U23,IF(AND(($AA23+$E$2)>ER$5,ER$5>=$E$2),'Portfolio Inputs'!V$27*$T23,0)) +IF(AND(($AB23+$E$2)>ER$5,ER$5>=$E$2),'Portfolio Inputs'!V$28*$W23,IF(AND(($AA23+$E$2)>ER$5,ER$5>=$E$2),'Portfolio Inputs'!V$28*$V23,0)) ->  | ES23: =IF(AND(($AB23+$E$2)>ES$5,ES$5>=$E$2),'Portfolio Inputs'!W$27*$U23,IF(AND(($AA23+$E$2)>ES$5,ES$5>=$E$2),'Portfolio Inputs'!W$27*$T23,0)) +IF(AND(($AB23+$E$2)>ES$5,ES$5>=$E$2),'Portfolio Inputs'!W$28*$W23,IF(AND(($AA23+$E$2)>ES$5,ES$5>=$E$2),'Portfolio Inputs'!W$28*$V23,0)) ->  | ET23: =IF(AND(($AB23+$E$2)>ET$5,ET$5>=$E$2),'Portfolio Inputs'!X$27*$U23,IF(AND(($AA23+$E$2)>ET$5,ET$5>=$E$2),'Portfolio Inputs'!X$27*$T23,0)) +IF(AND(($AB23+$E$2)>ET$5,ET$5>=$E$2),'Portfolio Inputs'!X$28*$W23,IF(AND(($AA23+$E$2)>ET$5,ET$5>=$E$2),'Portfolio Inputs'!X$28*$V23,0)) ->  | EU23: =IF(AND(($AB23+$E$2)>EU$5,EU$5>=$E$2),'Portfolio Inputs'!Y$27*$U23,IF(AND(($AA23+$E$2)>EU$5,EU$5>=$E$2),'Portfolio Inputs'!Y$27*$T23,0)) +IF(AND(($AB23+$E$2)>EU$5,EU$5>=$E$2),'Portfolio Inputs'!Y$28*$W23,IF(AND(($AA23+$E$2)>EU$5,EU$5>=$E$2),'Portfolio Inputs'!Y$28*$V23,0)) ->  | EV23: =IF(AND(($AB23+$E$2)>EV$5,EV$5>=$E$2),'Portfolio Inputs'!Z$27*$U23,IF(AND(($AA23+$E$2)>EV$5,EV$5>=$E$2),'Portfolio Inputs'!Z$27*$T23,0)) +IF(AND(($AB23+$E$2)>EV$5,EV$5>=$E$2),'Portfolio Inputs'!Z$28*$W23,IF(AND(($AA23+$E$2)>EV$5,EV$5>=$E$2),'Portfolio Inputs'!Z$28*$V23,0)) ->  | EW23: =IF(AND(($AB23+$E$2)>EW$5,EW$5>=$E$2),'Portfolio Inputs'!AA$27*$U23,IF(AND(($AA23+$E$2)>EW$5,EW$5>=$E$2),'Portfolio Inputs'!AA$27*$T23,0)) +IF(AND(($AB23+$E$2)>EW$5,EW$5>=$E$2),'Portfolio Inputs'!AA$28*$W23,IF(AND(($AA23+$E$2)>EW$5,EW$5>=$E$2),'Portfolio Inputs'!AA$28*$V23,0)) ->  | EX23: =IF(AND(($AB23+$E$2)>EX$5,EX$5>=$E$2),'Portfolio Inputs'!AB$27*$U23,IF(AND(($AA23+$E$2)>EX$5,EX$5>=$E$2),'Portfolio Inputs'!AB$27*$T23,0)) +IF(AND(($AB23+$E$2)>EX$5,EX$5>=$E$2),'Portfolio Inputs'!AB$28*$W23,IF(AND(($AA23+$E$2)>EX$5,EX$5>=$E$2),'Portfolio Inputs'!AB$28*$V23,0)) ->  | EY23: =IF(AND(($AB23+$E$2)>EY$5,EY$5>=$E$2),'Portfolio Inputs'!AC$27*$U23,IF(AND(($AA23+$E$2)>EY$5,EY$5>=$E$2),'Portfolio Inputs'!AC$27*$T23,0)) +IF(AND(($AB23+$E$2)>EY$5,EY$5>=$E$2),'Portfolio Inputs'!AC$28*$W23,IF(AND(($AA23+$E$2)>EY$5,EY$5>=$E$2),'Portfolio Inputs'!AC$28*$V23,0)) ->  | EZ23: =IF(AND(($AB23+$E$2)>EZ$5,EZ$5>=$E$2),'Portfolio Inputs'!AD$27*$U23,IF(AND(($AA23+$E$2)>EZ$5,EZ$5>=$E$2),'Portfolio Inputs'!AD$27*$T23,0)) +IF(AND(($AB23+$E$2)>EZ$5,EZ$5>=$E$2),'Portfolio Inputs'!AD$28*$W23,IF(AND(($AA23+$E$2)>EZ$5,EZ$5>=$E$2),'Portfolio Inputs'!AD$28*$V23,0)) ->  | FA23: =IF(AND(($AB23+$E$2)>FA$5,FA$5>=$E$2),'Portfolio Inputs'!AE$27*$U23,IF(AND(($AA23+$E$2)>FA$5,FA$5>=$E$2),'Portfolio Inputs'!AE$27*$T23,0)) +IF(AND(($AB23+$E$2)>FA$5,FA$5>=$E$2),'Portfolio Inputs'!AE$28*$W23,IF(AND(($AA23+$E$2)>FA$5,FA$5>=$E$2),'Portfolio Inputs'!AE$28*$V23,0)) ->  | FB23: =IF(AND(($AB23+$E$2)>FB$5,FB$5>=$E$2),'Portfolio Inputs'!AF$27*$U23,IF(AND(($AA23+$E$2)>FB$5,FB$5>=$E$2),'Portfolio Inputs'!AF$27*$T23,0)) +IF(AND(($AB23+$E$2)>FB$5,FB$5>=$E$2),'Portfolio Inputs'!AF$28*$W23,IF(AND(($AA23+$E$2)>FB$5,FB$5>=$E$2),'Portfolio Inputs'!AF$28*$V23,0)) ->  | FC23: =IF(AND(($AB23+$E$2)>FC$5,FC$5>=$E$2),'Portfolio Inputs'!AG$27*$U23,IF(AND(($AA23+$E$2)>FC$5,FC$5>=$E$2),'Portfolio Inputs'!AG$27*$T23,0)) +IF(AND(($AB23+$E$2)>FC$5,FC$5>=$E$2),'Portfolio Inputs'!AG$28*$W23,IF(AND(($AA23+$E$2)>FC$5,FC$5>=$E$2),'Portfolio Inputs'!AG$28*$V23,0)) ->  | FD23: =IF(AND(($AB23+$E$2)>FD$5,FD$5>=$E$2),'Portfolio Inputs'!AH$27*$U23,IF(AND(($AA23+$E$2)>FD$5,FD$5>=$E$2),'Portfolio Inputs'!AH$27*$T23,0)) +IF(AND(($AB23+$E$2)>FD$5,FD$5>=$E$2),'Portfolio Inputs'!AH$28*$W23,IF(AND(($AA23+$E$2)>FD$5,FD$5>=$E$2),'Portfolio Inputs'!AH$28*$V23,0)) ->  | FE23: =IF(AND(($AB23+$E$2)>FE$5,FE$5>=$E$2),'Portfolio Inputs'!AI$27*$U23,IF(AND(($AA23+$E$2)>FE$5,FE$5>=$E$2),'Portfolio Inputs'!AI$27*$T23,0)) +IF(AND(($AB23+$E$2)>FE$5,FE$5>=$E$2),'Portfolio Inputs'!AI$28*$W23,IF(AND(($AA23+$E$2)>FE$5,FE$5>=$E$2),'Portfolio Inputs'!AI$28*$V23,0)) ->  | FF23: =IF(AND(($AB23+$E$2)>FF$5,FF$5>=$E$2),'Portfolio Inputs'!AJ$27*$U23,IF(AND(($AA23+$E$2)>FF$5,FF$5>=$E$2),'Portfolio Inputs'!AJ$27*$T23,0)) +IF(AND(($AB23+$E$2)>FF$5,FF$5>=$E$2),'Portfolio Inputs'!AJ$28*$W23,IF(AND(($AA23+$E$2)>FF$5,FF$5>=$E$2),'Portfolio Inputs'!AJ$28*$V23,0)) ->  | FG23: =IF(AND(($AB23+$E$2)>FG$5,FG$5>=$E$2),'Portfolio Inputs'!AK$27*$U23,IF(AND(($AA23+$E$2)>FG$5,FG$5>=$E$2),'Portfolio Inputs'!AK$27*$T23,0)) +IF(AND(($AB23+$E$2)>FG$5,FG$5>=$E$2),'Portfolio Inputs'!AK$28*$W23,IF(AND(($AA23+$E$2)>FG$5,FG$5>=$E$2),'Portfolio Inputs'!AK$28*$V23,0)) ->  | FH23: =IF(AND(($AB23+$E$2)>FH$5,FH$5>=$E$2),'Portfolio Inputs'!AL$27*$U23,IF(AND(($AA23+$E$2)>FH$5,FH$5>=$E$2),'Portfolio Inputs'!AL$27*$T23,0)) +IF(AND(($AB23+$E$2)>FH$5,FH$5>=$E$2),'Portfolio Inputs'!AL$28*$W23,IF(AND(($AA23+$E$2)>FH$5,FH$5>=$E$2),'Portfolio Inputs'!AL$28*$V23,0)) ->  | FI23: =IF(AND(($AB23+$E$2)>FI$5,FI$5>=$E$2),'Portfolio Inputs'!AM$27*$U23,IF(AND(($AA23+$E$2)>FI$5,FI$5>=$E$2),'Portfolio Inputs'!AM$27*$T23,0)) +IF(AND(($AB23+$E$2)>FI$5,FI$5>=$E$2),'Portfolio Inputs'!AM$28*$W23,IF(AND(($AA23+$E$2)>FI$5,FI$5>=$E$2),'Portfolio Inputs'!AM$28*$V23,0)) ->  | FK23: =IF(AND(($AB23+$E$2)>GT$5,GT$5>=$E$2),$U23,IF(AND(($AA23+$E$2)>GT$5,GT$5>=$E$2),$T23,0))/Loss_Propane *IF($C23="Residential",'Portfolio Inputs'!F$39,'Portfolio Inputs'!F$40) +IF(AND(($AB23+$E$2)>GT$5,GT$5>=$E$2),$W23,IF(AND(($AA23+$E$2)>GT$5,GT$5>=$E$2),$V23,0))/Loss_OilEnergy *IF($C23="Residential",'Portfolio Inputs'!F$41,'Portfolio Inputs'!F$42) ->  | FL23: =IF(AND(($AB23+$E$2)>GU$5,GU$5>=$E$2),$U23,IF(AND(($AA23+$E$2)>GU$5,GU$5>=$E$2),$T23,0))/Loss_Propane *IF($C23="Residential",'Portfolio Inputs'!G$39,'Portfolio Inputs'!G$40) +IF(AND(($AB23+$E$2)>GU$5,GU$5>=$E$2),$W23,IF(AND(($AA23+$E$2)>GU$5,GU$5>=$E$2),$V23,0))/Loss_OilEnergy *IF($C23="Residential",'Portfolio Inputs'!G$41,'Portfolio Inputs'!G$42) ->  | FM23: =IF(AND(($AB23+$E$2)>GV$5,GV$5>=$E$2),$U23,IF(AND(($AA23+$E$2)>GV$5,GV$5>=$E$2),$T23,0))/Loss_Propane *IF($C23="Residential",'Portfolio Inputs'!H$39,'Portfolio Inputs'!H$40) +IF(AND(($AB23+$E$2)>GV$5,GV$5>=$E$2),$W23,IF(AND(($AA23+$E$2)>GV$5,GV$5>=$E$2),$V23,0))/Loss_OilEnergy *IF($C23="Residential",'Portfolio Inputs'!H$41,'Portfolio Inputs'!H$42) ->  | FN23: =IF(AND(($AB23+$E$2)>GW$5,GW$5>=$E$2),$U23,IF(AND(($AA23+$E$2)>GW$5,GW$5>=$E$2),$T23,0))/Loss_Propane *IF($C23="Residential",'Portfolio Inputs'!I$39,'Portfolio Inputs'!I$40) +IF(AND(($AB23+$E$2)>GW$5,GW$5>=$E$2),$W23,IF(AND(($AA23+$E$2)>GW$5,GW$5>=$E$2),$V23,0))/Loss_OilEnergy *IF($C23="Residential",'Portfolio Inputs'!I$41,'Portfolio Inputs'!I$42) ->  | FO23: =IF(AND(($AB23+$E$2)>GX$5,GX$5>=$E$2),$U23,IF(AND(($AA23+$E$2)>GX$5,GX$5>=$E$2),$T23,0))/Loss_Propane *IF($C23="Residential",'Portfolio Inputs'!J$39,'Portfolio Inputs'!J$40) +IF(AND(($AB23+$E$2)>GX$5,GX$5>=$E$2),$W23,IF(AND(($AA23+$E$2)>GX$5,GX$5>=$E$2),$V23,0))/Loss_OilEnergy *IF($C23="Residential",'Portfolio Inputs'!J$41,'Portfolio Inputs'!J$42) ->  | FP23: =IF(AND(($AB23+$E$2)>GY$5,GY$5>=$E$2),$U23,IF(AND(($AA23+$E$2)>GY$5,GY$5>=$E$2),$T23,0))/Loss_Propane *IF($C23="Residential",'Portfolio Inputs'!K$39,'Portfolio Inputs'!K$40) +IF(AND(($AB23+$E$2)>GY$5,GY$5>=$E$2),$W23,IF(AND(($AA23+$E$2)>GY$5,GY$5>=$E$2),$V23,0))/Loss_OilEnergy *IF($C23="Residential",'Portfolio Inputs'!K$41,'Portfolio Inputs'!K$42) ->  | FQ23: =IF(AND(($AB23+$E$2)>GZ$5,GZ$5>=$E$2),$U23,IF(AND(($AA23+$E$2)>GZ$5,GZ$5>=$E$2),$T23,0))/Loss_Propane *IF($C23="Residential",'Portfolio Inputs'!L$39,'Portfolio Inputs'!L$40) +IF(AND(($AB23+$E$2)>GZ$5,GZ$5>=$E$2),$W23,IF(AND(($AA23+$E$2)>GZ$5,GZ$5>=$E$2),$V23,0))/Loss_OilEnergy *IF($C23="Residential",'Portfolio Inputs'!L$41,'Portfolio Inputs'!L$42) ->  | FR23: =IF(AND(($AB23+$E$2)>HA$5,HA$5>=$E$2),$U23,IF(AND(($AA23+$E$2)>HA$5,HA$5>=$E$2),$T23,0))/Loss_Propane *IF($C23="Residential",'Portfolio Inputs'!M$39,'Portfolio Inputs'!M$40) +IF(AND(($AB23+$E$2)>HA$5,HA$5>=$E$2),$W23,IF(AND(($AA23+$E$2)>HA$5,HA$5>=$E$2),$V23,0))/Loss_OilEnergy *IF($C23="Residential",'Portfolio Inputs'!M$41,'Portfolio Inputs'!M$42) ->  | FS23: =IF(AND(($AB23+$E$2)>HB$5,HB$5>=$E$2),$U23,IF(AND(($AA23+$E$2)>HB$5,HB$5>=$E$2),$T23,0))/Loss_Propane *IF($C23="Residential",'Portfolio Inputs'!N$39,'Portfolio Inputs'!N$40) +IF(AND(($AB23+$E$2)>HB$5,HB$5>=$E$2),$W23,IF(AND(($AA23+$E$2)>HB$5,HB$5>=$E$2),$V23,0))/Loss_OilEnergy *IF($C23="Residential",'Portfolio Inputs'!N$41,'Portfolio Inputs'!N$42) ->  | FT23: =IF(AND(($AB23+$E$2)>HC$5,HC$5>=$E$2),$U23,IF(AND(($AA23+$E$2)>HC$5,HC$5>=$E$2),$T23,0))/Loss_Propane *IF($C23="Residential",'Portfolio Inputs'!O$39,'Portfolio Inputs'!O$40) +IF(AND(($AB23+$E$2)>HC$5,HC$5>=$E$2),$W23,IF(AND(($AA23+$E$2)>HC$5,HC$5>=$E$2),$V23,0))/Loss_OilEnergy *IF($C23="Residential",'Portfolio Inputs'!O$41,'Portfolio Inputs'!O$42) ->  | FU23: =IF(AND(($AB23+$E$2)>HD$5,HD$5>=$E$2),$U23,IF(AND(($AA23+$E$2)>HD$5,HD$5>=$E$2),$T23,0))/Loss_Propane *IF($C23="Residential",'Portfolio Inputs'!P$39,'Portfolio Inputs'!P$40) +IF(AND(($AB23+$E$2)>HD$5,HD$5>=$E$2),$W23,IF(AND(($AA23+$E$2)>HD$5,HD$5>=$E$2),$V23,0))/Loss_OilEnergy *IF($C23="Residential",'Portfolio Inputs'!P$41,'Portfolio Inputs'!P$42) ->  | FV23: =IF(AND(($AB23+$E$2)>HE$5,HE$5>=$E$2),$U23,IF(AND(($AA23+$E$2)>HE$5,HE$5>=$E$2),$T23,0))/Loss_Propane *IF($C23="Residential",'Portfolio Inputs'!Q$39,'Portfolio Inputs'!Q$40) +IF(AND(($AB23+$E$2)>HE$5,HE$5>=$E$2),$W23,IF(AND(($AA23+$E$2)>HE$5,HE$5>=$E$2),$V23,0))/Loss_OilEnergy *IF($C23="Residential",'Portfolio Inputs'!Q$41,'Portfolio Inputs'!Q$42) ->  | FW23: =IF(AND(($AB23+$E$2)>HF$5,HF$5>=$E$2),$U23,IF(AND(($AA23+$E$2)>HF$5,HF$5>=$E$2),$T23,0))/Loss_Propane *IF($C23="Residential",'Portfolio Inputs'!R$39,'Portfolio Inputs'!R$40) +IF(AND(($AB23+$E$2)>HF$5,HF$5>=$E$2),$W23,IF(AND(($AA23+$E$2)>HF$5,HF$5>=$E$2),$V23,0))/Loss_OilEnergy *IF($C23="Residential",'Portfolio Inputs'!R$41,'Portfolio Inputs'!R$42) ->  | FX23: =IF(AND(($AB23+$E$2)>HG$5,HG$5>=$E$2),$U23,IF(AND(($AA23+$E$2)>HG$5,HG$5>=$E$2),$T23,0))/Loss_Propane *IF($C23="Residential",'Portfolio Inputs'!S$39,'Portfolio Inputs'!S$40) +IF(AND(($AB23+$E$2)>HG$5,HG$5>=$E$2),$W23,IF(AND(($AA23+$E$2)>HG$5,HG$5>=$E$2),$V23,0))/Loss_OilEnergy *IF($C23="Residential",'Portfolio Inputs'!S$41,'Portfolio Inputs'!S$42) ->  | FY23: =IF(AND(($AB23+$E$2)>HH$5,HH$5>=$E$2),$U23,IF(AND(($AA23+$E$2)>HH$5,HH$5>=$E$2),$T23,0))/Loss_Propane *IF($C23="Residential",'Portfolio Inputs'!T$39,'Portfolio Inputs'!T$40) +IF(AND(($AB23+$E$2)>HH$5,HH$5>=$E$2),$W23,IF(AND(($AA23+$E$2)>HH$5,HH$5>=$E$2),$V23,0))/Loss_OilEnergy *IF($C23="Residential",'Portfolio Inputs'!T$41,'Portfolio Inputs'!T$42) ->  | FZ23: =IF(AND(($AB23+$E$2)>HI$5,HI$5>=$E$2),$U23,IF(AND(($AA23+$E$2)>HI$5,HI$5>=$E$2),$T23,0))/Loss_Propane *IF($C23="Residential",'Portfolio Inputs'!U$39,'Portfolio Inputs'!U$40) +IF(AND(($AB23+$E$2)>HI$5,HI$5>=$E$2),$W23,IF(AND(($AA23+$E$2)>HI$5,HI$5>=$E$2),$V23,0))/Loss_OilEnergy *IF($C23="Residential",'Portfolio Inputs'!U$41,'Portfolio Inputs'!U$42) ->  | GA23: =IF(AND(($AB23+$E$2)>HJ$5,HJ$5>=$E$2),$U23,IF(AND(($AA23+$E$2)>HJ$5,HJ$5>=$E$2),$T23,0))/Loss_Propane *IF($C23="Residential",'Portfolio Inputs'!V$39,'Portfolio Inputs'!V$40) +IF(AND(($AB23+$E$2)>HJ$5,HJ$5>=$E$2),$W23,IF(AND(($AA23+$E$2)>HJ$5,HJ$5>=$E$2),$V23,0))/Loss_OilEnergy *IF($C23="Residential",'Portfolio Inputs'!V$41,'Portfolio Inputs'!V$42) ->  | GB23: =IF(AND(($AB23+$E$2)>HK$5,HK$5>=$E$2),$U23,IF(AND(($AA23+$E$2)>HK$5,HK$5>=$E$2),$T23,0))/Loss_Propane *IF($C23="Residential",'Portfolio Inputs'!W$39,'Portfolio Inputs'!W$40) +IF(AND(($AB23+$E$2)>HK$5,HK$5>=$E$2),$W23,IF(AND(($AA23+$E$2)>HK$5,HK$5>=$E$2),$V23,0))/Loss_OilEnergy *IF($C23="Residential",'Portfolio Inputs'!W$41,'Portfolio Inputs'!W$42) ->  | GC23: =IF(AND(($AB23+$E$2)>HL$5,HL$5>=$E$2),$U23,IF(AND(($AA23+$E$2)>HL$5,HL$5>=$E$2),$T23,0))/Loss_Propane *IF($C23="Residential",'Portfolio Inputs'!X$39,'Portfolio Inputs'!X$40) +IF(AND(($AB23+$E$2)>HL$5,HL$5>=$E$2),$W23,IF(AND(($AA23+$E$2)>HL$5,HL$5>=$E$2),$V23,0))/Loss_OilEnergy *IF($C23="Residential",'Portfolio Inputs'!X$41,'Portfolio Inputs'!X$42) ->  | GD23: =IF(AND(($AB23+$E$2)>HM$5,HM$5>=$E$2),$U23,IF(AND(($AA23+$E$2)>HM$5,HM$5>=$E$2),$T23,0))/Loss_Propane *IF($C23="Residential",'Portfolio Inputs'!Y$39,'Portfolio Inputs'!Y$40) +IF(AND(($AB23+$E$2)>HM$5,HM$5>=$E$2),$W23,IF(AND(($AA23+$E$2)>HM$5,HM$5>=$E$2),$V23,0))/Loss_OilEnergy *IF($C23="Residential",'Portfolio Inputs'!Y$41,'Portfolio Inputs'!Y$42) ->  | GE23: =IF(AND(($AB23+$E$2)>HN$5,HN$5>=$E$2),$U23,IF(AND(($AA23+$E$2)>HN$5,HN$5>=$E$2),$T23,0))/Loss_Propane *IF($C23="Residential",'Portfolio Inputs'!Z$39,'Portfolio Inputs'!Z$40) +IF(AND(($AB23+$E$2)>HN$5,HN$5>=$E$2),$W23,IF(AND(($AA23+$E$2)>HN$5,HN$5>=$E$2),$V23,0))/Loss_OilEnergy *IF($C23="Residential",'Portfolio Inputs'!Z$41,'Portfolio Inputs'!Z$42) ->  | GF23: =IF(AND(($AB23+$E$2)>HO$5,HO$5>=$E$2),$U23,IF(AND(($AA23+$E$2)>HO$5,HO$5>=$E$2),$T23,0))/Loss_Propane *IF($C23="Residential",'Portfolio Inputs'!AA$39,'Portfolio Inputs'!AA$40) +IF(AND(($AB23+$E$2)>HO$5,HO$5>=$E$2),$W23,IF(AND(($AA23+$E$2)>HO$5,HO$5>=$E$2),$V23,0))/Loss_OilEnergy *IF($C23="Residential",'Portfolio Inputs'!AA$41,'Portfolio Inputs'!AA$42) ->  | GG23: =IF(AND(($AB23+$E$2)>HP$5,HP$5>=$E$2),$U23,IF(AND(($AA23+$E$2)>HP$5,HP$5>=$E$2),$T23,0))/Loss_Propane *IF($C23="Residential",'Portfolio Inputs'!AB$39,'Portfolio Inputs'!AB$40) +IF(AND(($AB23+$E$2)>HP$5,HP$5>=$E$2),$W23,IF(AND(($AA23+$E$2)>HP$5,HP$5>=$E$2),$V23,0))/Loss_OilEnergy *IF($C23="Residential",'Portfolio Inputs'!AB$41,'Portfolio Inputs'!AB$42) ->  | GH23: =IF(AND(($AB23+$E$2)>HQ$5,HQ$5>=$E$2),$U23,IF(AND(($AA23+$E$2)>HQ$5,HQ$5>=$E$2),$T23,0))/Loss_Propane *IF($C23="Residential",'Portfolio Inputs'!AC$39,'Portfolio Inputs'!AC$40) +IF(AND(($AB23+$E$2)>HQ$5,HQ$5>=$E$2),$W23,IF(AND(($AA23+$E$2)>HQ$5,HQ$5>=$E$2),$V23,0))/Loss_OilEnergy *IF($C23="Residential",'Portfolio Inputs'!AC$41,'Portfolio Inputs'!AC$42) ->  | GI23: =IF(AND(($AB23+$E$2)>HR$5,HR$5>=$E$2),$U23,IF(AND(($AA23+$E$2)>HR$5,HR$5>=$E$2),$T23,0))/Loss_Propane *IF($C23="Residential",'Portfolio Inputs'!AD$39,'Portfolio Inputs'!AD$40) +IF(AND(($AB23+$E$2)>HR$5,HR$5>=$E$2),$W23,IF(AND(($AA23+$E$2)>HR$5,HR$5>=$E$2),$V23,0))/Loss_OilEnergy *IF($C23="Residential",'Portfolio Inputs'!AD$41,'Portfolio Inputs'!AD$42) ->  | GJ23: =IF(AND(($AB23+$E$2)>HS$5,HS$5>=$E$2),$U23,IF(AND(($AA23+$E$2)>HS$5,HS$5>=$E$2),$T23,0))/Loss_Propane *IF($C23="Residential",'Portfolio Inputs'!AE$39,'Portfolio Inputs'!AE$40) +IF(AND(($AB23+$E$2)>HS$5,HS$5>=$E$2),$W23,IF(AND(($AA23+$E$2)>HS$5,HS$5>=$E$2),$V23,0))/Loss_OilEnergy *IF($C23="Residential",'Portfolio Inputs'!AE$41,'Portfolio Inputs'!AE$42) ->  | GK23: =IF(AND(($AB23+$E$2)>HT$5,HT$5>=$E$2),$U23,IF(AND(($AA23+$E$2)>HT$5,HT$5>=$E$2),$T23,0))/Loss_Propane *IF($C23="Residential",'Portfolio Inputs'!AF$39,'Portfolio Inputs'!AF$40) +IF(AND(($AB23+$E$2)>HT$5,HT$5>=$E$2),$W23,IF(AND(($AA23+$E$2)>HT$5,HT$5>=$E$2),$V23,0))/Loss_OilEnergy *IF($C23="Residential",'Portfolio Inputs'!AF$41,'Portfolio Inputs'!AF$42) ->  | GL23: =IF(AND(($AB23+$E$2)>HU$5,HU$5>=$E$2),$U23,IF(AND(($AA23+$E$2)>HU$5,HU$5>=$E$2),$T23,0))/Loss_Propane *IF($C23="Residential",'Portfolio Inputs'!AG$39,'Portfolio Inputs'!AG$40) +IF(AND(($AB23+$E$2)>HU$5,HU$5>=$E$2),$W23,IF(AND(($AA23+$E$2)>HU$5,HU$5>=$E$2),$V23,0))/Loss_OilEnergy *IF($C23="Residential",'Portfolio Inputs'!AG$41,'Portfolio Inputs'!AG$42) ->  | GM23: =IF(AND(($AB23+$E$2)>HV$5,HV$5>=$E$2),$U23,IF(AND(($AA23+$E$2)>HV$5,HV$5>=$E$2),$T23,0))/Loss_Propane *IF($C23="Residential",'Portfolio Inputs'!AH$39,'Portfolio Inputs'!AH$40) +IF(AND(($AB23+$E$2)>HV$5,HV$5>=$E$2),$W23,IF(AND(($AA23+$E$2)>HV$5,HV$5>=$E$2),$V23,0))/Loss_OilEnergy *IF($C23="Residential",'Portfolio Inputs'!AH$41,'Portfolio Inputs'!AH$42) ->  | GN23: =IF(AND(($AB23+$E$2)>HW$5,HW$5>=$E$2),$U23,IF(AND(($AA23+$E$2)>HW$5,HW$5>=$E$2),$T23,0))/Loss_Propane *IF($C23="Residential",'Portfolio Inputs'!AI$39,'Portfolio Inputs'!AI$40) +IF(AND(($AB23+$E$2)>HW$5,HW$5>=$E$2),$W23,IF(AND(($AA23+$E$2)>HW$5,HW$5>=$E$2),$V23,0))/Loss_OilEnergy *IF($C23="Residential",'Portfolio Inputs'!AI$41,'Portfolio Inputs'!AI$42) ->  | GO23: =IF(AND(($AB23+$E$2)>HX$5,HX$5>=$E$2),$U23,IF(AND(($AA23+$E$2)>HX$5,HX$5>=$E$2),$T23,0))/Loss_Propane *IF($C23="Residential",'Portfolio Inputs'!AJ$39,'Portfolio Inputs'!AJ$40) +IF(AND(($AB23+$E$2)>HX$5,HX$5>=$E$2),$W23,IF(AND(($AA23+$E$2)>HX$5,HX$5>=$E$2),$V23,0))/Loss_OilEnergy *IF($C23="Residential",'Portfolio Inputs'!AJ$41,'Portfolio Inputs'!AJ$42) ->  | GP23: =IF(AND(($AB23+$E$2)>HY$5,HY$5>=$E$2),$U23,IF(AND(($AA23+$E$2)>HY$5,HY$5>=$E$2),$T23,0))/Loss_Propane *IF($C23="Residential",'Portfolio Inputs'!AK$39,'Portfolio Inputs'!AK$40) +IF(AND(($AB23+$E$2)>HY$5,HY$5>=$E$2),$W23,IF(AND(($AA23+$E$2)>HY$5,HY$5>=$E$2),$V23,0))/Loss_OilEnergy *IF($C23="Residential",'Portfolio Inputs'!AK$41,'Portfolio Inputs'!AK$42) ->  | GQ23: =IF(AND(($AB23+$E$2)>HZ$5,HZ$5>=$E$2),$U23,IF(AND(($AA23+$E$2)>HZ$5,HZ$5>=$E$2),$T23,0))/Loss_Propane *IF($C23="Residential",'Portfolio Inputs'!AL$39,'Portfolio Inputs'!AL$40) +IF(AND(($AB23+$E$2)>HZ$5,HZ$5>=$E$2),$W23,IF(AND(($AA23+$E$2)>HZ$5,HZ$5>=$E$2),$V23,0))/Loss_OilEnergy *IF($C23="Residential",'Portfolio Inputs'!AL$41,'Portfolio Inputs'!AL$42) ->  | GR23: =IF(AND(($AB23+$E$2)>IA$5,IA$5>=$E$2),$U23,IF(AND(($AA23+$E$2)>IA$5,IA$5>=$E$2),$T23,0))/Loss_Propane *IF($C23="Residential",'Portfolio Inputs'!AM$39,'Portfolio Inputs'!AM$40) +IF(AND(($AB23+$E$2)>IA$5,IA$5>=$E$2),$W23,IF(AND(($AA23+$E$2)>IA$5,IA$5>=$E$2),$V23,0))/Loss_OilEnergy *IF($C23="Residential",'Portfolio Inputs'!AM$41,'Portfolio Inputs'!AM$42) ->  | GT23: =IF(AND(($AB23+$E$2)>GT$5,GT$5>=$E$2),$L23,IF(AND(($AA23+$E$2)>GT$5,GT$5>=$E$2),$K23,0))/Loss_ElectricEnergy *IF($C23="Residential",'Portfolio Inputs'!F$33,'Portfolio Inputs'!F$34) +IF(AND(($AB23+$E$2)>GT$5,GT$5>=$E$2),$Q23,IF(AND(($AA23+$E$2)>GT$5,GT$5>=$E$2),$P23,0))/Loss_GasEnergy *IF($C23="Residential",'Portfolio Inputs'!F$35,'Portfolio Inputs'!F$36) ->  | GU23: =IF(AND(($AB23+$E$2)>GU$5,GU$5>=$E$2),$L23,IF(AND(($AA23+$E$2)>GU$5,GU$5>=$E$2),$K23,0))/Loss_ElectricEnergy *IF($C23="Residential",'Portfolio Inputs'!G$33,'Portfolio Inputs'!G$34) +IF(AND(($AB23+$E$2)>GU$5,GU$5>=$E$2),$Q23,IF(AND(($AA23+$E$2)>GU$5,GU$5>=$E$2),$P23,0))/Loss_GasEnergy *IF($C23="Residential",'Portfolio Inputs'!G$35,'Portfolio Inputs'!G$36) ->  | GV23: =IF(AND(($AB23+$E$2)>GV$5,GV$5>=$E$2),$L23,IF(AND(($AA23+$E$2)>GV$5,GV$5>=$E$2),$K23,0))/Loss_ElectricEnergy *IF($C23="Residential",'Portfolio Inputs'!H$33,'Portfolio Inputs'!H$34) +IF(AND(($AB23+$E$2)>GV$5,GV$5>=$E$2),$Q23,IF(AND(($AA23+$E$2)>GV$5,GV$5>=$E$2),$P23,0))/Loss_GasEnergy *IF($C23="Residential",'Portfolio Inputs'!H$35,'Portfolio Inputs'!H$36) ->  | GW23: =IF(AND(($AB23+$E$2)>GW$5,GW$5>=$E$2),$L23,IF(AND(($AA23+$E$2)>GW$5,GW$5>=$E$2),$K23,0))/Loss_ElectricEnergy *IF($C23="Residential",'Portfolio Inputs'!I$33,'Portfolio Inputs'!I$34) +IF(AND(($AB23+$E$2)>GW$5,GW$5>=$E$2),$Q23,IF(AND(($AA23+$E$2)>GW$5,GW$5>=$E$2),$P23,0))/Loss_GasEnergy *IF($C23="Residential",'Portfolio Inputs'!I$35,'Portfolio Inputs'!I$36) ->  | GX23: =IF(AND(($AB23+$E$2)>GX$5,GX$5>=$E$2),$L23,IF(AND(($AA23+$E$2)>GX$5,GX$5>=$E$2),$K23,0))/Loss_ElectricEnergy *IF($C23="Residential",'Portfolio Inputs'!J$33,'Portfolio Inputs'!J$34) +IF(AND(($AB23+$E$2)>GX$5,GX$5>=$E$2),$Q23,IF(AND(($AA23+$E$2)>GX$5,GX$5>=$E$2),$P23,0))/Loss_GasEnergy *IF($C23="Residential",'Portfolio Inputs'!J$35,'Portfolio Inputs'!J$36) ->  | GY23: =IF(AND(($AB23+$E$2)>GY$5,GY$5>=$E$2),$L23,IF(AND(($AA23+$E$2)>GY$5,GY$5>=$E$2),$K23,0))/Loss_ElectricEnergy *IF($C23="Residential",'Portfolio Inputs'!K$33,'Portfolio Inputs'!K$34) +IF(AND(($AB23+$E$2)>GY$5,GY$5>=$E$2),$Q23,IF(AND(($AA23+$E$2)>GY$5,GY$5>=$E$2),$P23,0))/Loss_GasEnergy *IF($C23="Residential",'Portfolio Inputs'!K$35,'Portfolio Inputs'!K$36) ->  | GZ23: =IF(AND(($AB23+$E$2)>GZ$5,GZ$5>=$E$2),$L23,IF(AND(($AA23+$E$2)>GZ$5,GZ$5>=$E$2),$K23,0))/Loss_ElectricEnergy *IF($C23="Residential",'Portfolio Inputs'!L$33,'Portfolio Inputs'!L$34) +IF(AND(($AB23+$E$2)>GZ$5,GZ$5>=$E$2),$Q23,IF(AND(($AA23+$E$2)>GZ$5,GZ$5>=$E$2),$P23,0))/Loss_GasEnergy *IF($C23="Residential",'Portfolio Inputs'!L$35,'Portfolio Inputs'!L$36) ->  | HA23: =IF(AND(($AB23+$E$2)>HA$5,HA$5>=$E$2),$L23,IF(AND(($AA23+$E$2)>HA$5,HA$5>=$E$2),$K23,0))/Loss_ElectricEnergy *IF($C23="Residential",'Portfolio Inputs'!M$33,'Portfolio Inputs'!M$34) +IF(AND(($AB23+$E$2)>HA$5,HA$5>=$E$2),$Q23,IF(AND(($AA23+$E$2)>HA$5,HA$5>=$E$2),$P23,0))/Loss_GasEnergy *IF($C23="Residential",'Portfolio Inputs'!M$35,'Portfolio Inputs'!M$36) ->  | HB23: =IF(AND(($AB23+$E$2)>HB$5,HB$5>=$E$2),$L23,IF(AND(($AA23+$E$2)>HB$5,HB$5>=$E$2),$K23,0))/Loss_ElectricEnergy *IF($C23="Residential",'Portfolio Inputs'!N$33,'Portfolio Inputs'!N$34) +IF(AND(($AB23+$E$2)>HB$5,HB$5>=$E$2),$Q23,IF(AND(($AA23+$E$2)>HB$5,HB$5>=$E$2),$P23,0))/Loss_GasEnergy *IF($C23="Residential",'Portfolio Inputs'!N$35,'Portfolio Inputs'!N$36) ->  | HC23: =IF(AND(($AB23+$E$2)>HC$5,HC$5>=$E$2),$L23,IF(AND(($AA23+$E$2)>HC$5,HC$5>=$E$2),$K23,0))/Loss_ElectricEnergy *IF($C23="Residential",'Portfolio Inputs'!O$33,'Portfolio Inputs'!O$34) +IF(AND(($AB23+$E$2)>HC$5,HC$5>=$E$2),$Q23,IF(AND(($AA23+$E$2)>HC$5,HC$5>=$E$2),$P23,0))/Loss_GasEnergy *IF($C23="Residential",'Portfolio Inputs'!O$35,'Portfolio Inputs'!O$36) ->  | HD23: =IF(AND(($AB23+$E$2)>HD$5,HD$5>=$E$2),$L23,IF(AND(($AA23+$E$2)>HD$5,HD$5>=$E$2),$K23,0))/Loss_ElectricEnergy *IF($C23="Residential",'Portfolio Inputs'!P$33,'Portfolio Inputs'!P$34) +IF(AND(($AB23+$E$2)>HD$5,HD$5>=$E$2),$Q23,IF(AND(($AA23+$E$2)>HD$5,HD$5>=$E$2),$P23,0))/Loss_GasEnergy *IF($C23="Residential",'Portfolio Inputs'!P$35,'Portfolio Inputs'!P$36) ->  | HE23: =IF(AND(($AB23+$E$2)>HE$5,HE$5>=$E$2),$L23,IF(AND(($AA23+$E$2)>HE$5,HE$5>=$E$2),$K23,0))/Loss_ElectricEnergy *IF($C23="Residential",'Portfolio Inputs'!Q$33,'Portfolio Inputs'!Q$34) +IF(AND(($AB23+$E$2)>HE$5,HE$5>=$E$2),$Q23,IF(AND(($AA23+$E$2)>HE$5,HE$5>=$E$2),$P23,0))/Loss_GasEnergy *IF($C23="Residential",'Portfolio Inputs'!Q$35,'Portfolio Inputs'!Q$36) ->  | HF23: =IF(AND(($AB23+$E$2)>HF$5,HF$5>=$E$2),$L23,IF(AND(($AA23+$E$2)>HF$5,HF$5>=$E$2),$K23,0))/Loss_ElectricEnergy *IF($C23="Residential",'Portfolio Inputs'!R$33,'Portfolio Inputs'!R$34) +IF(AND(($AB23+$E$2)>HF$5,HF$5>=$E$2),$Q23,IF(AND(($AA23+$E$2)>HF$5,HF$5>=$E$2),$P23,0))/Loss_GasEnergy *IF($C23="Residential",'Portfolio Inputs'!R$35,'Portfolio Inputs'!R$36) ->  | HG23: =IF(AND(($AB23+$E$2)>HG$5,HG$5>=$E$2),$L23,IF(AND(($AA23+$E$2)>HG$5,HG$5>=$E$2),$K23,0))/Loss_ElectricEnergy *IF($C23="Residential",'Portfolio Inputs'!S$33,'Portfolio Inputs'!S$34) +IF(AND(($AB23+$E$2)>HG$5,HG$5>=$E$2),$Q23,IF(AND(($AA23+$E$2)>HG$5,HG$5>=$E$2),$P23,0))/Loss_GasEnergy *IF($C23="Residential",'Portfolio Inputs'!S$35,'Portfolio Inputs'!S$36) ->  | HH23: =IF(AND(($AB23+$E$2)>HH$5,HH$5>=$E$2),$L23,IF(AND(($AA23+$E$2)>HH$5,HH$5>=$E$2),$K23,0))/Loss_ElectricEnergy *IF($C23="Residential",'Portfolio Inputs'!T$33,'Portfolio Inputs'!T$34) +IF(AND(($AB23+$E$2)>HH$5,HH$5>=$E$2),$Q23,IF(AND(($AA23+$E$2)>HH$5,HH$5>=$E$2),$P23,0))/Loss_GasEnergy *IF($C23="Residential",'Portfolio Inputs'!T$35,'Portfolio Inputs'!T$36) ->  | HI23: =IF(AND(($AB23+$E$2)>HI$5,HI$5>=$E$2),$L23,IF(AND(($AA23+$E$2)>HI$5,HI$5>=$E$2),$K23,0))/Loss_ElectricEnergy *IF($C23="Residential",'Portfolio Inputs'!U$33,'Portfolio Inputs'!U$34) +IF(AND(($AB23+$E$2)>HI$5,HI$5>=$E$2),$Q23,IF(AND(($AA23+$E$2)>HI$5,HI$5>=$E$2),$P23,0))/Loss_GasEnergy *IF($C23="Residential",'Portfolio Inputs'!U$35,'Portfolio Inputs'!U$36) ->  | HJ23: =IF(AND(($AB23+$E$2)>HJ$5,HJ$5>=$E$2),$L23,IF(AND(($AA23+$E$2)>HJ$5,HJ$5>=$E$2),$K23,0))/Loss_ElectricEnergy *IF($C23="Residential",'Portfolio Inputs'!V$33,'Portfolio Inputs'!V$34) +IF(AND(($AB23+$E$2)>HJ$5,HJ$5>=$E$2),$Q23,IF(AND(($AA23+$E$2)>HJ$5,HJ$5>=$E$2),$P23,0))/Loss_GasEnergy *IF($C23="Residential",'Portfolio Inputs'!V$35,'Portfolio Inputs'!V$36) ->  | HK23: =IF(AND(($AB23+$E$2)>HK$5,HK$5>=$E$2),$L23,IF(AND(($AA23+$E$2)>HK$5,HK$5>=$E$2),$K23,0))/Loss_ElectricEnergy *IF($C23="Residential",'Portfolio Inputs'!W$33,'Portfolio Inputs'!W$34) +IF(AND(($AB23+$E$2)>HK$5,HK$5>=$E$2),$Q23,IF(AND(($AA23+$E$2)>HK$5,HK$5>=$E$2),$P23,0))/Loss_GasEnergy *IF($C23="Residential",'Portfolio Inputs'!W$35,'Portfolio Inputs'!W$36) ->  | HL23: =IF(AND(($AB23+$E$2)>HL$5,HL$5>=$E$2),$L23,IF(AND(($AA23+$E$2)>HL$5,HL$5>=$E$2),$K23,0))/Loss_ElectricEnergy *IF($C23="Residential",'Portfolio Inputs'!X$33,'Portfolio Inputs'!X$34) +IF(AND(($AB23+$E$2)>HL$5,HL$5>=$E$2),$Q23,IF(AND(($AA23+$E$2)>HL$5,HL$5>=$E$2),$P23,0))/Loss_GasEnergy *IF($C23="Residential",'Portfolio Inputs'!X$35,'Portfolio Inputs'!X$36) ->  | HM23: =IF(AND(($AB23+$E$2)>HM$5,HM$5>=$E$2),$L23,IF(AND(($AA23+$E$2)>HM$5,HM$5>=$E$2),$K23,0))/Loss_ElectricEnergy *IF($C23="Residential",'Portfolio Inputs'!Y$33,'Portfolio Inputs'!Y$34) +IF(AND(($AB23+$E$2)>HM$5,HM$5>=$E$2),$Q23,IF(AND(($AA23+$E$2)>HM$5,HM$5>=$E$2),$P23,0))/Loss_GasEnergy *IF($C23="Residential",'Portfolio Inputs'!Y$35,'Portfolio Inputs'!Y$36) ->  | HN23: =IF(AND(($AB23+$E$2)>HN$5,HN$5>=$E$2),$L23,IF(AND(($AA23+$E$2)>HN$5,HN$5>=$E$2),$K23,0))/Loss_ElectricEnergy *IF($C23="Residential",'Portfolio Inputs'!Z$33,'Portfolio Inputs'!Z$34) +IF(AND(($AB23+$E$2)>HN$5,HN$5>=$E$2),$Q23,IF(AND(($AA23+$E$2)>HN$5,HN$5>=$E$2),$P23,0))/Loss_GasEnergy *IF($C23="Residential",'Portfolio Inputs'!Z$35,'Portfolio Inputs'!Z$36) ->  | HO23: =IF(AND(($AB23+$E$2)>HO$5,HO$5>=$E$2),$L23,IF(AND(($AA23+$E$2)>HO$5,HO$5>=$E$2),$K23,0))/Loss_ElectricEnergy *IF($C23="Residential",'Portfolio Inputs'!AA$33,'Portfolio Inputs'!AA$34) +IF(AND(($AB23+$E$2)>HO$5,HO$5>=$E$2),$Q23,IF(AND(($AA23+$E$2)>HO$5,HO$5>=$E$2),$P23,0))/Loss_GasEnergy *IF($C23="Residential",'Portfolio Inputs'!AA$35,'Portfolio Inputs'!AA$36) ->  | HP23: =IF(AND(($AB23+$E$2)>HP$5,HP$5>=$E$2),$L23,IF(AND(($AA23+$E$2)>HP$5,HP$5>=$E$2),$K23,0))/Loss_ElectricEnergy *IF($C23="Residential",'Portfolio Inputs'!AB$33,'Portfolio Inputs'!AB$34) +IF(AND(($AB23+$E$2)>HP$5,HP$5>=$E$2),$Q23,IF(AND(($AA23+$E$2)>HP$5,HP$5>=$E$2),$P23,0))/Loss_GasEnergy *IF($C23="Residential",'Portfolio Inputs'!AB$35,'Portfolio Inputs'!AB$36) ->  | HQ23: =IF(AND(($AB23+$E$2)>HQ$5,HQ$5>=$E$2),$L23,IF(AND(($AA23+$E$2)>HQ$5,HQ$5>=$E$2),$K23,0))/Loss_ElectricEnergy *IF($C23="Residential",'Portfolio Inputs'!AC$33,'Portfolio Inputs'!AC$34) +IF(AND(($AB23+$E$2)>HQ$5,HQ$5>=$E$2),$Q23,IF(AND(($AA23+$E$2)>HQ$5,HQ$5>=$E$2),$P23,0))/Loss_GasEnergy *IF($C23="Residential",'Portfolio Inputs'!AC$35,'Portfolio Inputs'!AC$36) ->  | HR23: =IF(AND(($AB23+$E$2)>HR$5,HR$5>=$E$2),$L23,IF(AND(($AA23+$E$2)>HR$5,HR$5>=$E$2),$K23,0))/Loss_ElectricEnergy *IF($C23="Residential",'Portfolio Inputs'!AD$33,'Portfolio Inputs'!AD$34) +IF(AND(($AB23+$E$2)>HR$5,HR$5>=$E$2),$Q23,IF(AND(($AA23+$E$2)>HR$5,HR$5>=$E$2),$P23,0))/Loss_GasEnergy *IF($C23="Residential",'Portfolio Inputs'!AD$35,'Portfolio Inputs'!AD$36) ->  | HS23: =IF(AND(($AB23+$E$2)>HS$5,HS$5>=$E$2),$L23,IF(AND(($AA23+$E$2)>HS$5,HS$5>=$E$2),$K23,0))/Loss_ElectricEnergy *IF($C23="Residential",'Portfolio Inputs'!AE$33,'Portfolio Inputs'!AE$34) +IF(AND(($AB23+$E$2)>HS$5,HS$5>=$E$2),$Q23,IF(AND(($AA23+$E$2)>HS$5,HS$5>=$E$2),$P23,0))/Loss_GasEnergy *IF($C23="Residential",'Portfolio Inputs'!AE$35,'Portfolio Inputs'!AE$36) ->  | HT23: =IF(AND(($AB23+$E$2)>HT$5,HT$5>=$E$2),$L23,IF(AND(($AA23+$E$2)>HT$5,HT$5>=$E$2),$K23,0))/Loss_ElectricEnergy *IF($C23="Residential",'Portfolio Inputs'!AF$33,'Portfolio Inputs'!AF$34) +IF(AND(($AB23+$E$2)>HT$5,HT$5>=$E$2),$Q23,IF(AND(($AA23+$E$2)>HT$5,HT$5>=$E$2),$P23,0))/Loss_GasEnergy *IF($C23="Residential",'Portfolio Inputs'!AF$35,'Portfolio Inputs'!AF$36) ->  | HU23: =IF(AND(($AB23+$E$2)>HU$5,HU$5>=$E$2),$L23,IF(AND(($AA23+$E$2)>HU$5,HU$5>=$E$2),$K23,0))/Loss_ElectricEnergy *IF($C23="Residential",'Portfolio Inputs'!AG$33,'Portfolio Inputs'!AG$34) +IF(AND(($AB23+$E$2)>HU$5,HU$5>=$E$2),$Q23,IF(AND(($AA23+$E$2)>HU$5,HU$5>=$E$2),$P23,0))/Loss_GasEnergy *IF($C23="Residential",'Portfolio Inputs'!AG$35,'Portfolio Inputs'!AG$36) ->  | HV23: =IF(AND(($AB23+$E$2)>HV$5,HV$5>=$E$2),$L23,IF(AND(($AA23+$E$2)>HV$5,HV$5>=$E$2),$K23,0))/Loss_ElectricEnergy *IF($C23="Residential",'Portfolio Inputs'!AH$33,'Portfolio Inputs'!AH$34) +IF(AND(($AB23+$E$2)>HV$5,HV$5>=$E$2),$Q23,IF(AND(($AA23+$E$2)>HV$5,HV$5>=$E$2),$P23,0))/Loss_GasEnergy *IF($C23="Residential",'Portfolio Inputs'!AH$35,'Portfolio Inputs'!AH$36) ->  | HW23: =IF(AND(($AB23+$E$2)>HW$5,HW$5>=$E$2),$L23,IF(AND(($AA23+$E$2)>HW$5,HW$5>=$E$2),$K23,0))/Loss_ElectricEnergy *IF($C23="Residential",'Portfolio Inputs'!AI$33,'Portfolio Inputs'!AI$34) +IF(AND(($AB23+$E$2)>HW$5,HW$5>=$E$2),$Q23,IF(AND(($AA23+$E$2)>HW$5,HW$5>=$E$2),$P23,0))/Loss_GasEnergy *IF($C23="Residential",'Portfolio Inputs'!AI$35,'Portfolio Inputs'!AI$36) ->  | HX23: =IF(AND(($AB23+$E$2)>HX$5,HX$5>=$E$2),$L23,IF(AND(($AA23+$E$2)>HX$5,HX$5>=$E$2),$K23,0))/Loss_ElectricEnergy *IF($C23="Residential",'Portfolio Inputs'!AJ$33,'Portfolio Inputs'!AJ$34) +IF(AND(($AB23+$E$2)>HX$5,HX$5>=$E$2),$Q23,IF(AND(($AA23+$E$2)>HX$5,HX$5>=$E$2),$P23,0))/Loss_GasEnergy *IF($C23="Residential",'Portfolio Inputs'!AJ$35,'Portfolio Inputs'!AJ$36) ->  | HY23: =IF(AND(($AB23+$E$2)>HY$5,HY$5>=$E$2),$L23,IF(AND(($AA23+$E$2)>HY$5,HY$5>=$E$2),$K23,0))/Loss_ElectricEnergy *IF($C23="Residential",'Portfolio Inputs'!AK$33,'Portfolio Inputs'!AK$34) +IF(AND(($AB23+$E$2)>HY$5,HY$5>=$E$2),$Q23,IF(AND(($AA23+$E$2)>HY$5,HY$5>=$E$2),$P23,0))/Loss_GasEnergy *IF($C23="Residential",'Portfolio Inputs'!AK$35,'Portfolio Inputs'!AK$36) ->  | HZ23: =IF(AND(($AB23+$E$2)>HZ$5,HZ$5>=$E$2),$L23,IF(AND(($AA23+$E$2)>HZ$5,HZ$5>=$E$2),$K23,0))/Loss_ElectricEnergy *IF($C23="Residential",'Portfolio Inputs'!AL$33,'Portfolio Inputs'!AL$34) +IF(AND(($AB23+$E$2)>HZ$5,HZ$5>=$E$2),$Q23,IF(AND(($AA23+$E$2)>HZ$5,HZ$5>=$E$2),$P23,0))/Loss_GasEnergy *IF($C23="Residential",'Portfolio Inputs'!AL$35,'Portfolio Inputs'!AL$36) ->  | IA23: =IF(AND(($AB23+$E$2)>IA$5,IA$5>=$E$2),$L23,IF(AND(($AA23+$E$2)>IA$5,IA$5>=$E$2),$K23,0))/Loss_ElectricEnergy *IF($C23="Residential",'Portfolio Inputs'!AM$33,'Portfolio Inputs'!AM$34) +IF(AND(($AB23+$E$2)>IA$5,IA$5>=$E$2),$Q23,IF(AND(($AA23+$E$2)>IA$5,IA$5>=$E$2),$P23,0))/Loss_GasEnergy *IF($C23="Residential",'Portfolio Inputs'!AM$35,'Portfolio Inputs'!AM$36) ->  | IC23: =IF($E$2=IC$5,$Y23,IF($AB23+$E$2=IC$5,-$Z23,0)) ->  | IM23: =IF($E$2=IM$5,$Y23,IF($AB23+$E$2=IM$5,-$Z23,0)) ->  | IW23: =IF($E$2=IW$5,$Y23,IF($AB23+$E$2=IW$5,-$Z23,0)) ->  | JL23: =IF(AND(($AB23+$E$2)>JL$5,JL$5>=$E$2),'Portfolio Inputs'!F$30*$S23,IF(AND(($AA23+$E$2)>JL$5,JL$5>=$E$2),'Portfolio Inputs'!F$30*$R23,0)) ->  | JM23: =IF(AND(($AB23+$E$2)>JM$5,JM$5>=$E$2),'Portfolio Inputs'!G$30*$S23,IF(AND(($AA23+$E$2)>JM$5,JM$5>=$E$2),'Portfolio Inputs'!G$30*$R23,0)) ->  | JN23: =IF(AND(($AB23+$E$2)>JN$5,JN$5>=$E$2),'Portfolio Inputs'!H$30*$S23,IF(AND(($AA23+$E$2)>JN$5,JN$5>=$E$2),'Portfolio Inputs'!H$30*$R23,0)) ->  | JO23: =IF(AND(($AB23+$E$2)>JO$5,JO$5>=$E$2),'Portfolio Inputs'!I$30*$S23,IF(AND(($AA23+$E$2)>JO$5,JO$5>=$E$2),'Portfolio Inputs'!I$30*$R23,0)) ->  | JP23: =IF(AND(($AB23+$E$2)>JP$5,JP$5>=$E$2),'Portfolio Inputs'!J$30*$S23,IF(AND(($AA23+$E$2)>JP$5,JP$5>=$E$2),'Portfolio Inputs'!J$30*$R23,0)) ->  | JQ23: =IF(AND(($AB23+$E$2)>JQ$5,JQ$5>=$E$2),'Portfolio Inputs'!K$30*$S23,IF(AND(($AA23+$E$2)>JQ$5,JQ$5>=$E$2),'Portfolio Inputs'!K$30*$R23,0)) ->  | JR23: =IF(AND(($AB23+$E$2)>JR$5,JR$5>=$E$2),'Portfolio Inputs'!L$30*$S23,IF(AND(($AA23+$E$2)>JR$5,JR$5>=$E$2),'Portfolio Inputs'!L$30*$R23,0)) ->  | JS23: =IF(AND(($AB23+$E$2)>JS$5,JS$5>=$E$2),'Portfolio Inputs'!M$30*$S23,IF(AND(($AA23+$E$2)>JS$5,JS$5>=$E$2),'Portfolio Inputs'!M$30*$R23,0)) ->  | JT23: =IF(AND(($AB23+$E$2)>JT$5,JT$5>=$E$2),'Portfolio Inputs'!N$30*$S23,IF(AND(($AA23+$E$2)>JT$5,JT$5>=$E$2),'Portfolio Inputs'!N$30*$R23,0)) ->  | JU23: =IF(AND(($AB23+$E$2)>JU$5,JU$5>=$E$2),'Portfolio Inputs'!O$30*$S23,IF(AND(($AA23+$E$2)>JU$5,JU$5>=$E$2),'Portfolio Inputs'!O$30*$R23,0)) ->  | JV23: =IF(AND(($AB23+$E$2)>JV$5,JV$5>=$E$2),'Portfolio Inputs'!P$30*$S23,IF(AND(($AA23+$E$2)>JV$5,JV$5>=$E$2),'Portfolio Inputs'!P$30*$R23,0)) ->  | JW23: =IF(AND(($AB23+$E$2)>JW$5,JW$5>=$E$2),'Portfolio Inputs'!Q$30*$S23,IF(AND(($AA23+$E$2)>JW$5,JW$5>=$E$2),'Portfolio Inputs'!Q$30*$R23,0)) ->  | JX23: =IF(AND(($AB23+$E$2)>JX$5,JX$5>=$E$2),'Portfolio Inputs'!R$30*$S23,IF(AND(($AA23+$E$2)>JX$5,JX$5>=$E$2),'Portfolio Inputs'!R$30*$R23,0)) ->  | JY23: =IF(AND(($AB23+$E$2)>JY$5,JY$5>=$E$2),'Portfolio Inputs'!S$30*$S23,IF(AND(($AA23+$E$2)>JY$5,JY$5>=$E$2),'Portfolio Inputs'!S$30*$R23,0)) ->  | JZ23: =IF(AND(($AB23+$E$2)>JZ$5,JZ$5>=$E$2),'Portfolio Inputs'!T$30*$S23,IF(AND(($AA23+$E$2)>JZ$5,JZ$5>=$E$2),'Portfolio Inputs'!T$30*$R23,0)) ->  | KA23: =IF(AND(($AB23+$E$2)>KA$5,KA$5>=$E$2),'Portfolio Inputs'!U$30*$S23,IF(AND(($AA23+$E$2)>KA$5,KA$5>=$E$2),'Portfolio Inputs'!U$30*$R23,0)) ->  | KB23: =IF(AND(($AB23+$E$2)>KB$5,KB$5>=$E$2),'Portfolio Inputs'!V$30*$S23,IF(AND(($AA23+$E$2)>KB$5,KB$5>=$E$2),'Portfolio Inputs'!V$30*$R23,0)) ->  | KC23: =IF(AND(($AB23+$E$2)>KC$5,KC$5>=$E$2),'Portfolio Inputs'!W$30*$S23,IF(AND(($AA23+$E$2)>KC$5,KC$5>=$E$2),'Portfolio Inputs'!W$30*$R23,0)) ->  | KD23: =IF(AND(($AB23+$E$2)>KD$5,KD$5>=$E$2),'Portfolio Inputs'!X$30*$S23,IF(AND(($AA23+$E$2)>KD$5,KD$5>=$E$2),'Portfolio Inputs'!X$30*$R23,0)) ->  | KE23: =IF(AND(($AB23+$E$2)>KE$5,KE$5>=$E$2),'Portfolio Inputs'!Y$30*$S23,IF(AND(($AA23+$E$2)>KE$5,KE$5>=$E$2),'Portfolio Inputs'!Y$30*$R23,0)) ->  | KF23: =IF(AND(($AB23+$E$2)>KF$5,KF$5>=$E$2),'Portfolio Inputs'!Z$30*$S23,IF(AND(($AA23+$E$2)>KF$5,KF$5>=$E$2),'Portfolio Inputs'!Z$30*$R23,0)) ->  | KG23: =IF(AND(($AB23+$E$2)>KG$5,KG$5>=$E$2),'Portfolio Inputs'!AA$30*$S23,IF(AND(($AA23+$E$2)>KG$5,KG$5>=$E$2),'Portfolio Inputs'!AA$30*$R23,0)) ->  | KH23: =IF(AND(($AB23+$E$2)>KH$5,KH$5>=$E$2),'Portfolio Inputs'!AB$30*$S23,IF(AND(($AA23+$E$2)>KH$5,KH$5>=$E$2),'Portfolio Inputs'!AB$30*$R23,0)) ->  | KI23: =IF(AND(($AB23+$E$2)>KI$5,KI$5>=$E$2),'Portfolio Inputs'!AC$30*$S23,IF(AND(($AA23+$E$2)>KI$5,KI$5>=$E$2),'Portfolio Inputs'!AC$30*$R23,0)) ->  | KJ23: =IF(AND(($AB23+$E$2)>KJ$5,KJ$5>=$E$2),'Portfolio Inputs'!AD$30*$S23,IF(AND(($AA23+$E$2)>KJ$5,KJ$5>=$E$2),'Portfolio Inputs'!AD$30*$R23,0)) ->  | KK23: =IF(AND(($AB23+$E$2)>KK$5,KK$5>=$E$2),'Portfolio Inputs'!AE$30*$S23,IF(AND(($AA23+$E$2)>KK$5,KK$5>=$E$2),'Portfolio Inputs'!AE$30*$R23,0)) ->  | KL23: =IF(AND(($AB23+$E$2)>KL$5,KL$5>=$E$2),'Portfolio Inputs'!AF$30*$S23,IF(AND(($AA23+$E$2)>KL$5,KL$5>=$E$2),'Portfolio Inputs'!AF$30*$R23,0)) ->  | KM23: =IF(AND(($AB23+$E$2)>KM$5,KM$5>=$E$2),'Portfolio Inputs'!AG$30*$S23,IF(AND(($AA23+$E$2)>KM$5,KM$5>=$E$2),'Portfolio Inputs'!AG$30*$R23,0)) ->  | KN23: =IF(AND(($AB23+$E$2)>KN$5,KN$5>=$E$2),'Portfolio Inputs'!AH$30*$S23,IF(AND(($AA23+$E$2)>KN$5,KN$5>=$E$2),'Portfolio Inputs'!AH$30*$R23,0)) ->  | KO23: =IF(AND(($AB23+$E$2)>KO$5,KO$5>=$E$2),'Portfolio Inputs'!AI$30*$S23,IF(AND(($AA23+$E$2)>KO$5,KO$5>=$E$2),'Portfolio Inputs'!AI$30*$R23,0)) ->  | KP23: =IF(AND(($AB23+$E$2)>KP$5,KP$5>=$E$2),'Portfolio Inputs'!AJ$30*$S23,IF(AND(($AA23+$E$2)>KP$5,KP$5>=$E$2),'Portfolio Inputs'!AJ$30*$R23,0)) ->  | KQ23: =IF(AND(($AB23+$E$2)>KQ$5,KQ$5>=$E$2),'Portfolio Inputs'!AK$30*$S23,IF(AND(($AA23+$E$2)>KQ$5,KQ$5>=$E$2),'Portfolio Inputs'!AK$30*$R23,0)) ->  | KR23: =IF(AND(($AB23+$E$2)>KR$5,KR$5>=$E$2),'Portfolio Inputs'!AL$30*$S23,IF(AND(($AA23+$E$2)>KR$5,KR$5>=$E$2),'Portfolio Inputs'!AL$30*$R23,0)) ->  | KS23: =IF(AND(($AB23+$E$2)>KS$5,KS$5>=$E$2),'Portfolio Inputs'!AM$30*$S23,IF(AND(($AA23+$E$2)>KS$5,KS$5>=$E$2),'Portfolio Inputs'!AM$30*$R23,0)) ->  | KU23: =IF(AND(($AB23+$E$2)>KU$5,KU$5>=$E$2),$S23,IF(AND(($AA23+$E$2)>KU$5,KU$5>=$E$2),$R23,0))*IF($C23="Residential",'Portfolio Inputs'!F$37,'Portfolio Inputs'!F$38) ->  | KV23: =IF(AND(($AB23+$E$2)>KV$5,KV$5>=$E$2),$S23,IF(AND(($AA23+$E$2)>KV$5,KV$5>=$E$2),$R23,0))*IF($C23="Residential",'Portfolio Inputs'!G$37,'Portfolio Inputs'!G$38) ->  | KW23: =IF(AND(($AB23+$E$2)>KW$5,KW$5>=$E$2),$S23,IF(AND(($AA23+$E$2)>KW$5,KW$5>=$E$2),$R23,0))*IF($C23="Residential",'Portfolio Inputs'!H$37,'Portfolio Inputs'!H$38) ->  | KX23: =IF(AND(($AB23+$E$2)>KX$5,KX$5>=$E$2),$S23,IF(AND(($AA23+$E$2)>KX$5,KX$5>=$E$2),$R23,0))*IF($C23="Residential",'Portfolio Inputs'!I$37,'Portfolio Inputs'!I$38) ->  | KY23: =IF(AND(($AB23+$E$2)>KY$5,KY$5>=$E$2),$S23,IF(AND(($AA23+$E$2)>KY$5,KY$5>=$E$2),$R23,0))*IF($C23="Residential",'Portfolio Inputs'!J$37,'Portfolio Inputs'!J$38) ->  | KZ23: =IF(AND(($AB23+$E$2)>KZ$5,KZ$5>=$E$2),$S23,IF(AND(($AA23+$E$2)>KZ$5,KZ$5>=$E$2),$R23,0))*IF($C23="Residential",'Portfolio Inputs'!K$37,'Portfolio Inputs'!K$38) ->  | LA23: =IF(AND(($AB23+$E$2)>LA$5,LA$5>=$E$2),$S23,IF(AND(($AA23+$E$2)>LA$5,LA$5>=$E$2),$R23,0))*IF($C23="Residential",'Portfolio Inputs'!L$37,'Portfolio Inputs'!L$38) ->  | LB23: =IF(AND(($AB23+$E$2)>LB$5,LB$5>=$E$2),$S23,IF(AND(($AA23+$E$2)>LB$5,LB$5>=$E$2),$R23,0))*IF($C23="Residential",'Portfolio Inputs'!M$37,'Portfolio Inputs'!M$38) ->  | LC23: =IF(AND(($AB23+$E$2)>LC$5,LC$5>=$E$2),$S23,IF(AND(($AA23+$E$2)>LC$5,LC$5>=$E$2),$R23,0))*IF($C23="Residential",'Portfolio Inputs'!N$37,'Portfolio Inputs'!N$38) ->  | LD23: =IF(AND(($AB23+$E$2)>LD$5,LD$5>=$E$2),$S23,IF(AND(($AA23+$E$2)>LD$5,LD$5>=$E$2),$R23,0))*IF($C23="Residential",'Portfolio Inputs'!O$37,'Portfolio Inputs'!O$38) ->  | LE23: =IF(AND(($AB23+$E$2)>LE$5,LE$5>=$E$2),$S23,IF(AND(($AA23+$E$2)>LE$5,LE$5>=$E$2),$R23,0))*IF($C23="Residential",'Portfolio Inputs'!P$37,'Portfolio Inputs'!P$38) ->  | LF23: =IF(AND(($AB23+$E$2)>LF$5,LF$5>=$E$2),$S23,IF(AND(($AA23+$E$2)>LF$5,LF$5>=$E$2),$R23,0))*IF($C23="Residential",'Portfolio Inputs'!Q$37,'Portfolio Inputs'!Q$38) ->  | LG23: =IF(AND(($AB23+$E$2)>LG$5,LG$5>=$E$2),$S23,IF(AND(($AA23+$E$2)>LG$5,LG$5>=$E$2),$R23,0))*IF($C23="Residential",'Portfolio Inputs'!R$37,'Portfolio Inputs'!R$38) ->  | LH23: =IF(AND(($AB23+$E$2)>LH$5,LH$5>=$E$2),$S23,IF(AND(($AA23+$E$2)>LH$5,LH$5>=$E$2),$R23,0))*IF($C23="Residential",'Portfolio Inputs'!S$37,'Portfolio Inputs'!S$38) ->  | LI23: =IF(AND(($AB23+$E$2)>LI$5,LI$5>=$E$2),$S23,IF(AND(($AA23+$E$2)>LI$5,LI$5>=$E$2),$R23,0))*IF($C23="Residential",'Portfolio Inputs'!T$37,'Portfolio Inputs'!T$38) ->  | LJ23: =IF(AND(($AB23+$E$2)>LJ$5,LJ$5>=$E$2),$S23,IF(AND(($AA23+$E$2)>LJ$5,LJ$5>=$E$2),$R23,0))*IF($C23="Residential",'Portfolio Inputs'!U$37,'Portfolio Inputs'!U$38) ->  | LK23: =IF(AND(($AB23+$E$2)>LK$5,LK$5>=$E$2),$S23,IF(AND(($AA23+$E$2)>LK$5,LK$5>=$E$2),$R23,0))*IF($C23="Residential",'Portfolio Inputs'!V$37,'Portfolio Inputs'!V$38) ->  | LL23: =IF(AND(($AB23+$E$2)>LL$5,LL$5>=$E$2),$S23,IF(AND(($AA23+$E$2)>LL$5,LL$5>=$E$2),$R23,0))*IF($C23="Residential",'Portfolio Inputs'!W$37,'Portfolio Inputs'!W$38) ->  | LM23: =IF(AND(($AB23+$E$2)>LM$5,LM$5>=$E$2),$S23,IF(AND(($AA23+$E$2)>LM$5,LM$5>=$E$2),$R23,0))*IF($C23="Residential",'Portfolio Inputs'!X$37,'Portfolio Inputs'!X$38) ->  | LN23: =IF(AND(($AB23+$E$2)>LN$5,LN$5>=$E$2),$S23,IF(AND(($AA23+$E$2)>LN$5,LN$5>=$E$2),$R23,0))*IF($C23="Residential",'Portfolio Inputs'!Y$37,'Portfolio Inputs'!Y$38) ->  | LO23: =IF(AND(($AB23+$E$2)>LO$5,LO$5>=$E$2),$S23,IF(AND(($AA23+$E$2)>LO$5,LO$5>=$E$2),$R23,0))*IF($C23="Residential",'Portfolio Inputs'!Z$37,'Portfolio Inputs'!Z$38) ->  | LP23: =IF(AND(($AB23+$E$2)>LP$5,LP$5>=$E$2),$S23,IF(AND(($AA23+$E$2)>LP$5,LP$5>=$E$2),$R23,0))*IF($C23="Residential",'Portfolio Inputs'!AA$37,'Portfolio Inputs'!AA$38) ->  | LQ23: =IF(AND(($AB23+$E$2)>LQ$5,LQ$5>=$E$2),$S23,IF(AND(($AA23+$E$2)>LQ$5,LQ$5>=$E$2),$R23,0))*IF($C23="Residential",'Portfolio Inputs'!AB$37,'Portfolio Inputs'!AB$38) ->  | LR23: =IF(AND(($AB23+$E$2)>LR$5,LR$5>=$E$2),$S23,IF(AND(($AA23+$E$2)>LR$5,LR$5>=$E$2),$R23,0))*IF($C23="Residential",'Portfolio Inputs'!AC$37,'Portfolio Inputs'!AC$38) ->  | LS23: =IF(AND(($AB23+$E$2)>LS$5,LS$5>=$E$2),$S23,IF(AND(($AA23+$E$2)>LS$5,LS$5>=$E$2),$R23,0))*IF($C23="Residential",'Portfolio Inputs'!AD$37,'Portfolio Inputs'!AD$38) ->  | LT23: =IF(AND(($AB23+$E$2)>LT$5,LT$5>=$E$2),$S23,IF(AND(($AA23+$E$2)>LT$5,LT$5>=$E$2),$R23,0))*IF($C23="Residential",'Portfolio Inputs'!AE$37,'Portfolio Inputs'!AE$38) ->  | LU23: =IF(AND(($AB23+$E$2)>LU$5,LU$5>=$E$2),$S23,IF(AND(($AA23+$E$2)>LU$5,LU$5>=$E$2),$R23,0))*IF($C23="Residential",'Portfolio Inputs'!AF$37,'Portfolio Inputs'!AF$38) ->  | LV23: =IF(AND(($AB23+$E$2)>LV$5,LV$5>=$E$2),$S23,IF(AND(($AA23+$E$2)>LV$5,LV$5>=$E$2),$R23,0))*IF($C23="Residential",'Portfolio Inputs'!AG$37,'Portfolio Inputs'!AG$38) ->  | LW23: =IF(AND(($AB23+$E$2)>LW$5,LW$5>=$E$2),$S23,IF(AND(($AA23+$E$2)>LW$5,LW$5>=$E$2),$R23,0))*IF($C23="Residential",'Portfolio Inputs'!AH$37,'Portfolio Inputs'!AH$38) ->  | LX23: =IF(AND(($AB23+$E$2)>LX$5,LX$5>=$E$2),$S23,IF(AND(($AA23+$E$2)>LX$5,LX$5>=$E$2),$R23,0))*IF($C23="Residential",'Portfolio Inputs'!AI$37,'Portfolio Inputs'!AI$38) ->  | LY23: =IF(AND(($AB23+$E$2)>LY$5,LY$5>=$E$2),$S23,IF(AND(($AA23+$E$2)>LY$5,LY$5>=$E$2),$R23,0))*IF($C23="Residential",'Portfolio Inputs'!AJ$37,'Portfolio Inputs'!AJ$38) ->  | LZ23: =IF(AND(($AB23+$E$2)>LZ$5,LZ$5>=$E$2),$S23,IF(AND(($AA23+$E$2)>LZ$5,LZ$5>=$E$2),$R23,0))*IF($C23="Residential",'Portfolio Inputs'!AK$37,'Portfolio Inputs'!AK$38) ->  | MA23: =IF(AND(($AB23+$E$2)>MA$5,MA$5>=$E$2),$S23,IF(AND(($AA23+$E$2)>MA$5,MA$5>=$E$2),$R23,0))*IF($C23="Residential",'Portfolio Inputs'!AL$37,'Portfolio Inputs'!AL$38) ->  | MB23: =IF(AND(($AB23+$E$2)>MB$5,MB$5>=$E$2),$S23,IF(AND(($AA23+$E$2)>MB$5,MB$5>=$E$2),$R23,0))*IF($C23="Residential",'Portfolio Inputs'!AM$37,'Portfolio Inputs'!AM$38) ->  | MD23: =IF(AND(($AB23+$E$2)>BJ$5,BJ$5>=$E$2),$L23,IF(AND(($AA23+$E$2)>BJ$5,BJ$5>=$E$2),$K23,0))*Loss_ElectricEnergy ->  | ME23: =IF(AND(($AB23+$E$2)>BK$5,BK$5>=$E$2),$L23,IF(AND(($AA23+$E$2)>BK$5,BK$5>=$E$2),$K23,0))*Loss_ElectricEnergy ->  | MF23: =IF(AND(($AB23+$E$2)>BL$5,BL$5>=$E$2),$L23,IF(AND(($AA23+$E$2)>BL$5,BL$5>=$E$2),$K23,0))*Loss_ElectricEnergy ->  | MG23: =IF(AND(($AB23+$E$2)>BM$5,BM$5>=$E$2),$L23,IF(AND(($AA23+$E$2)>BM$5,BM$5>=$E$2),$K23,0))*Loss_ElectricEnergy ->  | MH23: =IF(AND(($AB23+$E$2)>BN$5,BN$5>=$E$2),$L23,IF(AND(($AA23+$E$2)>BN$5,BN$5>=$E$2),$K23,0))*Loss_ElectricEnergy ->  | MI23: =IF(AND(($AB23+$E$2)>BO$5,BO$5>=$E$2),$L23,IF(AND(($AA23+$E$2)>BO$5,BO$5>=$E$2),$K23,0))*Loss_ElectricEnergy ->  | MJ23: =IF(AND(($AB23+$E$2)>BP$5,BP$5>=$E$2),$L23,IF(AND(($AA23+$E$2)>BP$5,BP$5>=$E$2),$K23,0))*Loss_ElectricEnergy ->  | MK23: =IF(AND(($AB23+$E$2)>BQ$5,BQ$5>=$E$2),$L23,IF(AND(($AA23+$E$2)>BQ$5,BQ$5>=$E$2),$K23,0))*Loss_ElectricEnergy ->  | ML23: =IF(AND(($AB23+$E$2)>BR$5,BR$5>=$E$2),$L23,IF(AND(($AA23+$E$2)>BR$5,BR$5>=$E$2),$K23,0))*Loss_ElectricEnergy ->  | MM23: =IF(AND(($AB23+$E$2)>BS$5,BS$5>=$E$2),$L23,IF(AND(($AA23+$E$2)>BS$5,BS$5>=$E$2),$K23,0))*Loss_ElectricEnergy ->  | MN23: =IF(AND(($AB23+$E$2)>BT$5,BT$5>=$E$2),$L23,IF(AND(($AA23+$E$2)>BT$5,BT$5>=$E$2),$K23,0))*Loss_ElectricEnergy ->  | MO23: =IF(AND(($AB23+$E$2)>BU$5,BU$5>=$E$2),$L23,IF(AND(($AA23+$E$2)>BU$5,BU$5>=$E$2),$K23,0))*Loss_ElectricEnergy ->  | MP23: =IF(AND(($AB23+$E$2)>BV$5,BV$5>=$E$2),$L23,IF(AND(($AA23+$E$2)>BV$5,BV$5>=$E$2),$K23,0))*Loss_ElectricEnergy ->  | MQ23: =IF(AND(($AB23+$E$2)>BW$5,BW$5>=$E$2),$L23,IF(AND(($AA23+$E$2)>BW$5,BW$5>=$E$2),$K23,0))*Loss_ElectricEnergy ->  | MR23: =IF(AND(($AB23+$E$2)>BX$5,BX$5>=$E$2),$L23,IF(AND(($AA23+$E$2)>BX$5,BX$5>=$E$2),$K23,0))*Loss_ElectricEnergy ->  | MS23: =IF(AND(($AB23+$E$2)>BY$5,BY$5>=$E$2),$L23,IF(AND(($AA23+$E$2)>BY$5,BY$5>=$E$2),$K23,0))*Loss_ElectricEnergy ->  | MT23: =IF(AND(($AB23+$E$2)>BZ$5,BZ$5>=$E$2),$L23,IF(AND(($AA23+$E$2)>BZ$5,BZ$5>=$E$2),$K23,0))*Loss_ElectricEnergy ->  | MU23: =IF(AND(($AB23+$E$2)>CA$5,CA$5>=$E$2),$L23,IF(AND(($AA23+$E$2)>CA$5,CA$5>=$E$2),$K23,0))*Loss_ElectricEnergy ->  | MV23: =IF(AND(($AB23+$E$2)>CB$5,CB$5>=$E$2),$L23,IF(AND(($AA23+$E$2)>CB$5,CB$5>=$E$2),$K23,0))*Loss_ElectricEnergy ->  | MW23: =IF(AND(($AB23+$E$2)>CC$5,CC$5>=$E$2),$L23,IF(AND(($AA23+$E$2)>CC$5,CC$5>=$E$2),$K23,0))*Loss_ElectricEnergy ->  | MX23: =IF(AND(($AB23+$E$2)>CD$5,CD$5>=$E$2),$L23,IF(AND(($AA23+$E$2)>CD$5,CD$5>=$E$2),$K23,0))*Loss_ElectricEnergy ->  | MY23: =IF(AND(($AB23+$E$2)>CE$5,CE$5>=$E$2),$L23,IF(AND(($AA23+$E$2)>CE$5,CE$5>=$E$2),$K23,0))*Loss_ElectricEnergy ->  | MZ23: =IF(AND(($AB23+$E$2)>CF$5,CF$5>=$E$2),$L23,IF(AND(($AA23+$E$2)>CF$5,CF$5>=$E$2),$K23,0))*Loss_ElectricEnergy ->  | NA23: =IF(AND(($AB23+$E$2)>CG$5,CG$5>=$E$2),$L23,IF(AND(($AA23+$E$2)>CG$5,CG$5>=$E$2),$K23,0))*Loss_ElectricEnergy ->  | NB23: =IF(AND(($AB23+$E$2)>CH$5,CH$5>=$E$2),$L23,IF(AND(($AA23+$E$2)>CH$5,CH$5>=$E$2),$K23,0))*Loss_ElectricEnergy ->  | NC23: =IF(AND(($AB23+$E$2)>CI$5,CI$5>=$E$2),$L23,IF(AND(($AA23+$E$2)>CI$5,CI$5>=$E$2),$K23,0))*Loss_ElectricEnergy ->  | ND23: =IF(AND(($AB23+$E$2)>CJ$5,CJ$5>=$E$2),$L23,IF(AND(($AA23+$E$2)>CJ$5,CJ$5>=$E$2),$K23,0))*Loss_ElectricEnergy ->  | NE23: =IF(AND(($AB23+$E$2)>CK$5,CK$5>=$E$2),$L23,IF(AND(($AA23+$E$2)>CK$5,CK$5>=$E$2),$K23,0))*Loss_ElectricEnergy ->  | NF23: =IF(AND(($AB23+$E$2)>CL$5,CL$5>=$E$2),$L23,IF(AND(($AA23+$E$2)>CL$5,CL$5>=$E$2),$K23,0))*Loss_ElectricEnergy ->  | NG23: =IF(AND(($AB23+$E$2)>CM$5,CM$5>=$E$2),$L23,IF(AND(($AA23+$E$2)>CM$5,CM$5>=$E$2),$K23,0))*Loss_ElectricEnergy ->  | NH23: =IF(AND(($AB23+$E$2)>CN$5,CN$5>=$E$2),$L23,IF(AND(($AA23+$E$2)>CN$5,CN$5>=$E$2),$K23,0))*Loss_ElectricEnergy ->  | NI23: =IF(AND(($AB23+$E$2)>CO$5,CO$5>=$E$2),$L23,IF(AND(($AA23+$E$2)>CO$5,CO$5>=$E$2),$K23,0))*Loss_ElectricEnergy ->  | NJ23: =IF(AND(($AB23+$E$2)>CP$5,CP$5>=$E$2),$L23,IF(AND(($AA23+$E$2)>CP$5,CP$5>=$E$2),$K23,0))*Loss_ElectricEnergy ->  | NK23: =IF(AND(($AB23+$E$2)>CQ$5,CQ$5>=$E$2),$L23,IF(AND(($AA23+$E$2)>CQ$5,CQ$5>=$E$2),$K23,0))*Loss_ElectricEnergy ->  | NM23: =IF(AND(($AB23+$E$2)>BJ$5,BJ$5>=$E$2),$O23,IF(AND(($AA23+$E$2)>BJ$5,BJ$5>=$E$2),$N23,0))*Loss_ElectricDemand ->  | NN23: =IF(AND(($AB23+$E$2)>BK$5,BK$5>=$E$2),$O23,IF(AND(($AA23+$E$2)>BK$5,BK$5>=$E$2),$N23,0))*Loss_ElectricDemand ->  | NO23: =IF(AND(($AB23+$E$2)>BL$5,BL$5>=$E$2),$O23,IF(AND(($AA23+$E$2)>BL$5,BL$5>=$E$2),$N23,0))*Loss_ElectricDemand ->  | NP23: =IF(AND(($AB23+$E$2)>BM$5,BM$5>=$E$2),$O23,IF(AND(($AA23+$E$2)>BM$5,BM$5>=$E$2),$N23,0))*Loss_ElectricDemand ->  | NQ23: =IF(AND(($AB23+$E$2)>BN$5,BN$5>=$E$2),$O23,IF(AND(($AA23+$E$2)>BN$5,BN$5>=$E$2),$N23,0))*Loss_ElectricDemand ->  | NR23: =IF(AND(($AB23+$E$2)>BO$5,BO$5>=$E$2),$O23,IF(AND(($AA23+$E$2)>BO$5,BO$5>=$E$2),$N23,0))*Loss_ElectricDemand ->  | NS23: =IF(AND(($AB23+$E$2)>BP$5,BP$5>=$E$2),$O23,IF(AND(($AA23+$E$2)>BP$5,BP$5>=$E$2),$N23,0))*Loss_ElectricDemand ->  | NT23: =IF(AND(($AB23+$E$2)>BQ$5,BQ$5>=$E$2),$O23,IF(AND(($AA23+$E$2)>BQ$5,BQ$5>=$E$2),$N23,0))*Loss_ElectricDemand ->  | NU23: =IF(AND(($AB23+$E$2)>BR$5,BR$5>=$E$2),$O23,IF(AND(($AA23+$E$2)>BR$5,BR$5>=$E$2),$N23,0))*Loss_ElectricDemand ->  | NV23: =IF(AND(($AB23+$E$2)>BS$5,BS$5>=$E$2),$O23,IF(AND(($AA23+$E$2)>BS$5,BS$5>=$E$2),$N23,0))*Loss_ElectricDemand ->  | NW23: =IF(AND(($AB23+$E$2)>BT$5,BT$5>=$E$2),$O23,IF(AND(($AA23+$E$2)>BT$5,BT$5>=$E$2),$N23,0))*Loss_ElectricDemand ->  | NX23: =IF(AND(($AB23+$E$2)>BU$5,BU$5>=$E$2),$O23,IF(AND(($AA23+$E$2)>BU$5,BU$5>=$E$2),$N23,0))*Loss_ElectricDemand ->  | NY23: =IF(AND(($AB23+$E$2)>BV$5,BV$5>=$E$2),$O23,IF(AND(($AA23+$E$2)>BV$5,BV$5>=$E$2),$N23,0))*Loss_ElectricDemand ->  | NZ23: =IF(AND(($AB23+$E$2)>BW$5,BW$5>=$E$2),$O23,IF(AND(($AA23+$E$2)>BW$5,BW$5>=$E$2),$N23,0))*Loss_ElectricDemand ->  | OA23: =IF(AND(($AB23+$E$2)>BX$5,BX$5>=$E$2),$O23,IF(AND(($AA23+$E$2)>BX$5,BX$5>=$E$2),$N23,0))*Loss_ElectricDemand ->  | OB23: =IF(AND(($AB23+$E$2)>BY$5,BY$5>=$E$2),$O23,IF(AND(($AA23+$E$2)>BY$5,BY$5>=$E$2),$N23,0))*Loss_ElectricDemand ->  | OC23: =IF(AND(($AB23+$E$2)>BZ$5,BZ$5>=$E$2),$O23,IF(AND(($AA23+$E$2)>BZ$5,BZ$5>=$E$2),$N23,0))*Loss_ElectricDemand ->  | OD23: =IF(AND(($AB23+$E$2)>CA$5,CA$5>=$E$2),$O23,IF(AND(($AA23+$E$2)>CA$5,CA$5>=$E$2),$N23,0))*Loss_ElectricDemand ->  | OE23: =IF(AND(($AB23+$E$2)>CB$5,CB$5>=$E$2),$O23,IF(AND(($AA23+$E$2)>CB$5,CB$5>=$E$2),$N23,0))*Loss_ElectricDemand ->  | OF23: =IF(AND(($AB23+$E$2)>CC$5,CC$5>=$E$2),$O23,IF(AND(($AA23+$E$2)>CC$5,CC$5>=$E$2),$N23,0))*Loss_ElectricDemand ->  | OG23: =IF(AND(($AB23+$E$2)>CD$5,CD$5>=$E$2),$O23,IF(AND(($AA23+$E$2)>CD$5,CD$5>=$E$2),$N23,0))*Loss_ElectricDemand ->  | OH23: =IF(AND(($AB23+$E$2)>CE$5,CE$5>=$E$2),$O23,IF(AND(($AA23+$E$2)>CE$5,CE$5>=$E$2),$N23,0))*Loss_ElectricDemand ->  | OI23: =IF(AND(($AB23+$E$2)>CF$5,CF$5>=$E$2),$O23,IF(AND(($AA23+$E$2)>CF$5,CF$5>=$E$2),$N23,0))*Loss_ElectricDemand ->  | OJ23: =IF(AND(($AB23+$E$2)>CG$5,CG$5>=$E$2),$O23,IF(AND(($AA23+$E$2)>CG$5,CG$5>=$E$2),$N23,0))*Loss_ElectricDemand ->  | OK23: =IF(AND(($AB23+$E$2)>CH$5,CH$5>=$E$2),$O23,IF(AND(($AA23+$E$2)>CH$5,CH$5>=$E$2),$N23,0))*Loss_ElectricDemand ->  | OL23: =IF(AND(($AB23+$E$2)>CI$5,CI$5>=$E$2),$O23,IF(AND(($AA23+$E$2)>CI$5,CI$5>=$E$2),$N23,0))*Loss_ElectricDemand ->  | OM23: =IF(AND(($AB23+$E$2)>CJ$5,CJ$5>=$E$2),$O23,IF(AND(($AA23+$E$2)>CJ$5,CJ$5>=$E$2),$N23,0))*Loss_ElectricDemand ->  | ON23: =IF(AND(($AB23+$E$2)>CK$5,CK$5>=$E$2),$O23,IF(AND(($AA23+$E$2)>CK$5,CK$5>=$E$2),$N23,0))*Loss_ElectricDemand ->  | OO23: =IF(AND(($AB23+$E$2)>CL$5,CL$5>=$E$2),$O23,IF(AND(($AA23+$E$2)>CL$5,CL$5>=$E$2),$N23,0))*Loss_ElectricDemand ->  | OP23: =IF(AND(($AB23+$E$2)>CM$5,CM$5>=$E$2),$O23,IF(AND(($AA23+$E$2)>CM$5,CM$5>=$E$2),$N23,0))*Loss_ElectricDemand ->  | OQ23: =IF(AND(($AB23+$E$2)>CN$5,CN$5>=$E$2),$O23,IF(AND(($AA23+$E$2)>CN$5,CN$5>=$E$2),$N23,0))*Loss_ElectricDemand ->  | OR23: =IF(AND(($AB23+$E$2)>CO$5,CO$5>=$E$2),$O23,IF(AND(($AA23+$E$2)>CO$5,CO$5>=$E$2),$N23,0))*Loss_ElectricDemand ->  | OS23: =IF(AND(($AB23+$E$2)>CP$5,CP$5>=$E$2),$O23,IF(AND(($AA23+$E$2)>CP$5,CP$5>=$E$2),$N23,0))*Loss_ElectricDemand ->  | OT23: =IF(AND(($AB23+$E$2)>CQ$5,CQ$5>=$E$2),$O23,IF(AND(($AA23+$E$2)>CQ$5,CQ$5>=$E$2),$N23,0))*Loss_ElectricDemand ->  | OV23: =IF(AND(($AB23+$E$2)>BJ$5,BJ$5>=$E$2),$Q23,IF(AND(($AA23+$E$2)>BJ$5,BJ$5>=$E$2),$P23,0))*Loss_GasEnergy ->  | OW23: =IF(AND(($AB23+$E$2)>BK$5,BK$5>=$E$2),$Q23,IF(AND(($AA23+$E$2)>BK$5,BK$5>=$E$2),$P23,0))*Loss_GasEnergy ->  | OX23: =IF(AND(($AB23+$E$2)>BL$5,BL$5>=$E$2),$Q23,IF(AND(($AA23+$E$2)>BL$5,BL$5>=$E$2),$P23,0))*Loss_GasEnergy ->  | OY23: =IF(AND(($AB23+$E$2)>BM$5,BM$5>=$E$2),$Q23,IF(AND(($AA23+$E$2)>BM$5,BM$5>=$E$2),$P23,0))*Loss_GasEnergy ->  | OZ23: =IF(AND(($AB23+$E$2)>BN$5,BN$5>=$E$2),$Q23,IF(AND(($AA23+$E$2)>BN$5,BN$5>=$E$2),$P23,0))*Loss_GasEnergy ->  | PA23: =IF(AND(($AB23+$E$2)>BO$5,BO$5>=$E$2),$Q23,IF(AND(($AA23+$E$2)>BO$5,BO$5>=$E$2),$P23,0))*Loss_GasEnergy ->  | PB23: =IF(AND(($AB23+$E$2)>BP$5,BP$5>=$E$2),$Q23,IF(AND(($AA23+$E$2)>BP$5,BP$5>=$E$2),$P23,0))*Loss_GasEnergy ->  | PC23: =IF(AND(($AB23+$E$2)>BQ$5,BQ$5>=$E$2),$Q23,IF(AND(($AA23+$E$2)>BQ$5,BQ$5>=$E$2),$P23,0))*Loss_GasEnergy ->  | PD23: =IF(AND(($AB23+$E$2)>BR$5,BR$5>=$E$2),$Q23,IF(AND(($AA23+$E$2)>BR$5,BR$5>=$E$2),$P23,0))*Loss_GasEnergy ->  | PE23: =IF(AND(($AB23+$E$2)>BS$5,BS$5>=$E$2),$Q23,IF(AND(($AA23+$E$2)>BS$5,BS$5>=$E$2),$P23,0))*Loss_GasEnergy ->  | PF23: =IF(AND(($AB23+$E$2)>BT$5,BT$5>=$E$2),$Q23,IF(AND(($AA23+$E$2)>BT$5,BT$5>=$E$2),$P23,0))*Loss_GasEnergy ->  | PG23: =IF(AND(($AB23+$E$2)>BU$5,BU$5>=$E$2),$Q23,IF(AND(($AA23+$E$2)>BU$5,BU$5>=$E$2),$P23,0))*Loss_GasEnergy ->  | PH23: =IF(AND(($AB23+$E$2)>BV$5,BV$5>=$E$2),$Q23,IF(AND(($AA23+$E$2)>BV$5,BV$5>=$E$2),$P23,0))*Loss_GasEnergy ->  | PI23: =IF(AND(($AB23+$E$2)>BW$5,BW$5>=$E$2),$Q23,IF(AND(($AA23+$E$2)>BW$5,BW$5>=$E$2),$P23,0))*Loss_GasEnergy ->  | PJ23: =IF(AND(($AB23+$E$2)>BX$5,BX$5>=$E$2),$Q23,IF(AND(($AA23+$E$2)>BX$5,BX$5>=$E$2),$P23,0))*Loss_GasEnergy ->  | PK23: =IF(AND(($AB23+$E$2)>BY$5,BY$5>=$E$2),$Q23,IF(AND(($AA23+$E$2)>BY$5,BY$5>=$E$2),$P23,0))*Loss_GasEnergy ->  | PL23: =IF(AND(($AB23+$E$2)>BZ$5,BZ$5>=$E$2),$Q23,IF(AND(($AA23+$E$2)>BZ$5,BZ$5>=$E$2),$P23,0))*Loss_GasEnergy ->  | PM23: =IF(AND(($AB23+$E$2)>CA$5,CA$5>=$E$2),$Q23,IF(AND(($AA23+$E$2)>CA$5,CA$5>=$E$2),$P23,0))*Loss_GasEnergy ->  | PN23: =IF(AND(($AB23+$E$2)>CB$5,CB$5>=$E$2),$Q23,IF(AND(($AA23+$E$2)>CB$5,CB$5>=$E$2),$P23,0))*Loss_GasEnergy ->  | PO23: =IF(AND(($AB23+$E$2)>CC$5,CC$5>=$E$2),$Q23,IF(AND(($AA23+$E$2)>CC$5,CC$5>=$E$2),$P23,0))*Loss_GasEnergy ->  | PP23: =IF(AND(($AB23+$E$2)>CD$5,CD$5>=$E$2),$Q23,IF(AND(($AA23+$E$2)>CD$5,CD$5>=$E$2),$P23,0))*Loss_GasEnergy ->  | PQ23: =IF(AND(($AB23+$E$2)>CE$5,CE$5>=$E$2),$Q23,IF(AND(($AA23+$E$2)>CE$5,CE$5>=$E$2),$P23,0))*Loss_GasEnergy ->  | PR23: =IF(AND(($AB23+$E$2)>CF$5,CF$5>=$E$2),$Q23,IF(AND(($AA23+$E$2)>CF$5,CF$5>=$E$2),$P23,0))*Loss_GasEnergy ->  | PS23: =IF(AND(($AB23+$E$2)>CG$5,CG$5>=$E$2),$Q23,IF(AND(($AA23+$E$2)>CG$5,CG$5>=$E$2),$P23,0))*Loss_GasEnergy ->  | PT23: =IF(AND(($AB23+$E$2)>CH$5,CH$5>=$E$2),$Q23,IF(AND(($AA23+$E$2)>CH$5,CH$5>=$E$2),$P23,0))*Loss_GasEnergy ->  | PU23: =IF(AND(($AB23+$E$2)>CI$5,CI$5>=$E$2),$Q23,IF(AND(($AA23+$E$2)>CI$5,CI$5>=$E$2),$P23,0))*Loss_GasEnergy ->  | PV23: =IF(AND(($AB23+$E$2)>CJ$5,CJ$5>=$E$2),$Q23,IF(AND(($AA23+$E$2)>CJ$5,CJ$5>=$E$2),$P23,0))*Loss_GasEnergy ->  | PW23: =IF(AND(($AB23+$E$2)>CK$5,CK$5>=$E$2),$Q23,IF(AND(($AA23+$E$2)>CK$5,CK$5>=$E$2),$P23,0))*Loss_GasEnergy ->  | PX23: =IF(AND(($AB23+$E$2)>CL$5,CL$5>=$E$2),$Q23,IF(AND(($AA23+$E$2)>CL$5,CL$5>=$E$2),$P23,0))*Loss_GasEnergy ->  | PY23: =IF(AND(($AB23+$E$2)>CM$5,CM$5>=$E$2),$Q23,IF(AND(($AA23+$E$2)>CM$5,CM$5>=$E$2),$P23,0))*Loss_GasEnergy ->  | PZ23: =IF(AND(($AB23+$E$2)>CN$5,CN$5>=$E$2),$Q23,IF(AND(($AA23+$E$2)>CN$5,CN$5>=$E$2),$P23,0))*Loss_GasEnergy ->  | QA23: =IF(AND(($AB23+$E$2)>CO$5,CO$5>=$E$2),$Q23,IF(AND(($AA23+$E$2)>CO$5,CO$5>=$E$2),$P23,0))*Loss_GasEnergy ->  | QB23: =IF(AND(($AB23+$E$2)>CP$5,CP$5>=$E$2),$Q23,IF(AND(($AA23+$E$2)>CP$5,CP$5>=$E$2),$P23,0))*Loss_GasEnergy ->  | QC23: =IF(AND(($AB23+$E$2)>CQ$5,CQ$5>=$E$2),$Q23,IF(AND(($AA23+$E$2)>CQ$5,CQ$5>=$E$2),$P23,0))*Loss_GasEnergy -> 
